Workbook

Sheet Instructions
B1: General Instructions to Complete the Municipal Budget Workbook | D1: Version 5 | E1: 2020-03-09 | F1: 15:30:00
A3: a) | B3: This workbook shall be used for completing the Municipal Introduced and Adopted Budgets.
A4: b) | B4: It is designed to automatically calculate amounts linked from various data entry points.
A5: c) | B5: The individual tabs containing formulas are locked to protect the formulas.
A6: d) | B6: Fill in only the gray sections of the worksheet.
A7: e) | B7: Begin by navigating to the "Key Inputs" tab.
A8: f) | B8: Select the municipality (and county) by clicking on the arrow on the right side. This will populate the entity name and county. Continue to complete each of the fields in order to populate standard information throughout the workbook. If a utility(s) exists, enter the type of utility into the fields listed.
A9: g) | B9: In all applicable signature lines, insert the email address of the applicable official.
A10: h) | B10: Once approved by the Governing Body, the completed Introduced Budget must be submitted to the Division via the FAST "Introduced Budget" record portal and it must be precisely named as: <municode>_introbudget_20xx (all 4 digits municode must be included).
A11: i) | B11: Once approved by the Governing Body, the completed Adopted Budget must be submitted to the Division via the FAST "Adopted Budget" record portal and it must be precisely named as: <municode>_adoptbudget_20xx (all 4 digits municode must be included).
A12: j) | B12: Only the Chief Financial Officer has access to the "Submit for Review" tab within the FAST portal.
A13: h) | B13: Please review the additional instructions "Quick Guide for completing the Municipal Budget" link below:
B14: https://www.nj.gov/dca/divisions/dlgs/pdf/Budget_Document_Instructions.pdf

Sheet Key Inputs
C2: Information Required for
C3: Municipal Budget Document | E3: Responses and Data
C4: Name and County of Municipality | E4: 122 | AG4: Version | AH4: 2020-02-02
C5: Full Name of Municipality | E5: =UPPER(VLOOKUP($E$4,Info!A1:K566,8,FALSE)&" Of "&VLOOKUP($E$4,Info!A1:K566,7,FALSE)) -> BOROUGH OF EATONTOWN
B6: DLGS | C6: County of Municipality | E6: =UPPER(VLOOKUP($E$4,Info!A1:K566,4,FALSE)) -> MONMOUTH | L6: DLGS
C7: Name of Municipality | E7: =UPPER(VLOOKUP($E$4,Info!A1:K566,7,FALSE)) -> EATONTOWN
C8: Type | E8: =UPPER(VLOOKUP($E$4,Info!A1:K566,8,FALSE)) -> BOROUGH
C9: Governing Body Type | E9: =UPPER(VLOOKUP($E$4,Info!A1:K566,9,FALSE)) -> COUNCIL MEMBERS
C10: Location | E10: Borough of Eatontown
C11: Address | E11: 47 Broad Street
C12: Address | E12: Eatontown, NJ 07724
C13: Phone | E13: 732-389-7600
C14: Fax | E14: 732-389-7668
G15: Cert # | H15: Date of Original Appt.
C16: Clerk | E16: Julie Martin | G16: C1291 | H16: 2015-09-07
C17: Tax Collector | E17: Leigh Schenck | G17: T-8326
C18: Chief Financial Officer | E18: Dena Amodea | G18: N-866
C19: Registered Municipal Accountant | E19: Robert S. Oliwa | G19: 414
C20: Municipal Attorney | E20: Andrew Bayer
C22: Newspaper | E22: Asbury Park Press
E24: Day | F24: Month
C25: Date of Introduction | E25: 13 | F25: May
C26: Date of Advertisement | E26: 21 | F26: May
C27: Date of Public Hearing | E27: 10 | F27: June
C29: Time of Public Hearing | E29: 7:30
C31: Net Valuation Taxable Current | F31: 2302211131
C32: Net Valuation Taxable Prior | F32: 2256827250
F33: =+F31-F32 -> 45383881
C34: Budget Year | E34: 2020
C36: Municipal Code | E36: =VLOOKUP($E$4,Info!A1:K566,2,FALSE) -> 1311
C38: Utility # | E38: Utility Type | G38: Capital Improvement Program
C39: Utility 1 | G39: # of Years | H39: 6
C40: Utility 2 | G40: Beginning Year | H40: =+E34 -> 2020
C41: Utility 3 | G41: Ending Year | H41: =+H40+H39-1 -> 2025
C42: Utility 4
C43: Utility 5
C44: Utility 6
C46: Utility Assessment (Tab 37)
C47: Utility Assessment (Tab 38)

Sheet Info (hidden)
B1: Muncode | C1: Town | D1: County | E1: Town Name | F1: Name of Municipality | G1: Muniname | H1: Type of Government | I1: Governing Body Members | J1: Governing Body Type | K1: 2010 Census Population
A2: 1 | B2: 1330 | C2: Aberdeen Township | D2: Monmouth | E2: Aberdeen Township, Monmouth County | F2: Aberdeen Township | G2: Aberdeen | H2: Township | I2: Council Members | J2: Mayor-6 Council Members | K2: 18210
A3: =A2+1 -> 2 | B3: 0101 | C3: Absecon City | D3: Atlantic | E3: Absecon City, Atlantic County | F3: Absecon | G3: Absecon | H3: City | I3: Council Members | J3: Mayor-7 Council Members | K3: 8411
A4: =A3+1 -> 3 | B4: 1001 | C4: Alexandria Township | D4: Hunterdon | E4: =C4&", "&D4&" County" -> Alexandria Township, Hunterdon County | F4: Alexandria Township | G4: Alexandria | H4: Township | I4: Committeepersons | J4: 3 Committee Members | K4: 4938
A5: 4 | B5: 2101 | C5: Allamuchy Township | D5: Warren | E5: =C5&", "&D5&" County" -> Allamuchy Township, Warren County | F5: Allamuchy Township | G5: Allamuchy | H5: Township | I5: Council Members | J5: Mayor-4 Council Members | K5: 4323
A6: 5 | B6: 0201 | C6: Allendale Borough | D6: Bergen | E6: Allendale Borough, Bergen County | F6: Allendale | G6: Allendale | H6: Borough | I6: Council Members | J6: Mayor-6 Council Members | K6: 6505
A7: 6 | B7: 1301 | C7: Allenhurst Borough | D7: Monmouth | E7: Allenhurst Borough, Monmouth County | F7: Allenhurst | G7: Allenhurst | H7: Borough | I7: Commissioners | J7: 3 Commissioners | K7: 496
A8: 7 | B8: 1302 | C8: Allentown Borough | D8: Monmouth | E8: Allentown Borough, Monmouth County | F8: Allentown | G8: Allentown | H8: Borough | I8: Council Members | J8: Mayor-6 Council Members | K8: 1828
A9: 8 | B9: 1701 | C9: Alloway Township | D9: Salem | E9: Alloway Township, Salem County | F9: Alloway Township | G9: Alloway | H9: Township | I9: Committeepersons | J9: 3 Committee Members | K9: 3467
A10: 9 | B10: 2102 | C10: Alpha Borough | D10: Warren | E10: Alpha Borough, Warren County | F10: Alpha | G10: Alpha | H10: Borough | I10: Council Members | J10: Mayor-6 Council Members | K10: 2369
A11: 10 | B11: 0202 | C11: Alpine Borough | D11: Bergen | E11: Alpine Borough, Bergen County | F11: Alpine | G11: Alpine | H11: Borough | I11: Council Members | J11: Mayor-6 Council Members | K11: 1849
A12: 11 | B12: 1901 | C12: Andover Borough | D12: Sussex | E12: Andover Borough, Sussex County | F12: Andover | G12: Andover | H12: Borough | I12: Council Members | J12: Mayor-6 Council Members | K12: 606
A13: 12 | B13: 1902 | C13: Andover Township | D13: Sussex | E13: Andover Township, Sussex County | F13: Andover Township | G13: Andover | H13: Township | I13: Committeepersons | J13: 5 Committee Members | K13: 6319
A14: 13 | B14: 1303 | C14: Asbury Park City | D14: Monmouth | E14: Asbury Park City, Monmouth County | F14: Asbury Park | G14: Asbury Park | H14: City | I14: Council Members | J14: 5 Council Members | K14: 16116
A15: 14 | B15: 0102 | C15: Atlantic City City | D15: Atlantic | E15: Atlantic City City, Atlantic County | F15: Atlantic City | G15: Atlantic City | H15: City | I15: Council Members | J15: Mayor-9 Council Members | K15: 39558
A16: 15 | B16: 1304 | C16: Atlantic Highlands Borough | D16: Monmouth | E16: Atlantic Highlands Borough, Monmouth County | F16: Atlantic Highlands | G16: Atlantic Highlands | H16: Borough | I16: Council Members | J16: Mayor-6 Council Members | K16: 4385
A17: 16 | B17: 0401 | C17: Audubon Borough | D17: Camden | E17: Audubon Borough, Camden County | F17: Audubon | G17: Audubon | H17: Borough | I17: Commissioners | J17: 3 Commissioners | K17: 8819
A18: 17 | B18: 0402 | C18: Audubon Park Borough | D18: Camden | E18: Audubon Park Borough, Camden County | F18: Audubon Park | G18: Audubon Park | H18: Borough | I18: Council Members | J18: Mayor-6 Council Members | K18: 1023
A19: 18 | B19: 0501 | C19: Avalon Borough | D19: Cape May | E19: Avalon Borough, Cape May County | F19: Avalon | G19: Avalon | H19: Borough | I19: Council Members | J19: Mayor-5 Council Members | K19: 1334
A20: 19 | B20: 1305 | C20: Avon-by-the-Sea Borough | D20: Monmouth | E20: Avon-by-the-Sea Borough, Monmouth County | F20: Avon-by-the-Sea | G20: Avon-by-the-Sea | H20: Borough | I20: Commissioners | J20: 3 Commissioners | K20: 1901
A21: 20 | B21: 1501 | C21: Barnegat Light Borough | D21: Ocean | E21: Barnegat Light Borough, Ocean County | F21: Barnegat Light | G21: Barnegat Light | H21: Borough | I21: Council Members | J21: Mayor-6 Council Members | K21: 574
A22: 21 | B22: 1533 | C22: Barnegat Township | D22: Ocean | E22: Barnegat Township, Ocean County | F22: Barnegat Township | G22: Barnegat | H22: Township | I22: Committeepersons | J22: 5 Committee Members | K22: 20936
A23: 22 | B23: 0403 | C23: Barrington Borough | D23: Camden | E23: Barrington Borough, Camden County | F23: Barrington | G23: Barrington | H23: Borough | I23: Council Members | J23: Mayor-6 Council Members | K23: 6983
A24: 23 | B24: 0301 | C24: Bass River Township | D24: Burlington | E24: Bass River Township, Burlington County | F24: Bass River Township | G24: Bass River | H24: Township | I24: Commissioners | J24: 3 Commissioners | K24: 1443
A25: 24 | B25: 1502 | C25: Bay Head Borough | D25: Ocean | E25: Bay Head Borough, Ocean County | F25: Bay Head | G25: Bay Head | H25: Borough | I25: Council Members | J25: Mayor-6 Council Members | K25: 968
A26: 25 | B26: 0901 | C26: Bayonne City | D26: Hudson | E26: Bayonne City, Hudson County | F26: Bayonne | G26: Bayonne | H26: City | I26: Council Members | J26: Mayor-5 Council Members | K26: 63024
A27: 26 | B27: 1503 | C27: Beach Haven Borough | D27: Ocean | E27: Beach Haven Borough, Ocean County | F27: Beach Haven | G27: Beach Haven | H27: Borough | I27: Council Members | J27: 5 Council Members | K27: 1170
A28: 27 | B28: 1504 | C28: Beachwood Borough | D28: Ocean | E28: Beachwood Borough, Ocean County | F28: Beachwood | G28: Beachwood | H28: Borough | I28: Council Members | J28: Mayor-6 Council Members | K28: 11045
A29: 28 | B29: 1801 | C29: Bedminster Township | D29: Somerset | E29: Bedminster Township, Somerset County | F29: Bedminster Township | G29: Bedminster | H29: Township | I29: Committeepersons | J29: 5 Committee Members | K29: 8165
A30: 29 | B30: 0701 | C30: Belleville Township | D30: Essex | E30: Belleville Township, Essex County | F30: Belleville Township | G30: Belleville | H30: Township | I30: Council Members | J30: 7 Council Members | K30: 35926
A31: 30 | B31: 0404 | C31: Bellmawr Borough | D31: Camden | E31: Bellmawr Borough, Camden County | F31: Bellmawr | G31: Bellmawr | H31: Borough | I31: Council Members | J31: Mayor-6 Council Members | K31: 11583
A32: 31 | B32: 1306 | C32: Belmar Borough | D32: Monmouth | E32: Belmar Borough, Monmouth County | F32: Belmar | G32: Belmar | H32: Borough | I32: Council Members | J32: Mayor-4 Council Members | K32: 5794
A33: 32 | B33: 2103 | C33: Belvidere Town | D33: Warren | E33: Belvidere Town, Warren County | F33: Belvidere | G33: Belvidere | H33: Town | I33: Council Members | J33: Mayor-6 Council Members | K33: 2681
A34: 33 | B34: 0203 | C34: Bergenfield Borough | D34: Bergen | E34: Bergenfield Borough, Bergen County | F34: Bergenfield | G34: Bergenfield | H34: Borough | I34: Council Members | J34: Mayor-6 Council Members | K34: 26764
A35: 34 | B35: 2001 | C35: Berkeley Heights Township | D35: Union | E35: Berkeley Heights Township, Union County | F35: Berkeley Heights Township | G35: Berkeley Heights | H35: Township | I35: Council Members | J35: Mayor-6 Council Members | K35: 13183
A36: 35 | B36: 1505 | C36: Berkeley Township | D36: Ocean | E36: Berkeley Township, Ocean County | F36: Berkeley Township | G36: Berkeley | H36: Township | I36: Council Members | J36: Mayor-7 Council Members | K36: 41255
A37: 36 | B37: 0405 | C37: Berlin Borough | D37: Camden | E37: Berlin Borough, Camden County | F37: Berlin | G37: Berlin | H37: Borough | I37: Council Members | J37: Mayor-6 Council Members | K37: 7588
A38: 37 | B38: 0406 | C38: Berlin Township | D38: Camden | E38: Berlin Township, Camden County | F38: Berlin Township | G38: Berlin | H38: Township | I38: Council Members | J38: Mayor-4 Council Members | K38: 5357
A39: 38 | B39: 1802 | C39: Bernards Township | D39: Somerset | E39: Bernards Township, Somerset County | F39: Bernards Township | G39: Bernards | H39: Township | I39: Committeepersons | J39: 5 Committee Members | K39: 26652
A40: 39 | B40: 1803 | C40: Bernardsville Borough | D40: Somerset | E40: Bernardsville Borough, Somerset County | F40: Bernardsville | G40: Bernardsville | H40: Borough | I40: Council Members | J40: Mayor-6 Council Members | K40: 7707
A41: 40 | B41: 1002 | C41: Bethlehem Township | D41: Hunterdon | E41: Bethlehem Township, Hunterdon County | F41: Bethlehem Township | G41: Bethlehem | H41: Township | I41: Committeepersons | J41: 5 Committee Members | K41: 3979
A42: 41 | B42: 0302 | C42: Beverly City | D42: Burlington | E42: Beverly City, Burlington County | F42: Beverly | G42: Beverly | H42: City | I42: Council Members | J42: Mayor-9 Council Members | K42: 2577
A43: 42 | B43: 2104 | C43: Blairstown Township | D43: Warren | E43: Blairstown Township, Warren County | F43: Blairstown Township | G43: Blairstown | H43: Township | I43: Committeepersons | J43: 5 Committee Members | K43: 5967
A44: 43 | B44: 0702 | C44: Bloomfield Township | D44: Essex | E44: Bloomfield Township, Essex County | F44: Bloomfield Township | G44: Bloomfield | H44: Township | I44: Council Members | J44: Mayor-6 Council Members | K44: 47315
A45: 44 | B45: 1601 | C45: Bloomingdale Borough | D45: Passaic | E45: Bloomingdale Borough, Passaic County | F45: Bloomingdale | G45: Bloomingdale | H45: Borough | I45: Council Members | J45: Mayor-6 Council Members | K45: 7656
A46: 45 | B46: 1003 | C46: Bloomsbury Borough | D46: Hunterdon | E46: Bloomsbury Borough, Hunterdon County | F46: Bloomsbury | G46: Bloomsbury | H46: Borough | I46: Council Members | J46: Mayor-6 Council Members | K46: 870
A47: 46 | B47: 0204 | C47: Bogota Borough | D47: Bergen | E47: Bogota Borough, Bergen County | F47: Bogota | G47: Bogota | H47: Borough | I47: Council Members | J47: Mayor-6 Council Members | K47: 8187
A48: 47 | B48: 1401 | C48: Boonton Town | D48: Morris | E48: Boonton Town, Morris County | F48: Boonton | G48: Boonton | H48: Town | I48: Alderpersons | J48: Mayor-8 Alder Persons | K48: 8347
A49: 48 | B49: 1402 | C49: Boonton Township | D49: Morris | E49: Boonton Township, Morris County | F49: Boonton Township | G49: Boonton | H49: Township | I49: Committeepersons | J49: 5 Committee Members | K49: 4263
A50: 49 | B50: 0303 | C50: Bordentown City | D50: Burlington | E50: Bordentown City, Burlington County | F50: Bordentown | G50: Bordentown | H50: City | I50: Commissioners | J50: 3 Commissioners | K50: 3924
A51: 50 | B51: 0304 | C51: Bordentown Township | D51: Burlington | E51: Bordentown Township, Burlington County | F51: Bordentown Township | G51: Bordentown | H51: Township | I51: Committeepersons | J51: 5 Committee Members | K51: 11367
A52: 51 | B52: 1804 | C52: Bound Brook Borough | D52: Somerset | E52: Bound Brook Borough, Somerset County | F52: Bound Brook | G52: Bound Brook | H52: Borough | I52: Council Members | J52: Mayor-6 Council Members | K52: 10402
A53: 52 | B53: 1307 | C53: Bradley Beach Borough | D53: Monmouth | E53: Bradley Beach Borough, Monmouth County | F53: Bradley Beach | G53: Bradley Beach | H53: Borough | I53: Council Members | J53: Mayor-4 Council Members | K53: 4298
A54: 53 | B54: 1805 | C54: Branchburg Township | D54: Somerset | E54: Branchburg Township, Somerset County | F54: Branchburg Township | G54: Branchburg | H54: Township | I54: Committeepersons | J54: 5 Committee Members | K54: 14459
A55: 54 | B55: 1903 | C55: Branchville Borough | D55: Sussex | E55: Branchville Borough, Sussex County | F55: Branchville | G55: Branchville | H55: Borough | I55: Council Members | J55: Mayor-6 Council Members | K55: 841
A56: 55 | B56: 1506 | C56: Brick Township | D56: Ocean | E56: Brick Township, Ocean County | F56: Brick Township | G56: Brick | H56: Township | I56: Council Members | J56: Mayor-7 Council Members | K56: 75072
A57: 56 | B57: 0601 | C57: Bridgeton City | D57: Cumberland | E57: Bridgeton City, Cumberland County | F57: Bridgeton | G57: Bridgeton | H57: City | I57: Council Members | J57: Mayor-5 Council Members | K57: 25349
A58: 57 | B58: 1806 | C58: Bridgewater Township | D58: Somerset | E58: Bridgewater Township, Somerset County | F58: Bridgewater Township | G58: Bridgewater | H58: Township | I58: Council Members | J58: Mayor-5 Council Members | K58: 44464
A59: 58 | B59: 1308 | C59: Brielle Borough | D59: Monmouth | E59: Brielle Borough, Monmouth County | F59: Brielle | G59: Brielle | H59: Borough | I59: Council Members | J59: Mayor-6 Council Members | K59: 4774
A60: 59 | B60: 0103 | C60: Brigantine City | D60: Atlantic | E60: Brigantine City, Atlantic County | F60: Brigantine | G60: Brigantine | H60: City | I60: Council Members | J60: 7 Council Members | K60: 9450
A61: 60 | B61: 0407 | C61: Brooklawn Borough | D61: Camden | E61: Brooklawn Borough, Camden County | F61: Brooklawn | G61: Brooklawn | H61: Borough | I61: Council Members | J61: Mayor-6 Council Members | K61: 1955
A62: 61 | B62: 0104 | C62: Buena Borough | D62: Atlantic | E62: Buena Borough, Atlantic County | F62: Buena | G62: Buena | H62: Borough | I62: Council Members | J62: Mayor-6 Council Members | K62: 4603
A63: 62 | B63: 0105 | C63: Buena Vista Township | D63: Atlantic | E63: Buena Vista Township, Atlantic County | F63: Buena Vista Township | G63: Buena Vista | H63: Township | I63: Committeepersons | J63: 5 Committee Members | K63: 7570
A64: 63 | B64: 0305 | C64: Burlington City | D64: Burlington | E64: Burlington City, Burlington County | F64: Burlington | G64: Burlington | H64: City | I64: Council Members | J64: Mayor-7 Council Members | K64: 9920
A65: 64 | B65: 0306 | C65: Burlington Township | D65: Burlington | E65: Burlington Township, Burlington County | F65: Burlington Township | G65: Burlington | H65: Township | I65: Council Members | J65: Mayor-7 Council Members | K65: 22594
A66: 65 | B66: 1403 | C66: Butler Borough | D66: Morris | E66: Butler Borough, Morris County | F66: Butler | G66: Butler | H66: Borough | I66: Council Members | J66: Mayor-6 Council Members | K66: 7539
A67: 66 | B67: 1904 | C67: Byram Township | D67: Sussex | E67: Byram Township, Sussex County | F67: Byram Township | G67: Byram | H67: Township | I67: Council Members | J67: Mayor-4 Council Members | K67: 8350
A68: =A67+1 -> 67 | B68: 0703 | C68: Caldwell Township | D68: Essex | E68: Caldwell Township, Essex County | F68: Caldwell Township | G68: Caldwell | H68: Township | I68: Council Members | J68: Mayor-6 Council Members | K68: 7822
A69: 68 | B69: 1004 | C69: Califon Borough | D69: Hunterdon | E69: Califon Borough, Hunterdon County | F69: Califon | G69: Califon | H69: Borough | I69: Council Members | J69: Mayor-6 Council Members | K69: 1076
A70: 69 | B70: 0408 | C70: Camden City | D70: Camden | E70: Camden City, Camden County | F70: Camden | G70: Camden | H70: City | I70: Council Members | J70: Mayor-7 Council Members | K70: 77344
A71: 70 | B71: 0502 | C71: Cape May City | D71: Cape May | E71: Cape May City, Cape May County | F71: Cape May | G71: Cape May | H71: City | I71: Council Members | J71: 5 Council Members | K71: 3607
A72: 71 | B72: 0503 | C72: Cape May Point Borough | D72: Cape May | E72: Cape May Point Borough, Cape May County | F72: Cape May Point | G72: Cape May Point | H72: Borough | I72: Commissioners | J72: 3 Commissioners | K72: 291
A73: 72 | B73: 0205 | C73: Carlstadt Borough | D73: Bergen | E73: Carlstadt Borough, Bergen County | F73: Carlstadt | G73: Carlstadt | H73: Borough | I73: Council Members | J73: Mayor-6 Council Members | K73: 6127
A74: 73 | B74: 1713 | C74: Carneys Point Township | D74: Salem | E74: Carneys Point Township, Salem County | F74: Carneys Point Township | G74: Carneys Point | H74: Township | I74: Committeepersons | J74: 5 Committee Members | K74: 8049
A75: 74 | B75: 1201 | C75: Carteret Borough | D75: Middlesex | E75: Carteret Borough, Middlesex County | F75: Carteret | G75: Carteret | H75: Borough | I75: Council Members | J75: Mayor-6 Council Members | K75: 22844
A76: 75 | B76: 0704 | C76: Cedar Grove Township | D76: Essex | E76: Cedar Grove Township, Essex County | F76: Cedar Grove Township | G76: Cedar Grove | H76: Township | I76: Council Members | J76: 5 Council Members | K76: 12411
A77: 76 | B77: 1404 | C77: Chatham Borough | D77: Morris | E77: Chatham Borough, Morris County | F77: Chatham | G77: Chatham | H77: Borough | I77: Council Members | J77: Mayor-6 Council Members | K77: 8962
A78: 77 | B78: 1405 | C78: Chatham Township | D78: Morris | E78: Chatham Township, Morris County | F78: Chatham Township | G78: Chatham | H78: Township | I78: Committeepersons | J78: 5 Committee Members | K78: 10452
A79: 78 | B79: 0409 | C79: Cherry Hill Township | D79: Camden | E79: Cherry Hill Township, Camden County | F79: Cherry Hill Township | G79: Cherry Hill | H79: Township | I79: Council Members | J79: Mayor-7 Council Members | K79: 71045
A80: 79 | B80: 0410 | C80: Chesilhurst Borough | D80: Camden | E80: Chesilhurst Borough, Camden County | F80: Chesilhurst | G80: Chesilhurst | H80: Borough | I80: Council Members | J80: Mayor-6 Council Members | K80: 1634
A81: 80 | B81: 1406 | C81: Chester Borough | D81: Morris | E81: Chester Borough, Morris County | F81: Chester | G81: Chester | H81: Borough | I81: Council Members | J81: Mayor-6 Council Members | K81: 1649
A82: 81 | B82: 1407 | C82: Chester Township | D82: Morris | E82: Chester Township, Morris County | F82: Chester Township | G82: Chester | H82: Township | I82: Council Members | J82: Mayor-4 Council Members | K82: 7838
A83: 82 | B83: 0307 | C83: Chesterfield Township | D83: Burlington | E83: Chesterfield Township, Burlington County | F83: Chesterfield Township | G83: Chesterfield | H83: Township | I83: Committeepersons | J83: 3 Committee Members | K83: 7699
A84: 83 | B84: 0308 | C84: Cinnaminson Township | D84: Burlington | E84: Cinnaminson Township, Burlington County | F84: Cinnaminson Township | G84: Cinnaminson | H84: Township | I84: Committeepersons | J84: 5 Committee Members | K84: 15569
A85: 84 | B85: 2002 | C85: Clark Township | D85: Union | E85: Clark Township, Union County | F85: Clark Township | G85: Clark | H85: Township | I85: Council Members | J85: Mayor-6 Council Members | K85: 14756
A86: 85 | B86: 0801 | C86: Clayton Borough | D86: Gloucester | E86: Clayton Borough, Gloucester County | F86: Clayton | G86: Clayton | H86: Borough | I86: Council Members | J86: Mayor-6 Council Members | K86: 8179
A87: 86 | B87: 0411 | C87: Clementon Borough | D87: Camden | E87: Clementon Borough, Camden County | F87: Clementon | G87: Clementon | H87: Borough | I87: Council Members | J87: Mayor-6 Council Members | K87: 5000
A88: 87 | B88: 0206 | C88: Cliffside Park Borough | D88: Bergen | E88: Cliffside Park Borough, Bergen County | F88: Cliffside Park | G88: Cliffside Park | H88: Borough | I88: Council Members | J88: Mayor-6 Council Members | K88: 23594
A89: 88 | B89: 1602 | C89: Clifton City | D89: Passaic | E89: Clifton City, Passaic County | F89: Clifton | G89: Clifton | H89: City | I89: Council Members | J89: 7 Council Members | K89: 84136
A90: 89 | B90: 1005 | C90: Clinton Town | D90: Hunterdon | E90: Clinton Town, Hunterdon County | F90: Clinton | G90: Clinton | H90: Town | I90: Council Members | J90: Mayor-6 Council Members | K90: 2719
A91: 90 | B91: 1006 | C91: Clinton Township | D91: Hunterdon | E91: Clinton Township, Hunterdon County | F91: Clinton Township | G91: Clinton | H91: Township | I91: Council Members | J91: Mayor-4 Council Members | K91: 13478
A92: 91 | B92: 0207 | C92: Closter Borough | D92: Bergen | E92: Closter Borough, Bergen County | F92: Closter | G92: Closter | H92: Borough | I92: Council Members | J92: Mayor-6 Council Members | K92: 8373
A93: 92 | B93: 0412 | C93: Collingswood Borough | D93: Camden | E93: Collingswood Borough, Camden County | F93: Collingswood | G93: Collingswood | H93: Borough | I93: Commissioners | J93: 3 Commissioners | K93: 13926
A94: 93 | B94: 1309 | C94: Colts Neck Township | D94: Monmouth | E94: Colts Neck Township, Monmouth County | F94: Colts Neck Township | G94: Colts Neck | H94: Township | I94: Committeepersons | J94: 5 Committee Members | K94: 10142
A95: 94 | B95: 0602 | C95: Commercial Township | D95: Cumberland | E95: Commercial Township, Cumberland County | F95: Commercial Township | G95: Commercial | H95: Township | I95: Committeepersons | J95: 3 Committee Members | K95: 5178
A96: 95 | B96: 0106 | C96: Corbin City | D96: Atlantic | E96: Corbin City, Atlantic County | F96: Corbin City | G96: Corbin City | H96: City | I96: Council Members | J96: Mayor-3 Council Members | K96: 492
A97: 96 | B97: 1202 | C97: Cranbury Township | D97: Middlesex | E97: Cranbury Township, Middlesex County | F97: Cranbury Township | G97: Cranbury | H97: Township | I97: Committeepersons | J97: 5 Committee Members | K97: 3857
A98: 97 | B98: 2003 | C98: Cranford Township | D98: Union | E98: Cranford Township, Union County | F98: Cranford Township | G98: Cranford | H98: Township | I98: Committeepersons | J98: 5 Committee Members | K98: 22625
A99: 98 | B99: 0208 | C99: Cresskill Borough | D99: Bergen | E99: Cresskill Borough, Bergen County | F99: Cresskill | G99: Cresskill | H99: Borough | I99: Council Members | J99: Mayor-6 Council Members | K99: 8573
A100: 99 | B100: 1310 | C100: Deal Borough | D100: Monmouth | E100: Deal Borough, Monmouth County | F100: Deal | G100: Deal | H100: Borough | I100: Commissioners | J100: 3 Commissioners | K100: 750
A101: 100 | B101: 0603 | C101: Deerfield Township | D101: Cumberland | E101: Deerfield Township, Cumberland County | F101: Deerfield Township | G101: Deerfield | H101: Township | I101: Committeepersons | J101: 5 Committee Members | K101: 3119
A102: 101 | B102: 0309 | C102: Delanco Township | D102: Burlington | E102: Delanco Township, Burlington County | F102: Delanco Township | G102: Delanco | H102: Township | I102: Committeepersons | J102: 5 Committee Members | K102: 4283
A103: 102 | B103: 1007 | C103: Delaware Township | D103: Hunterdon | E103: Delaware Township, Hunterdon County | F103: Delaware Township | G103: Delaware | H103: Township | I103: Committeepersons | J103: 5 Committee Members | K103: 4563
A104: 103 | B104: 0310 | C104: Delran Township | D104: Burlington | E104: Delran Township, Burlington County | F104: Delran Township | G104: Delran | H104: Township | I104: Council Members | J104: Mayor-5 Council Members | K104: 16896
A105: 104 | B105: 0209 | C105: Demarest Borough | D105: Bergen | E105: Demarest Borough, Bergen County | F105: Demarest | G105: Demarest | H105: Borough | I105: Council Members | J105: Mayor-6 Council Members | K105: 4881
A106: 105 | B106: 0504 | C106: Dennis Township | D106: Cape May | E106: Dennis Township, Cape May County | F106: Dennis Township | G106: Dennis | H106: Township | I106: Committeepersons | J106: 5 Committee Members | K106: 6467
A107: 106 | B107: 1408 | C107: Denville Township | D107: Morris | E107: Denville Township, Morris County | F107: Denville Township | G107: Denville | H107: Township | I107: Council Members | J107: Mayor-7 Council Members | K107: 16635
A108: 107 | B108: 0802 | C108: Deptford Township | D108: Gloucester | E108: Deptford Township, Gloucester County | F108: Deptford Township | G108: Deptford | H108: Township | I108: Council Members | J108: 7 Council Members | K108: 30561
A109: 108 | B109: 1409 | C109: Dover Town | D109: Morris | E109: Dover Town, Morris County | F109: Dover | G109: Dover | H109: Town | I109: Alderpersons | J109: Mayor-8 Alder Persons | K109: 18157
A110: 109 | B110: 0604 | C110: Downe Township | D110: Cumberland | E110: Downe Township, Cumberland County | F110: Downe Township | G110: Downe | H110: Township | I110: Committeepersons | J110: 3 Committee Members | K110: 1585
A111: 110 | B111: 0210 | C111: Dumont Borough | D111: Bergen | E111: Dumont Borough, Bergen County | F111: Dumont | G111: Dumont | H111: Borough | I111: Council Members | J111: Mayor-6 Council Members | K111: 17479
A112: 111 | B112: 1203 | C112: Dunellen Borough | D112: Middlesex | E112: Dunellen Borough, Middlesex County | F112: Dunellen | G112: Dunellen | H112: Borough | I112: Council Members | J112: Mayor-6 Council Members | K112: 7227
A113: 112 | B113: 1508 | C113: Eagleswood Township | D113: Ocean | E113: Eagleswood Township, Ocean County | F113: Eagleswood Township | G113: Eagleswood | H113: Township | I113: Committeepersons | J113: 3 Committee Members | K113: 1603
A114: 113 | B114: 1008 | C114: East Amwell Township | D114: Hunterdon | E114: East Amwell Township, Hunterdon County | F114: East Amwell Township | G114: East Amwell | H114: Township | I114: Committeepersons | J114: 5 Committee Members | K114: 4013
A115: 114 | B115: 1204 | C115: East Brunswick Township | D115: Middlesex | E115: East Brunswick Township, Middlesex County | F115: East Brunswick Township | G115: East Brunswick | H115: Township | I115: Council Members | J115: Mayor-5 Council Members | K115: 47512
A116: 115 | B116: 0803 | C116: East Greenwich Township | D116: Gloucester | E116: East Greenwich Township, Gloucester County | F116: East Greenwich Township | G116: East Greenwich | H116: Township | I116: Committeepersons | J116: 5 Committee Members | K116: 9555
A117: 116 | B117: 1410 | C117: East Hanover Township | D117: Morris | E117: East Hanover Township, Morris County | F117: East Hanover Township | G117: East Hanover | H117: Township | I117: Council Members | J117: Mayor-4 Council Members | K117: 11157
A118: 117 | B118: 0902 | C118: East Newark Borough | D118: Hudson | E118: East Newark Borough, Hudson County | F118: East Newark | G118: East Newark | H118: Borough | I118: Council Members | J118: Mayor-6 Council Members | K118: 2406
A119: 118 | B119: 0705 | C119: East Orange City | D119: Essex | E119: East Orange City, Essex County | F119: East Orange | G119: East Orange | H119: City | I119: Council Members | J119: Mayor-10 Council Members | K119: 64270
A120: 119 | B120: 0212 | C120: East Rutherford Borough | D120: Bergen | E120: East Rutherford Borough, Bergen County | F120: East Rutherford | G120: East Rutherford | H120: Borough | I120: Council Members | J120: Mayor-6 Council Members | K120: 8913
A121: 120 | B121: 1101 | C121: East Windsor Township | D121: Mercer | E121: East Windsor Township, Mercer County | F121: East Windsor Township | G121: East Windsor | H121: Township | I121: Council Members | J121: 7 Council Members | K121: 27190
A122: 121 | B122: 0311 | C122: Eastampton Township | D122: Burlington | E122: Eastampton Township, Burlington County | F122: Eastampton Township | G122: Eastampton | H122: Township | I122: Council Members | J122: 5 Council Members | K122: 6069
A123: 122 | B123: 1311 | C123: Eatontown Borough | D123: Monmouth | E123: Eatontown Borough, Monmouth County | F123: Eatontown | G123: Eatontown | H123: Borough | I123: Council Members | J123: Mayor-6 Council Members | K123: 12709
A124: 123 | B124: 0213 | C124: Edgewater Borough | D124: Bergen | E124: Edgewater Borough, Bergen County | F124: Edgewater | G124: Edgewater | H124: Borough | I124: Council Members | J124: Mayor-6 Council Members | K124: 11513
A125: 124 | B125: 0312 | C125: Edgewater Park Township | D125: Burlington | E125: Edgewater Park Township, Burlington County | F125: Edgewater Park Township | G125: Edgewater Park | H125: Township | I125: Committeepersons | J125: 5 Committee Members | K125: 8881
A126: 125 | B126: 1205 | C126: Edison Township | D126: Middlesex | E126: Edison Township, Middlesex County | F126: Edison Township | G126: Edison | H126: Township | I126: Council Members | J126: Mayor-7 Council Members | K126: 99967
A127: 126 | B127: 0107 | C127: Egg Harbor City | D127: Atlantic | E127: Egg Harbor City, Atlantic County | F127: Egg Harbor City | G127: Egg Harbor City | H127: City | I127: Council Members | J127: Mayor-9 Council Members | K127: 4243
A128: 127 | B128: 0108 | C128: Egg Harbor Township | D128: Atlantic | E128: Egg Harbor Township, Atlantic County | F128: Egg Harbor Township | G128: Egg Harbor | H128: Township | I128: Committeepersons | J128: 5 Committee Members | K128: 43323
A129: 128 | B129: 2004 | C129: Elizabeth City | D129: Union | E129: Elizabeth City, Union County | F129: Elizabeth | G129: Elizabeth | H129: City | I129: Council Members | J129: Mayor-9 Council Members | K129: 124969
A130: 129 | B130: 0804 | C130: Elk Township | D130: Gloucester | E130: Elk Township, Gloucester County | F130: Elk Township | G130: Elk | H130: Township | I130: Committeepersons | J130: 5 Committee Members | K130: 4216
A131: 130 | B131: 1702 | C131: Elmer Borough | D131: Salem | E131: Elmer Borough, Salem County | F131: Elmer | G131: Elmer | H131: Borough | I131: Council Members | J131: Mayor-6 Council Members | K131: 1395
A132: =A131+1 -> 131 | B132: 0211 | C132: Elmwood Park Borough | D132: Bergen | E132: Elmwood Park Borough, Bergen County | F132: Elmwood Park | G132: Elmwood Park | H132: Borough | I132: Council Members | J132: Mayor-6 Council Members | K132: 19403
A133: 132 | B133: 1703 | C133: Elsinboro Township | D133: Salem | E133: Elsinboro Township, Salem County | F133: Elsinboro Township | G133: Elsinboro | H133: Township | I133: Committeepersons | J133: 3 Committee Members | K133: 1036
A134: 133 | B134: 0214 | C134: Emerson Borough | D134: Bergen | E134: Emerson Borough, Bergen County | F134: Emerson | G134: Emerson | H134: Borough | I134: Council Members | J134: Mayor-6 Council Members | K134: 7401
A135: 134 | B135: 0215 | C135: Englewood City | D135: Bergen | E135: Englewood City, Bergen County | F135: Englewood | G135: Englewood | H135: City | I135: Council Members | J135: Mayor-5 Council Members | K135: 27147
A136: 135 | B136: 0216 | C136: Englewood Cliffs Borough | D136: Bergen | E136: Englewood Cliffs Borough, Bergen County | F136: Englewood Cliffs | G136: Englewood Cliffs | H136: Borough | I136: Council Members | J136: Mayor-6 Council Members | K136: 5281
A137: 136 | B137: 1312 | C137: Englishtown Borough | D137: Monmouth | E137: Englishtown Borough, Monmouth County | F137: Englishtown | G137: Englishtown | H137: Borough | I137: Council Members | J137: Mayor-6 Council Members | K137: 1847
A138: 137 | B138: 0706 | C138: Essex Fells Township | D138: Essex | E138: Essex Fells Township, Essex County | F138: Essex Fells Township | G138: Essex Fells | H138: Township | I138: Council Members | J138: Mayor-6 Council Members | K138: 2113
A139: 138 | B139: 0109 | C139: Estell Manor City | D139: Atlantic | E139: Estell Manor City, Atlantic County | F139: Estell Manor | G139: Estell Manor | H139: City | I139: Council Members | J139: 5 Council Members | K139: 1735
A140: 139 | B140: 0313 | C140: Evesham Township | D140: Burlington | E140: Evesham Township, Burlington County | F140: Evesham Township | G140: Evesham | H140: Township | I140: Council Members | J140: Mayor-4 Council Members | K140: 45538
A141: 140 | B141: 1102 | C141: Ewing Township | D141: Mercer | E141: Ewing Township, Mercer County | F141: Ewing Township | G141: Ewing | H141: Township | I141: Council Members | J141: Mayor-5 Council Members | K141: 35790
A142: 141 | B142: 1313 | C142: Fair Haven Borough | D142: Monmouth | E142: Fair Haven Borough, Monmouth County | F142: Fair Haven | G142: Fair Haven | H142: Borough | I142: Council Members | J142: Mayor-6 Council Members | K142: 6121
A143: 142 | B143: 0217 | C143: Fair Lawn Borough | D143: Bergen | E143: Fair Lawn Borough, Bergen County | F143: Fair Lawn | G143: Fair Lawn | H143: Borough | I143: Council Members | J143: 5 Council Members | K143: 32457
A144: 143 | B144: 0605 | C144: Fairfield Township | D144: Cumberland | E144: Fairfield Township, Cumberland County | F144: Fairfield Township | G144: Fairfield | H144: Township | I144: Committeepersons | J144: 5 Committee Members | K144: 6295
A145: 144 | B145: 0707 | C145: Fairfield Township | D145: Essex | E145: Fairfield Township, Essex County | F145: Fairfield Township | G145: Fairfield | H145: Township | I145: Council Members | J145: Mayor-4 Council Members | K145: 7466
A146: 145 | B146: 0218 | C146: Fairview Borough | D146: Bergen | E146: Fairview Borough, Bergen County | F146: Fairview | G146: Fairview | H146: Borough | I146: Council Members | J146: Mayor-6 Council Members | K146: 13835
A147: 146 | B147: 2005 | C147: Fanwood Borough | D147: Union | E147: Fanwood Borough, Union County | F147: Fanwood | G147: Fanwood | H147: Borough | I147: Council Members | J147: Mayor-6 Council Members | K147: 7318
A148: 147 | B148: 1807 | C148: Far Hills Borough | D148: Somerset | E148: Far Hills Borough, Somerset County | F148: Far Hills | G148: Far Hills | H148: Borough | I148: Council Members | J148: Mayor-6 Council Members | K148: 919
A149: 148 | B149: 1314 | C149: Farmingdale Borough | D149: Monmouth | E149: Farmingdale Borough, Monmouth County | F149: Farmingdale | G149: Farmingdale | H149: Borough | I149: Council Members | J149: Mayor-6 Council Members | K149: 1329
A150: 149 | B150: 0314 | C150: Fieldsboro Borough | D150: Burlington | E150: Fieldsboro Borough, Burlington County | F150: Fieldsboro | G150: Fieldsboro | H150: Borough | I150: Council Members | J150: Mayor-6 Council Members | K150: 540
A151: 150 | B151: 1009 | C151: Flemington Borough | D151: Hunterdon | E151: Flemington Borough, Hunterdon County | F151: Flemington | G151: Flemington | H151: Borough | I151: Council Members | J151: Mayor-6 Council Members | K151: 4581
A152: 151 | B152: 0315 | C152: Florence Township | D152: Burlington | E152: Florence Township, Burlington County | F152: Florence Township | G152: Florence | H152: Township | I152: Council Members | J152: Mayor-5 Council Members | K152: 12109
A153: 152 | B153: 1411 | C153: Florham Park Borough | D153: Morris | E153: Florham Park Borough, Morris County | F153: Florham Park | G153: Florham Park | H153: Borough | I153: Council Members | J153: Mayor-6 Council Members | K153: 11696
A154: 153 | B154: 0110 | C154: Folsom Borough | D154: Atlantic | E154: Folsom Borough, Atlantic County | F154: Folsom | G154: Folsom | H154: Borough | I154: Council Members | J154: Mayor-6 Council Members | K154: 1885
A155: 154 | B155: 0219 | C155: Fort Lee Borough | D155: Bergen | E155: Fort Lee Borough, Bergen County | F155: Fort Lee | G155: Fort Lee | H155: Borough | I155: Council Members | J155: Mayor-6 Council Members | K155: 35345
A156: 155 | B156: 1905 | C156: Frankford Township | D156: Sussex | E156: Frankford Township, Sussex County | F156: Frankford Township | G156: Frankford | H156: Township | I156: Committeepersons | J156: 3 Committee Members | K156: 5565
A157: 156 | B157: 1906 | C157: Franklin Borough | D157: Sussex | E157: Franklin Borough, Sussex County | F157: Franklin | G157: Franklin | H157: Borough | I157: Council Members | J157: Mayor-6 Council Members | K157: 5045
A158: 157 | B158: 0220 | C158: Franklin Lakes Borough | D158: Bergen | E158: Franklin Lakes Borough, Bergen County | F158: Franklin Lakes | G158: Franklin Lakes | H158: Borough | I158: Council Members | J158: Mayor-6 Council Members | K158: 10590
A159: 158 | B159: 0805 | C159: Franklin Township | D159: Gloucester | E159: Franklin Township, Gloucester County | F159: Franklin Township | G159: Franklin | H159: Township | I159: Committeepersons | J159: 5 Committee Members | K159: 16820
A160: 159 | B160: 1010 | C160: Franklin Township | D160: Hunterdon | E160: Franklin Township, Hunterdon County | F160: Franklin Township | G160: Franklin | H160: Township | I160: Committeepersons | J160: 5 Committee Members | K160: 3195
A161: 160 | B161: 1808 | C161: Franklin Township | D161: Somerset | E161: Franklin Township, Somerset County | F161: Franklin Township | G161: Franklin | H161: Township | I161: Council Members | J161: Mayor-8 Council Members | K161: 62300
A162: 161 | B162: 2105 | C162: Franklin Township | D162: Warren | E162: Franklin Township, Warren County | F162: Franklin Township | G162: Franklin | H162: Township | I162: Committeepersons | J162: 5 Committee Members | K162: 3176
A163: 162 | B163: 1907 | C163: Fredon Township | D163: Sussex | E163: Fredon Township, Sussex County | F163: Fredon Township | G163: Fredon | H163: Township | I163: Committeepersons | J163: 5 Committee Members | K163: 3437
A164: 163 | B164: 1315 | C164: Freehold Borough | D164: Monmouth | E164: Freehold Borough, Monmouth County | F164: Freehold | G164: Freehold | H164: Borough | I164: Council Members | J164: Mayor-6 Council Members | K164: 12052
A165: 164 | B165: 1316 | C165: Freehold Township | D165: Monmouth | E165: Freehold Township, Monmouth County | F165: Freehold Township | G165: Freehold | H165: Township | I165: Committeepersons | J165: 5 Committee Members | K165: 36184
A166: 165 | B166: 2106 | C166: Frelinghuysen Township | D166: Warren | E166: Frelinghuysen Township, Warren County | F166: Frelinghuysen Township | G166: Frelinghuysen | H166: Township | I166: Committeepersons | J166: 3 Committee Members | K166: 2230
A167: 166 | B167: 1011 | C167: Frenchtown Borough | D167: Hunterdon | E167: Frenchtown Borough, Hunterdon County | F167: Frenchtown | G167: Frenchtown | H167: Borough | I167: Council Members | J167: Mayor-6 Council Members | K167: 1373
A168: 167 | B168: 0111 | C168: Galloway Township | D168: Atlantic | E168: Galloway Township, Atlantic County | F168: Galloway Township | G168: Galloway | H168: Township | I168: Council Members | J168: 7 Council Members | K168: 37349
A169: 168 | B169: 0221 | C169: Garfield City | D169: Bergen | E169: Garfield City, Bergen County | F169: Garfield | G169: Garfield | H169: City | I169: Council Members | J169: 5 Council Members | K169: 30487
A170: 169 | B170: 2006 | C170: Garwood Borough | D170: Union | E170: Garwood Borough, Union County | F170: Garwood | G170: Garwood | H170: Borough | I170: Council Members | J170: Mayor-6 Council Members | K170: 4226
A171: 170 | B171: 0413 | C171: Gibbsboro Borough | D171: Camden | E171: Gibbsboro Borough, Camden County | F171: Gibbsboro | G171: Gibbsboro | H171: Borough | I171: Council Members | J171: Mayor-6 Council Members | K171: 2274
A172: 171 | B172: 0806 | C172: Glassboro Borough | D172: Gloucester | E172: Glassboro Borough, Gloucester County | F172: Glassboro | G172: Glassboro | H172: Borough | I172: Council Members | J172: Mayor-6 Council Members | K172: 18579
A173: 172 | B173: 1012 | C173: Glen Gardner Borough | D173: Hunterdon | E173: Glen Gardner Borough, Hunterdon County | F173: Glen Gardner | G173: Glen Gardner | H173: Borough | I173: Council Members | J173: Mayor-6 Council Members | K173: 1704
A174: 173 | B174: 0708 | C174: Glen Ridge Borough | D174: Essex | E174: Glen Ridge Borough, Essex County | F174: Glen Ridge | G174: Glen Ridge | H174: Borough | I174: Council Members | J174: Mayor-6 Council Members | K174: 7527
A175: 174 | B175: 0222 | C175: Glen Rock Borough | D175: Bergen | E175: Glen Rock Borough, Bergen County | F175: Glen Rock | G175: Glen Rock | H175: Borough | I175: Council Members | J175: Mayor-6 Council Members | K175: 11601
A176: 175 | B176: 0414 | C176: Gloucester City City | D176: Camden | E176: Gloucester City City, Camden County | F176: Gloucester City | G176: Gloucester City | H176: City | I176: Council Members | J176: Mayor-6 Council Members | K176: 11456
A177: 176 | B177: 0415 | C177: Gloucester Township | D177: Camden | E177: Gloucester Township, Camden County | F177: Gloucester Township | G177: Gloucester | H177: Township | I177: Council Members | J177: Mayor-7 Council Members | K177: 64634
A178: 177 | B178: 1809 | C178: Green Brook Township | D178: Somerset | E178: Green Brook Township, Somerset County | F178: Green Brook Township | G178: Green Brook | H178: Township | I178: Committeepersons | J178: 5 Committee Members | K178: 7203
A179: 178 | B179: 1908 | C179: Green Township | D179: Sussex | E179: Green Township, Sussex County | F179: Green Township | G179: Green | H179: Township | I179: Committeepersons | J179: 5 Committee Members | K179: 3601
A180: 179 | B180: 0606 | C180: Greenwich Township | D180: Cumberland | E180: Greenwich Township, Cumberland County | F180: Greenwich Township | G180: Greenwich | H180: Township | I180: Committeepersons | J180: 3 Committee Members | K180: 804
A181: 180 | B181: 0807 | C181: Greenwich Township | D181: Gloucester | E181: Greenwich Township, Gloucester County | F181: Greenwich Township | G181: Greenwich | H181: Township | I181: Council Members | J181: Mayor-4 Council Members | K181: 4899
A182: 181 | B182: 2107 | C182: Greenwich Township | D182: Warren | E182: Greenwich Township, Warren County | F182: Greenwich Township | G182: Greenwich | H182: Township | I182: Committeepersons | J182: 5 Committee Members | K182: 5712
A183: 182 | B183: 0903 | C183: Guttenberg Town | D183: Hudson | E183: Guttenberg Town, Hudson County | F183: Guttenberg | G183: Guttenberg | H183: Town | I183: Council Members | J183: Mayor-5 Council Members | K183: 11176
A184: 183 | B184: 0223 | C184: Hackensack City | D184: Bergen | E184: Hackensack City, Bergen County | F184: Hackensack | G184: Hackensack | H184: City | I184: Council Members | J184: 5 Council Members | K184: 43010
A185: 184 | B185: 2108 | C185: Hackettstown Town | D185: Warren | E185: Hackettstown Town, Warren County | F185: Hackettstown | G185: Hackettstown | H185: Town | I185: Council Members | J185: Mayor-6 Council Members | K185: 9724
A186: 185 | B186: 0418 | C186: Haddon Heights Borough | D186: Camden | E186: Haddon Heights Borough, Camden County | F186: Haddon Heights | G186: Haddon Heights | H186: Borough | I186: Council Members | J186: Mayor-6 Council Members | K186: 7473
A187: 186 | B187: 0416 | C187: Haddon Township | D187: Camden | E187: Haddon Township, Camden County | F187: Haddon Township | G187: Haddon | H187: Township | I187: Commissioners | J187: 3 Commissioners | K187: 14707
A188: 187 | B188: 0417 | C188: Haddonfield Borough | D188: Camden | E188: Haddonfield Borough, Camden County | F188: Haddonfield | G188: Haddonfield | H188: Borough | I188: Commissioners | J188: 3 Commissioners | K188: 11593
A189: 188 | B189: 0316 | C189: Hainesport Township | D189: Burlington | E189: Hainesport Township, Burlington County | F189: Hainesport Township | G189: Hainesport | H189: Township | I189: Committeepersons | J189: 5 Committee Members | K189: 6110
A190: 189 | B190: 1603 | C190: Haledon Borough | D190: Passaic | E190: Haledon Borough, Passaic County | F190: Haledon | G190: Haledon | H190: Borough | I190: Council Members | J190: Mayor-6 Council Members | K190: 8318
A191: 190 | B191: 1909 | C191: Hamburg Borough | D191: Sussex | E191: Hamburg Borough, Sussex County | F191: Hamburg | G191: Hamburg | H191: Borough | I191: Council Members | J191: Mayor-6 Council Members | K191: 3277
A192: 191 | B192: 0112 | C192: Hamilton Township | D192: Atlantic | E192: Hamilton Township, Atlantic County | F192: Hamilton Township | G192: Hamilton | H192: Township | I192: Committeepersons | J192: 5 Committee Members | K192: 26503
A193: 192 | B193: 1103 | C193: Hamilton Township | D193: Mercer | E193: Hamilton Township, Mercer County | F193: Hamilton Township | G193: Hamilton | H193: Township | I193: Council Members | J193: Mayor-5 Council Members | K193: 88464
A194: 193 | B194: 0113 | C194: Hammonton Township | D194: Atlantic | E194: Hammonton Township, Atlantic County | F194: Hammonton Township | G194: Hammonton | H194: Township | I194: Council Members | J194: Mayor-6 Council Members | K194: 14791
A195: 194 | B195: 1013 | C195: Hampton Borough | D195: Hunterdon | E195: Hampton Borough, Hunterdon County | F195: Hampton | G195: Hampton | H195: Borough | I195: Council Members | J195: Mayor-6 Council Members | K195: 1401
A196: =A195+1 -> 195 | B196: 1910 | C196: Hampton Township | D196: Sussex | E196: Hampton Township, Sussex County | F196: Hampton Township | G196: Hampton | H196: Township | I196: Committeepersons | J196: 5 Committee Members | K196: 5196
A197: 196 | B197: 1412 | C197: Hanover Township | D197: Morris | E197: Hanover Township, Morris County | F197: Hanover Township | G197: Hanover | H197: Township | I197: Committeepersons | J197: 5 Committee Members | K197: 13712
A198: 197 | B198: 1413 | C198: Harding Township | D198: Morris | E198: Harding Township, Morris County | F198: Harding Township | G198: Harding | H198: Township | I198: Committeepersons | J198: 5 Committee Members | K198: 3838
A199: 198 | B199: 2109 | C199: Hardwick Township | D199: Warren | E199: Hardwick Township, Warren County | F199: Hardwick Township | G199: Hardwick | H199: Township | I199: Committeepersons | J199: 3 Committee Members | K199: 1696
A200: 199 | B200: 1911 | C200: Hardyston Township | D200: Sussex | E200: Hardyston Township, Sussex County | F200: Hardyston Township | G200: Hardyston | H200: Township | I200: Council Members | J200: 5 Council Members | K200: 8213
... 366 more rows

Sheet Revenue Codes (hidden)
A1: Tabs 4, 4a, 4b, 4c | B1: Tab 5 | C1: Tab 6 | D1: Tab 7, 7a, 7b | E1: Tab 8 | F1: Tabs 10 through 10n
A2: 08-103 | B2: 09-203 | C2: 08-160 | D2: 11-102 | E2: 08-100 | F2: 08-100
A3: 08-104 | B3: 09-204 | C3: 08-161 | D3: 11-103 | E3: 08-103 | F3: 08-103
A4: 08-105 | B4: 09-206 | C4: 08-162 | D4: 11-104 | E4: 08-104 | F4: 08-104
A5: 08-107 | B5: 09-207 | D5: 11-105 | E5: 08-105 | F5: 08-105
A6: 08-108 | B6: 09-208 | D6: 11-106 | E6: 08-106 | F6: 08-106
A7: 08-109 | B7: 09-209 | D7: 11-107 | E7: 08-107 | F7: 08-107
A8: 08-110 | B8: 09-210 | D8: 11-108 | E8: 08-108 | F8: 08-107
A9: 08-111 | B9: 09-213 | D9: 11-109 | E9: 08-109 | F9: 08-108
A10: 08-112 | B10: 09-214 | D10: 11-110 | E10: 08-110 | F10: 08-109
A11: 08-113 | B11: 09-215 | D11: 11-111 | E11: 08-111 | F11: 08-110
A12: 08-114 | B12: 09-221 | D12: 11-112 | E12: 08-112 | F12: 08-111
A13: 08-115 | D13: 11-113 | E13: 08-113 | F13: 08-112
A14: 08-118 | D14: 11-114 | E14: 08-114 | F14: 08-113
A15: 08-120 | D15: 11-115 | E15: 08-115 | F15: 08-114
A16: 08-123 | D16: 11-116 | E16: 08-116 | F16: 08-115
A17: 08-125 | D17: 11-117 | E17: 08-117 | F17: 08-116
A18: 08-129 | D18: 11-118 | E18: 08-118 | F18: 08-117
A19: 08-134 | D19: 11-119 | E19: 08-120 | F19: 08-118
A20: 08-135 | D20: 11-120 | E20: 08-122 | F20: 08-120
A21: 08-146 | D21: 11-121 | E21: 08-123 | F21: 08-122
A22: 08-210 | D22: 11-122 | E22: 08-124 | F22: 08-123
A23: 08-229 | D23: 11-123 | E23: 08-125 | F23: 08-124
A24: 08-230 | D24: 11-124 | E24: 08-126 | F24: 08-125
A25: 08-231 | D25: 11-125 | E25: 08-129 | F25: 08-126
A26: 08-232 | E26: 08-130 | F26: 08-129
A27: 08-233 | E27: 08-132 | F27: 08-130
A28: 08-234 | E28: 08-133 | F28: 08-132
A29: 08-235 | E29: 08-134 | F29: 08-133
A30: 08-236 | E30: 08-135 | F30: 08-134
A31: 08-237 | E31: 08-146 | F31: 08-135
A32: 08-238 | E32: 08-210 | F32: 08-146
A33: 08-239 | E33: 08-225 | F33: 08-210
E34: 08-227 | F34: 08-225
E35: 08-228 | F35: 08-227
E36: 08-240 | F36: 08-228
E37: 08-241 | F37: 08-240
E38: 08-242 | F38: 08-241
E39: 08-243 | F39: 08-242
E40: 08-244 | F40: 08-243
E41: 08-245 | F41: 08-244
E42: 08-246 | F42: 08-245
E43: 08-247 | F43: 08-246
E44: 08-248 | F44: 08-247
E45: 08-249 | F45: 08-248
E46: 08-250 | F46: 08-249
F47: 08-250

Sheet Appropriation Codes (hidden)
A1: Tabs 12 through 15n | B1: Tabs 16, 16a | C1: Tabs 17 and 17a | D1: Tabs 18 and 18a | E1: Tab 19 | F1: Tabs 20 and 20a | G1: Tab 21 | H1: Tabs 22, 22a, 22b | I1: Tab 23 | J1: Tabs 26 and 26a | K1: Tabs 27 and 27a | L1: Tab 28
A2: 20-100 | B2: 22-196 | C2: 30-411 | D2: 30-410 | E2: 36-473 | F2: 20-150 | G2: 22-900 | H2: 42-102 | I2: 20-100 | J2: 44-903 | K2: 45-940 | L2: 46-855
A3: 20-101 | B3: 22-197 | C3: 30-412 | D3: 46-855 | E3: 36-476 | F3: 21-191 | H3: 42-103 | I3: 20-101 | J3: 44-904 | K3: 45-941 | L3: 46-870
A4: 20-102 | B4: 22-198 | C4: 30-413 | D4: 46-860 | F4: 23-221 | H4: 42-104 | I4: 20-102 | J4: 44-905 | K4: 45-942 | L4: 46-875
A5: 20-103 | B5: 22-199 | C5: 30-414 | D5: 46-861 | F5: 25-251 | H5: 42-105 | I5: 20-103 | K5: 45-943 | L5: 46-880
A6: 20-104 | B6: 22-200 | C6: 30-415 | D6: 46-862 | F6: 25-286 | H6: 42-106 | I6: 20-104 | K6: 45-944 | L6: 46-892
A7: 20-105 | B7: 22-201 | C7: 30-420 | D7: 46-863 | F7: 26-298 | H7: 42-107 | I7: 20-105 | L7: 46-896
A8: 20-110 | B8: 22-202 | C8: 30-425 | D8: 46-864 | F8: 29-390 | H8: 42-108 | I8: 20-110
A9: 20-120 | B9: 22-203 | C9: 30-429 | D9: 46-861 | F9: 29-391 | H9: 42-109 | I9: 20-120
A10: 20-130 | B10: 22-204 | C10: 31-430 | D10: 46-894 | F10: 29-393 | H10: 42-110 | I10: 20-130
A11: 20-135 | B11: 22-205 | C11: 31-435 | D11: 46-895 | F11: 30-426 | H11: 42-111 | I11: 20-135
A12: 20-140 | B12: 22-206 | C12: 31-440 | F12: 30-427 | H12: 42-112 | I12: 20-140
A13: 20-145 | B13: 22-207 | C13: 31-445 | F13: 30-428 | H13: 42-113 | I13: 20-145
A14: 20-150 | B14: 22-208 | C14: 31-446 | F14: 30-430 | H14: 42-114 | I14: 20-150
A15: 20-155 | B15: 22-209 | C15: 31-447 | F15: 31-456 | H15: 42-115 | I15: 20-155
A16: 20-160 | B16: 31-430 | C16: 31-450 | F16: 32-465 | H16: 42-116 | I16: 20-160
A17: 20-165 | B17: 31-435 | C17: 31-455 | F17: 43-490 | H17: 42-117 | I17: 20-165
A18: 20-170 | B18: 31-440 | C18: 31-460 | H18: 42-118 | I18: 20-170
A19: 20-175 | B19: 31-445 | C19: 32-465 | H19: 42-119 | I19: 20-175
A20: 21-180 | B20: 31-446 | H20: 42-120 | I20: 21-180
A21: 21-181 | B21: 31-447 | H21: 42-121 | I21: 21-181
A22: 21-182 | B22: 31-450 | H22: 42-122 | I22: 21-182
A23: 21-183 | B23: 31-455 | H23: 42-123 | I23: 21-183
A24: 21-184 | B24: 31-460 | H24: 42-124 | I24: 21-184
A25: 21-185 | B25: 32-465 | H25: 42-125 | I25: 21-185
A26: 21-190 | I26: 21-190
A27: 23-210 | I27: 23-210
A28: 23-211 | I28: 23-211
A29: 23-215 | I29: 23-215
A30: 23-220 | I30: 23-220
A31: 23-222 | I31: 23-222
A32: 23-225 | I32: 23-225
A33: 25-240 | I33: 25-240
A34: 25-241 | I34: 25-241
A35: 25-242 | I35: 25-242
A36: 25-243 | I36: 25-243
A37: 25-244 | I37: 25-244
A38: 25-245 | I38: 25-245
A39: 25-250 | I39: 25-250
A40: 25-252 | I40: 25-252
A41: 25-255 | I41: 25-255
A42: 25-260 | I42: 25-260
A43: 25-261 | I43: 25-261
A44: 25-265 | I44: 25-265
A45: 25-275 | I45: 25-275
A46: 25-280 | I46: 25-280
A47: 25-280 | I47: 25-280
A48: 26-290 | I48: 26-290
A49: 26-291 | I49: 26-291
A50: 26-292 | I50: 26-292
A51: 26-293 | I51: 26-293
A52: 26-294 | I52: 26-294
A53: 26-295 | I53: 26-295
A54: 26-297 | I54: 26-297
A55: 26-300 | I55: 26-300
A56: 26-305 | I56: 26-305
A57: 26-310 | I57: 26-310
A58: 26-315 | I58: 26-315
A59: 26-320 | I59: 26-320
A60: 26-325 | I60: 26-325
A61: 27-330 | I61: 27-330
A62: 27-331 | I62: 27-331
A63: 27-332 | I63: 27-332
A64: 27-333 | I64: 27-333
A65: 27-334 | I65: 27-334
A66: 27-335 | I66: 27-335
A67: 27-340 | I67: 27-340
A68: 27-365 | I68: 27-365
A69: 28-370 | I69: 28-370
A70: 28-371 | I70: 28-371
A71: 28-372 | I71: 28-372
A72: 28-373 | I72: 28-373
A73: 28-374 | I73: 28-374
A74: 28-375 | I74: 28-375
A75: 28-380 | I75: 28-380
A76: 29-392 | I76: 29-392
A77: 43-490 | I77: 43-490
A78: 43-495 | I78: 43-495
A79: 22-196 | I79: 22-196
A80: 22-197 | I80: 22-197
A81: 22-198 | I81: 22-198
A82: 22-199 | I82: 22-199
A83: 22-200 | I83: 22-200
A84: 22-201 | I84: 22-201
A85: 22-202 | I85: 22-202
A86: 22-203 | I86: 22-203
A87: 22-204 | I87: 22-204
A88: 22-205 | I88: 22-205
A89: 22-206 | I89: 22-206
A90: 22-207 | I90: 22-207
A91: 22-208 | I91: 22-208
A92: 22-209 | I92: 22-209
A93: 31-430 | I93: 31-430
A94: 31-435 | I94: 31-435
A95: 31-440 | I95: 31-440
A96: 31-445 | I96: 31-445
A97: 31-446 | I97: 31-446
A98: 31-447 | I98: 31-447
A99: 31-450 | I99: 31-450
A100: 31-455 | I100: 31-455
A101: 31-460 | I101: 31-460
A102: 32-465 | I102: 32-465

Sheet Other Codes (hidden)
A1: Grants | B1: All 9 | C1: all 24,25 | D1: Utility | E1: Revenues | F1: 31 | G1: 31 (20-24) | H1: Appropriations | I1: 32, 32a | J1: 32b | K1: 33 | L1: Open Space | M1: 43 (Rev) | N1: 43 (App)
B2: 10-501 | C2: 40-501 | F2: 08-504 | G2: 08-520 | I2: 55-501 | J2: 55-501 | K2: 55-543 | M2: 54-114 | N2: 54-940
B3: 10-502 | C3: 40-502 | F3: 08-506 | I3: 55-502 | J3: 55-502 | K3: 55-544 | M3: 54-124 | N3: 54-945
B4: 10-503 | C4: 40-503 | F4: 08-507 | I4: 55-503 | J4: 55-503 | K4: 55-550 | M4: 54-176
B5: 10-504 | C5: 40-504 | F5: 08-508 | I5: 55-504 | J5: 55-504 | M5: 54-211
B6: 10-505 | C6: 40-505 | F6: 08-509 | I6: 55-505 | J6: 55-505
B7: 10-506 | C7: 40-506 | F7: 08-510 | J7: 55-513
B8: 10-507 | C8: 40-507 | F8: 08-511 | J8: 55-514
B9: 10-508 | C9: 40-508 | F9: 08-512 | J9: 55-515
B10: 10-509 | C10: 40-509 | F10: 08-515 | J10: 55-524
B11: 10-510 | C11: 40-510 | F11: 08-740 | J11: 55-525
B12: 10-511 | C12: 40-511
B13: 10-512 | C13: 40-512
B14: 10-513 | C14: 40-513
B15: 10-514 | C15: 40-514
B16: 10-515 | C16: 40-515
B17: 10-516 | C17: 40-516
B18: 10-517 | C18: 40-517
B19: 10-518 | C19: 40-518
B20: 10-519 | C20: 40-519
B21: 10-520 | C21: 40-520
B22: 10-521 | C22: 40-521
B23: 10-522 | C23: 40-522
B24: 10-523 | C24: 40-523
B25: 10-524 | C25: 40-524
B26: 10-525 | C26: 40-525
B27: 10-526 | C27: 40-526
B28: 10-527 | C28: 40-527
B29: 10-528 | C29: 40-528
B30: 10-529 | C30: 40-529
B31: 10-530 | C31: 40-530
B32: 10-531 | C32: 40-531
B33: 10-532 | C33: 40-532
B34: 10-533 | C34: 40-533
B35: 10-534 | C35: 40-534
B36: 10-535 | C36: 40-535
B37: 10-536 | C37: 40-536
B38: 10-537 | C38: 40-537
B39: 10-538 | C39: 40-538
B40: 10-539 | C40: 40-539
B41: 10-540 | C41: 40-540
B42: 10-541 | C42: 40-541
B43: 10-542 | C43: 40-542
B44: 10-543 | C44: 40-543
B45: 10-544 | C45: 40-544
B46: 10-545 | C46: 40-545
B47: 10-546 | C47: 40-546
B48: 10-547 | C48: 40-547
B49: 10-548 | C49: 40-548
B50: 10-549 | C50: 40-549
B51: 10-550 | C51: 40-550
B52: 10-551 | C52: 40-551
B53: 10-552 | C53: 40-552
B54: 10-553 | C54: 40-553
B55: 10-554 | C55: 40-554
B56: 10-555 | C56: 40-555
B57: 10-556 | C57: 40-556
B58: 10-557 | C58: 40-557
B59: 10-558 | C59: 40-558
B60: 10-559 | C60: 40-559
B61: 10-560 | C61: 40-560
B62: 10-561 | C62: 40-561
B63: 10-562 | C63: 40-562
B64: 10-563 | C64: 40-563
B65: 10-564 | C65: 40-564
B66: 10-565 | C66: 40-565
B67: 10-566 | C67: 40-566
B68: 10-567 | C68: 40-567
B69: 10-568 | C69: 40-568
B70: 10-569 | C70: 40-569
B71: 10-570 | C71: 40-570
B72: 10-571 | C72: 40-571
B73: 10-572 | C73: 40-572
B74: 10-573 | C74: 40-573
B75: 10-574 | C75: 40-574
B76: 10-575 | C76: 40-575
B77: 10-576 | C77: 40-576
B78: 10-577 | C78: 40-577
B79: 10-578 | C79: 40-578
B80: 10-579 | C80: 40-579
B81: 10-580 | C81: 40-580
B82: 10-581 | C82: 40-581
B83: 10-582 | C83: 40-582
B84: 10-583 | C84: 40-583
B85: 10-584 | C85: 40-584
B86: 10-585 | C86: 40-585
B87: 10-586 | C87: 40-586
B88: 10-587 | C88: 40-587
B89: 10-588 | C89: 40-588
B90: 10-589 | C90: 40-589
B91: 10-590 | C91: 40-590
B92: 10-591 | C92: 40-591
B93: 10-592 | C93: 40-592
B94: 10-593 | C94: 40-593
B95: 10-594 | C95: 40-594
B96: 10-595 | C96: 40-595
B97: 10-596 | C97: 40-596
B98: 10-597 | C98: 40-597
B99: 10-598 | C99: 40-598
B100: 10-599 | C100: 40-599
B101: 10-600 | C101: 40-600
B102: 10-601 | C102: 40-601
B103: 10-602 | C103: 40-602
B104: 10-603 | C104: 40-603
B105: 10-604 | C105: 40-604
B106: 10-605 | C106: 40-605
B107: 10-606 | C107: 40-606
B108: 10-607 | C108: 40-607
B109: 10-608 | C109: 40-608
B110: 10-609 | C110: 40-609
B111: 10-610 | C111: 40-610
B112: 10-611 | C112: 40-611
B113: 10-612 | C113: 40-612
B114: 10-613 | C114: 40-613
B115: 10-614 | C115: 40-614
B116: 10-615 | C116: 40-615
B117: 10-616 | C117: 40-616
B118: 10-617 | C118: 40-617
B119: 10-618 | C119: 40-618
B120: 10-619 | C120: 40-619
B121: 10-620 | C121: 40-620
B122: 10-621 | C122: 40-621
B123: 10-622 | C123: 40-622
B124: 10-623 | C124: 40-623
B125: 10-624 | C125: 40-624
B126: 10-625 | C126: 40-625
B127: 10-626 | C127: 40-626
B128: 10-627 | C128: 40-627
B129: 10-628 | C129: 40-628
B130: 10-629 | C130: 40-629
B131: 10-630 | C131: 40-630
B132: 10-631 | C132: 40-631
B133: 10-632 | C133: 40-632
B134: 10-633 | C134: 40-633
B135: 10-634 | C135: 40-634
B136: 10-635 | C136: 40-635
B137: 10-636 | C137: 40-636
B138: 10-637 | C138: 40-637
B139: 10-638 | C139: 40-638
B140: 10-639 | C140: 40-639
B141: 10-640 | C141: 40-640
B142: 10-641 | C142: 40-641
B143: 10-642 | C143: 40-642
B144: 10-643 | C144: 40-643
B145: 10-644 | C145: 40-644
B146: 10-645 | C146: 40-645
B147: 10-646 | C147: 40-646
B148: 10-647 | C148: 40-647
B149: 10-648 | C149: 40-648
B150: 10-649 | C150: 40-649
B151: 10-650 | C151: 40-650
B152: 10-651 | C152: 40-651
B153: 10-652 | C153: 40-652
B154: 10-653 | C154: 40-653
B155: 10-654 | C155: 40-654
B156: 10-655 | C156: 40-655
B157: 10-656 | C157: 40-656
B158: 10-657 | C158: 40-657
B159: 10-658 | C159: 40-658
B160: 10-659 | C160: 40-659
B161: 10-660 | C161: 40-660
B162: 10-661 | C162: 40-661
B163: 10-662 | C163: 40-662
B164: 10-663 | C164: 40-663
B165: 10-664 | C165: 40-664
B166: 10-665 | C166: 40-665
B167: 10-666 | C167: 40-666
B168: 10-667 | C168: 40-667
B169: 10-668 | C169: 40-668
B170: 10-669 | C170: 40-669
B171: 10-670 | C171: 40-670
B172: 10-671 | C172: 40-671
B173: 10-672 | C173: 40-672
B174: 10-673 | C174: 40-673
B175: 10-674 | C175: 40-674
B176: 10-675 | C176: 40-675
B177: 10-676 | C177: 40-676
B178: 10-677 | C178: 40-677
B179: 10-678 | C179: 40-678
B180: 10-679 | C180: 40-679
B181: 10-680 | C181: 40-680
B182: 10-681 | C182: 40-681
B183: 10-682 | C183: 40-682
B184: 10-683 | C184: 40-683
B185: 10-684 | C185: 40-684
B186: 10-685 | C186: 40-685
B187: 10-686 | C187: 40-686
B188: 10-687 | C188: 40-687
B189: 10-688 | C189: 40-688
B190: 10-689 | C190: 40-689
B191: 10-690 | C191: 40-690
B192: 10-691 | C192: 40-691
B193: 10-692 | C193: 40-692
B194: 10-693 | C194: 40-693
B195: 10-694 | C195: 40-694
B196: 10-695 | C196: 40-695
B197: 10-696 | C197: 40-696
B198: 10-697 | C198: 40-697
B199: 10-698 | C199: 40-698
B200: 10-699 | C200: 40-699
... 582 more rows

Sheet Ranges (hidden)
A1: SeventeenA | B1: Twenty-Five
A2: 12 | B2: 20
A3: 13 | B3: 20a
A4: 14 | B4: 21
A5: 15 | B5: 22
A6: 15a | B6: 22a
A7: 15b | B7: 22b
A8: 15c | B8: 23
A9: 15d | B9: 24
A10: 15e | B10: 24a
A11: 15f | B11: 24b
A12: 15g | B12: 24c
A13: 15h | B13: 24d
A14: 15i | B14: 24e
A15: 15j | B15: 24f
A16: 15k | B16: 24g
A17: 15l | B17: 24h
A18: 15m | B18: 24i
A19: 15n
A20: 16
A21: 16a

Sheet Advertisement
D1: ='Key Inputs'!E34&" Municipal Budget" -> 2020 Municipal Budget
D3: of the | F3: =+'Key Inputs'!E8 -> BOROUGH | I3: of | L3: =+'Key Inputs'!E7 -> EATONTOWN | N3: County of
E4: =+'Key Inputs'!E6 -> MONMOUTH | H4: ="for the fiscal year "&'Key Inputs'!E34&"." -> for the fiscal year 2020.
D6: Revenue and Appropriations Summaries
D9: Summary of Revenues | L9: Anticipated
L10: ='Key Inputs'!E34 -> 2020 | N10: =L10-1 -> 2019 | T10: The Advertisement tab is not locked, allowing for users to edit formulas and/or the template.
D11: 1. | E11: Surplus | L11: =+'4'!I7 -> 4000000 | N11: =+'4'!J7 -> 3600000
D12: 2. | E12: Total Miscellaneous Revenues | L12: =+'11'!I18 -> 4585941.43 | N12: =+'11'!J18 -> 4329586.94
D13: 3. | E13: Receipts from Delinquent Taxes | L13: =+'11'!I19 -> 262760 | N13: =+'11'!J19 -> 233000
D14: 4. | E14: a) Local Tax for Municipal Purposes | L14: =+'11'!I22 -> 18486353.5 | N14: =+'11'!J22 -> 18121973.5
E15: b) Addition to Local School District Tax | L15: =+'11'!I23 -> 0 | N15: =+'11'!J23 -> 0
E16: c) Minimum Library Tax | L16: =+'11'!I24 -> 0 | N16: =+'11'!J24 -> 0
E17: Tot Amt to be Rsd by Taxes for Sup of Muni Bnd | L17: =SUM(L14:L16) -> 18486353.5 | N17: =SUM(N14:N15) -> 18121973.5
E18: Total General Revenues | L18: =SUM(L11:L13)+L17 -> 27335054.93 | N18: =SUM(N11:N13)+N17 -> 26284560.44
D22: Summary of Appropriations | L22: =L$10&" Budget" -> 2020 Budget | N22: ="Final "&N$10&" Budget" -> Final 2019 Budget
D23: 1. | E23: Operating Expenses: | G23: Salaries & Wages | L23: =+'17a'!J25+'25'!J25 -> 11108857 | N23: =+'17a'!K25+'25'!K25 -> 10712243
G24: Other Expenses | L24: =+'17a'!J26+'25'!J26 -> 9471887.93 | N24: =+'17a'!K26+'25'!K26 -> 9286042.44
D25: 2. | E25: Deferred Charges & Other Appropriations | L25: =+'30'!J8+'30'!J18+'30'!J19+'30'!J20+'19'!J20 -> 2389810 | N25: =+'30'!K8+'30'!K18+'30'!K19+'30'!K20+'19'!K20 -> 2392875
D26: 3. | E26: Capital Improvements | L26: =+'30'!J16 -> 97000 | N26: =+'30'!K16 -> 140000
D27: 4. | E27: Debt Service (Include for School Purposes) | L27: =+'30'!J17+'29'!J15 -> 2597500 | N27: =+'30'!K17+'29'!K15 -> 2148400
D28: 5. | E28: Reserve for Uncollected Taxes | K28: 2248746.75 | L28: =+'30'!J23 -> 1670000 | N28: =+'29'!K24 -> 1605000
E29: Total General Appropriations | L29: =SUM(L23:L28) -> 27335054.93 | N29: =SUM(N23:N28) -> 26284560.44
D30: Total Number of Employees
G34: ='Key Inputs'!E$34&" Dedicated" -> 2020 Dedicated | H34: =+'Key Inputs'!E39 -> 0 | L34: Utility Budget
D35: Summary of Revenues | L35: Anticipated
L36: =L10 -> 2020 | N36: =N10 -> 2019
D37: 1. | E37: Surplus
D38: 2. | E38: Miscellaneous Revenues
D39: 3. | E39: Deficit (General Budget)
E40: Total Revenues | L40: =SUM(L37:L39) -> 0 | N40: =SUM(N37:N39) -> 0
D42: Summary of Appropriations | L42: =L$10&" Budget" -> 2020 Budget | N42: ="Final "&N$10&" Budget" -> Final 2019 Budget
D43: 1. | E43: Operating Expenses: | G43: Salaries & Wages
G44: Other Expenses
D45: 2. | E45: Capital Improvements
D46: 3. | E46: Debt Service
D47: 4. | E47: Deferred Charges & Other Appropriations
D48: 5. | E48: Surplus (General Budget)
D49: Total Appropriations | L49: =SUM(L43:L48) -> 0 | N49: =SUM(N43:N48) -> 0
D50: Total Number of Employees
G55: ='Key Inputs'!E$34&" Dedicated" -> 2020 Dedicated | H55: =+'Key Inputs'!E40 -> 0 | L55: Utility Budget
D56: Summary of Revenues | L56: Anticipated
L57: =L36 -> 2020 | N57: =N36 -> 2019
D58: 1. | E58: Surplus | L58: =+'31-Utility1'!J7 -> 0 | N58: =+'31-Utility1'!K7 -> 0
D59: 2. | E59: Miscellaneous Revenues
D60: 3. | E60: Deficit (General Budget)
E61: Total Revenues | L61: =SUM(L58:L60) -> 0 | N61: =SUM(N58:N60) -> 0
D63: Summary of Appropriations | L63: =L$10&" Budget" -> 2020 Budget | N63: ="Final "&N$10&" Budget" -> Final 2019 Budget
D64: 1. | E64: Operating Expenses: | G64: Salaries & Wages
G65: Other Expenses
D66: 2. | E66: Capital Improvements
D67: 3. | E67: Debt Service
D68: 4. | E68: Deferred Charges & Other Appropriations
D69: 5. | E69: Surplus (General Budget)
D70: Total Appropriations | L70: =SUM(L64:L69) -> 0 | N70: =SUM(N64:N69) -> 0
D71: Total Number of Employees
G76: ='Key Inputs'!E$34&" Dedicated" -> 2020 Dedicated | H76: =+'Key Inputs'!E41 -> 0 | L76: Utility Budget
D77: Summary of Revenues | L77: Anticipated
L78: =L57 -> 2020 | N78: =N57 -> 2019
D79: 1. | E79: Surplus
D80: 2. | E80: Miscellaneous Revenues
D81: 3. | E81: Deficit (General Budget)
E82: Total Revenues | L82: =SUM(L79:L81) -> 0 | N82: =SUM(N79:N81) -> 0
D84: Summary of Appropriations | L84: =L$10&" Budget" -> 2020 Budget | N84: ="Final "&N$10&" Budget" -> Final 2019 Budget
D85: 1. | E85: Operating Expenses: | G85: Salaries & Wages
G86: Other Expenses
D87: 2. | E87: Capital Improvements
D88: 3. | E88: Debt Service
D89: 4. | E89: Deferred Charges & Other Appropriations
D90: 5. | E90: Surplus (General Budget)
D91: Total Appropriations | L91: =SUM(L85:L90) -> 0 | N91: =SUM(N85:N90) -> 0
D92: Total Number of Employees
G96: ='Key Inputs'!E$34&" Dedicated" -> 2020 Dedicated | H96: =+'Key Inputs'!E42 -> 0 | L96: Utility Budget
D97: Summary of Revenues | L97: Anticipated
L98: =L77 -> Anticipated | N98: =N77 -> 0
D99: 1. | E99: Surplus
D100: 2. | E100: Miscellaneous Revenues
D101: 3. | E101: Deficit (General Budget)
E102: Total Revenues | L102: =SUM(L99:L101) -> 0 | N102: =SUM(N99:N101) -> 0
D104: Summary of Appropriations | L104: =L$10&" Budget" -> 2020 Budget | N104: ="Final "&N$10&" Budget" -> Final 2019 Budget
D105: 1. | E105: Operating Expenses: | G105: Salaries & Wages
G106: Other Expenses
D107: 2. | E107: Capital Improvements
D108: 3. | E108: Debt Service
D109: 4. | E109: Deferred Charges & Other Appropriations
D110: 5. | E110: Surplus (General Budget)
D111: Total Appropriations | L111: =SUM(L105:L110) -> 0 | N111: =SUM(N105:N110) -> 0
D112: Total Number of Employees
G116: ='Key Inputs'!E$34&" Dedicated" -> 2020 Dedicated | H116: =+'Key Inputs'!E43 -> 0 | L116: Utility Budget
D117: Summary of Revenues | L117: Anticipated
L118: =L97 -> Anticipated | N118: =N97 -> 0
D119: 1. | E119: Surplus
D120: 2. | E120: Miscellaneous Revenues
D121: 3. | E121: Deficit (General Budget)
E122: Total Revenues | L122: =SUM(L119:L121) -> 0 | N122: =SUM(N119:N121) -> 0
D124: Summary of Appropriations | L124: =L$10&" Budget" -> 2020 Budget | N124: ="Final "&N$10&" Budget" -> Final 2019 Budget
D125: 1. | E125: Operating Expenses: | G125: Salaries & Wages
G126: Other Expenses
D127: 2. | E127: Capital Improvements
D128: 3. | E128: Debt Service
D129: 4. | E129: Deferred Charges & Other Appropriations
D130: 5. | E130: Surplus (General Budget)
D131: Total Appropriations | L131: =SUM(L125:L130) -> 0 | N131: =SUM(N125:N130) -> 0
D132: Total Number of Employees
G136: ='Key Inputs'!E$34&" Dedicated" -> 2020 Dedicated | H136: =+'Key Inputs'!E44 -> 0 | L136: Utility Budget
D137: Summary of Revenues | L137: Anticipated
L138: =L117 -> Anticipated | N138: =N117 -> 0
D139: 1. | E139: Surplus
D140: 2. | E140: Miscellaneous Revenues
D141: 3. | E141: Deficit (General Budget)
E142: Total Revenues | L142: =SUM(L139:L141) -> 0 | N142: =SUM(N139:N141) -> 0
D144: Summary of Appropriations | L144: =L$10&" Budget" -> 2020 Budget | N144: ="Final "&N$10&" Budget" -> Final 2019 Budget
D145: 1. | E145: Operating Expenses: | G145: Salaries & Wages
G146: Other Expenses
D147: 2. | E147: Capital Improvements
D148: 3. | E148: Debt Service
D149: 4. | E149: Deferred Charges & Other Appropriations
D150: 5. | E150: Surplus (General Budget)
D151: Total Appropriations | L151: =SUM(L145:L150) -> 0 | N151: =SUM(N145:N150) -> 0
D152: Total Number of Employees
D156: Balance of Outstanding Debt
H157: General | L157: =+'Key Inputs'!E39 -> 0 | N157: =+'Key Inputs'!E40 -> 0
D158: Interest
D159: Principal
D160: Outstanding Balance | H160: =SUM(H158:H159) -> 0 | L160: =SUM(L158:L159) -> 0 | N160: =SUM(N158:N159) -> 0
D164: Balance of Outstanding Debt
H165: =+'Key Inputs'!E41 -> 0 | L165: =+'Key Inputs'!E42 -> 0 | N165: =+'Key Inputs'!E43 -> 0
D166: Interest
D167: Principal
D168: Outstanding Balance | H168: =SUM(H166:H167) -> 0 | L168: =SUM(L166:L167) -> 0 | N168: =SUM(N166:N167) -> 0
D172: Balance of Outstanding Debt
H173: =+'Key Inputs'!E44 -> 0
D174: Interest
D175: Principal
D176: Outstanding Balance | H176: =SUM(H174:H175) -> 0
D179: Notice is hereby given that the budget and tax resolution was approved by the | M179: =+'Key Inputs'!E9 -> COUNCIL MEMBERS
D180: of the | F180: =+'Key Inputs'!E8 -> BOROUGH | I180: of | L180: =+'Key Inputs'!E7 -> EATONTOWN | N180: , County of
D181: =+'Key Inputs'!E6 -> MONMOUTH | G181: on | L181: =", "&'Key Inputs'!E34&"." -> , 2020.
D184: A hearing on the budget and tax resolution will be held at | O184: , on
H185: =", "&'Key Inputs'!E34&" at" -> , 2020 at | L185: o'clock PM at which time and place
D186: ="objections to the Budget and Tax Resolution for the year "&'Key Inputs'!E34&" may be presented by taxpayers or" -> objections to the Budget and Tax Resolution for the year 2020 may be presented by taxpayers or
D187: other interested parties.
D189: Copies of the budget are available in the office of | O189: at
D190: the Municipal Building, | N190: New Jersey,
H191: during the hours of | M191: to | O191: .

Sheet Summary Data
B2: ='Key Inputs'!E5 -> BOROUGH OF EATONTOWN
B3: ="SUMMARY OF "&'Key Inputs'!E34 &" BUDGET" -> SUMMARY OF 2020 BUDGET
K4: Future Budget Projections
B5: Total Budget | H5: =+'11'!I26 -> 27335054.93 | I5: =SUM(I9:I53) -> 1 | K5: ='Key Inputs'!E34 -> 2020 | L5: =+K5+1 -> 2021 | M5: =+L5+1 -> 2022 | N5: =+M5+1 -> 2023 | O5: =+N5+1 -> 2024
B7: Employee Costs:
C8: Salaries & Wages
D9: Sheet 17 | G9: =+'17a'!J25 -> 10715857 | J9: 1.02 | K9: =+G9*$J$9 -> 10930174.14 | L9: =+K9*$J$9 -> 11148777.62 | M9: 11371753.18 | N9: 11599188.24 | O9: 11831172
D10: Sheet 25 | G10: =+'25'!J25 -> 393000 | J10: 1.02 | K10: =+G10*$J$9 -> 400860 | L10: 408877.2 | M10: 417054.744 | N10: 425395.8389 | O10: 433903.7557
E11: Total | H11: =SUM(G9:G10) -> 11108857 | K11: =+K9+K10 -> 11331034.14 | L11: =+L9+L10 -> 11557654.82 | M11: =+M9+M10 -> 11788807.92 | N11: =+N9+N10 -> 12024584.08 | O11: =+O9+O10 -> 12265075.76
C13: Social Security
D14: Sheet 19 | H14: =+'19'!J11 -> 464000 | J14: 1.02 | K14: =+H14*$J$14 -> 473280 | L14: =+K14*$J$14 -> 482745.6 | M14: =+L14*$J$14 -> 492400.512 | N14: =+M14*$J$14 -> 502248.5222 | O14: =+N14*$J$14 -> 512293.4927
C15: Pensions etc.
D16: Sheet 19 | H16: =+'19'!J10 -> 518000 | J16: 1.02 | K16: =+H16*$J$16 -> 528360 | L16: =+K16*$J$16 -> 538927.2 | M16: =+L16*$J$16 -> 549705.744 | N16: =+M16*$J$16 -> 560699.8589 | O16: =+N16*$J$16 -> 571913.8561
D17: Sheet 19 | H17: =+'19'!J13 -> 1300810 | J17: 1.05 | K17: =+J17*$H$17 -> 1365850.5 | L17: =+K17*$J$17 -> 1434143.025 | M17: =+L17*$J$17 -> 1505850.176 | N17: =+M17*$J$17 -> 1581142.685 | O17: =+N17*$J$17 -> 1660199.819
D18: Sheet 19 | H18: =+'19'!J17 -> 0
D19: Sheet 20
C20: Insurance
D21: Sheet 15 | H21: =+'15'!J23 -> 3340500 | J21: 1.06 | K21: =+H21*$J$21 -> 3540930 | L21: =+K21*$J$21 -> 3753385.8 | M21: =+L21*$J$21 -> 3978588.948 | N21: =+M21*$J$21 -> 4217304.285 | O21: =+N21*$J$21 -> 4470342.542
C22: Direct Employee Costs | H22: =SUM(H11:H21) -> 16732167 | I22: =+H22/H5 -> 0.6121138971
B24: General Liability Insurance
C25: Sheet 15 | H25: =+'15'!J25 -> 440440 | I25: =+H25/H5 -> 0.01611264368 | K25: 440440 | L25: 447487.04 | M25: 454646.83 | N25: 461921.18 | O25: 469311.92
B27: Debt Service:
C28: Sheet 27 | H28: =+'27a'!J26 -> 2597500 | I28: =+H28/H5 -> 0.09502450266 | K28: 2597500 | L28: 2553500 | M28: 2014650 | N28: 1983450 | O28: 1579025
B30: Reserve for Uncollected Taxes:
C31: Sheet 29 | H31: =+'29'!J24 -> 1670000 | I31: =+H31/H5 -> 0.06109371297 | K31: 1670000 | L31: 1670000 | M31: 1670000 | N31: 1670000 | O31: 1670000
B33: Capital Funds:
C34: Sheet 26a | H34: =+'26a'!J26 -> 97000 | I34: =+H34/H5 -> 0.003548556981 | K34: 97000 | L34: 97000 | M34: 97000 | N34: 97000 | O34: 97000
B36: Deferred Charges:
C37: Sheet 28 | H37: =+'28'!J19 -> 0 | I37: =+H37/H5 -> 0
B39: Grants:
C40: Sheet 25 (less Salaries & Wages above) | H40: =+'25'!J21 -> 132632.93 | I40: =+H40/H5 -> 0.004852118656 | K40: 140000 | L40: 110000 | M40: 110000 | N40: 110000 | O40: 110000
B42: All Other Departmental OE's:
C43: Various Line Items | H43: =+H5-(+SUM(H22:H41)) -> 5665315 | I43: =+H43/H5 -> 0.207254568 | J43: 1.02 | K43: =+H43*$J$43 -> 5778621.3 | L43: =+K43*$J$43 -> 5894193.726 | M43: =+L43*$J$43 -> 6012077.601 | N43: =+M43*$J$43 -> 6132319.153 | O43: =+N43*$J$43 -> 6254965.536
J45: Projected Budget Totals | K45: =SUM(K11:K43) -> 27963015.94 | L45: =SUM(L11:L43) -> 28539037.21 | M45: =SUM(M11:M43) -> 28673727.73 | N45: =SUM(N11:N43) -> 29340669.76 | O45: =SUM(O11:O43) -> 29660127.92
B47: ='Key Inputs'!E5 -> BOROUGH OF EATONTOWN
B48: ='Key Inputs'!E34&" BUDGET FUNDING" -> 2020 BUDGET FUNDING | K48: Project Tax Results
K49: ='Key Inputs'!E34 -> 2020 | L49: =+K49+1 -> 2021 | M49: =+L49+1 -> 2022 | N49: =+M49+1 -> 2023 | O49: =+N49+1 -> 2024
E50: Budget Funding:
F51: Fund Balance | H51: =+'11'!I8 -> 4000000 | K51: 4000000 | L51: =+K51+25000 -> 4025000 | M51: =+L51+25000 -> 4050000 | N51: =+M51+25000 -> 4075000 | O51: =+N51+25000 -> 4100000
F52: Local Revenues | H52: =+'11'!I11+'11'!I13+'11'!I17+'11'!I14 -> 3029240 | K52: 3029240 | L52: =+K52+150000 -> 3179240 | M52: =+L52+150000 -> 3329240 | N52: =+M52+150000 -> 3479240 | O52: =+N52+150000 -> 3629240
F53: State Aid | H53: =+'11'!I12 -> 1464615 | K53: 1464615 | L53: 1464615 | M53: 1464615 | N53: 1464615 | O53: 1464615
F54: Grants | H54: =+'11'!I16 -> 92086.43 | K54: 92086.43 | L54: 92086.43 | M54: 92086.43 | N54: 92086.43 | O54: 92086.43
F55: Delinquent Tax | H55: =+'11'!I19 -> 262760 | K55: 262760 | L55: 262760 | M55: 262760 | N55: 262760 | O55: 262760
F56: Local Purpose Tax | H56: =+'11'!I25 -> 18486353.5 | K56: =+K45-K51-K52-K53-K54-K55 -> 19114314.51 | L56: =+L45-L51-L52-L53-L54-L55 -> 19515335.78 | M56: =+M45-M51-M52-M53-M54-M55 -> 19475026.3 | N56: =+N45-N51-N52-N53-N54-N55 -> 19966968.33 | O56: =+O45-O51-O52-O53-O54-O55 -> 20111426.49
H57: =SUM(H51:H56) -> 27335054.93 | K57: =SUM(K51:K56) -> 27963015.94 | L57: =SUM(L51:L56) -> 28539037.21 | M57: =SUM(M51:M56) -> 28673727.73 | N57: =SUM(N51:N56) -> 29340669.76 | O57: =SUM(O51:O56) -> 29660127.92
F59: Ratables | H59: =+'Key Inputs'!F31 -> 2302211131 | K59: =+H59+8000000 -> 2310211131 | L59: =+K59+8000000 -> 2318211131 | M59: =+L59+8000000 -> 2326211131 | N59: =+M59+8000000 -> 2334211131 | O59: =+N59+8000000 -> 2342211131
F60: Tax Rate | H60: =+'Tax Summary'!F32 -> 0.8029825437 | K60: =+K56/(+K59/100) -> 0.8273838808 | L60: =+L56/(+L59/100) -> 0.8418273695 | M60: =+M56/(+M59/100) -> 0.8371994287 | N60: =+N56/(+N59/100) -> 0.8554054115 | O60: =+O56/(+O59/100) -> 0.8586513072
F61: Increase | H61: =+H60-'Tax Summary'!I32 -> -1.745634554e-05 | K61: =+K60-H60 -> 0.02440133713 | L61: =+L60-K60 -> 0.01444348873 | M61: =+M60-L60 -> -0.00462794077 | N61: =+N60-M60 -> 0.01820598279 | O61: =+O60-N60 -> 0.003245895711
J63: LEVY CAP CAL
J64: Prior Year | K64: =+H56 -> 18486353.5 | L64: =+K56 -> 19114314.51 | M64: =+L56 -> 19515335.78 | N64: =+M56 -> 19475026.3 | O64: =+N56 -> 19966968.33
J65: 0.02 | K65: =+K64*0.02 -> 369727.07 | L65: =+L64*0.02 -> 382286.2902 | M65: =+M64*0.02 -> 390306.7157 | N65: =+N64*0.02 -> 389500.526 | O65: =+O64*0.02 -> 399339.3666
J66: Debt Service & Health | K66: 145000 | L66: 145000 | M66: 145000 | N66: 145000 | O66: 145000
J67: Ratables Added | K67: 14000 | L67: 15000 | M67: 16000 | N67: 17000 | O67: 18000
J68: CAP Max | K68: =SUM(K64:K67) -> 19015080.57 | L68: =SUM(L64:L67) -> 19656600.8 | M68: =SUM(M64:M67) -> 20066642.5 | N68: =SUM(N64:N67) -> 20026526.83 | O68: =SUM(O64:O67) -> 20529307.7
J70: Over / (Under) CAP | K70: =+K56-K68 -> 99233.94 | L70: =+L56-L68 -> -141265.0164 | M70: =+M56-M68 -> -591616.1994 | N70: =+N56-N68 -> -59558.49479 | O70: =+O56-O68 -> -417881.2031

Sheet Budget Summary
B2: COMPARISON OF REVENUES & APPROPRIATIONS | L2: LOCAL TAX LEVY AND ASSESSED VALUES
E4: BUDGET | G4: PRIOR | O4: BUDGET | Q4: PRIOR
E5: YEAR | G5: YEAR | I5: CHANGE | J5: % | O5: YEAR | Q5: YEAR | S5: CHANGE | T5: %
B6: REVENUES
C7: Surplus | E7: =+'11'!I8+'11'!I9 -> 4000000 | G7: =+'11'!J8+'11'!J9 -> 3600000 | I7: =+E7-G7 -> 400000 | J7: =+I7/G7 -> 0.1111111111 | M7: Local Purpose Tax Levy (only) | O7: =+'11'!I22 -> 18486353.5 | Q7: =+'11'!J22 -> 18121973.5 | S7: =+O7-Q7 -> 364380 | T7: =+S7/Q7 -> 0.0201070816
C8: Local | E8: =+'11'!I11+'11'!I13+'11'!I14+'11'!I17+'11'!I15 -> 3029240 | G8: =+'11'!J11+'11'!J13+'11'!J14+'11'!J17+'11'!J15 -> 2681000 | I8: =+E8-G8 -> 348240 | J8: =+I8/G8 -> 0.1298918314
C9: State Aid | E9: =+'11'!I12 -> 1464615 | G9: =+'11'!J12 -> 1464615 | I9: 0 | J9: 0 | M9: Local Tax Rate | O9: =+'Tax Summary'!F32 -> 0.8029825437 | Q9: =+'Tax Summary'!I32 -> 0.803 | S9: =+O9-Q9 -> -1.745634554e-05 | T9: =+S9/Q9 -> -2.1738911e-05
C10: State & Federal Grants | E10: =+'11'!I16 -> 92086.43 | G10: =+'11'!J16 -> 183971.94 | I10: -91885.51 | J10: -0.4994539385
C11: Delinquent Tax | E11: =+'11'!I19 -> 262760 | G11: =+'11'!J19 -> 233000 | I11: 29760 | J11: 0.1277253219 | M11: Assessed Valuation | O11: =+'Key Inputs'!F31 -> 2302211131 | Q11: =+'Key Inputs'!F32 -> 2256827250 | S11: =+O11-Q11 -> 45383881 | T11: =+S11/Q11 -> 0.02010959456
C12: Local Purpose Tax | E12: =+'11'!I22 -> 18486353.5 | G12: =+'11'!J22 -> 18121973.5 | I12: 364380 | J12: 0.0201070816
C13: Minimum Library Tax | E13: =+'11'!I24 -> 0 | G13: =+'11'!J24 -> 0 | I13: 0
C14: School Tax (Debt Service) | E14: =+'11'!I23 -> 0 | G14: =+'11'!J23 -> 0 | I14: 0
B15: TOTAL REVENUE | E15: =SUM(E6:E14) -> 27335054.93 | G15: =SUM(G6:G14) -> 26284560.44 | I15: =SUM(I6:I14) -> 1050494.49 | J15: 0.03996621866
L16: STATUS OF "CAPS"
B17: APPROPRIATIONS | M17: SPENDING CAP | S17: 2% LEVY CAP
C18: Salaries & Wages | E18: =+'17a'!J25+'25'!J25 -> 11108857 | G18: =+'17a'!M25+'25'!M25 -> 10680743 | I18: =+E18-G18 -> 428114 | J18: =+I18/G18 -> 0.04008279199 | O18: CAP | Q18: CAP
C19: Other Expenses | E19: =+'17a'!J26+'25'!J26-E21 -> 9339255 | G19: =+'17a'!M26+'25'!M26-G21 -> 9050024 | I19: 289231 | J19: 0.03195914177 | O19: @ 0.5% | Q19: COLA | S19: =+'2% Levy Cap'!T30 -> 18798667.93 | T19: MAX
C20: Statutory & Deferred Charges | E20: =+'30'!J8+'30'!J18+'30'!J19+'30'!J20+'30'!J22+'19'!J20 -> 2389810 | G20: =+'30'!K8+'30'!K18+'30'!K19+'30'!K20+'30'!K22+'19'!K20 -> 2392875 | I20: -3065 | J20: -0.001280885964 | S20: =+'11'!I22 -> 18486353.5 | T20: ACTUAL
C21: State & Federal Grants | E21: =+'25'!J21+'26a'!J14 -> 132632.93 | G21: =+'25'!K21 -> 240518.44 | I21: -107885.51 | J21: -0.4485540069 | M21: CAP Base from Prior Year | O21: =+'App. CAP'!I28 -> 21539975 | Q21: =+'App. CAP'!I28 -> 21539975 | S21: =-S19+S20 -> -312314.427 | T21: + OR ( )
C22: Capital (without grants) | E22: =+'30'!J16-'26a'!J14 -> 97000 | G22: =+'30'!K16-'26a'!K14+'30'!L16 -> 140000 | I22: -43000 | J22: -0.3071428571 | M22: Rate Applied | O22: 0.005 | Q22: 0.035
C23: Debt Service | E23: =+'30'!J17 -> 2597500 | G23: =+'30'!M17 -> 2175400 | I23: 422100 | J23: 0.1940332812 | M23: Allowable CAP | O23: =+O21*1.005 -> 21647674.87 | Q23: =+Q21*1.035 -> 22293874.12 | S23: Must be zero or ( ) to
C24: School Debt Service | E24: =+'29'!J15 -> 0 | G24: =+'29'!K15 -> 0 | I24: 0 | M24: Additions: | S24: Introduce Budget
C25: Reserve for Uncollected Taxes | E25: =+'29'!J24 -> 1670000 | G25: =+'29'!K24 -> 1605000 | I25: 65000 | J25: 0.04049844237 | M25: See Sheet 3b | O25: =+'App. CAP'!S19 -> 1005173.377 | Q25: =+'App. CAP'!S19 -> 1005173.377
B26: TOTAL APPROPRIATIONS | E26: =SUM(E17:E25) -> 27335054.93 | G26: =SUM(G17:G25) -> 26284560.44 | I26: =SUM(I17:I25) -> 1050494.49 | M26: Other
C27: Adopted Emergencies | G27: =+G26-G15 -> 0 | M27: Total CAP Allowable | O27: =SUM(O23:O26) -> 22652848.25 | Q27: =SUM(Q23:Q26) -> 23299047.5
M28: Budget Expenditures Sheet 19 | O28: =+'19'!J25 -> 22248172 | Q28: =+'19'!J25 -> 22248172
M29: Remaining or (Excess) | O29: =+O27-O28 -> 404676.252 | Q29: =+Q27-Q28 -> 1050875.502
B30: CONDITION OF SURPLUS
E32: BUDGET | G32: PRIOR | L32: % OF TAX COLLECTION
E33: YEAR | G33: YEAR | I33: CHANGE
C34: Available | E34: =+'39'!L22 -> 6670850 | G34: =+'39'!M22 -> 5610470 | I34: =+E34-G34 -> 1060380 | O34: CURRENT | Q34: PRIOR | S34: CHANGE
C35: Used to Fund Budget | E35: =+'4'!I7 -> 4000000 | G35: =+'4'!J7 -> 3600000 | I35: =+E35-G35 -> 400000 | M35: Actual Percentage of Collection | O35: 0.9907 | Q35: 0.99 | S35: =+O35-Q35 -> 0.0007
C36: Remaining Balance | E36: =+E34-E35 -> 2670850 | G36: =+G34-G35 -> 2010470 | I36: =+E36-G36 -> 660380 | M36: Used for Reserve for Taxes | O36: =+'Reserve & Tax Calculation'!D26 -> 0.9681335306 | Q36: 0.9692 | S36: =+O36-Q36 -> -0.001066469385
M37: Remaining | O37: =+O35-O36 -> 0.02256646938 | Q37: =+Q35-Q36 -> 0.0208 | S37: =+O37-Q37 -> 0.001766469385

Sheet Tax Summary
C4: =+'Key Inputs'!E5 -> BOROUGH OF EATONTOWN
C8: SUMMARY OF TAX RATES | N8: LEVY CHANGE PER VARIOUS ASSESSED VALUES
E10: Estimated | H10: Actual | O10: Estimated | Q10: Actual
E11: ='Key Inputs'!E34 -> 2020 | H11: =+E11-1 -> 2019 | O11: =+E11 -> 2020 | Q11: =+O11-1 -> 2019 | S11: Total | T11: Local
N12: Property | O12: Total | P12: Local | Q12: Total | R12: Local | S12: Tax | T12: Tax
E13: Levy Amount | F13: Rate | H13: Levy Amount | I13: Rate | K13: Change | L13: % | N13: Assessment | O13: Tax | P13: Tax | Q13: Tax | R13: Tax | S13: Change | T13: Change
C14: COUNTY:
D15: County Tax (General) | E15: =+H15*1.02 -> 5612690.76 | F15: =+E15/($E$38/100) -> 0.2437956573 | H15: 5502638 | I15: 0.244 | K15: =+F15-I15 -> -0.0002043426676 | L15: =+K15/I15 -> -0.0008374699494 | N15: 100000 | O15: =+N15*($F$35/100) -> 2276.341274 | P15: =+N15*($F$32/100) -> 802.9825437 | Q15: =+N15*($I$35/100) -> 2277 | R15: =+N15*($I$32/100) -> 803 | S15: =+O15-Q15 -> -0.6587264159 | T15: =+P15-R15 -> -0.01745634554
D16: County Library | E16: =+H16*1.02 -> 401514.84 | F16: =+E16/($E$38/100) -> 0.01744040043 | H16: 393642 | I16: 0.018 | K16: =+F16-I16 -> -0.0005595995696 | L16: =+K16/I16 -> -0.03108886498 | N16: 125000 | O16: =+N16*($F$35/100) -> 2845.426592 | P16: =+N16*($F$32/100) -> 1003.72818 | Q16: =+N16*($I$35/100) -> 2846.25 | R16: =+N16*($I$32/100) -> 1003.75 | S16: =+O16-Q16 -> -0.8234080199 | T16: =+P16-R16 -> -0.02182043192
D17: County Health | E17: =+H17*1.02 -> 113036.4 | F17: =+E17/($E$38/100) -> 0.004909905893 | H17: 110820 | I17: 0.005 | K17: =+F17-I17 -> -9.009410658e-05 | L17: =+K17/I17 -> -0.01801882132 | N17: 150000 | O17: 3414.51191 | P17: 1204.473815 | Q17: 3415.5 | R17: 1204.5 | S17: -0.9880896239 | T17: -0.0261845183
D18: County Open Space | E18: =+H18*1.02 -> 648308.94 | F18: =+E18/($E$38/100) -> 0.02816027302 | H18: 635597 | I18: 0.028 | K18: =+F18-I18 -> 0.0001602730206 | L18: =+K18/I18 -> 0.00572403645 | N18: 175000 | O18: 3983.597229 | P18: 1405.219451 | Q18: 3984.75 | R18: 1405.25 | S18: -1.152771228 | T18: -0.03054860469
D19: Total All County Levies | E19: =SUM(E15:E18) -> 6775550.94 | F19: =SUM(F15:F18) -> 0.2943062367 | H19: =SUM(H15:H18) -> 6642697 | I19: =SUM(I15:I18) -> 0.295 | K19: =+F19-I19 -> -0.0006937633232 | L19: =+K19/I19 -> -0.002351740079 | N19: 200000 | O19: 4552.682547 | P19: 1605.965087 | Q19: 4554 | R19: 1606 | S19: -1.317452832 | T19: -0.03491269107
N20: 225000 | O20: 5121.767866 | P20: 1806.710723 | Q20: 5123.25 | R20: 1806.75 | S20: -1.482134436 | T20: -0.03927677746
C21: SCHOOLS: | N21: 250000 | O21: 5690.853184 | P21: 2007.456359 | Q21: 5692.5 | R21: 2007.5 | S21: -1.64681604 | T21: -0.04364086384
D22: Local School | E22: =+'Reserve & Tax Calculation'!F10 -> 17386692.54 | F22: =+E22/($E$38/100) -> 0.7552171174 | H22: =+'Reserve & Tax Calculation'!G9 -> 17045777 | I22: 0.755 | K22: =+F22-I22 -> 0.0002171174 | L22: =+K22/I22 -> 0.0002875727152 | N22: 275000 | O22: 6259.938502 | P22: 2208.201995 | Q22: 6261.75 | R22: 2208.25 | S22: -1.811497644 | T22: -0.04800495022
D23: Regional School | E23: =+'Reserve & Tax Calculation'!F12 -> 9757585.2 | F23: =+E23/($E$38/100) -> 0.4238353759 | H23: =+'Reserve & Tax Calculation'!G11 -> 9566260 | I23: 0.424 | K23: =+F23-I23 -> -0.0001646241471 | L23: =+K23/I23 -> -0.000388264498 | N23: 300000 | O23: 6829.023821 | P23: 2408.947631 | Q23: 6831 | R23: 2409 | S23: -1.976179248 | T23: -0.05236903661
D24: Regional High School | E24: =+'Reserve & Tax Calculation'!F14 -> 0 | F24: =+E24/($E$38/100) -> 0 | H24: =+'Reserve & Tax Calculation'!G13 -> 0 | K24: =+F24-I24 -> 0 | L24: =+K24/I24 ->  | N24: 325000 | O24: 7398.109139 | P24: 2609.693267 | Q24: 7400.25 | R24: 2609.75 | S24: -2.140860852 | T24: -0.05673312299
N25: 350000 | O25: 7967.194458 | P25: 2810.438903 | Q25: 7969.5 | R25: 2810.5 | S25: -2.305542456 | T25: -0.06109720938
D26: Additional Local School | N26: 375000 | O26: =+N26*($F$35/100) -> 8536.279776 | P26: 3011.184539 | Q26: 8538.75 | R26: 3011.25 | S26: -2.47022406 | T26: -0.06546129576
D27: School Debt Service | E27: =+'11'!I23 -> 0 | F27: =+E27/($E$38/100) -> 0 | H27: =+'11'!J23 -> 0 | K27: =+F27-I27 -> 0 | L27: =+K27/I27 ->  | N27: 400000 | O27: =+N27*($F$35/100) -> 9105.365094 | P27: 3211.930175 | Q27: 9108 | R27: 3212 | S27: -2.634905664 | T27: -0.06982538215
N28: 425000 | O28: 9674.450413 | P28: 3412.675811 | Q28: 9677.25 | R28: 3412.75 | S28: -2.799587268 | T28: -0.07418946853
C29: SPECIAL DISTRICTS: | N29: 450000 | O29: 10243.53573 | P29: 3613.421446 | Q29: 10246.5 | R29: 3613.5 | S29: -2.964268872 | T29: -0.07855355491
D30: Special District Tax | E30: =+'Reserve & Tax Calculation'!F18 -> 0 | H30: =+'Reserve & Tax Calculation'!G17 -> 0 | K30: =+F30-I30 -> 0 | L30: =+K30/I30 ->  | N30: 475000 | O30: 10812.62105 | P30: 3814.167082 | Q30: 10815.75 | R30: 3814.25 | S30: -3.128950476 | T30: -0.0829176413
N31: 500000 | O31: 11381.70637 | P31: 4014.912718 | Q31: 11385 | R31: 4015 | S31: -3.29363208 | T31: -0.08728172768
C32: LOCAL PURPOSE TAX | E32: =+'11'!I22 -> 18486353.5 | F32: =+E32/($E$38/100) -> 0.8029825437 | H32: =+'11'!J22 -> 18121973.5 | I32: 0.803 | K32: =+F32-I32 -> -1.745634554e-05 | L32: =+K32/I32 -> -2.1738911e-05 | N32: 600000 | O32: 13658.04764 | P32: 4817.895262 | Q32: 13662 | R32: 4818 | S32: -3.952358495 | T32: -0.1047380732
D33: Municipal Library | E33: =+'11'!I24 -> 0 | F33: =+E33/($E$38/100) -> 0 | H33: =+'11'!J24 -> 0 | K33: =+F33-I33 -> 0 | L33: =+K33/I33 ->  | N33: 750000 | O33: 17072.55955 | P33: 6022.369077 | Q33: 17077.5 | R33: 6022.5 | S33: -4.940448119 | T33: -0.1309225915
D34: Municipal Open Space | E34: ='43'!I8 -> 0 | F34: =+E34/($E$38/100) -> 0 | K34: =+F34-I34 -> 0 | L34: =+K34/I34 ->  | N34: 1000000 | O34: 22763.41274 | P34: 8029.825437 | Q34: 22770 | R34: 8030 | S34: -6.587264159 | T34: -0.1745634554
C35: TOTAL ALL LEVIES | E35: =SUM(E19:E34) -> 52406182.18 | F35: =SUM(F19:F34) -> 2.276341274 | H35: =SUM(H19:H34) -> 51376707.5 | I35: =SUM(I19:I34) -> 2.277 | K35: =+F35-I35 -> -0.0006587264159 | L35: =+K35/I35 -> -0.000289295747 | N35: 1500000 | O35: 34145.1191 | P35: 12044.73815 | Q35: 34155 | R35: 12045 | S35: -9.880896239 | T35: -0.261845183
C38: NET VALUATION TAXABLE | E38: =+'Key Inputs'!F31 -> 2302211131 | H38: =+'Key Inputs'!F32 -> 2256827250

Sheet Reserve & Tax Calculation
C2: COMPUTATION OF APPROPRIATION:
C3: RESERVE FOR UNCOLLECTED TAXES AND
C4: AMOUNT TO BE RAISED BY TAXATION
C5: ="IN "&'Key Inputs'!E34&" MUNICIPAL BUDGET" -> IN 2020 MUNICIPAL BUDGET
F6: ="YEAR "&'Key Inputs'!E34&"" -> YEAR 2020 | G6: ="YEAR "&'Key Inputs'!E34-1&"" -> YEAR 2019
B7: 1 | C7: ="Total General Appropriations for "&'Key Inputs'!E34&" Municipal Budget Statement Item 8(L) (Exclusive of Reserve for Uncollected Taxes)" -> Total General Appropriations for 2020 Municipal Budget Statement Item 8(L) (Exclusive of Reserve for Uncollected Taxes) | G7: XXXXXXXXXXX
F8: =+'29'!J23 -> 25665054.93
B9: 2 | C9: Local District School Tax | D9: Actual | G9: 17045777
D10: Estimate | F10: =+G9*1.02 -> 17386692.54 | G10: XXXXXXXXXXX
B11: 3 | C11: Regional School District Tax | D11: Actual | G11: 9566260
D12: Estimate | F12: =+G11*1.02 -> 9757585.2 | G12: XXXXXXXXXXX
B13: 4 | C13: Regional High School Tax | D13: Actual
D14: Estimate | G14: XXXXXXXXXXX
B15: 5 | C15: County Tax | D15: Actual | G15: 6642697
D16: Estimate | F16: =+G15*1.02 -> 6775550.94 | G16: XXXXXXXXXXX
B17: 6 | C17: Special District Tax | D17: Actual
D18: Estimate | G18: XXXXXXXXXXX
B19: 7 | C19: Municipal Open Space | D19: Actual
D20: Estimate | G20: XXXXXXXXXXX
B21: 8 | C21: Total General Appropriations & Other Taxes | F21: =SUM(F7:F20) -> 59584883.61
B22: 9 | C22: ="Less: Total Anticipated Revenues from "&'Key Inputs'!E34&" in" -> Less: Total Anticipated Revenues from 2020 in
C23: Municipal Budget (Item 5) | F23: =+'11'!I20 -> 8848701.43 | I23: Option 1 - RUT Calculated by Percentage (default)
B24: 10 | C24: ="Cash Required from "&'Key Inputs'!E34&" to Support Local Municipal Budget and Other Taxes" -> Cash Required from 2020 to Support Local Municipal Budget and Other Taxes | I24: Insert RUT Percentage | K24: *
F25: =+F21-F23 -> 50736182.18
B26: 11 | C26: Amount of Item 10 divided by | D26: =IF(J28="X",J31,J24) -> 0.9681335306
C27: equals Amount to be Raised by Taxation (Percentage used must not exceed the applicable percentage shown by Item 13, Sheet 22) | I27: Option 2 - RUT Based on Fixed Amount
F28: =IF(J28="x",F25+J29,F25/J24) -> 52406182.18 | I28: Insert "x" Here | J28: x
C29: Analysis of Item 11: | I29: Insert RUT Amount | J29: 1670000
C30: Local School District Tax (Line 2 Above) | E30: =+F10 -> 17386692.54
C31: Regional School District Tax (Line 3 Above) | E31: =+F12 -> 9757585.2 | I31: Calculated Percentage | J31: =F25/F28 -> 0.9681335306
C32: Regional High School Tax (Line 4 Above) | E32: =+F14 -> 0
C33: County Tax (Line 5 Above) | E33: =+F16 -> 6775550.94 | I33: * Cannot Exceed Percentage of Collection in AFS (sheet 22)
C34: Special District Tax (Line 6 Above) | E34: =+F18 -> 0
C35: Municipal Open Space Tax (Line 7 Above) | E35: =+F20 -> 0
C36: Tax in Local Municipal Budget | E36: =+F45 -> 18486353.5
C37: Total Amount (Line11) | E37: =+SUM(E30:E36) -> 52406182.18
B38: 12 | C38: Appropriation: Reserve for Uncollected Taxes (Budget | F38: =F28-F25 -> 1670000
C39: Statement, Item 8(M) (Item 11, Less Item 10) | I39: 0.9907 | J39: Percentage of Collection from AFS (sheet 22)
C40: Computation of "Tax in Local Municipal Budget"
C41: Item 1 - Total General Appropriations | F41: =+F8 -> 25665054.93 | I41: =F25/D26 -> 52406182.18 | J41: Total Tax Requirements/Percentage
C42: Item 12 - Appropriation: Reserve for Uncollected Taxes | F42: =+F38 -> 1670000
C43: Subtotal | F43: =+F41+F42 -> 27335054.93 | I43: =F25/F28 -> 0.9681335306 | J43: Calculated Percentage
C44: Less: Item 9 - Total Anticipated Revenues | F44: =+F23 -> 8848701.43
C45: Amount to Be Raised by Taxation in Municipal Budget | F45: =+F43-F44 -> 18486353.5
C47: Local Tax for Municipal Purpose | E47: =+F45-E48-E49 -> 18486353.5
C48: Addition to Local District School Tax
C49: Minimum Library Tax

Sheet Sheet A
B2: ='Key Inputs'!E34&" MUNICIPAL DATA SHEET" -> 2020 MUNICIPAL DATA SHEET
E3: ="(MUST ACCOMPANY "&'Key Inputs'!E34&" BUDGET)" -> (MUST ACCOMPANY 2020 BUDGET) | N3: CAP
D5: MUNICIPALITY: | E5: =+'Key Inputs'!E5 -> BOROUGH OF EATONTOWN | K5: COUNTY: | L5: =+'Key Inputs'!E6 -> MONMOUTH
I7: Governing Body Members
C8: Anthony Talerico, Jr. | F8: 2022-12-31
C9: Mayor's Name | F9: Term Expires | J9: Name | N9: Term Expires
J11: Mark Regan, Jr. | N11: 2020-12-31
C12: Municipal Officials | J12: Margaret Hope Corcoran | N12: 2020-12-31
E13: { | F13: =+'Key Inputs'!H16 -> 2015-09-07 | J13: Jasmine Story | N13: 2021-12-31
F14: Date of Orig. Appt.
C15: =+'Key Inputs'!E16 -> Julie Martin | F15: =+'Key Inputs'!G16 -> C1291 | J15: Joseph M. Olsavsky | N15: 2021-12-31
C16: Municipal Clerk | F16: Cert. No.
C17: =+'Key Inputs'!E17 -> Leigh Schenck | F17: =+'Key Inputs'!G17 -> T-8326 | J17: Maria Grazia Escalante | N17: 2022-12-31
C18: Tax Collector | F18: Cert. No.
C19: =+'Key Inputs'!E18 -> Dena Amodea | F19: =+'Key Inputs'!G18 -> N-866 | J19: Kevin L. Gonzalez | N19: 2022-12-31
C20: Chief Financial Officer | F20: Cert. No.
C21: =+'Key Inputs'!E19 -> Robert S. Oliwa | F21: =+'Key Inputs'!G19 -> 414
C22: Registered Municipal Accountant | F22: Lic. No.
C23: =+'Key Inputs'!E20 -> Andrew Bayer
C24: Municipal Attorney
C29: Official Mailing Address of Municipality
C31: =+'Key Inputs'!E10 -> Borough of Eatontown
C32: =+'Key Inputs'!E11 -> 47 Broad Street
C33: =+'Key Inputs'!E12 -> Eatontown, NJ 07724
C35: Fax #: | D35: =+'Key Inputs'!E14 -> 732-389-7668
G36: Sheet A

Sheet 1
B2: ='Key Inputs'!E34 -> 2020
B3: MUNICIPAL BUDGET
B5: Municipal Budget of the | E5: =+'Key Inputs'!E8 -> BOROUGH | I5: of | J5: =+'Key Inputs'!E7 -> EATONTOWN | O5: , County of | P5: =+'Key Inputs'!E6 -> MONMOUTH | S5: ="for the Fiscal Year "&'Key Inputs'!E34&"." -> for the Fiscal Year 2020.
D8: It is hereby certified that the Budget and Capital Budget annexed hereto and hereby made a part | Q8: clerk@eatontownnj.com
C9: hereof is a true copy of the Budget and Capital Budget approved by resolution of the Governing Body on the | Q9: Clerk
Q10: =+'Key Inputs'!E11 -> 47 Broad Street
C11: =+'Key Inputs'!E25 -> 13 | E11: day of | F11: =+'Key Inputs'!F25 -> May | I11: =", "&'Key Inputs'!$E$34 -> , 2020 | Q11: Address
C12: and that public advertisement will be made in accordance with the provisions of N.J.S.A. 40A:4-6 and | Q12: =+'Key Inputs'!E12 -> Eatontown, NJ 07724
C13: N.J.A.C. 5:30-4.4(d). | Q13: Address
F14: Certified by me, this | H14: =+'Key Inputs'!E25 -> 13 | I14: day of | J14: =+'Key Inputs'!F25 -> May | L14: =", "&'Key Inputs'!$E$34 -> , 2020 | Q14: =+'Key Inputs'!E13 -> 732-389-7600
Q15: Phone Number
D17: It is hereby certified that the approved Budget annexed hereto and hereby made | O17: It is hereby certified that the approved Budget annexed hereto and hereby made
C18: a part is an exact copy of the original on file with the Clerk of the Governing Body, that all | N18: a part is an exact copy of the original on file with the Clerk of the Governing Body, that all
C19: additions are correct, all statements contained herein are in proof, and the total of anticipated | N19: additions are correct, all statements contained herein are in proof, the total of anticipated
C20: revenues equals the total of appropriations. | N20: revenues equals the total of appropriations and the budget is in full compliance with the
N21: Local Budget Law, N.J.S.A. 40A:4-1 et seq.
C22: Certified by me, this | E22: =+'Key Inputs'!E25 -> 13 | G22: day of | H22: =+'Key Inputs'!F25 -> May | J22: =", "&'Key Inputs'!$E$34 -> , 2020
N23: Certified by me, this | P23: =+'Key Inputs'!E25 -> 13 | R23: day of | S23: =+'Key Inputs'!F25 -> May | U23: =", "&'Key Inputs'!$E$34 -> , 2020
C24: roliwa@oliwacpas.com | H24: -
C25: Registered Municipal Accountant | H25: Address | P25: damodea@eatontownnj.com
C26: 3 Broad Street Freehold, NJ 07728 | H26: 732-780-5106 | P26: Chief Financial Officer
C27: Address | H27: Phone Number
I29: DO NOT USE THESE SPACES
B33: CERTIFICATION OF ADOPTED BUDGET | L33: CERTIFICATION OF APPROVED BUDGET
K34: (Do not advertise this Certification form)
C35: It is hereby certified that the amounts to be raised by taxation for local purposes has been | M35: It is hereby certified that the Approved Budget made part hereof complies with the
C36: compared with the approved Budget previously certified by me and any changes required as a | M36: requirements of law, and approval is given pursuant to N.J.S.A. 40A:4-79.
C37: condition to such approval have been made. The adopted budget is certified with respect to the
C38: foregoing only.
F39: STATE OF NEW JERSEY | Q39: STATE OF NEW JERSEY
F40: Department of Community Affairs | Q40: Department of Community Affairs
F41: Director of the Division of Local Government Services | Q41: Director of the Division of Local Government Services
C42: Dated: | E42: =", "&'Key Inputs'!E34 -> , 2020 | F42: By: | M42: Dated: | P42: =", "&'Key Inputs'!E34 -> , 2020 | Q42: By:
B44: Sheet 1

Sheet 1a (hidden)
B3: COMMENTS OR CHANGES REQUIRED AS A CONDITION OF CERTIFICATION OF DIRECTOR OF LOCAL GOVERNMENT SERVICES
B6: The changes or comments which follow must be considered in connection with further action on this budget.
F9: =+'Key Inputs'!E8 -> BOROUGH | H9: of | I9: =+'Key Inputs'!E7 -> EATONTOWN | L9: ,County of | M9: =+'Key Inputs'!E6 -> MONMOUTH
B43: Sheet 1a

Sheet 2
B2: MUNICIPAL BUDGET NOTICE
B4: Section 1.
D6: Municipal Budget of the | G6: =+'Key Inputs'!E8 -> BOROUGH | J6: of | K6: =+'Key Inputs'!E7 -> EATONTOWN | P6: , County of | Q6: =+'Key Inputs'!E6 -> MONMOUTH | T6: ="for the Fiscal Year "&'Key Inputs'!E34 -> for the Fiscal Year 2020
D8: ="Be it Resolved, that the following statements of revenues and appropriations shall constitute the Municipal Budget for the year "&'Key Inputs'!E34&";" -> Be it Resolved, that the following statements of revenues and appropriations shall constitute the Municipal Budget for the year 2020;
D10: Be it Further Resolved, that said Budget be published in the | L10: =+'Key Inputs'!E22 -> Asbury Park Press
D12: in the issue of | F12: =+'Key Inputs'!F26&" "&'Key Inputs'!E26 -> May 21 | I12: =", "&'Key Inputs'!$E$34 -> , 2020
D14: The Governing Body of the | G14: =+'Key Inputs'!E8 -> BOROUGH | J14: of | K14: =+'Key Inputs'!E7 -> EATONTOWN | O14: ="does hereby approve the following as the Budget for the year "&'Key Inputs'!E34&":" -> does hereby approve the following as the Budget for the year 2020:
E18: RECORDED VOTE | K18: Gonzaelz | P18: Story | R18: Abstained | T18: None
E19: (Insert last name) | K19: Olsavsky
K20: Regan, Jr.
I21: Ayes | K21: Escalante | N21: Nays
K22: Corcoran
R24: Absent | T24: None
D29: Notice is hereby given that the Budget and Tax Resolution was approved by the | M29: =+'Key Inputs'!E9 -> COUNCIL MEMBERS | Q29: of the | R29: =+'Key Inputs'!E8 -> BOROUGH
B31: of | C31: =+'Key Inputs'!E7 -> EATONTOWN | I31: , County of | K31: =+'Key Inputs'!E6 -> MONMOUTH | M31: , on | N31: =+'Key Inputs'!F25 -> May | P31: =+'Key Inputs'!E25 -> 13 | Q31: =", "&'Key Inputs'!$E$34&"." -> , 2020.
D33: A Hearing on the Budget and Tax Resolution will be held at | K33: =+'Key Inputs'!E10 -> Borough of Eatontown | O33: , on | P33: =+'Key Inputs'!F27 -> June | R33: =+'Key Inputs'!E27 -> 10 | S33: =", "&'Key Inputs'!$E$34&" at" -> , 2020 at
B35: =+'Key Inputs'!E29 -> 7:30 | D35: ="o'clock" -> o'clock | E35: PM | F35: ="at which time and place objections to said Budget and Tax Resolution for the year "&'Key Inputs'!E34&" may be presented by taxpayers or other" -> at which time and place objections to said Budget and Tax Resolution for the year 2020 may be presented by taxpayers or other
B37: interested persons.
B39: Sheet 2

Sheet 3
B2: EXPLANATORY STATEMENT
B4: SUMMARY OF CURRENT FUND SECTION OF APPROVED BUDGET
R5: ="YEAR "&'Key Inputs'!E34 -> YEAR 2020
B6: General Appropriations For: (Reference to item and sheet number should be omitted in advertised budget) | R6: XXXXXXXXXXXX
B7: 1. Appropriations within "CAPS" - | R7: XXXXXXXXXXXX
C8: (a) Municipal Purposes {(Item H-1, Sheet 19)(N.J.S.A. 40A:4-45.2)} | R8: =+'19'!J25 -> 22248172
B9: 2. Appropriations excluded from "CAPS" - | R9: XXXXXXXXXXXX
C10: (a) Municipal Purposes {(Item H-2, Sheet 28)(N.J.S.A. 40A:4-53.3 as amended)} | R10: =+'28'!J25 -> 3416882.93
C11: (b) Local District School Purposes in Municipal Budget (Item K, Sheet 29) | R11: =+'29'!J20 -> 0
D12: Total General Appropriations excluded from "CAPS" (Item O, Sheet 29) | R12: =+R11+R10 -> 3416882.93
B13: 3. Reserve for Uncollected Taxes (Item M, Sheet 29) Based on Estimated | J13: =+'Reserve & Tax Calculation'!D26 -> 0.9681335306 | K13: Percent of Tax Collections | R13: =+'29'!J24 -> 1670000
L14: Building Aid Allowance | O14: ='Key Inputs'!E34&" - $" -> 2020 - $
B15: 4. Total General Appropriations (Item 9, Sheet 29) | L15: for Schools-State Aid | O15: ='Key Inputs'!E34-1&" - $" -> 2019 - $ | R15: =+'29'!J25 -> 27335054.93
B16: 5. Less: Anticipated Revenues Other Than Current Property Tax (Item 5, Sheet 11) (i.e. Surplus, Miscellaneous Revenues and Receipts from Delinquent Taxes) | R16: =+'11'!I20 -> 8848701.43
B17: 6. Difference: Amount to be Raised by Taxes for Support of Municipal Budget (as follows) | R17: XXXXXXXXXXXX
D18: (a) Local Tax for Municipal Purposes Including Reserve for Uncollected Taxes (Item 6(a), Sheet 11) | R18: =+'11'!I22 -> 18486353.5
D19: (b) Addition to Local District School Tax (Item 6(b), Sheet 11) | R19: =+'11'!I23 -> 0
D20: (c) Minimum Library Tax | R20: =+'11'!I24 -> 0
B27: Sheet 3

Sheet 3a
B2: EXPLANATORY STATEMENT - (Continued)
B4: ="SUMMARY OF "&'Key Inputs'!E34-1&" APPROPRIATIONS EXPENDED AND CANCELED" -> SUMMARY OF 2019 APPROPRIATIONS EXPENDED AND CANCELED
H6: General | I6: =+'Key Inputs'!E39 -> 0 | J6: =+'Key Inputs'!E40 -> 0 | K6: =+'Key Inputs'!E41 -> 0 | L6: =+'Key Inputs'!E42 -> 0 | M6: =+'Key Inputs'!E43 -> 0 | N6: =+'Key Inputs'!E44 -> 0
H7: Budget | I7: Utility | J7: Utility | K7: Utility | L7: Utility | M7: Utility | N7: Utility
B8: Budget Appropriations - Adopted Budget | H8: =+'29'!K25-'3a'!H9 -> 26252786.81 | I8: =+'33-Utility1'!I25 -> 0 | J8: =+'33-Utility2'!I25 -> 0 | K8: =+'33-Utility3'!I25 -> 0 | L8: =+'33-Utility4'!I25 -> 0 | M8: =+'33-Utility5'!I25 -> 0 | N8: =+'33-Utility6'!I25 -> 0
B9: Budget Appropriations Added by N.J.S.A. 40A:4-87 | H9: 31773.63
B10: Emergency Appropriations | H10: =+'29'!L25 -> 0 | I10: =+'33-Utility1'!J25 -> 0 | J10: =+'33-Utility2'!J25 -> 0 | K10: =+'33-Utility3'!J25 -> 0 | L10: =+'33-Utility4'!J25 -> 0 | M10: =+'33-Utility5'!J25 -> 0 | N10: =+'33-Utility6'!J25 -> 0
C11: Total Appropriations | H11: =SUM(H8:H10) -> 26284560.44 | I11: =SUM(I8:I10) -> 0 | J11: 0 | K11: 0 | L11: 0 | M11: 0 | N11: 0
B12: Expenditures:
C13: Paid or Charged (Including Reserve for
F14: Uncollected Taxes) | H14: =+'29'!N25 -> 23370607.23 | I14: =+'33-Utility1'!L25 -> 0 | J14: =+'33-Utility2'!L25 -> 0 | K14: =+'33-Utility3'!L25 -> 0 | L14: =+'33-Utility4'!L25 -> 0 | M14: =+'33-Utility5'!L25 -> 0 | N14: =+'33-Utility6'!L25 -> 0
C15: Reserved | H15: =+'29'!O25 -> 2816605.26 | I15: =+'33-Utility1'!M25 -> 0 | J15: =+'33-Utility2'!M25 -> 0 | K15: =+'33-Utility3'!M25 -> 0 | L15: =+'33-Utility4'!M25 -> 0 | M15: =+'33-Utility5'!M25 -> 0 | N15: =+'33-Utility6'!M25 -> 0
B16: Unexpended Balances Canceled | H16: =+'29'!R25 -> 97347.95 | I16: =+'33-Utility1'!O25 -> 0 | J16: =+'33-Utility2'!O25 -> 0 | K16: =+'33-Utility3'!O25 -> 0 | L16: =+'33-Utility4'!O25 -> 0 | M16: =+'33-Utility5'!O25 -> 0 | N16: =+'33-Utility6'!O25 -> 0
C17: Total Expenditures and Unexpended
C18: Balances Canceled | H18: =SUM(H12:H16) -> 26284560.44 | I18: =SUM(I12:I16) -> 0 | J18: 0 | K18: 0 | L18: 0 | M18: 0 | N18: 0
B19: Overexpenditures * | H19: =+H18-H11 -> 0 | I19: =+I18-I11 -> 0 | J19: 0 | K19: 0 | L19: 0 | M19: 0 | N19: 0
I29: Sheet 3a

Sheet App. CAP
G2: EXPLANATORY STATEMENT - (Continued)
G4: BUDGET MESSAGE
C6: CAP CALCULATION | M6: CAP CALCULATION
C8: ="Total General Appropriations for "&'Key Inputs'!E34-1 -> Total General Appropriations for 2019 | I8: 26252787 | M8: Allowable Operating Appropriations before
C9: Cap Base Adjustment: | N9: Additional Exceptions per (N.J.S.A. 40A:4-45.3) | S9: =+I32 -> 22078474.38
C10: Subtotal | I10: =+I8+I9 -> 26252787 | X10: 5191900 | Y10: New Construction
C12: Exceptions Less: | M12: Additions: | X12: =+X10/100 -> 51919 | Y12: Divided by 100
D13: Total Other Operations | I13: 272067 | N13: New Construction (Assessor Certification) | S13: =+X14 -> 41690.957 | X13: 0.803 | Y13: Rate
D14: Total Uniform Construction Code | N14: ='Key Inputs'!E$34-2&" Cap Bank" -> 2018 Cap Bank | S14: 207489.06 | X14: =+X12*X13 -> 41690.957 | Y14: Addition Amount
D15: Total Interlocal Service Agreement | I15: 279000 | N15: ='Key Inputs'!E$34-1&" Cap Bank" -> 2019 Cap Bank | S15: 755993.36
D16: Total Additional Appropriations
D17: Total Capital Improvements | I17: 140000
D18: Total Debt Service | I18: 2148400
D19: Transferred to Board of Education | M19: Total Additions | S19: =SUM(S12:S18) -> 1005173.377
D20: Type I School Debt
D21: Total Public & Private Programs | I21: 208745 | M21: Maximum Appropriations within "CAPS" Sheet 19 @ | R21: =C29 -> 0.025 | S21: =+S19+S9 -> 23083647.75
D22: Judgements
D23: Total Deferred Charges | I23: 59600
D24: Cash Deficit | M24: Additional Increase to COLA rate. | Q24: 0.035
D25: Reserve for Uncollected Taxes | I25: 1605000 | N25: Amount of Increase allowable. | Q25: 0.01 | S25: =+I28*Q25 -> 215399.75
D26: Total Exceptions | I26: =SUM(I12:I25) -> 4712812
C28: Amount on Which CAP is Applied | I28: =+I10-I26 -> 21539975
C29: 0.025 | D29: CAP | I29: =+I28*C29 -> 538499.375 | M29: Maximum Appropriations within "CAPS" Sheet 19 @ | R29: =Q24 -> 0.035 | S29: =+S21+S25 -> 23299047.5
C31: Allowable Operating Appropriations before
D32: Additional Exceptions per (N.J.S.A. 40A:4-45.3) | I32: =+I28+I29 -> 22078474.38
B38: NOTE: | K38: Sheet 3b
C39: MANDATORY MINIMUM BUDGET MESSAGE MUST INCLUDE A SUMMARY OF:
D40: 1. HOW THE "CAP" WAS CALCULATED. (Explain in words what the "CAPS" mean and show the figures.)
D41: 2. A SUMMARY BY FUNCTION OF THE APPROPRIATIONS THAT ARE SPREAD AMONG MORE THAN ONE OFFICIAL LINE ITEM
E42: (e.g. if Police S & W appears in the regular section and also under "Operation Excluded from "CAPS" section, combine the
E43: figures for purposes of citizen understanding.)
S47: =+I29+S25 -> 753899.125

Sheet Health Ins.
G2: EXPLANATORY STATEMENT - (Continued)
G4: BUDGET MESSAGE
C9: RECAP OF GROUP INSURANCE APPROPRIATION
C11: Following is a recap of the City's Employee Group Insurance
C13: ="Estimated Group Insurance Costs - "&'Key Inputs'!E34 -> Estimated Group Insurance Costs - 2020 | I13: =3340500+497935 -> 3838435
C15: Estimated Amounts to be Contributed by Employees:
D17: Contribution from all eligible emp. | H17: 497935
I19: =+I13-H17 -> 3340500
C21: Budgeted Group Insurance - Inside CAP | I21: =+'15'!J23 -> 3340500
C22: Budgeted Group Insurance - Utilities
C23: Budgeted Group Insurance - Outside CAP
C24: TOTAL | I24: =SUM(I21:I23) -> 3340500
C26: Instead of receiving Health Benefits, | G26: 12 | H26: City employees
C27: ="have elected an opt-out for "&'Key Inputs'!E34&". This opt-out amount'" -> have elected an opt-out for 2020. This opt-out amount'
C28: is budgeted separately.
D30: Health Benefits Waiver
E31: Salaries and Wages | I31: 40000
K36: Sheet 3b (2)
I42: =+'14'!J18 -> 0
I43: =+'14'!J20 -> 90850

Sheet 2% Levy Cap
G2: EXPLANATORY STATEMENT - (Continued)
G4: BUDGET MESSAGE
C6: NEW JERSEY 2010 LOCAL UNIT LEVY CAP LAW
M7: ADJUSTED TAX LEVY PRIOR TO EXCLUSIONS | T7: =+J36 -> 18469316.97
N8: Exclusions:
O9: Allowable Shared Service Agreements Increase
O10: Allowable Health Insurance Costs Increase
O11: Allowable Pension Obligations Increases
O12: Allowable LOSAP Increase
C13: P.L. 2007, c. 62, was amended by P.L. 2008 c. 6 and P.L. 2010 c. 44 (S-29 R1). | O13: Allowable Capital Improvements Increase
C14: The last amendment reduces the 4% to 2% and modifies some of the exceptions and | O14: Allowable Debt Service and Capital Leases Inc. | S14: 278208
C15: exclusions. It also removes the LFB waiver. The voter referendum now requires a vote in | O15: Recycling Tax appropriation | S15: 14800
C16: excess of only 50% which is reduced from the original 60% in P.L. 2007, c. 62. | O16: Deferred Charge to Future Taxation Unfunded
O17: Current Year Deferred Charges: Emergencies
N18: Add Total Exclusions | T18: =SUM(S9:S17) -> 293008
N19: Less Cancelled or Unexpended Waivers
N20: Less Cancelled or Unexpended Exclusions | T20: 5348
C21: SUMMARY LEVY CAP CALCULATION
M22: ADJUSTED TAX LEVY | T22: =+T7+T18-T19-T20 -> 18756976.97
C23: LEVY CAP CALCULATION | N23: Additions:
O24: New Ratables - Increase for new construction | S24: =+'App. CAP'!X10 -> 5191900
C25: Prior Year Amount to be Raised by Taxation | J25: =+'11'!J22 -> 18121973.5 | O25: Prior Year's Local Purpose Tax Rate (per $100) | S25: =+'App. CAP'!X13 -> 0.803
D26: Less: | O26: New Ratable Adjustment to Levy | T26: =+(+S24/100)*S25 -> 41690.957
D27: Less: | E27: Prior Year Deferred Charges to Future Taxation Unfunded | O27: Amounts approved by Referendum
D28: Less: | E28: Prior Year Deferred Charges: Emergencies | O28: Levy CAP Bank Applied
D29: Less: | E29: Prior Year Recycling Tax | J29: 14800
D30: Less: | M30: MAXIMUM ALLOWABLE AMOUNT TO BE RAISED BY TAXATION | T30: =SUM(T22:T29) -> 18798667.93
D31: Less:
C32: Net Prior Year Tax Levy for Municipal Purpose Tax for CAP Calculation | J32: =J25-SUM(J26:J31) -> 18107173.5 | M32: AMOUNT TO BE RAISED BY TAXATION FOR MUNICIPAL PURPOSES | T32: =+'11'!I22 -> 18486353.5
D33: Plus 2% CAP Increase | J33: =+J32*0.02 -> 362143.47
C34: ADJUSTED TAX LEVY | J34: =+J33+J32 -> 18469316.97 | N34: OVER OR (UNDER) 2% LEVY CAP | T34: =+T32-T30 -> -312314.427
D35: Plus: Assumption of Service/Function | O35: (must be equal or under for Introduction)
C36: ADJUSTED TAX LEVY PRIOR TO EXCLUSIONS | J36: =+J34+J35 -> 18469316.97
J38: Sheet 3 - Levy CAP

Sheet 3d
G2: EXPLANATORY STATEMENT - (Continued)
G4: BUDGET MESSAGE
C6: "2010" LEVY CAP BANKS:
C8: ='Key Inputs'!E$34-3 -> 2017
D9: Maximum Allowable Amount to be Raised by Taxation | J9: =17654083-2329 -> 17651754
D10: Amount to be Raised by Taxation for Municipal Purpose | J10: 17537796
D11: ="Available for Banking (CY "&'Key Inputs'!E$34&")" -> Available for Banking (CY 2020) | J11: =+J9-J10 -> 113958
E12: ="Amount Used in "&'Key Inputs'!E$34 -> Amount Used in 2020
D13: Balance to Expire | J13: =+J11-J12 -> 113958
C15: ='Key Inputs'!E$34-2 -> 2018
D16: Maximum Allowable Amount to be Raised by Taxation | J16: 18045950
D17: Amount to be Raised by Taxation for Municipal Purpose | J17: 17747676
D18: ="Available for Banking (CY "&'Key Inputs'!E$34&" - CY "&'Key Inputs'!E$34+1&")" -> Available for Banking (CY 2020 - CY 2021) | J18: =+J16-J17 -> 298274
E19: ="Amount Used in "&'Key Inputs'!E$34 -> Amount Used in 2020
D20: ="Balance to Carry Forward (CY "&'Key Inputs'!E$34+1&")" -> Balance to Carry Forward (CY 2021) | J20: =+J18-J19 -> 298274
C22: ='Key Inputs'!E$34-1 -> 2019
D23: Maximum Allowable Amount to be Raised by Taxation | J23: 18695505
D24: Amount to be Raised by Taxation for Municipal Purpose | J24: 18121974
D25: ="Available for Banking (CY "&'Key Inputs'!E$34&" - CY "&'Key Inputs'!E$34+2&")" -> Available for Banking (CY 2020 - CY 2022) | J25: =+J23-J24 -> 573531
E26: ="Amount Used in "&'Key Inputs'!E$34 -> Amount Used in 2020
D27: ="Balance to Carry Forward (CY "&'Key Inputs'!E$34+1&" - CY"&'Key Inputs'!E$34+2&")" -> Balance to Carry Forward (CY 2021 - CY2022) | J27: =+J25-J26 -> 573531
C29: ='Key Inputs'!E34 -> 2020
D30: Maximum Allowable Amount to be Raised by Taxation | J30: =+'2% Levy Cap'!T30 -> 18798667.93
D31: Amount to be Raised by Taxation for Municipal Purpose | J31: =+'11'!I22 -> 18486353.5
D32: ="Available for Banking (CY "&'Key Inputs'!E$34+1&" - CY "&'Key Inputs'!E$34+3&")" -> Available for Banking (CY 2021 - CY 2023) | J32: =+J30-J31 -> 312314.427
C35: Total Levy CAP Bank | J35: =+J20+J27+J32 -> 1184119.427
K37: Sheet 3d

Sheet 4
B2: CURRENT FUND - ANTICIPATED REVENUES
I3: Anticipated | K3: Realized in
B4: GENERAL REVENUES | H4: FCOA | I4: ='Key Inputs'!E34 -> 2020 | J4: =I4-1 -> 2019 | K4: ="Cash in "&J4 -> Cash in 2019
C5: 1. | D5: Surplus Anticipated | H5: 08-101 | I5: 4000000 | J5: 3600000 | K5: 3600000
C6: 2. | D6: Surplus Anticipated with Prior Written Consent of Director of Local Government Services | H6: 08-102
E7: Total Surplus Anticipated | H7: 08-100 | I7: =+I6+I5 -> 4000000 | J7: =+J6+J5 -> 3600000 | K7: =+K6+K5 -> 3600000
C8: 3. | D8: Miscellaneous Revenues - Section A: Local Revenues | H8: XXXXXXX | I8: XXXXXXXXXXX | J8: XXXXXXXXXXX | K8: XXXXXXXXXXX
E9: Licenses: | H9: XXXXXXX | I9: XXXXXXXXXXX | J9: XXXXXXXXXXX | K9: XXXXXXXXXXX
F10: Alcoholic Beverages | H10: 08-103 | I10: 38000 | J10: 38000 | K10: 38188
F11: Other | H11: 08-104 | I11: 23000 | J11: 21000 | K11: 23592
E12: Fees and Permits | H12: 08-105 | I12: 180000 | J12: 180000 | K12: 181313.72
E13: Fines and Costs: | H13: XXXXXXX | I13: XXXXXXXXXXX | J13: XXXXXXXXXXX | K13: XXXXXXXXXXX
F14: Municipal Court | H14: 08-110 | I14: 350000 | J14: 390000 | K14: 354835.38
F15: Other | H15: 08-109
E16: Interest and Costs on Taxes | H16: 08-112 | I16: 52000 | J16: 55000 | K16: 53480.69
E17: Interest and Costs on Assessments | H17: 08-115
E18: Parking Meters | H18: 08-111
E19: Interest on Investments and Deposits | H19: 08-113 | I19: 196000 | J19: 240000 | K19: 353609.18
E20: Anticipated Utility Operating Surplus | H20: 08-114
B26: Sheet 4

Sheet 4a
B2: CURRENT FUND - ANTICIPATED REVENUES - (Continued)
I3: Anticipated | K3: Realized in
B4: GENERAL REVENUES | H4: FCOA | I4: ='Key Inputs'!E34 -> 2020 | J4: =I4-1 -> 2019 | K4: ="Cash in "&J4 -> Cash in 2019
C5: 3. | D5: Miscellaneous Revenues - Section A: Local Revenues (continued)
B27: Sheet 4a

Sheet 4b
B2: CURRENT FUND - ANTICIPATED REVENUES - (Continued)
I3: Anticipated | K3: Realized in
B4: GENERAL REVENUES | H4: FCOA | I4: ='Key Inputs'!E34 -> 2020 | J4: =I4-1 -> 2019 | K4: ="Cash in "&J4 -> Cash in 2019
C5: 3. | D5: Miscellaneous Revenues - Section A: Local Revenues (continued)
B27: Sheet 4b

Sheet 4c
B2: CURRENT FUND - ANTICIPATED REVENUES - (Continued)
I3: Anticipated | K3: Realized in
B4: GENERAL REVENUES | H4: FCOA | I4: ='Key Inputs'!E34 -> 2020 | J4: =I4-1 -> 2019 | K4: ="Cash in "&J4 -> Cash in 2019
C5: 3. | D5: Miscellaneous Revenues - Section A: Local Revenues (continued)
E26: Total Section A: Local Revenue | H26: 08-001 | I26: =SUM('4a:4b'!I5:I26)+SUM('4'!I10:I25)+SUM(I5:I25) -> 839000 | J26: =SUM('4a:4b'!J5:J26)+SUM('4'!J10:J25)+SUM(J5:J25) -> 924000 | K26: =SUM('4a:4b'!K5:K26)+SUM('4'!K10:K25)+SUM(K5:K25) -> 1005018.97
B27: Sheet 4c

Sheet 5
B2: CURRENT FUND - ANTICIPATED REVENUES - (Continued)
I3: Anticipated | K3: Realized in
B4: GENERAL REVENUES | H4: FCOA | I4: ='Key Inputs'!E34 -> 2020 | J4: =I4-1 -> 2019 | K4: ="Cash in "&J4 -> Cash in 2019
C5: 3. | D5: Miscellaneous Revenues - Section B: State Aid Without Offsetting Appropriations
E8: Transitional Aid | H8: 09-212
E9: Consolidated Municipal Property Tax Relief Aid | H9: 09-200 | I9: 0 | J9: 0 | K9: 0
E10: Energy Receipts Tax (P.L. 1997, Chapters 162 & 167) | H10: 09-202 | I10: 1464615 | J10: 1464615 | K10: 1464615
E26: Total Section B: State Aid Without Offsetting Appropriations | H26: 09-001 | I26: =SUM(I6:I25) -> 1464615 | J26: =SUM(J6:J25) -> 1464615 | K26: =SUM(K6:K25) -> 1464615
B27: Sheet 5

Sheet 6
B2: CURRENT FUND - ANTICIPATED REVENUES - (Continued)
I3: Anticipated | K3: Realized in
B4: GENERAL REVENUES | H4: FCOA | I4: ='Key Inputs'!E34 -> 2020 | J4: =I4-1 -> 2019 | K4: ="Cash in "&J4 -> Cash in 2019
C5: 3. | D5: Miscellaneous Revenues - Section C: Dedicated Uniform Construction Code Fees
E6: Offset with Appropriations (N.J.S.A. 40A:4-36 and N.J.A.C. 5:23-4.17)
H7: XXXXXXX | I7: XXXXXXXXXXX | J7: XXXXXXXXXXX | K7: XXXXXXXXXXX
E8: Uniform Construction Code Fees | H8: 08-160 | I8: 640000 | J8: 430000 | K8: 645362
E16: Special Item of General Revenue Anticipated with Prior Written
E17: Consent of Director of Local Government Services: | H17: XXXXXXX | I17: XXXXXXXXXXX | J17: XXXXXXXXXXX | K17: XXXXXXXXXXX
E18: Additional Dedicated Uniform Construction Code Fees Offset with Appropriations
E19: (N.J.S.A. 40A:4-45.3h and N.J.A.C. 5:23-4.17) | H19: XXXXXXX | I19: XXXXXXXXXXX | J19: XXXXXXXXXXX | K19: XXXXXXXXXXX
E20: Uniform Construction Code Fees | H20: 08-160
E28: Total Section C: Dedicated Uniform Construction Code Fees Offset with Appropriations | H28: 08-002 | I28: =SUM(I5:I27) -> 640000 | J28: =SUM(J5:J27) -> 430000 | K28: =SUM(K5:K27) -> 645362
B29: Sheet 6

Sheet 7
B2: CURRENT FUND - ANTICIPATED REVENUES - (Continued)
I3: Anticipated | K3: Realized in
B4: GENERAL REVENUES | H4: FCOA | I4: ='Key Inputs'!E34 -> 2020 | J4: =I4-1 -> 2019 | K4: ="Cash in "&J4 -> Cash in 2019
C5: 3. | D5: Miscellaneous Revenues - Section D: Special Items of General Revenue Anticipated
E6: With Prior Written Consent of the Director of Local Government Services
E7: Shared Service Agreements Offset With Appropriations: | H7: XXXXXXX | I7: XXXXXXXXXXX | J7: XXXXXXXXXXX | K7: XXXXXXXXXXX
E9: MECHANICAL GARAGE - EATONTOWN BOARD OF EDUCATION | H9: 11-110 | I9: 4000 | J9: 4000 | K9: 1401.65
E12: FIRE PREVENTION SERVICES - BOROUGH OF OCEANPORT | H12: 11-120 | I12: 25000
B27: Sheet 7

Sheet 7a
B2: CURRENT FUND - ANTICIPATED REVENUES - (Continued)
I3: Anticipated | K3: Realized in
B4: GENERAL REVENUES | H4: FCOA | I4: ='Key Inputs'!E34 -> 2020 | J4: =I4-1 -> 2019 | K4: ="Cash in "&J4 -> Cash in 2019
C5: 3. | D5: Miscellaneous Revenues - Section D: Special Items of General Revenue Anticipated
E6: With Prior Written Consent of the Director of Local Government Services
E7: Shared Service Agreements Offset With Appropriations: | H7: XXXXXXX | I7: XXXXXXXXXXX | J7: XXXXXXXXXXX | K7: XXXXXXXXXXX
B27: Sheet 7a

Sheet 7b
B2: CURRENT FUND - ANTICIPATED REVENUES - (Continued)
I3: Anticipated | K3: Realized in
B4: GENERAL REVENUES | H4: FCOA | I4: ='Key Inputs'!E34 -> 2020 | J4: =I4-1 -> 2019 | K4: ="Cash in "&J4 -> Cash in 2019
C5: 3. | D5: Miscellaneous Revenues - Section D: Special Items of General Revenue Anticipated
E6: With Prior Written Consent of the Director of Local Government Services
E7: Shared Service Agreements Offset With Appropriations: | H7: XXXXXXX | I7: XXXXXXXXXXX | J7: XXXXXXXXXXX | K7: XXXXXXXXXXX
E26: Total Section D: Shared Service Agreements Offset With Appropriations | H26: 11-001 | I26: =SUM(I5:I25)+SUM('7:7a'!I8:I26) -> 29000 | J26: =SUM(J5:J25)+SUM('7:7a'!J8:J26) -> 4000 | K26: =SUM(K5:K25)+SUM('7:7a'!K8:K26) -> 1401.65
B27: Sheet 7b

Sheet 8
B2: CURRENT FUND - ANTICIPATED REVENUES - (Continued)
I3: Anticipated | K3: Realized in
B4: GENERAL REVENUES | H4: FCOA | I4: ='Key Inputs'!E34 -> 2020 | J4: =I4-1 -> 2019 | K4: ="Cash in "&J4 -> Cash in 2019
C5: 3. | D5: Miscellaneous Revenues - Section E: Special Items of General Revenue Anticipated
E6: With Prior Written Consent of the Director of Local Government Services - Additional
E7: Revenues Offset with Appropriations (N.J.S.A. 40A:4-45.3h): | H7: XXXXXXX | I7: XXXXXXXXXXX | J7: XXXXXXXXXXX | K7: XXXXXXXXXXX
E25: Total Section E: Special Item of General Revenue Anticipated with Prior Written | H25: XXXXXXX | I25: XXXXXXXXXXX | J25: XXXXXXXXXXX | K25: XXXXXXXXXXX
F26: Consent of Director of Local Government Services - Additional Revenues | H26: 08-003 | I26: =SUM(I5:I25) -> 0 | J26: =SUM(J5:J25) -> 0 | K26: =SUM(K5:K25) -> 0
B27: Sheet 8

Sheet 9
B2: CURRENT FUND - ANTICIPATED REVENUES - (Continued)
I3: Anticipated | K3: Realized in
B4: GENERAL REVENUES | H4: FCOA | I4: ='Key Inputs'!E34 -> 2020 | J4: =I4-1 -> 2019 | K4: ="Cash in "&J4 -> Cash in 2019
C5: 3. | D5: Miscellaneous Revenues - Section F: Special Items of General Revenue Anticipated
E6: With Prior Written Consent of Director of Local Government Services - Public and
E7: Private Revenues Offset with Appropriations: | H7: XXXXXXX | I7: XXXXXXXXXXX | J7: XXXXXXXXXXX | K7: XXXXXXXXXXX
E8: DRUNK DRIVING ENFORCEMENT | H8: 10-510 | I8: 3555.4 | J8: 3840 | K8: =+J8 -> 3840
E9: CLEAN COMMUNITIES PROGRAM | H9: 10-602 | J9: 28473.63 | K9: 28473.63
E10: MUNICIPAL ALLIANCE ON ALCOHOLISM AND DRUG ABUSE | H10: 10-506 | I10: 26186 | J10: 26186 | K10: 26186
E11: SAFE AND SECURE COMMUNITIES - P.L. 1994, CHAPTER 20 | H11: 10-503 | J11: 60000 | K11: 60000
E12: BULLETPROOF VEST | H12: 10-693 | J12: 2895 | K12: 2895
E13: NEW JERSEY TRANSPORTATION TRUST FUND | H13: 10-559 | K13: 0
E14: DRIVE SOBER OR GET PULLED OVER | H14: 10-509 | J14: 7040 | K14: 7040
E15: BODY ARMOR FUND | H15: 10-505 | J15: 4048.95 | K15: 4048.95
E16: DISTRACTED DRIVING STATEWIDE CRACKDOWN | H16: 10-508 | K16: 0
E17: CLICK IT OR TICKET | H17: 10-507 | K17: 0
E18: NEW JERSEY PREVENTION NETWORK | K18: 0
K19: 0
E20: DCA/REC INDIVIDUALS WITH DISABILITIES | H20: 10-669 | I20: 20000 | J20: 20000 | K20: 20000
K21: 0
E22: RECYCLING TONNAGE | H22: 10-569 | I22: 42345.03 | J22: 31488.36 | K22: 31488.36
K23: 0
K24: 0
K25: 0
K26: 0
B27: Sheet 9

Sheet 9a (hidden)
B2: CURRENT FUND - ANTICIPATED REVENUES - (Continued)
I3: Anticipated | K3: Realized in
B4: GENERAL REVENUES | H4: FCOA | I4: ='Key Inputs'!E34 -> 2020 | J4: =I4-1 -> 2019 | K4: ="Cash in "&J4 -> Cash in 2019
C5: 3. | D5: Miscellaneous Revenues - Section F: Special Items of General Revenue Anticipated
E6: With Prior Written Consent of Director of Local Government Services - Public and
E7: Private Revenues Offset with Appropriations: | H7: XXXXXXX | I7: XXXXXXXXXXX | J7: XXXXXXXXXXX | K7: XXXXXXXXXXX
K8: =+J8 -> 0
K9: 0
K10: 0
K11: 0
K12: 0
K13: 0
K14: 0
K15: 0
K16: 0
K17: 0
K18: 0
K19: 0
K20: 0
K21: 0
K22: 0
K23: 0
K24: 0
K25: 0
K26: 0
B27: Sheet 9a

Sheet 9b (hidden)
B2: CURRENT FUND - ANTICIPATED REVENUES - (Continued)
I3: Anticipated | K3: Realized in
B4: GENERAL REVENUES | H4: FCOA | I4: ='Key Inputs'!E34 -> 2020 | J4: =I4-1 -> 2019 | K4: ="Cash in "&J4 -> Cash in 2019
C5: 3. | D5: Miscellaneous Revenues - Section F: Special Items of General Revenue Anticipated
E6: With Prior Written Consent of Director of Local Government Services - Public and
E7: Private Revenues Offset with Appropriations: | H7: XXXXXXX | I7: XXXXXXXXXXX | J7: XXXXXXXXXXX | K7: XXXXXXXXXXX
K8: =+J8 -> 0
K9: 0
K10: 0
K11: 0
K12: 0
K13: 0
K14: 0
K15: 0
K16: 0
K17: 0
K18: 0
K19: 0
K20: 0
K21: 0
K22: 0
K23: 0
K24: 0
K25: 0
K26: 0
B27: Sheet 9b

Sheet 9c (hidden)
B2: CURRENT FUND - ANTICIPATED REVENUES - (Continued)
I3: Anticipated | K3: Realized in
B4: GENERAL REVENUES | H4: FCOA | I4: ='Key Inputs'!E34 -> 2020 | J4: =I4-1 -> 2019 | K4: ="Cash in "&J4 -> Cash in 2019
C5: 3. | D5: Miscellaneous Revenues - Section F: Special Items of General Revenue Anticipated
E6: With Prior Written Consent of Director of Local Government Services - Public and
E7: Private Revenues Offset with Appropriations: | H7: XXXXXXX | I7: XXXXXXXXXXX | J7: XXXXXXXXXXX | K7: XXXXXXXXXXX
K8: =+J8 -> 0
K9: 0
K10: 0
K11: 0
K12: 0
K13: 0
K14: 0
K15: 0
K16: 0
K17: 0
K18: 0
K19: 0
K20: 0
K21: 0
K22: 0
K23: 0
K24: 0
K25: 0
K26: 0
B27: Sheet 9c

Sheet 9d (hidden)
B2: CURRENT FUND - ANTICIPATED REVENUES - (Continued)
I3: Anticipated | K3: Realized in
B4: GENERAL REVENUES | H4: FCOA | I4: ='Key Inputs'!E34 -> 2020 | J4: =I4-1 -> 2019 | K4: ="Cash in "&J4 -> Cash in 2019
C5: 3. | D5: Miscellaneous Revenues - Section F: Special Items of General Revenue Anticipated
E6: With Prior Written Consent of Director of Local Government Services - Public and
E7: Private Revenues Offset with Appropriations: | H7: XXXXXXX | I7: XXXXXXXXXXX | J7: XXXXXXXXXXX | K7: XXXXXXXXXXX
K8: =+J8 -> 0
K9: 0
K10: 0
K11: 0
K12: 0
K13: 0
K14: 0
K15: 0
K16: 0
K17: 0
K18: 0
K19: 0
K20: 0
K21: 0
K22: 0
K23: 0
K24: 0
K25: 0
K26: 0
B27: Sheet 9d

Sheet 9e (hidden)
B2: CURRENT FUND - ANTICIPATED REVENUES - (Continued)
I3: Anticipated | K3: Realized in
B4: GENERAL REVENUES | H4: FCOA | I4: ='Key Inputs'!E34 -> 2020 | J4: =I4-1 -> 2019 | K4: ="Cash in "&J4 -> Cash in 2019
C5: 3. | D5: Miscellaneous Revenues - Section F: Special Items of General Revenue Anticipated
E6: With Prior Written Consent of Director of Local Government Services - Public and
E7: Private Revenues Offset with Appropriations: | H7: XXXXXXX | I7: XXXXXXXXXXX | J7: XXXXXXXXXXX | K7: XXXXXXXXXXX
K8: =+J8 -> 0
K9: 0
K10: 0
K11: 0
K12: 0
K13: 0
K14: 0
K15: 0
K16: 0
K17: 0
K18: 0
K19: 0
K20: 0
K21: 0
K22: 0
K23: 0
K24: 0
K25: 0
K26: 0
B27: Sheet 9e

Sheet 9f (hidden)
B2: CURRENT FUND - ANTICIPATED REVENUES - (Continued)
I3: Anticipated | K3: Realized in
B4: GENERAL REVENUES | H4: FCOA | I4: ='Key Inputs'!E34 -> 2020 | J4: =I4-1 -> 2019 | K4: ="Cash in "&J4 -> Cash in 2019
C5: 3. | D5: Miscellaneous Revenues - Section F: Special Items of General Revenue Anticipated
E6: With Prior Written Consent of Director of Local Government Services - Public and
E7: Private Revenues Offset with Appropriations: | H7: XXXXXXX | I7: XXXXXXXXXXX | J7: XXXXXXXXXXX | K7: XXXXXXXXXXX
K8: =+J8 -> 0
K9: 0
K10: 0
K11: 0
K12: 0
K13: 0
K14: 0
K15: 0
K16: 0
K17: 0
K18: 0
K19: 0
K20: 0
K21: 0
K22: 0
K23: 0
K24: 0
K25: 0
K26: 0
B27: Sheet 9f

Sheet 9g (hidden)
B2: CURRENT FUND - ANTICIPATED REVENUES - (Continued)
I3: Anticipated | K3: Realized in
B4: GENERAL REVENUES | H4: FCOA | I4: ='Key Inputs'!E34 -> 2020 | J4: =I4-1 -> 2019 | K4: ="Cash in "&J4 -> Cash in 2019
C5: 3. | D5: Miscellaneous Revenues - Section F: Special Items of General Revenue Anticipated
E6: With Prior Written Consent of Director of Local Government Services - Public and
E7: Private Revenues Offset with Appropriations: | H7: XXXXXXX | I7: XXXXXXXXXXX | J7: XXXXXXXXXXX | K7: XXXXXXXXXXX
K8: =+J8 -> 0
K9: 0
K10: 0
K11: 0
K12: 0
K13: 0
K14: 0
K15: 0
K16: 0
K17: 0
K18: 0
K19: 0
K20: 0
K21: 0
K22: 0
K23: 0
K24: 0
K25: 0
K26: 0
B27: Sheet 9g

Sheet 9h (hidden)
B2: CURRENT FUND - ANTICIPATED REVENUES - (Continued)
I3: Anticipated | K3: Realized in
B4: GENERAL REVENUES | H4: FCOA | I4: ='Key Inputs'!E34 -> 2020 | J4: =I4-1 -> 2019 | K4: ="Cash in "&J4 -> Cash in 2019
C5: 3. | D5: Miscellaneous Revenues - Section F: Special Items of General Revenue Anticipated
E6: With Prior Written Consent of Director of Local Government Services - Public and
E7: Private Revenues Offset with Appropriations: | H7: XXXXXXX | I7: XXXXXXXXXXX | J7: XXXXXXXXXXX | K7: XXXXXXXXXXX
K8: =+J8 -> 0
K9: 0
K10: 0
K11: 0
K12: 0
K13: 0
K14: 0
K15: 0
K16: 0
K17: 0
K18: 0
K19: 0
K20: 0
K21: 0
K22: 0
K23: 0
K24: 0
K25: 0
K26: 0
B27: Sheet 9h

Sheet 9 TOTAL
B2: CURRENT FUND - ANTICIPATED REVENUES - (Continued)
I3: Anticipated | K3: Realized in
B4: GENERAL REVENUES | H4: FCOA | I4: ='Key Inputs'!E34 -> 2020 | J4: =I4-1 -> 2019 | K4: ="Cash in "&J4 -> Cash in 2019
C5: 3. | D5: Miscellaneous Revenues - Section F: Special Items of General Revenue Anticipated
E6: With Prior Written Consent of Director of Local Government Services - Public and
E7: Private Revenues Offset with Appropriations (Continued): | H7: XXXXXXX | I7: XXXXXXXXXXX | J7: XXXXXXXXXXX | K7: XXXXXXXXXXX
K8: =+J8 -> 0
K9: =+J9 -> 0
K10: 0
K11: 0
K12: 0
K13: 0
K14: 0
K15: 0
K16: 0
K17: =+J17 -> 0
K18: 0
K19: 0
K20: 0
K21: 0
K22: 0
K23: 0
K24: 0
E25: Total Section F: Special Item of General Revenue Anticipated with Prior Written | H25: XXXXXXX | I25: XXXXXXXXXXX | J25: XXXXXXXXXXX | K25: XXXXXXXXXXX
F26: Consent of Director of Local Government Services - Public and Private Revenues | H26: 10-001 | I26: =+SUM('9:9h'!I8:I26)+SUM('9 TOTAL'!I8:I24) -> 92086.43 | J26: =+SUM('9:9h'!J8:J26)+SUM('9 TOTAL'!J8:J24) -> 183971.94 | K26: =+SUM('9:9h'!K8:K26)+SUM('9 TOTAL'!K8:K24) -> 183971.94
B27: Sheet 9 - TOTALS

Sheet 10
B2: CURRENT FUND - ANTICIPATED REVENUES - (Continued)
I3: Anticipated | K3: Realized in
B4: GENERAL REVENUES | H4: FCOA | I4: ='Key Inputs'!E34 -> 2020 | J4: =I4-1 -> 2019 | K4: ="Cash in "&J4 -> Cash in 2019
C5: 3. | D5: Miscellaneous Revenues - Section G: Special Items of General Revenue Anticipated
E6: With Prior Written Consent of Director of Local Government Services - Other Special
E7: Items: | H7: XXXXXXX | I7: XXXXXXXXXXX | J7: XXXXXXXXXXX | K7: XXXXXXXXXXX
E8: Utility Operating Surplus of Prior Year | H8: 08-116
E9: SENIOR CITIZEN HOUSING (IN LIEU OF TAX) | H9: 08-130 | I9: 200000 | J9: 195000 | K9: 202000
E10: BOROUGH COMMUNITY CENTER PROGRAMS | H10: 08-240 | I10: 260000 | J10: 260000 | K10: 260438
E11: UNIFORM FIRE AND SAFETY ACT | H11: 08-106 | I11: 85000 | J11: 90000 | K11: 87897.72
E12: GENERAL CAPITAL FUND SURPLUS | H12: 08-228 | I12: 149240
E13: OTHER TRUST FUND SURPLUS | H13: 08-240
E14: HOTEL TAX | H14: 08-107 | I14: 355000 | J14: 280000 | K14: 359316.83
E15: CELL TOWER AGREEMENTS | H15: 08-241 | I15: 382000 | J15: 390000 | K15: 386143.78
E16: ASSESSMENT TRUST FUND SURPLUS | H16: 08-242
E17: RESERVE FOR PAYMENT OF BONDS | H17: 08-227
E18: CATV FRANCHISE FEES | H18: 08-243 | I18: 90000 | J18: 108000 | K18: 93886.7
B27: Sheet 10

Sheet 10a (hidden)
B2: CURRENT FUND - ANTICIPATED REVENUES - (Continued)
I3: Anticipated | K3: Realized in
B4: GENERAL REVENUES | H4: FCOA | I4: ='Key Inputs'!E34 -> 2020 | J4: =I4-1 -> 2019 | K4: ="Cash in "&J4 -> Cash in 2019
C5: 3. | D5: Miscellaneous Revenues - Section G: Special Items of General Revenue Anticipated
E6: With Prior Written Consent of Director of Local Government Services - Other Special
E7: Items: | H7: XXXXXXX | I7: XXXXXXXXXXX | J7: XXXXXXXXXXX | K7: XXXXXXXXXXX
B27: Sheet 10a

Sheet 10b (hidden)
B2: CURRENT FUND - ANTICIPATED REVENUES - (Continued)
I3: Anticipated | K3: Realized in
B4: GENERAL REVENUES | H4: FCOA | I4: ='Key Inputs'!E34 -> 2020 | J4: =I4-1 -> 2019 | K4: ="Cash in "&J4 -> Cash in 2019
C5: 3. | D5: Miscellaneous Revenues - Section G: Special Items of General Revenue Anticipated
E6: With Prior Written Consent of Director of Local Government Services - Other Special
E7: Items: | H7: XXXXXXX | I7: XXXXXXXXXXX | J7: XXXXXXXXXXX | K7: XXXXXXXXXXX
B27: Sheet 10b

Sheet 10c (hidden)
B2: CURRENT FUND - ANTICIPATED REVENUES - (Continued)
I3: Anticipated | K3: Realized in
B4: GENERAL REVENUES | H4: FCOA | I4: ='Key Inputs'!E34 -> 2020 | J4: =I4-1 -> 2019 | K4: ="Cash in "&J4 -> Cash in 2019
C5: 3. | D5: Miscellaneous Revenues - Section G: Special Items of General Revenue Anticipated
E6: With Prior Written Consent of Director of Local Government Services - Other Special
E7: Items: | H7: XXXXXXX | I7: XXXXXXXXXXX | J7: XXXXXXXXXXX | K7: XXXXXXXXXXX
B27: Sheet 10c

Sheet 10d (hidden)
B2: CURRENT FUND - ANTICIPATED REVENUES - (Continued)
I3: Anticipated | K3: Realized in
B4: GENERAL REVENUES | H4: FCOA | I4: ='Key Inputs'!E34 -> 2020 | J4: =I4-1 -> 2019 | K4: ="Cash in "&J4 -> Cash in 2019
C5: 3. | D5: Miscellaneous Revenues - Section G: Special Items of General Revenue Anticipated
E6: With Prior Written Consent of Director of Local Government Services - Other Special
E7: Items: | H7: XXXXXXX | I7: XXXXXXXXXXX | J7: XXXXXXXXXXX | K7: XXXXXXXXXXX
B27: Sheet 10d

Sheet 10e (hidden)
B2: CURRENT FUND - ANTICIPATED REVENUES - (Continued)
I3: Anticipated | K3: Realized in
B4: GENERAL REVENUES | H4: FCOA | I4: ='Key Inputs'!E34 -> 2020 | J4: =I4-1 -> 2019 | K4: ="Cash in "&J4 -> Cash in 2019
C5: 3. | D5: Miscellaneous Revenues - Section G: Special Items of General Revenue Anticipated
E6: With Prior Written Consent of Director of Local Government Services - Other Special
E7: Items: | H7: XXXXXXX | I7: XXXXXXXXXXX | J7: XXXXXXXXXXX | K7: XXXXXXXXXXX
B27: Sheet 10e

Sheet 10f (hidden)
B2: CURRENT FUND - ANTICIPATED REVENUES - (Continued)
I3: Anticipated | K3: Realized in
B4: GENERAL REVENUES | H4: FCOA | I4: ='Key Inputs'!E34 -> 2020 | J4: =I4-1 -> 2019 | K4: ="Cash in "&J4 -> Cash in 2019
C5: 3. | D5: Miscellaneous Revenues - Section G: Special Items of General Revenue Anticipated
E6: With Prior Written Consent of Director of Local Government Services - Other Special
E7: Items: | H7: XXXXXXX | I7: XXXXXXXXXXX | J7: XXXXXXXXXXX | K7: XXXXXXXXXXX
B27: Sheet 10f

Sheet 10g (hidden)
B2: CURRENT FUND - ANTICIPATED REVENUES - (Continued)
I3: Anticipated | K3: Realized in
B4: GENERAL REVENUES | H4: FCOA | I4: ='Key Inputs'!E34 -> 2020 | J4: =I4-1 -> 2019 | K4: ="Cash in "&J4 -> Cash in 2019
C5: 3. | D5: Miscellaneous Revenues - Section G: Special Items of General Revenue Anticipated
E6: With Prior Written Consent of Director of Local Government Services - Other Special
E7: Items: | H7: XXXXXXX | I7: XXXXXXXXXXX | J7: XXXXXXXXXXX | K7: XXXXXXXXXXX
B27: Sheet 10g

Sheet 10h (hidden)
B2: CURRENT FUND - ANTICIPATED REVENUES - (Continued)
I3: Anticipated | K3: Realized in
B4: GENERAL REVENUES | H4: FCOA | I4: ='Key Inputs'!E34 -> 2020 | J4: =I4-1 -> 2019 | K4: ="Cash in "&J4 -> Cash in 2019
C5: 3. | D5: Miscellaneous Revenues - Section G: Special Items of General Revenue Anticipated
E6: With Prior Written Consent of Director of Local Government Services - Other Special
E7: Items: | H7: XXXXXXX | I7: XXXXXXXXXXX | J7: XXXXXXXXXXX | K7: XXXXXXXXXXX
B27: Sheet 10h

Sheet 10i (hidden)
B2: CURRENT FUND - ANTICIPATED REVENUES - (Continued)
I3: Anticipated | K3: Realized in
B4: GENERAL REVENUES | H4: FCOA | I4: ='Key Inputs'!E34 -> 2020 | J4: =I4-1 -> 2019 | K4: ="Cash in "&J4 -> Cash in 2019
C5: 3. | D5: Miscellaneous Revenues - Section G: Special Items of General Revenue Anticipated
E6: With Prior Written Consent of Director of Local Government Services - Other Special
E7: Items: | H7: XXXXXXX | I7: XXXXXXXXXXX | J7: XXXXXXXXXXX | K7: XXXXXXXXXXX
B27: Sheet 10i

Sheet 10j (hidden)
B2: CURRENT FUND - ANTICIPATED REVENUES - (Continued)
I3: Anticipated | K3: Realized in
B4: GENERAL REVENUES | H4: FCOA | I4: ='Key Inputs'!E34 -> 2020 | J4: =I4-1 -> 2019 | K4: ="Cash in "&J4 -> Cash in 2019
C5: 3. | D5: Miscellaneous Revenues - Section G: Special Items of General Revenue Anticipated
E6: With Prior Written Consent of Director of Local Government Services - Other Special
E7: Items: | H7: XXXXXXX | I7: XXXXXXXXXXX | J7: XXXXXXXXXXX | K7: XXXXXXXXXXX
B27: Sheet 10j

Sheet 10k (hidden)
B2: CURRENT FUND - ANTICIPATED REVENUES - (Continued)
I3: Anticipated | K3: Realized in
B4: GENERAL REVENUES | H4: FCOA | I4: ='Key Inputs'!E34 -> 2020 | J4: =I4-1 -> 2019 | K4: ="Cash in "&J4 -> Cash in 2019
C5: 3. | D5: Miscellaneous Revenues - Section G: Special Items of General Revenue Anticipated
E6: With Prior Written Consent of Director of Local Government Services - Other Special
E7: Items: | H7: XXXXXXX | I7: XXXXXXXXXXX | J7: XXXXXXXXXXX | K7: XXXXXXXXXXX
B27: Sheet 10h

Sheet 10l (hidden)
B2: CURRENT FUND - ANTICIPATED REVENUES - (Continued)
I3: Anticipated | K3: Realized in
B4: GENERAL REVENUES | H4: FCOA | I4: ='Key Inputs'!E34 -> 2020 | J4: =I4-1 -> 2019 | K4: ="Cash in "&J4 -> Cash in 2019
C5: 3. | D5: Miscellaneous Revenues - Section G: Special Items of General Revenue Anticipated
E6: With Prior Written Consent of Director of Local Government Services - Other Special
E7: Items: | H7: XXXXXXX | I7: XXXXXXXXXXX | J7: XXXXXXXXXXX | K7: XXXXXXXXXXX
B27: Sheet 10l

Sheet 10m (hidden)
B2: CURRENT FUND - ANTICIPATED REVENUES - (Continued)
I3: Anticipated | K3: Realized in
B4: GENERAL REVENUES | H4: FCOA | I4: ='Key Inputs'!E34 -> 2020 | J4: =I4-1 -> 2019 | K4: ="Cash in "&J4 -> Cash in 2019
C5: 3. | D5: Miscellaneous Revenues - Section G: Special Items of General Revenue Anticipated
E6: With Prior Written Consent of Director of Local Government Services - Other Special
E7: Items: | H7: XXXXXXX | I7: XXXXXXXXXXX | J7: XXXXXXXXXXX | K7: XXXXXXXXXXX
B27: Sheet 10m

Sheet 10 TOTAL
B2: CURRENT FUND - ANTICIPATED REVENUES - (Continued)
I3: Anticipated | K3: Realized in
B4: GENERAL REVENUES | H4: FCOA | I4: ='Key Inputs'!E34 -> 2020 | J4: =I4-1 -> 2019 | K4: ="Cash in "&J4 -> Cash in 2019
C5: 3. | D5: Miscellaneous Revenues - Section G: Special Items of General Revenue Anticipated
E6: With Prior Written Consent of Director of Local Government Services - Other Special
E7: Items: | H7: XXXXXXX | I7: XXXXXXXXXXX | J7: XXXXXXXXXXX | K7: XXXXXXXXXXX
E25: Total Section G: Special Items of General Revenue Anticipated with Prior Written | H25: XXXXXXX | I25: XXXXXXXXXXX | J25: XXXXXXXXXXX | K25: XXXXXXXXXXX
F26: Consent of Director of Local Government Services - Other Special Items | H26: 08-004 | I26: =SUM('10:10m'!I8:I26)+SUM('10 TOTAL'!I8:I24) -> 1521240 | J26: =SUM('10:10m'!J8:J26)+SUM('10 TOTAL'!J8:J24) -> 1323000 | K26: =SUM('10:10m'!K8:K26)+SUM('10 TOTAL'!K8:K24) -> 1389683.03
B27: Sheet 10 - TOTALS

Sheet 11
B2: CURRENT FUND - ANTICIPATED REVENUES - (Continued)
I3: Anticipated | K3: Realized in | O3: Working Area
B4: GENERAL REVENUES | H4: FCOA | I4: ='Key Inputs'!E34 -> 2020 | J4: =I4-1 -> 2019 | K4: ="Cash in "&J4 -> Cash in 2019
E6: Summary of Revenues
H7: XXXXX | I7: XXXXXXXXXXX | J7: XXXXXXXXXXX | K7: XXXXXXXXXXX
C8: 1. | D8: Surplus Anticipated (Sheet 4, #1) | H8: 08-101 | I8: =+'4'!I5 -> 4000000 | J8: =+'4'!J5 -> 3600000 | K8: =+'4'!K5 -> 3600000
C9: 2. | D9: Surplus Anticipated with Prior Written Consent of Director of Local Government Services (Sheet 4, #2) | H9: 08-102 | I9: =+'4'!I6 -> 0 | J9: =+'4'!J6 -> 0 | K9: =+'4'!K6 -> 0
C10: 3. | D10: Miscellaneous Revenues: | H10: XXXXX | I10: XXXXXXXXXXX | J10: XXXXXXXXXXX | K10: XXXXXXXXXXX
F11: Total Section A: | G11: Local Revenues | H11: 08-001 | I11: =+'4c'!I26 -> 839000 | J11: =+'4c'!J26 -> 924000 | K11: =+'4c'!K26 -> 1005018.97
F12: Total Section B: | G12: State Aid Without Offsetting Appropriations | H12: 09-001 | I12: =+'5'!I26 -> 1464615 | J12: =+'5'!J26 -> 1464615 | K12: =+'5'!K26 -> 1464615
F13: Total Section C: | G13: Dedicated Uniform Construction Code Fees Offset with Appropriations | H13: 08-002 | I13: =+'6'!I28 -> 640000 | J13: =+'6'!J28 -> 430000 | K13: =+'6'!K28 -> 645362
F14: Total Section D: | G14: Special Items of General Revenue Anticipated with Prior Written Consent of Director of Local Government Services - Shared Service Agreements | H14: 11-001 | I14: =+'7b'!I26 -> 29000 | J14: =+'7b'!J26 -> 4000 | K14: =+'7b'!K26 -> 1401.65
F15: Total Section E: | G15: Special Items of General Revenue Anticipated with Prior Written Consent of Director of Local Government Services - Additional Revenues | H15: 08-003 | I15: =+'8'!I26 -> 0 | J15: =+'8'!J26 -> 0 | K15: =+'8'!K26 -> 0
F16: Total Section F: | G16: Special Items of General Revenue Anticipated with Prior Written Consent of Director of Local Government Services - Public and Private Revenues | H16: 10-001 | I16: =+'9 TOTAL'!I26 -> 92086.43 | J16: =+'9 TOTAL'!J26 -> 183971.94 | K16: =+'9 TOTAL'!K26 -> 183971.94
F17: Total Section G: | G17: Special Items of General Revenue Anticipated with Prior Written Consent of Director of Local Government Services - Other Special Items | H17: 08-004 | I17: =+'10 TOTAL'!I26 -> 1521240 | J17: =+'10 TOTAL'!J26 -> 1323000 | K17: =+'10 TOTAL'!K26 -> 1389683.03
E18: Total Miscellaneous Revenues | H18: 13-099 | I18: =SUM(I11:I17) -> 4585941.43 | J18: =SUM(J11:J17) -> 4329586.94 | K18: =SUM(K11:K17) -> 4690052.59
C19: 4. | D19: Receipts from Delinquent Taxes | H19: 15-499 | I19: 262760 | J19: 233000 | K19: 200559
C20: 5. | D20: Subtotal General Revenues (Items 1, 2, 3 and 4) | H20: 13-199 | I20: =+I8+I9+I18+I19 -> 8848701.43 | J20: =+J8+J9+J18+J19 -> 8162586.94 | K20: =+K8+K9+K18+K19 -> 8490611.59
C21: 6. | D21: Amount to be Raised by Taxes for Support of Municipal Budget: | H21: XXXXX | I21: XXXXXXXXXXX | J21: XXXXXXXXXXX | K21: XXXXXXXXXXX
D22: a) | E22: Local Tax for Municipal Purposes Including Reserve for Uncollected Taxes | H22: 07-190 | I22: =+'Reserve & Tax Calculation'!E47 -> 18486353.5 | J22: 18121973.5 | K22: XXXXXXXXXXX
D23: b) | E23: Addition to Local District School Tax | H23: 07-191 | I23: =+'Reserve & Tax Calculation'!E48 -> 0 | K23: XXXXXXXXXXX
D24: c) | E24: Minimum Library Tax | H24: 07-192 | I24: =+'Reserve & Tax Calculation'!E49 -> 0 | K24: XXXXXXXXXXX
E25: Total Amount to be Raised by Taxes for Support of Municipal Budget | H25: 07-199 | I25: =+I22+I23+I24 -> 18486353.5 | J25: =+J22+J23+J24 -> 18121973.5 | K25: 19335024.59
C26: 7. | D26: Total General Revenues | H26: 13-299 | I26: =+I25+I20 -> 27335054.93 | J26: =+J25+J20 -> 26284560.44 | K26: =+K25+K20 -> 27825636.18
B27: Sheet 11
I29: =+'29'!J25 -> 27335054.93 | J29: =+'29'!K25 -> 26284560.44 | K29: =PROPER("Do not remove.") -> Do Not Remove.
I31: =+I26-I29 -> 0 | J31: =+J26-J29 -> 0
I32: =+I25/I26 -> 0.67628741 | J32: =+J25/J26 -> 0.6894531693 | K32: % of Tax Levy to Total Budget
I41: =+I20 -> 8848701.43
I43: =+I41-I39 -> 8848701.43

Sheet 12
B2: CURRENT FUND - APPROPRIATIONS
B3: 8. GENERAL APPROPRIATIONS | J3: Appropriated | N3: ="Expended "&'Key Inputs'!E34-1 -> Expended 2019
H4: FCOA | L4: ="for "&'Key Inputs'!E34-1&" By" -> for 2019 By | M4: ="Total for "&'Key Inputs'!E34-1 -> Total for 2019
C5: (A) Operations - within "CAPS" | J5: ="for "&'Key Inputs'!E34 -> for 2020 | K5: ="for "&'Key Inputs'!E34-1 -> for 2019 | L5: Emergency | M5: As Modified By | N5: Paid or | O5: Reserved | Q5: Canceled
L6: Appropriation | M6: All Transfers | N6: Charged
C7: GENERAL GOVERNMENT | O7: =IFERROR(IF(+M7-N7>=0,M7-N7,"*")-Q7,"*") -> 0
C8: ADMINISTRATIVE & EXECUTIVE: | O8: 0
C9: Salaries and Wages | H9: 20-100 | I9: 1 | J9: 230000 | K9: 225000 | M9: 195500 | N9: 163007.84 | O9: 32492.16
C10: Other Expenses | H10: 20-100 | I10: 2 | J10: 128000 | K10: 112500 | M10: 112500 | N10: 68541.12 | O10: 43958.88
C11: LABOR ATTORNEY: | H11: 20-155 | I11: 2 | J11: 25000 | K11: 25000 | M11: 25000 | N11: 5410.5 | O11: 19589.5
C12: MAYOR AND COUNCIL | O12: 0
C13: Salaries and Wages | H13: 20-110 | I13: 1 | J13: 68400 | K13: 68397 | M13: 68397 | N13: 57268.02 | O13: 11128.98
C14: Other Expenses | H14: 20-110 | I14: 2 | J14: 10500 | K14: 11300 | M14: 11300 | N14: 3160 | O14: 8140
C15: ADVERTISING: | O15: 0
C16: Other Expenses | H16: 20-101 | I16: 2 | J16: 27500 | K16: 30000 | M16: 30000 | N16: 8334.77 | O16: 16665.23 | Q16: 5000
C17: Beautify Eatontown | H17: 20-102 | I17: 2 | J17: 2250 | K17: 2250 | M17: 2250 | N17: 1754.11 | O17: 495.89
C18: Complete Streets | H18: 20-103 | I18: 2 | J18: 1000 | K18: 500 | M18: 500 | N18: 296 | O18: 204
C19: ELECTIONS: | O19: 0
C20: Salaries and Wages | H20: 20-104 | I20: 1 | J20: 1000 | K20: 1000 | M20: 1000 | O20: 1000
C21: Other Expenses | H21: 20-104 | I21: 2 | J21: 6250 | K21: 5000 | M21: 5000 | N21: 3337.74 | O21: 1662.26
C22: MUNICIPAL CLERK; | O22: 0
C23: Salaries and Wages | H23: 20-120 | I23: 1 | J23: 194000 | K23: 175750 | M23: 175750 | N23: 162534.56 | O23: 13215.44
C24: Other Expenses | H24: 20-120 | I24: 2 | J24: 23750 | K24: 22950 | M24: 22950 | N24: 22408.58 | O24: 541.42
C25: INFORMATION TECHNOLOGY: | O25: 0
C26: Other Expenses | H26: 20-100 | I26: 2 | J26: 116500 | K26: 111500 | M26: 111500 | N26: 93209.68 | O26: 18290.32
B27: Sheet 12
J30: =SUM(J7:J26) -> 834150

Sheet 13
B2: CURRENT FUND - APPROPRIATIONS
B3: 8. GENERAL APPROPRIATIONS | J3: Appropriated | N3: ="Expended "&'Key Inputs'!E34-1 -> Expended 2019
H4: FCOA | L4: ="for "&'Key Inputs'!E34-1&" By" -> for 2019 By | M4: ="Total for "&'Key Inputs'!E34-1 -> Total for 2019
C5: (A) Operations - within "CAPS" - (continued) | J5: ="for "&'Key Inputs'!E34 -> for 2020 | K5: ="for "&'Key Inputs'!E34-1 -> for 2019 | L5: Emergency | M5: As Modified By | N5: Paid or | O5: Reserved | Q5: Canceled
L6: Appropriation | M6: All Transfers | N6: Charged
C7: PURCHASING DEPARTMENT: | O7: =IFERROR(IF(+M7-N7>=0,M7-N7,"*")-Q7,"*") -> 0
C8: Salaries and Wages | H8: 20-130 | I8: 1 | J8: 43900 | K8: 43000 | M8: 43000 | N8: 32911.62 | O8: 10088.38
C9: Other Expenses | H9: 20-130 | I9: 2 | J9: 31620 | K9: 31000 | M9: 31000 | N9: 14631.57 | O9: 16368.43
C10: HISTORICAL ASSOCIATION: | O10: 0
C11: Other Expenses | H11: 20-175 | I11: 2 | J11: 3000 | K11: 1750 | M11: 1750 | N11: 1720.19 | O11: 29.81
C12: FINANCIAL ADMINISTRATION: | O12: 0
C13: Salaries and Wages | H13: 20-130 | I13: 1 | J13: 206500 | K13: 201986 | M13: 201986 | N13: 178468.65 | O13: 23517.35
C14: Other Expenses | H14: 20-130 | I14: 2 | J14: 49000 | K14: 48000 | M14: 48000 | N14: 21181.19 | O14: 26818.81
C15: Bond Registration Fees | H15: 20-130 | I15: 2 | J15: 4500 | K15: 4500 | M15: 4500 | N15: 2058.9 | O15: 2441.1
C16: Audit Services | H16: 20-135 | I16: 2 | J16: 48000 | K16: 48000 | M16: 48000 | N16: 29700 | O16: 18300
C17: ASSESSMENT OF TAXES: | O17: 0
C18: Salaries and Wages | H18: 20-150 | I18: 1 | J18: 94932 | K18: 93075 | M18: 93075 | N18: 91457.96 | O18: 1617.04
C19: Other Expenses | H19: 20-150 | I19: 2 | J19: 80771 | K19: 80771 | M19: 80771 | N19: 25596.92 | O19: 55174.08
C20: COLLECTION OF TAXES: | O20: 0
C21: Salaries and Wages | H21: 20-145 | I21: 1 | J21: 92015 | K21: 90210 | M21: 90210 | N21: 82151.12 | O21: 8058.88
C22: Other Expenses | H22: 20-145 | I22: 2 | J22: 11700 | K22: 11100 | M22: 11100 | N22: 7786.39 | O22: 3313.61
C23: LEGAL SERVICES AND COSTS: | O23: 0
C24: Other Expenses | H24: 20-155 | I24: 2 | J24: 270000 | K24: 270000 | M24: 270000 | N24: 244396.49 | O24: 25603.51
O25: 0
O26: 0
B27: Sheet 13
J30: =SUM(J7:J26) -> 935938

Sheet 14
B2: CURRENT FUND - APPROPRIATIONS
B3: 8. GENERAL APPROPRIATIONS | J3: Appropriated | N3: ="Expended "&'Key Inputs'!E34-1 -> Expended 2019
H4: FCOA | L4: ="for "&'Key Inputs'!E34-1&" By" -> for 2019 By | M4: ="Total for "&'Key Inputs'!E34-1 -> Total for 2019
C5: (A) Operations - within "CAPS" - (continued) | J5: ="for "&'Key Inputs'!E34 -> for 2020 | K5: ="for "&'Key Inputs'!E34-1 -> for 2019 | L5: Emergency | M5: As Modified By | N5: Paid or | O5: Reserved | Q5: Canceled
L6: Appropriation | M6: All Transfers | N6: Charged
C7: MUNICIPAL PROSECUTOR: | O7: =IFERROR(IF(+M7-N7>=0,M7-N7,"*")-Q7,"*") -> 0
C8: Salaries and Wages | H8: 25-275 | I8: 1 | J8: 40000 | K8: 40000 | M8: 40000 | N8: 33000 | O8: 7000
O9: 0
C10: ENGINEERING SERVICE AND COSTS: | O10: 0
C11: Miscellaneous Other Expenses | H11: 20-165 | I11: 2 | J11: 75000 | K11: 85000 | M11: 85000 | N11: 21260.69 | O11: 63739.31
O12: 0
C13: PUBLIC BUILDINGS AND GROUNDS: | O13: 0
C14: Salaries and Wages | H14: 26-310 | I14: 1 | J14: 192963 | K14: 189180 | M14: 189180 | N14: 111813.33 | O14: 77366.67
C15: Other Expenses | H15: 26-310 | I15: 2 | J15: 147600 | K15: 147600 | M15: 147600 | N15: 140077.76 | O15: 7522.24
O16: 0
C17: MUNICIPAL LAND USE LAW (NJSA40:55D-1) | O17: 0
C18: PLANNING BOARD: | O18: 0
C19: Salaries and Wages | H19: 21-180 | I19: 1 | J19: 0 | K19: 8000 | M19: 8000 | N19: 1800 | O19: 6200
C20: Other Expenses | H20: 21-180 | I20: 2 | J20: 90850 | K20: 95050 | M20: 95050 | N20: 71247.97 | O20: 23802.03
C21: BOARD OF ADJUSTMENT: | O21: 0
C22: Salaries and Wages | H22: 21-185 | I22: 1 | J22: 0 | K22: 1200 | M22: 1200 | N22: 100 | O22: 1100
C23: Other Expenses | H23: 21-185 | I23: 2 | J23: 13650 | K23: 10350 | M23: 12350 | N23: 10016.38 | O23: 2333.62
C24: ZONING OFFICER: | O24: 0
C25: Salaries and Wages | H25: 21-185 | I25: 1 | J25: 190000 | K25: 155403 | M25: 140403 | N25: 92717.96 | O25: 47685.04
C26: Other Expenses | H26: 21-185 | I26: 2 | J26: 23220 | K26: 21220 | M26: 21220 | N26: 18505.16 | O26: 2714.84
B27: Sheet 14
J30: =SUM(J7:J26) -> 773283
K33: =+M18+'20'!K10 -> 11200
K34: =+J18+'20'!J10 -> 11450
K35: =+K34-K33 -> 250
K36: =+K33*1.02 -> 11424
K37: =+K34-K36 -> 26

Sheet 15
B2: CURRENT FUND - APPROPRIATIONS
B3: 8. GENERAL APPROPRIATIONS | J3: Appropriated | N3: ="Expended "&'Key Inputs'!E34-1 -> Expended 2019
H4: FCOA | L4: ="for "&'Key Inputs'!E34-1&" By" -> for 2019 By | M4: ="Total for "&'Key Inputs'!E34-1 -> Total for 2019
C5: (A) Operations - within "CAPS" - (continued) | J5: ="for "&'Key Inputs'!E34 -> for 2020 | K5: ="for "&'Key Inputs'!E34-1 -> for 2019 | L5: Emergency | M5: As Modified By | N5: Paid or | O5: Reserved | Q5: Canceled
L6: Appropriation | M6: All Transfers | N6: Charged
C7: ENVIRONMENTAL PROGRAM: | O7: =IFERROR(IF(+M7-N7>=0,M7-N7,"*")-Q7,"*") -> 0
C8: Salaries and Wages | H8: 27-335 | I8: 1 | J8: 0 | K8: 180 | M8: 180 | O8: 180
C9: Other Expenses | H9: 27-335 | I9: 2 | J9: 1800 | K9: 4400 | M9: 4400 | N9: 1105 | O9: 3295
C10: Green Team | H10: 27-335 | I10: 2 | J10: 2000 | K10: 3800 | M10: 3800 | N10: 845 | O10: 2955
C11: Community Garden | H11: 27-335 | I11: 2 | J11: 10000 | K11: 9150 | M11: 9150 | N11: 3762.45 | O11: 5387.55
O12: 0
C13: GYPSY MOTH PROGRAM: | O13: 0
C14: Other Expenses | H14: 27-331 | I14: 2 | O14: 0
O15: 0
C16: PUBLIC SAFETY: | O16: 0
C17: FIRE: | O17: 0
C18: Salaries and Wages | H18: 25-265 | I18: 1 | J18: 6464 | K18: 6337 | M18: 6337 | N18: 6337 | O18: 0
C19: Fire Hydrant Service | H19: 25-265 | I19: 2 | J19: 156000 | K19: 152000 | M19: 152000 | N19: 117452.64 | O19: 34547.36
C20: Miscellaneous Other Expenses | H20: 25-265 | I20: 2 | J20: 90350 | K20: 87350 | M20: 87350 | N20: 71909.55 | O20: 15440.45
O21: 0
C22: INSURANCE: | O22: 0
C23: Group Insurance | H23: 23-220 | I23: 2 | J23: 3340500 | K23: 3375500 | M23: 3375500 | N23: 2584617.97 | O23: 790882.03
C24: Health Benefit Waiver | H24: 23-222 | I24: 2 | J24: 40000 | K24: 40000 | M24: 40000 | N24: 30633.31 | O24: 9366.69
C25: Other Insurance | H25: 23-211 | I25: 2 | J25: 440440 | K25: 419700 | M25: 419700 | N25: 312194.62 | O25: 107505.38
C26: Workers Compensation | H26: 23-215 | I26: 2 | J26: 454000 | K26: 445000 | M26: 445000 | N26: 385711.15 | O26: 59288.85
B27: Sheet 15
J30: =SUM(J7:J26) -> 4541554

Sheet 15a
B2: CURRENT FUND - APPROPRIATIONS
B3: 8. GENERAL APPROPRIATIONS | J3: Appropriated | N3: ="Expended "&'Key Inputs'!E34-1 -> Expended 2019
H4: FCOA | L4: ="for "&'Key Inputs'!E34-1&" By" -> for 2019 By | M4: ="Total for "&'Key Inputs'!E34-1 -> Total for 2019
C5: (A) Operations - within "CAPS" - (continued) | J5: ="for "&'Key Inputs'!E34 -> for 2020 | K5: ="for "&'Key Inputs'!E34-1 -> for 2019 | L5: Emergency | M5: As Modified By | N5: Paid or | O5: Reserved | Q5: Canceled
L6: Appropriation | M6: All Transfers | N6: Charged
C7: UNIFORM FIRE SAFETY ACT (P.L. 1983, CH. 383): | O7: =IFERROR(IF(+M7-N7>=0,M7-N7,"*")-Q7,"*") -> 0
C8: Salaries and Wages | H8: 25-241 | I8: 1 | J8: 102752 | K8: 100736 | M8: 100736 | N8: 78701.71 | O8: 22034.29
C9: Other Expenses | H9: 25-241 | I9: 2 | J9: 9650 | K9: 9650 | M9: 9650 | N9: 8993.19 | O9: 656.81
C10: POLICE | O10: 0
C11: Salaries and Wages | H11: 25-240 | I11: 1 | J11: 6150500 | K11: 5908151 | M11: 5908151 | N11: 5632527.85 | O11: 275623.15
C12: Other Expenses | H12: 25-240 | I12: 2 | J12: 250700 | K12: 314700 | M12: 314700 | N12: 302883.54 | O12: 11816.46
O13: 0
O14: 0
C15: FIRST AID ORGANIZATION CONTRIBUTION | H15: 25-260 | I15: 2 | J15: 33738 | K15: 34612 | M15: =34612+2500 -> 37112 | N15: 34636.82 | O15: 2475.18
O16: 0
O17: 0
C18: EMERGENCY MANAGEMENT SERVICES: | O18: 0
C19: Salaries and Wages | H19: 25-252 | I19: 1 | J19: 3611 | K19: 3540 | M19: 3540 | N19: 3540 | O19: 0
C20: Other Expenses | H20: 25-252 | I20: 2 | J20: 14400 | K20: 12000 | M20: 12000 | N20: 6151.95 | O20: 5848.05
C21: ROAD REPAIR AND MAINTENANCE: | O21: 0
C22: Salaries and Wages | H22: 26-290 | I22: 1 | J22: 2018850 | K22: 1981780 | M22: 1981780 | N22: 1794199.27 | O22: 187580.73
C23: Other Expenses | H23: 26-290 | I23: 2 | J23: 1284500 | K23: 995200 | M23: 995200 | N23: 975344.51 | O23: 19855.49
C24: SNOW REMOVAL | O24: 0
C25: Other Expenses | H25: 26-292 | I25: 2 | J25: 13500 | K25: 16000 | M25: 16000 | N25: 15999.96 | O25: 0.04
O26: 0
B27: Sheet 15a
J30: =SUM(J7:J26) -> 9882201

Sheet 15b
B2: CURRENT FUND - APPROPRIATIONS
B3: 8. GENERAL APPROPRIATIONS | J3: Appropriated | N3: ="Expended "&'Key Inputs'!E34-1 -> Expended 2019
H4: FCOA | L4: ="for "&'Key Inputs'!E34-1&" By" -> for 2019 By | M4: ="Total for "&'Key Inputs'!E34-1 -> Total for 2019
C5: (A) Operations - within "CAPS" - (continued) | J5: ="for "&'Key Inputs'!E34 -> for 2020 | K5: ="for "&'Key Inputs'!E34-1 -> for 2019 | L5: Emergency | M5: As Modified By | N5: Paid or | O5: Reserved | Q5: Canceled
L6: Appropriation | M6: All Transfers | N6: Charged
C7: MUNICIPAL COURT | O7: =IFERROR(IF(+M7-N7>=0,M7-N7,"*")-Q7,"*") -> 0
C8: Salaries and Wages | H8: 43-490 | I8: 1 | J8: 47859 | K8: 46920 | M8: 46920 | N8: 43696.8 | O8: 3223.2
C9: Other Expenses | H9: 43-490 | I9: 2 | J9: 35374 | K9: 34680 | M9: 34680 | N9: 23425 | O9: 11255
C10: PUBLIC DEFENDER | O10: 0
C11: Salaries and Wages | H11: 43-495 | I11: 1 | J11: 25000 | K11: 25000 | M11: 25000 | N11: 9500 | O11: 15500
M12: =+K12 -> 0 | O12: 0
C13: STREET LIGHTING: | H13: 31-435 | I13: 2 | J13: 140000 | K13: 140000 | M13: 140000 | N13: 103085.86 | O13: 36914.14
C14: MONMOUTH COUNTY RECLAMATION FEES: | H14: 32-465 | I14: 2 | J14: 317000 | K14: 275000 | M14: 275000 | N14: 245473.7 | O14: 29526.3
C15: RECYCLING - CONTRACTUAL: | O15: 0
C16: Sanitation - Apartment Collection | H16: 26-305 | I16: 2 | J16: 255000 | K16: 255000 | M16: 255000 | N16: 253917.12 | O16: 1082.88
C17: Sanitation - Residential Collection | H17: 26-305 | I17: 2 | J17: 270000 | K17: 270000 | M17: 270000 | N17: 269582.16 | O17: 417.84
C18: HEALTH AND WELFARE: | O18: 0
C19: Monmouth Cty. Health Com. (NJSA40:13) | O19: 0
C20: Salaries and Wages | H20: 27-330 | I20: 1 | J20: 1629 | K20: 1454 | M20: 1454 | O20: 1454
C21: Other Expenses | H21: 27-330 | I21: 2 | J21: 7000 | K21: 7000 | M21: 7000 | O21: 7000
O22: 0
O23: 0
O24: 0
O25: 0
O26: 0
B27: Sheet 15b
J30: =SUM(J7:J26) -> 1098862

Sheet 15c
B2: CURRENT FUND - APPROPRIATIONS
B3: 8. GENERAL APPROPRIATIONS | J3: Appropriated | N3: ="Expended "&'Key Inputs'!E34-1 -> Expended 2019
H4: FCOA | L4: ="for "&'Key Inputs'!E34-1&" By" -> for 2019 By | M4: ="Total for "&'Key Inputs'!E34-1 -> Total for 2019
C5: (A) Operations - within "CAPS" - (continued) | J5: ="for "&'Key Inputs'!E34 -> for 2020 | K5: ="for "&'Key Inputs'!E34-1 -> for 2019 | L5: Emergency | M5: As Modified By | N5: Paid or | O5: Reserved | Q5: Canceled
L6: Appropriation | M6: All Transfers | N6: Charged
C7: HOUSING INSPECTION: | O7: =IFERROR(IF(+M7-N7>=0,M7-N7,"*")-Q7,"*") -> 0
C8: Salaries and Wages | H8: 21-181 | I8: 1 | J8: 104200 | K8: 90700 | M8: 105700 | N8: 96383.66 | O8: 9316.34
C9: Other Expenses | H9: 21-181 | I9: 2 | J9: 1375 | K9: 1575 | M9: 1575 | N9: 1172.56 | O9: 402.44
C10: ANIMAL CONTROL: | O10: 0
C11: Other Expenses | H11: 27-340 | I11: 2 | J11: 20808 | K11: 20400 | M11: 20400 | N11: 17081.44 | O11: 3318.56
O12: 0
C13: RECREATION: | O13: 0
C14: Salaries and Wages | H14: 28-370 | I14: 1 | J14: 181550 | K14: 160545 | M14: 160545 | N14: 141910.3 | O14: 18634.7
C15: Other Expenses | H15: 28-370 | I15: 2 | J15: 77275 | K15: 76416 | M15: 76416 | N15: 73268.52 | O15: 3147.48
C16: CELEBRATION OF PUBLIC EVENTS: | O16: 0
C17: Other Expenses | H17: 28-371 | I17: 2 | J17: 35500 | K17: 21950 | M17: 21950 | N17: 21302.14 | O17: 647.86
C18: BOROUGH COMMUNITY CENTER: | O18: 0
C19: Salaries and Wages | H19: 28-372 | I19: 1 | J19: 256732 | K19: 251696 | M19: 251696 | N19: 206940.18 | O19: 44755.82
C20: Other Expenses | H20: 28-372 | I20: 2 | J20: 32406 | K20: 31250 | M20: 31250 | N20: 30916.48 | O20: 333.52
C21: MISCELLANEOUS OTHER EXPENSES: | O21: 0
C22: Youth Committee | H22: 28-373 | I22: 2 | J22: 2250 | K22: 2250 | M22: 2250 | N22: 963.63 | O22: 1286.37
C23: Salaries and Wages | H23: 28-373 | I23: 1 | J23: 59000 | K23: 57836 | M23: 57836 | N23: 47141.13 | O23: 10694.87
C24: Other Expenses | H24: 28-373 | I24: 2 | J24: 19600 | K24: 19600 | M24: 19600 | N24: 18301.46 | O24: 1298.54
O25: 0
O26: 0
B27: Sheet 15c
J30: =SUM(J7:J26) -> 790696

Sheet 15d
B2: CURRENT FUND - APPROPRIATIONS
B3: 8. GENERAL APPROPRIATIONS | J3: Appropriated | N3: ="Expended "&'Key Inputs'!E34-1 -> Expended 2019
H4: FCOA | L4: ="for "&'Key Inputs'!E34-1&" By" -> for 2019 By | M4: ="Total for "&'Key Inputs'!E34-1 -> Total for 2019
C5: (A) Operations - within "CAPS" - (continued) | J5: ="for "&'Key Inputs'!E34 -> for 2020 | K5: ="for "&'Key Inputs'!E34-1 -> for 2019 | L5: Emergency | M5: As Modified By | N5: Paid or | O5: Reserved | Q5: Canceled
L6: Appropriation | M6: All Transfers | N6: Charged
O7: =IFERROR(IF(+M7-N7>=0,M7-N7,"*")-Q7,"*") -> 0
O8: 0
O9: 0
O10: 0
O11: 0
O12: 0
O13: 0
O14: 0
O15: 0
O16: 0
O17: 0
O18: 0
O19: 0
O20: 0
O21: 0
O22: 0
O23: 0
O24: 0
O25: 0
O26: 0
B27: Sheet 15d
J30: =SUM(J7:J26) -> 0

Sheet 15e
B2: CURRENT FUND - APPROPRIATIONS
B3: 8. GENERAL APPROPRIATIONS | J3: Appropriated | N3: ="Expended "&'Key Inputs'!E34-1 -> Expended 2019
H4: FCOA | L4: ="for "&'Key Inputs'!E34-1&" By" -> for 2019 By | M4: ="Total for "&'Key Inputs'!E34-1 -> Total for 2019
C5: (A) Operations - within "CAPS" - (continued) | J5: ="for "&'Key Inputs'!E34 -> for 2020 | K5: ="for "&'Key Inputs'!E34-1 -> for 2019 | L5: Emergency | M5: As Modified By | N5: Paid or | O5: Reserved | Q5: Canceled
L6: Appropriation | M6: All Transfers | N6: Charged
O7: =IFERROR(IF(+M7-N7>=0,M7-N7,"*")-Q7,"*") -> 0
O8: 0
O9: 0
O10: 0
O11: 0
O12: 0
O13: 0
O14: 0
O15: 0
O16: 0
O17: 0
O18: 0
O19: 0
O20: 0
O21: 0
O22: 0
O23: 0
O24: 0
O25: 0
O26: 0
B27: Sheet 15e

Sheet 15f (hidden)
B2: CURRENT FUND - APPROPRIATIONS
B3: 8. GENERAL APPROPRIATIONS | J3: Appropriated | N3: ="Expended "&'Key Inputs'!E34-1 -> Expended 2019
H4: FCOA | L4: ="for "&'Key Inputs'!E34-1&" By" -> for 2019 By | M4: ="Total for "&'Key Inputs'!E34-1 -> Total for 2019
C5: (A) Operations - within "CAPS" - (continued) | J5: ="for "&'Key Inputs'!E34 -> for 2020 | K5: ="for "&'Key Inputs'!E34-1 -> for 2019 | L5: Emergency | M5: As Modified By | N5: Paid or | O5: Reserved | Q5: Canceled
L6: Appropriation | M6: All Transfers | N6: Charged
M7: =+K7 -> 0 | O7: =IFERROR(IF(+M7-N7>=0,M7-N7,"*")-Q7,"*") -> 0
M8: =+K8 -> 0 | O8: 0
M9: =+K9 -> 0 | O9: 0
M10: 0 | O10: 0
M11: 0 | O11: 0
M12: 0 | O12: 0
M13: 0 | O13: 0
M14: 0 | O14: 0
M15: 0 | O15: 0
M16: 0 | O16: 0
M17: 0 | O17: 0
M18: 0 | O18: 0
M19: 0 | O19: 0
M20: 0 | O20: 0
M21: 0 | O21: 0
M22: 0 | O22: 0
M23: 0 | O23: 0
M24: 0 | O24: 0
M25: 0 | O25: 0
M26: 0 | O26: 0
B27: Sheet 15f

Sheet 15g (hidden)
B2: CURRENT FUND - APPROPRIATIONS
B3: 8. GENERAL APPROPRIATIONS | J3: Appropriated | N3: ="Expended "&'Key Inputs'!E34-1 -> Expended 2019
H4: FCOA | L4: ="for "&'Key Inputs'!E34-1&" By" -> for 2019 By | M4: ="Total for "&'Key Inputs'!E34-1 -> Total for 2019
C5: (A) Operations - within "CAPS" - (continued) | J5: ="for "&'Key Inputs'!E34 -> for 2020 | K5: ="for "&'Key Inputs'!E34-1 -> for 2019 | L5: Emergency | M5: As Modified By | N5: Paid or | O5: Reserved | Q5: Canceled
L6: Appropriation | M6: All Transfers | N6: Charged
M7: =+K7 -> 0 | O7: =IFERROR(IF(+M7-N7>=0,M7-N7,"*")-Q7,"*") -> 0
M8: 0 | O8: 0
M9: =+K9 -> 0 | O9: 0
M10: 0 | O10: 0
M11: 0 | O11: 0
M12: 0 | O12: 0
M13: 0 | O13: 0
M14: 0 | O14: 0
M15: 0 | O15: 0
M16: 0 | O16: 0
M17: 0 | O17: 0
M18: 0 | O18: 0
M19: 0 | O19: 0
M20: 0 | O20: 0
M21: 0 | O21: 0
M22: 0 | O22: 0
M23: 0 | O23: 0
M24: 0 | O24: 0
M25: 0 | O25: 0
M26: 0 | O26: 0
B27: Sheet 15g
J30: =SUM(J7:J26) -> 0

Sheet 15h (hidden)
B2: CURRENT FUND - APPROPRIATIONS
B3: 8. GENERAL APPROPRIATIONS | J3: Appropriated | N3: ="Expended "&'Key Inputs'!E34-1 -> Expended 2019
H4: FCOA | L4: ="for "&'Key Inputs'!E34-1&" By" -> for 2019 By | M4: ="Total for "&'Key Inputs'!E34-1 -> Total for 2019
C5: (A) Operations - within "CAPS" - (continued) | J5: ="for "&'Key Inputs'!E34 -> for 2020 | K5: ="for "&'Key Inputs'!E34-1 -> for 2019 | L5: Emergency | M5: As Modified By | N5: Paid or | O5: Reserved | Q5: Canceled
L6: Appropriation | M6: All Transfers | N6: Charged
M7: =+K7 -> 0 | O7: =IFERROR(IF(+M7-N7>=0,M7-N7,"*")-Q7,"*") -> 0
M8: =+K8 -> 0 | O8: 0
M9: =+K9 -> 0 | O9: 0
M10: 0 | O10: 0
M11: 0 | O11: 0
M12: 0 | O12: 0
M13: 0 | O13: 0
M14: 0 | O14: 0
M15: 0 | O15: 0
M16: 0 | O16: 0
M17: 0 | O17: 0
M18: 0 | O18: 0
M19: 0 | O19: 0
M20: 0 | O20: 0
M21: 0 | O21: 0
M22: 0 | O22: 0
M23: 0 | O23: 0
M24: 0 | O24: 0
M25: 0 | O25: 0
M26: 0 | O26: 0
B27: Sheet 15h

Sheet 15i (hidden)
B2: CURRENT FUND - APPROPRIATIONS
B3: 8. GENERAL APPROPRIATIONS | J3: Appropriated | N3: ="Expended "&'Key Inputs'!E34-1 -> Expended 2019
H4: FCOA | L4: ="for "&'Key Inputs'!E34-1&" By" -> for 2019 By | M4: ="Total for "&'Key Inputs'!E34-1 -> Total for 2019
C5: (A) Operations - within "CAPS" - (continued) | J5: ="for "&'Key Inputs'!E34 -> for 2020 | K5: ="for "&'Key Inputs'!E34-1 -> for 2019 | L5: Emergency | M5: As Modified By | N5: Paid or | O5: Reserved | Q5: Canceled
L6: Appropriation | M6: All Transfers | N6: Charged
M7: =+K7 -> 0 | O7: =IFERROR(IF(+M7-N7>=0,M7-N7,"*")-Q7,"*") -> 0
M8: =+K8 -> 0 | O8: 0
M9: =+K9 -> 0 | O9: 0
M10: 0 | O10: 0
M11: 0 | O11: 0
M12: 0 | O12: 0
M13: 0 | O13: 0
M14: 0 | O14: 0
M15: 0 | O15: 0
M16: 0 | O16: 0
M17: 0 | O17: 0
M18: 0 | O18: 0
M19: 0 | O19: 0
M20: 0 | O20: 0
M21: 0 | O21: 0
M22: 0 | O22: 0
M23: 0 | O23: 0
M24: 0 | O24: 0
M25: 0 | O25: 0
M26: 0 | O26: 0
B27: Sheet 15i

Sheet 15j (hidden)
B2: CURRENT FUND - APPROPRIATIONS
B3: 8. GENERAL APPROPRIATIONS | J3: Appropriated | N3: ="Expended "&'Key Inputs'!E34-1 -> Expended 2019
H4: FCOA | L4: ="for "&'Key Inputs'!E34-1&" By" -> for 2019 By | M4: ="Total for "&'Key Inputs'!E34-1 -> Total for 2019
C5: (A) Operations - within "CAPS" - (continued) | J5: ="for "&'Key Inputs'!E34 -> for 2020 | K5: ="for "&'Key Inputs'!E34-1 -> for 2019 | L5: Emergency | M5: As Modified By | N5: Paid or | O5: Reserved | Q5: Canceled
L6: Appropriation | M6: All Transfers | N6: Charged
M7: =+K7 -> 0 | O7: =IFERROR(IF(+M7-N7>=0,M7-N7,"*")-Q7,"*") -> 0
M8: =+K8 -> 0 | O8: 0
M9: =+K9 -> 0 | O9: 0
M10: 0 | O10: 0
M11: 0 | O11: 0
M12: 0 | O12: 0
M13: 0 | O13: 0
M14: 0 | O14: 0
M15: 0 | O15: 0
M16: 0 | O16: 0
M17: 0 | O17: 0
M18: 0 | O18: 0
M19: 0 | O19: 0
M20: 0 | O20: 0
M21: 0 | O21: 0
M22: 0 | O22: 0
M23: 0 | O23: 0
M24: 0 | O24: 0
M25: 0 | O25: 0
M26: 0 | O26: 0
B27: Sheet 15j

Sheet 15k (hidden)
B2: CURRENT FUND - APPROPRIATIONS
B3: 8. GENERAL APPROPRIATIONS | J3: Appropriated | N3: ="Expended "&'Key Inputs'!E34-1 -> Expended 2019
H4: FCOA | L4: ="for "&'Key Inputs'!E34-1&" By" -> for 2019 By | M4: ="Total for "&'Key Inputs'!E34-1 -> Total for 2019
C5: (A) Operations - within "CAPS" - (continued) | J5: ="for "&'Key Inputs'!E34 -> for 2020 | K5: ="for "&'Key Inputs'!E34-1 -> for 2019 | L5: Emergency | M5: As Modified By | N5: Paid or | O5: Reserved | Q5: Canceled
L6: Appropriation | M6: All Transfers | N6: Charged
M7: =+K7 -> 0 | O7: =IFERROR(IF(+M7-N7>=0,M7-N7,"*")-Q7,"*") -> 0
M8: 0 | O8: 0
M9: =+K9 -> 0 | O9: 0
M10: 0 | O10: 0
M11: 0 | O11: 0
M12: 0 | O12: 0
M13: 0 | O13: 0
M14: 0 | O14: 0
M15: 0 | O15: 0
M16: 0 | O16: 0
M17: 0 | O17: 0
M18: 0 | O18: 0
M19: 0 | O19: 0
M20: 0 | O20: 0
M21: 0 | O21: 0
M22: 0 | O22: 0
M23: 0 | O23: 0
M24: 0 | O24: 0
M25: 0 | O25: 0
M26: 0 | O26: =IF(+M26-N26>=0,M26-N26,"*")-Q26 -> 0
B27: Sheet 15k
J30: =SUM(J7:J26) -> 0

Sheet 15l (hidden)
B2: CURRENT FUND - APPROPRIATIONS
B3: 8. GENERAL APPROPRIATIONS | J3: Appropriated | N3: ="Expended "&'Key Inputs'!E34-1 -> Expended 2019
H4: FCOA | L4: ="for "&'Key Inputs'!E34-1&" By" -> for 2019 By | M4: ="Total for "&'Key Inputs'!E34-1 -> Total for 2019
C5: (A) Operations - within "CAPS" - (continued) | J5: ="for "&'Key Inputs'!E34 -> for 2020 | K5: ="for "&'Key Inputs'!E34-1 -> for 2019 | L5: Emergency | M5: As Modified By | N5: Paid or | O5: Reserved | Q5: Canceled
L6: Appropriation | M6: All Transfers | N6: Charged
M7: =+K7 -> 0 | O7: =IFERROR(IF(+M7-N7>=0,M7-N7,"*")-Q7,"*") -> 0
M8: =+K8 -> 0 | O8: 0
M9: =+K9 -> 0 | O9: 0
M10: 0 | O10: 0
M11: 0 | O11: 0
M12: 0 | O12: 0
M13: 0 | O13: 0
M14: 0 | O14: 0
M15: 0 | O15: 0
M16: 0 | O16: 0
M17: 0 | O17: 0
M18: 0 | O18: 0
M19: 0 | O19: 0
M20: 0 | O20: 0
M21: 0 | O21: 0
M22: 0 | O22: 0
M23: 0 | O23: 0
M24: 0 | O24: 0
M25: 0 | O25: 0
M26: 0 | O26: 0
B27: Sheet 15l

Sheet 15m (hidden)
B2: CURRENT FUND - APPROPRIATIONS
B3: 8. GENERAL APPROPRIATIONS | J3: Appropriated | N3: ="Expended "&'Key Inputs'!E34-1 -> Expended 2019
H4: FCOA | L4: ="for "&'Key Inputs'!E34-1&" By" -> for 2019 By | M4: ="Total for "&'Key Inputs'!E34-1 -> Total for 2019
C5: (A) Operations - within "CAPS" - (continued) | J5: ="for "&'Key Inputs'!E34 -> for 2020 | K5: ="for "&'Key Inputs'!E34-1 -> for 2019 | L5: Emergency | M5: As Modified By | N5: Paid or | O5: Reserved | Q5: Canceled
L6: Appropriation | M6: All Transfers | N6: Charged
M7: =+K7 -> 0 | O7: =IFERROR(IF(+M7-N7>=0,M7-N7,"*")-Q7,"*") -> 0
M8: =+K8 -> 0 | O8: 0
M9: =+K9 -> 0 | O9: 0
M10: 0 | O10: 0
M11: 0 | O11: 0
M12: 0 | O12: 0
M13: 0 | O13: 0
M14: 0 | O14: 0
M15: 0 | O15: 0
M16: 0 | O16: 0
M17: 0 | O17: 0
M18: 0 | O18: 0
M19: 0 | O19: 0
M20: 0 | O20: 0
M21: 0 | O21: 0
M22: 0 | O22: 0
M23: 0 | O23: 0
M24: 0 | O24: 0
M25: 0 | O25: 0
M26: 0 | O26: 0
B27: Sheet 15m

Sheet 15n (hidden)
B2: CURRENT FUND - APPROPRIATIONS
B3: 8. GENERAL APPROPRIATIONS | J3: Appropriated | N3: ="Expended "&'Key Inputs'!E34-1 -> Expended 2019
H4: FCOA | L4: ="for "&'Key Inputs'!E34-1&" By" -> for 2019 By | M4: ="Total for "&'Key Inputs'!E34-1 -> Total for 2019
C5: (A) Operations - within "CAPS" - (continued) | J5: ="for "&'Key Inputs'!E34 -> for 2020 | K5: ="for "&'Key Inputs'!E34-1 -> for 2019 | L5: Emergency | M5: As Modified By | N5: Paid or | O5: Reserved | Q5: Canceled
L6: Appropriation | M6: All Transfers | N6: Charged
M7: =+K7 -> 0 | O7: =IFERROR(IF(+M7-N7>=0,M7-N7,"*")-Q7,"*") -> 0
M8: =+K8 -> 0 | O8: 0
M9: =+K9 -> 0 | O9: 0
M10: 0 | O10: 0
M11: 0 | O11: 0
M12: 0 | O12: 0
M13: 0 | O13: 0
M14: 0 | O14: 0
M15: 0 | O15: 0
M16: 0 | O16: 0
M17: 0 | O17: 0
M18: 0 | O18: 0
M19: 0 | O19: 0
M20: 0 | O20: 0
M21: 0 | O21: 0
M22: 0 | O22: 0
M23: 0 | O23: 0
M24: 0 | O24: 0
M25: 0 | O25: 0
M26: 0 | O26: 0
B27: Sheet 15n

Sheet 16
B2: CURRENT FUND - APPROPRIATIONS
B3: 8. GENERAL APPROPRIATIONS | J3: Appropriated | N3: ="Expended "&'Key Inputs'!E34-1 -> Expended 2019
H4: FCOA | L4: ="for "&'Key Inputs'!E34-1&" By" -> for 2019 By | M4: ="Total for "&'Key Inputs'!E34-1 -> Total for 2019
C5: (A) Operations - within "CAPS" - (continued) | J5: ="for "&'Key Inputs'!E34 -> for 2020 | K5: ="for "&'Key Inputs'!E34-1 -> for 2019 | L5: Emergency | M5: As Modified By | N5: Paid or | O5: Reserved | Q5: Canceled
L6: Appropriation | M6: All Transfers | N6: Charged
C7: Uniform Construction Code - Appropriations | H7: XXXXXX | J7: XXXXXXXXXX | K7: XXXXXXXXXX | L7: XXXXXXXXXX | M7: XXXXXXXXXX | N7: XXXXXXXXXX | O7: XXXXXXXXXX
C8: Offset by Dedicated Revenues (N.J.A.C. 5:23-4.17) | H8: XXXXXX | J8: XXXXXXXXXX | K8: XXXXXXXXXX | L8: XXXXXXXXXX | M8: XXXXXXXXXX | N8: XXXXXXXXXX | O8: XXXXXXXXXX
C10: State Uniform Construction Code
C11: Construction Official
D12: Salaries and Wages | H12: 22-195 | I12: 1 | O12: =IFERROR(IF(+M12-N12>=0,M12-N12,"*")-Q12,"*") -> 0
D13: Other Expenses | H13: 22-195 | I13: 2 | O13: 0
O14: 0
C15: INSPECTION OF BUILDINGS: | O15: 0
D16: Salaries and Wages | H16: 22-196 | I16: 1 | J16: 352000 | K16: 360600 | M16: 358600 | N16: 284479.13 | O16: 74120.87
D17: Other Expenses | H17: 22-196 | I17: 2 | J17: 37378 | K17: 40500 | M17: 40500 | N17: 23963.2 | O17: 16536.8
O18: 0
O19: 0
O20: 0
O21: 0
O22: 0
O23: 0
O24: 0
O25: 0
O26: 0
B27: Sheet 16
J30: =SUM(J7:J26) -> 389378

Sheet 16a
B2: CURRENT FUND - APPROPRIATIONS
B3: 8. GENERAL APPROPRIATIONS | J3: Appropriated | N3: ="Expended "&'Key Inputs'!E34-1 -> Expended 2019
H4: FCOA | L4: ="for "&'Key Inputs'!E34-1&" By" -> for 2019 By | M4: ="Total for "&'Key Inputs'!E34-1 -> Total for 2019
C5: (A) Operations - within "CAPS" - (continued) | J5: ="for "&'Key Inputs'!E34 -> for 2020 | K5: ="for "&'Key Inputs'!E34-1 -> for 2019 | L5: Emergency | M5: As Modified By | N5: Paid or | O5: Reserved | Q5: Canceled
L6: Appropriation | M6: All Transfers | N6: Charged
C7: Uniform Construction Code - Appropriations | H7: XXXXXX | J7: XXXXXXXXXX | K7: XXXXXXXXXX | L7: XXXXXXXXXX | M7: XXXXXXXXXX | N7: XXXXXXXXXX | O7: XXXXXXXXXX
C8: Offset by Dedicated Revenues (N.J.A.C. 5:23-4.17) | H8: XXXXXX | J8: XXXXXXXXXX | K8: XXXXXXXXXX | L8: XXXXXXXXXX | M8: XXXXXXXXXX | N8: XXXXXXXXXX | O8: XXXXXXXXXX
O9: =IFERROR(IF(+M9-N9>=0,M9-N9,"*")-Q9,"*") -> 0
O10: 0
O11: 0
O12: 0
O13: 0
O14: 0
O15: 0
O16: 0
O17: 0
O18: 0
O19: 0
O20: 0
O21: 0
O22: 0
O23: 0
O24: 0
O25: 0
O26: 0
B27: Sheet 16a
J30: =SUM(J7:J26) -> 0

Sheet 17
B2: CURRENT FUND - APPROPRIATIONS
B3: 8. GENERAL APPROPRIATIONS | J3: Appropriated | N3: ="Expended "&'Key Inputs'!E34-1 -> Expended 2019
H4: FCOA | L4: ="for "&'Key Inputs'!E34-1&" By" -> for 2019 By | M4: ="Total for "&'Key Inputs'!E34-1 -> Total for 2019
C5: (A) Operations - within "CAPS" - (continued) | J5: ="for "&'Key Inputs'!E34 -> for 2020 | K5: ="for "&'Key Inputs'!E34-1 -> for 2019 | L5: Emergency | M5: As Modified By | N5: Paid or | O5: Reserved | Q5: Canceled
L6: Appropriation | M6: All Transfers | N6: Charged
C7: UNCLASSIFIED: | H7: XXXXXX | J7: XXXXXXXXXX | K7: XXXXXXXXXX | L7: XXXXXXXXXX | M7: XXXXXXXXXX | N7: XXXXXXXXXX | O7: XXXXXXXXXX
O8: =IFERROR(IF(+M8-N8>=0,M8-N8,"*")-Q8,"*") -> 0
O9: 0
O10: 0
O11: 0
O12: 0
O13: 0
O14: 0
O15: 0
O16: 0
O17: 0
O18: 0
O19: 0
O20: 0
O21: 0
O22: 0
O23: 0
O24: 0
O25: =IFERROR(IF(+M25-N25>=0,M25-N25,"*")-Q25,"*") -> 0
O26: 0
B27: Sheet 17
J30: =SUM(J7:J20) -> 0 | M30: =+M23-K23 -> 0

Sheet 17a
B2: CURRENT FUND - APPROPRIATIONS
B3: 8. GENERAL APPROPRIATIONS | J3: Appropriated | N3: ="Expended "&'Key Inputs'!E34-1 -> Expended 2019
H4: FCOA | L4: ="for "&'Key Inputs'!E34-1&" By" -> for 2019 By | M4: ="Total for "&'Key Inputs'!E34-1 -> Total for 2019
C5: (A) Operations - within "CAPS" - (continued) | J5: ="for "&'Key Inputs'!E34 -> for 2020 | K5: ="for "&'Key Inputs'!E34-1 -> for 2019 | L5: Emergency | M5: As Modified By | N5: Paid or | O5: Reserved | Q5: Canceled
L6: Appropriation | M6: All Transfers | N6: Charged
C7: UNCLASSIFIED: | H7: XXXXXX | J7: XXXXXXXXXX | K7: XXXXXXXXXX | L7: XXXXXXXXXX | M7: XXXXXXXXXX | N7: XXXXXXXXXX | O7: XXXXXXXXXX
C8: SALARIES & WAGES - ADJUSTMENT PROGRAM | H8: 30-425 | I8: 1 | J8: 52000 | K8: 65000 | M8: =+K8 -> 65000 | N8: 48138.61 | O8: =IFERROR(IF(+M8-N8>=0,M8-N8,"*")-Q8,"*") -> 16861.39
O9: 0
O10: 0
C11: TUITION REIMBURSEMENT | H11: 30-429 | I11: 2 | J11: 50500 | K11: 50500 | M11: =+K11 -> 50500 | N11: 1651.5 | O11: 30848.5 | Q11: 18000
C12: EMPLOYEE SICK TIME BUY - BACK | H12: 30-415 | I12: 2 | J12: 75000 | K12: 75000 | M12: =+K12 -> 75000 | N12: 0 | O12: 67000 | Q12: 8000
C13: ACCUMULATED ABSENCES | H13: 30-415 | I13: 2 | J13: 50000 | K13: 50000 | M13: =+K13 -> 50000 | N13: 50000 | O13: 0
C14: ELECTRICITY | H14: 31-430 | I14: 2 | J14: 150000 | K14: 148000 | M14: 148000 | N14: 118807.93 | O14: 29192.07
C15: TELEPHONE | H15: 31-440 | I15: 2 | J15: 134300 | K15: 123500 | M15: 123500 | N15: 120122.1 | O15: 3377.9
C16: WATER | H16: 31-445 | I16: 2 | J16: 35000 | K16: 32000 | M16: 32000 | N16: 26699.34 | O16: 5300.66
C17: NATURAL GAS | H17: 31-446 | I17: 2 | J17: 76500 | K17: 81000 | M17: 81000 | N17: 41057.3 | O17: 39942.7
O18: 0
O19: 0
O20: 0
E21: Total Operations {Item 8(A)} within "CAPS" | H21: 34-199 | J21: =SUM('12:16a'!J7:J26)+SUM(J7:J20)+SUM('17'!J8:J26) -> 19869362 | K21: =SUM('12:16a'!K7:K26)+SUM(K7:K20)+SUM('17'!K8:K26) -> 19202700 | L21: =SUM('12:16a'!L7:L26)+SUM(L7:L20)+SUM('17'!L8:L26) -> 0 | M21: =SUM('12:16a'!M7:M26)+SUM(M7:M20)+SUM('17'!M8:M26) -> 19175700 | N21: =SUM('12:16a'!N7:N26)+SUM(N7:N20)+SUM('17'!N8:N26) -> 16508391.91 | O21: =SUM('12:16a'!O7:O26)+SUM(O7:O20)+SUM('17'!O8:O26) -> 2636308.09
D22: B. | E22: Contingent | H22: 35-470 | I22: 2 | J22: 4000 | K22: 4000 | L22: XXXXXXXXXX | M22: 4000 | N22: 1152 | O22: =IFERROR(IF(+M22-N22>=0,M22-N22,"*")-Q22,"*") -> 2848
F23: Total Operations Including Contingent - within "CAPS" | H23: 34-201 | J23: =+J21+J22 -> 19873362 | K23: =+K21+K22 -> 19206700 | L23: =+L21 -> 0 | M23: =+M21+M22 -> 19179700 | N23: =+N21+N22 -> 16509543.91 | O23: =+O21+O22 -> 2639156.09
F24: Detail: | J24: XXXXXXXXXX | K24: XXXXXXXXXX | L24: XXXXXXXXXX | M24: XXXXXXXXXX | N24: XXXXXXXXXX | O24: XXXXXXXXXX
F25: Salaries & Wages | H25: 34-201 | I25: 1 | J25: =SUMPRODUCT(SUMIF(INDIRECT("'"&SeventeenA&"'!$i$7:$i$26"),1,INDIRECT("'"&SeventeenA&"'!$j$7:$j$26")))+SUMIF($I$8:$I$20,1,$J$8:$J$20)+SUMIF('17'!$I$8:$I$26,1,'17'!$J$8:$J$26) -> 10715857 | K25: =SUMPRODUCT(SUMIF(INDIRECT("'"&SeventeenA&"'!$i$7:$i$26"),1,INDIRECT("'"&SeventeenA&"'!$k$7:$k$26")))+SUMIF($I$7:$I$20,1,$K$7:$K$20)+SUMIF('17'!$I$8:$I$26,1,'17'!$K$8:$K$26) -> 10352676 | L25: =SUMPRODUCT(SUMIF(INDIRECT("'"&SeventeenA&"'!$i$7:$i$26"),1,INDIRECT("'"&SeventeenA&"'!$l$7:$l$26")))+SUMIF($I$8:$I$20,1,$L$8:$L$20)+SUMIF('17'!$I$8:$I$26,1,'17'!$L$8:$L$26) -> 0 | M25: =SUMPRODUCT(SUMIF(INDIRECT("'"&SeventeenA&"'!$i$7:$i$26"),1,INDIRECT("'"&SeventeenA&"'!$m$7:$m$26")))+SUMIF($I$8:$I$20,1,$M$8:$M$20)+SUMIF('17'!$I$8:$I$26,1,'17'!$M$8:$M$26) -> 10321176 | N25: =SUMPRODUCT(SUMIF(INDIRECT("'"&SeventeenA&"'!$i$7:$i$26"),1,INDIRECT("'"&SeventeenA&"'!$n$7:$n$26")))+SUMIF($I$8:$I$20,1,$N$8:$N$20)+SUMIF('17'!$I$8:$I$26,1,'17'!$N$8:$N$26) -> 9400726.7 | O25: =SUMPRODUCT(SUMIF(INDIRECT("'"&SeventeenA&"'!$i$7:$i$26"),1,INDIRECT("'"&SeventeenA&"'!$o$7:$o$26")))+SUMIF($I$8:$I$20,1,$O$8:$O$20)+SUMIF('17'!$I$8:$I$26,1,'17'!$O$8:$O$26) -> 920449.3
F26: Other Expenses (Including Contingent) | H26: 34-201 | I26: 2 | J26: =SUMPRODUCT(SUMIF(INDIRECT("'"&SeventeenA&"'!$i$7:$i$26"),2,INDIRECT("'"&SeventeenA&"'!$j$7:$j$26")))+SUMIF($I$8:$I$20,2,$J$8:$J$20)+SUMIF('17'!$I$8:$I$26,2,'17'!$J$8:$J$26)+SUMIF(I22,2,J22) -> 9157505 | K26: =SUMPRODUCT(SUMIF(INDIRECT("'"&SeventeenA&"'!$i$7:$i$26"),2,INDIRECT("'"&SeventeenA&"'!$k$7:$k$26")))+SUMIF($I$7:$I$20,2,$K$7:$K$20)+SUMIF('17'!$I$8:$I$26,2,'17'!$K$8:$K$26)+SUMIF(I22,2,K22) -> 8854024 | L26: =SUMPRODUCT(SUMIF(INDIRECT("'"&SeventeenA&"'!$i$7:$i$26"),2,INDIRECT("'"&SeventeenA&"'!$l$7:$l$26")))+SUMIF($I$8:$I$20,2,$L$8:$L$20)+SUMIF('17'!$I$8:$I$26,2,'17'!$L$8:$L$26)+SUMIF(I22,2,L22) -> 0 | M26: =SUMPRODUCT(SUMIF(INDIRECT("'"&SeventeenA&"'!$i$7:$i$26"),2,INDIRECT("'"&SeventeenA&"'!$m$7:$m$26")))+SUMIF($I$8:$I$20,2,$M$8:$M$20)+SUMIF('17'!$I$8:$I$26,2,'17'!$M$8:$M$26)+SUMIF(I22,2,M22) -> 8858524 | N26: =SUMPRODUCT(SUMIF(INDIRECT("'"&SeventeenA&"'!$i$7:$i$26"),2,INDIRECT("'"&SeventeenA&"'!$n$7:$n$26")))+SUMIF($I$8:$I$20,2,$N$8:$N$20)+SUMIF('17'!$I$8:$I$26,2,'17'!$N$8:$N$26)+SUMIF(I22,2,N22) -> 7108817.21 | O26: =SUMPRODUCT(SUMIF(INDIRECT("'"&SeventeenA&"'!$i$7:$i$26"),2,INDIRECT("'"&SeventeenA&"'!$o$7:$o$26")))+SUMIF($I$8:$I$20,2,$O$8:$O$20)+SUMIF('17'!$I$8:$I$26,2,'17'!$O$8:$O$26)+SUMIF(I22,2,O22) -> 1718706.79
B27: Sheet 17a
F30: Salaries and Wages - Backup | H30: 34-201 | I30: 1 | J30: =SUMPRODUCT(SUMIF(INDIRECT("'"&SeventeenA&"'!$i$7:$i$26"),1,INDIRECT("'"&SeventeenA&"'!$j$7:$j$26")))+SUMIF($I$7:$I$20,1,$J$7:$J$20)+SUMIF('17'!$I$8:$I$26,1,'17'!$J$8:$J$26) -> 10715857 | K30: =SUMPRODUCT(SUMIF(INDIRECT("'"&SeventeenA&"'!$i$7:$i$26"),1,INDIRECT("'"&SeventeenA&"'!$k$7:$k$26")))+SUMIF($I$7:$I$20,1,$K$7:$K$20)+SUMIF('17'!$I$8:$I$26,1,'17'!$K$8:$K$26) -> 10352676 | L30: =SUMPRODUCT(SUMIF(INDIRECT("'"&SeventeenA&"'!$i$7:$i$26"),1,INDIRECT("'"&SeventeenA&"'!$l$7:$l$26")))+SUMIF($I$8:$I$20,1,$L$8:$L$20)+SUMIF('17'!$I$8:$I$26,1,'17'!$L$8:$L$26) -> 0 | M30: =SUMPRODUCT(SUMIF(INDIRECT("'"&SeventeenA&"'!$i$7:$i$26"),1,INDIRECT("'"&SeventeenA&"'!$m$7:$m$26")))+SUMIF($I$8:$I$20,1,$M$8:$M$20)+SUMIF('17'!$I$8:$I$26,1,'17'!$M$8:$M$26) -> 10321176 | N30: =SUMPRODUCT(SUMIF(INDIRECT("'"&SeventeenA&"'!$i$7:$i$26"),1,INDIRECT("'"&SeventeenA&"'!$n$7:$n$26")))+SUMIF($I$8:$I$20,1,$N$8:$N$20)+SUMIF('17'!$I$8:$I$26,1,'17'!$N$8:$N$26) -> 9400726.7 | O30: =SUMPRODUCT(SUMIF(INDIRECT("'"&SeventeenA&"'!$i$7:$i$26"),1,INDIRECT("'"&SeventeenA&"'!$o$7:$o$26")))+SUMIF($I$8:$I$20,1,$O$8:$O$20)+SUMIF('17'!$I$8:$I$26,1,'17'!$O$8:$O$26) -> 920449.3
F31: Other Expenses (Including Contingent) - Backup | H31: 34-201 | I31: 2 | J31: =SUMPRODUCT(SUMIF(INDIRECT("'"&SeventeenA&"'!$i$7:$i$26"),2,INDIRECT("'"&SeventeenA&"'!$j$7:$j$26")))+SUMIF($I$7:$I$20,2,$J$7:$J$20)+SUMIF('17'!$I$9:$I$27,2,'17'!$J$8:$J$26)+SUMIF(I22,2,J22) -> 9157505 | K31: =SUMPRODUCT(SUMIF(INDIRECT("'"&SeventeenA&"'!$i$7:$i$26"),2,INDIRECT("'"&SeventeenA&"'!$k$7:$k$26")))+SUMIF($I$7:$I$20,2,$K$7:$K$20)+SUMIF('17'!$I$8:$I$26,2,'17'!$K$8:$K$26)+SUMIF(I22,2,K22) -> 8854024 | L31: =SUMPRODUCT(SUMIF(INDIRECT("'"&SeventeenA&"'!$i$7:$i$26"),2,INDIRECT("'"&SeventeenA&"'!$l$7:$l$26")))+SUMIF($I$8:$I$20,2,$L$8:$L$20)+SUMIF('17'!$I$8:$I$26,2,'17'!$L$8:$L$26)+SUMIF(I22,2,L22) -> 0 | M31: =SUMPRODUCT(SUMIF(INDIRECT("'"&SeventeenA&"'!$i$7:$i$26"),2,INDIRECT("'"&SeventeenA&"'!$m$7:$m$26")))+SUMIF($I$8:$I$20,2,$M$8:$M$20)+SUMIF('17'!$I$8:$I$26,2,'17'!$M$8:$M$26)+SUMIF(I22,2,M22) -> 8858524 | N31: =SUMPRODUCT(SUMIF(INDIRECT("'"&SeventeenA&"'!$i$7:$i$26"),2,INDIRECT("'"&SeventeenA&"'!$n$7:$n$26")))+SUMIF($I$8:$I$20,2,$N$8:$N$20)+SUMIF('17'!$I$8:$I$26,2,'17'!$N$8:$N$26)+SUMIF(I22,2,N22) -> 7108817.21 | O31: =SUMPRODUCT(SUMIF(INDIRECT("'"&SeventeenA&"'!$i$7:$i$26"),2,INDIRECT("'"&SeventeenA&"'!$o$7:$o$26")))+SUMIF($I$8:$I$20,2,$O$8:$O$20)+SUMIF('17'!$I$8:$I$26,2,'17'!$O$8:$O$26)+SUMIF(I22,2,O22) -> 1718706.79

Sheet 18
B2: CURRENT FUND - APPROPRIATIONS
B3: 8. GENERAL APPROPRIATIONS | J3: Appropriated | N3: ="Expended "&'Key Inputs'!E34-1 -> Expended 2019
H4: FCOA | L4: ="for "&'Key Inputs'!E34-1&" By" -> for 2019 By | M4: ="Total for "&'Key Inputs'!E34-1 -> Total for 2019
J5: ="for "&'Key Inputs'!E34 -> for 2020 | K5: ="for "&'Key Inputs'!E34-1 -> for 2019 | L5: Emergency | M5: As Modified By | N5: Paid or | O5: Reserved | Q5: Canceled
L6: Appropriation | M6: All Transfers | N6: Charged
C7: (E) | D7: Deferred Charges and Statutory Expenditures - Municipal within "CAPS" | H7: XXXXXX | J7: XXXXXXXXXX | K7: XXXXXXXXXX | L7: XXXXXXXXXX | M7: XXXXXXXXXX | N7: XXXXXXXXXX | O7: XXXXXXXXXX
C8: (1) DEFERRED CHARGES | H8: XXXXXX | J8: XXXXXXXXXX | K8: XXXXXXXXXX | L8: XXXXXXXXXX | M8: XXXXXXXXXX | N8: XXXXXXXXXX | O8: XXXXXXXXXX
E9: Emergency Authorizations | H9: 46-870 | L9: XXXXXXXXXX | O9: XXXXXXXXXX | Q9: =M9-N9 -> 0
L10: XXXXXXXXXX | O10: XXXXXXXXXX | Q10: =M10-N10 -> 0
L11: XXXXXXXXXX | O11: XXXXXXXXXX | Q11: 0
L12: XXXXXXXXXX | O12: XXXXXXXXXX | Q12: 0
L13: XXXXXXXXXX | O13: XXXXXXXXXX | Q13: 0
L14: XXXXXXXXXX | O14: XXXXXXXXXX | Q14: 0
L15: XXXXXXXXXX | O15: XXXXXXXXXX | Q15: 0
L16: XXXXXXXXXX | O16: XXXXXXXXXX | Q16: 0
L17: XXXXXXXXXX | O17: XXXXXXXXXX | Q17: 0
L18: XXXXXXXXXX | O18: XXXXXXXXXX | Q18: 0
L19: XXXXXXXXXX | O19: XXXXXXXXXX | Q19: 0
L20: XXXXXXXXXX | O20: XXXXXXXXXX | Q20: 0
L21: XXXXXXXXXX | O21: XXXXXXXXXX | Q21: 0
L22: XXXXXXXXXX | O22: XXXXXXXXXX | Q22: 0
L23: XXXXXXXXXX | O23: XXXXXXXXXX | Q23: 0
L24: XXXXXXXXXX | O24: XXXXXXXXXX | Q24: 0
L25: XXXXXXXXXX | O25: XXXXXXXXXX | Q25: 0
L26: XXXXXXXXXX | O26: XXXXXXXXXX | Q26: 0
B27: Sheet 18

Sheet 18a
B2: CURRENT FUND - APPROPRIATIONS
B3: 8. GENERAL APPROPRIATIONS | J3: Appropriated | N3: ="Expended "&'Key Inputs'!E34-1 -> Expended 2019
H4: FCOA | L4: ="for "&'Key Inputs'!E34-1&" By" -> for 2019 By | M4: ="Total for "&'Key Inputs'!E34-1 -> Total for 2019
J5: ="for "&'Key Inputs'!E34 -> for 2020 | K5: ="for "&'Key Inputs'!E34-1 -> for 2019 | L5: Emergency | M5: As Modified By | N5: Paid or | O5: Reserved | Q5: Canceled
L6: Appropriation | M6: All Transfers | N6: Charged
C7: (E) | D7: Deferred Charges and Statutory Expenditures - Municipal within "CAPS" | H7: XXXXXX | J7: XXXXXXXXXX | K7: XXXXXXXXXX | L7: XXXXXXXXXX | M7: XXXXXXXXXX | N7: XXXXXXXXXX | O7: XXXXXXXXXX
C8: (1) DEFERRED CHARGES | H8: XXXXXX | J8: XXXXXXXXXX | K8: XXXXXXXXXX | L8: XXXXXXXXXX | M8: XXXXXXXXXX | N8: XXXXXXXXXX | O8: XXXXXXXXXX
L9: XXXXXXXXXX | O9: XXXXXXXXXX | Q9: =M9-N9 -> 0
L10: XXXXXXXXXX | O10: XXXXXXXXXX | Q10: =M10-N10 -> 0
L11: XXXXXXXXXX | O11: XXXXXXXXXX | Q11: 0
L12: XXXXXXXXXX | O12: XXXXXXXXXX | Q12: 0
L13: XXXXXXXXXX | O13: XXXXXXXXXX | Q13: 0
L14: XXXXXXXXXX | O14: XXXXXXXXXX | Q14: 0
L15: XXXXXXXXXX | O15: XXXXXXXXXX | Q15: 0
L16: XXXXXXXXXX | O16: XXXXXXXXXX | Q16: 0
L17: XXXXXXXXXX | O17: XXXXXXXXXX | Q17: 0
L18: XXXXXXXXXX | O18: XXXXXXXXXX | Q18: 0
L19: XXXXXXXXXX | O19: XXXXXXXXXX | Q19: 0
L20: XXXXXXXXXX | O20: XXXXXXXXXX | Q20: 0
L21: XXXXXXXXXX | O21: XXXXXXXXXX | Q21: 0
L22: XXXXXXXXXX | O22: XXXXXXXXXX | Q22: 0
L23: XXXXXXXXXX | O23: XXXXXXXXXX | Q23: 0
L24: XXXXXXXXXX | O24: XXXXXXXXXX | Q24: 0
L25: XXXXXXXXXX | O25: XXXXXXXXXX | Q25: 0
L26: XXXXXXXXXX | O26: XXXXXXXXXX | Q26: 0
B27: Sheet 18a

Sheet 19
B2: CURRENT FUND - APPROPRIATIONS
B3: 8. GENERAL APPROPRIATIONS | J3: Appropriated | N3: ="Expended "&'Key Inputs'!E34-1 -> Expended 2019
H4: FCOA | L4: ="for "&'Key Inputs'!E34-1&" By" -> for 2019 By | M4: ="Total for "&'Key Inputs'!E34-1 -> Total for 2019
J5: ="for "&'Key Inputs'!E34 -> for 2020 | K5: ="for "&'Key Inputs'!E34-1 -> for 2019 | L5: Emergency | M5: As Modified By | N5: Paid or | O5: Reserved | Q5: Canceled
L6: Appropriation | M6: All Transfers | N6: Charged
C7: (E) | D7: Deferred Charges and Statutory Expenditures - Municipal within "CAPS" - (continued) | H7: XXXXXX | J7: XXXXXXXXXX | K7: XXXXXXXXXX | L7: XXXXXXXXXX | M7: XXXXXXXXXX | N7: XXXXXXXXXX | O7: XXXXXXXXXX
C8: (2) STATUTORY EXPENDITURES: | H8: XXXXXX | J8: XXXXXXXXXX | K8: XXXXXXXXXX | L8: XXXXXXXXXX | M8: XXXXXXXXXX | N8: XXXXXXXXXX | O8: XXXXXXXXXX
E9: Contribution to:
E10: Public Employees' Retirement System | H10: 36-471 | J10: 518000 | K10: 513313 | M10: =+K10 -> 513313 | N10: 513313 | O10: =IFERROR(IF(+M10-N10>=0,M10-N10,"*")-Q10,"*") -> 0
E11: Social Security System (O.A.S.I.) | H11: 36-472 | J11: 464000 | K11: 450000 | M11: 450000 | N11: 421095.47 | O11: 13904.53 | Q11: 15000
E12: Consolidated Police & Fireman's Pension Fund | H12: 36-474 | O12: 0
E13: Police and Firemen's Retirement System of NJ | H13: 36-475 | J13: 1300810 | K13: 1280109 | M13: 1280109 | N13: 1280109 | O13: 0
E14: Unemployment Compensation Insurance (N.J.S.A. 43:21-3 et seq.) | H14: 23-225 | J14: 30000 | K14: 30000 | M14: 30000 | N14: 1945.45 | O14: 28054.55
E15: Early Retirement Incentive Program | J15: 38000 | K15: 36853 | M15: 36853 | N15: 36853 | O15: 0
O16: 0
O17: 0
E18: Defined Contribution Retirement Program (DCRP) | H18: 36-477 | J18: 24000 | K18: 23000 | M18: 23000 | N18: 15957.32 | O18: 7042.68
O19: 0
E20: Total Deferred Charges and Statutory Expenditures - Municipal within "CAPS" | H20: 34-209 | J20: =+SUM(J9:J19)+SUM('18:18a'!J9:J26) -> 2374810 | K20: =+SUM(K9:K19)+SUM('18:18a'!K9:K26) -> 2333275 | L20: =+SUM(L9:L19)+SUM('18:18a'!L9:L26) -> 0 | M20: =+SUM(M9:M19)+SUM('18:18a'!M9:M26) -> 2333275 | N20: =+SUM(N9:N19)+SUM('18:18a'!N9:N26) -> 2269273.24 | O20: =+SUM(O9:O19)+SUM('18:18a'!O9:O26) -> 49001.76
C22: (F) Judgments | H22: 37-480 | O22: XXXXXXXXXX | Q22: =M22-N22 -> 0
C23: (G) Cash Deficit of Preceding Year | H23: 46-855 | O23: =IFERROR(IF(+M23-N23>=0,M23-N23,"*")-Q23,"*") -> 0
C25: (H-1) | E25: Total General Appropriations for Municipal Purposes within "CAPS" | H25: 34-299 | J25: =+J23+J20+'17a'!J23+J22 -> 22248172 | K25: =+K23+K20+'17a'!K23+K22 -> 21539975 | L25: =+L23+L20+'17a'!L23+L22 -> 0 | M25: =+M23+M20+'17a'!M23+M22 -> 21512975 | N25: =+N23+N20+'17a'!N23+N22 -> 18778817.15 | O25: =+O23+O20+'17a'!O23 -> 2688157.85 | R25: =+M25-N25-O25 -> 46000
B26: Sheet 19

Sheet 20
B2: CURRENT FUND - APPROPRIATIONS
B3: 8. GENERAL APPROPRIATIONS | J3: Appropriated | N3: ="Expended "&'Key Inputs'!E34-1 -> Expended 2019
H4: FCOA | L4: ="for "&'Key Inputs'!E34-1&" By" -> for 2019 By | M4: ="Total for "&'Key Inputs'!E34-1 -> Total for 2019
C5: (A) Operations - Excluded from "CAPS" | J5: ="for "&'Key Inputs'!E34 -> for 2020 | K5: ="for "&'Key Inputs'!E34-1 -> for 2019 | L5: Emergency | M5: As Modified By | N5: Paid or | O5: Reserved | Q5: Canceled
L6: Appropriation | M6: All Transfers | N6: Charged
O7: =IFERROR(IF(+M7-N7>=0,M7-N7,"*")-Q7,"*") -> 0
C8: AID TO PRIVATELY OWNED LIBRARY 40:54-35 | O8: 0
C9: Salaries and Wages | H9: 29-393 | I9: 1 | J9: 84000 | K9: 80567 | M9: =+K9 -> 80567 | N9: 76552.4 | O9: 4014.6
C10: Other Expenses | H10: 29-393 | I10: 2 | J10: 11450 | K10: 11200 | M10: 11200 | N10: 8746.19 | O10: 2453.81
O11: 0
O12: 0
C13: 9-1-1 SYSTEM (NJSA 40A - 45.3 cc) | O13: 0
C14: Other Expenses | H14: 25-251 | I14: 2 | J14: 25500 | K14: 25500 | M14: 25500 | O14: 25500
O15: 0
O16: 0
C17: STATE RECYCLING TAX (C.311, P. L. 2007) | H17: 32-465 | I17: 2 | J17: 14800 | K17: 14800 | M17: 14800 | O17: 14800
O18: 0
O19: 0
C20: TAX APPEAL RESERVE | H20: 30-426 | I20: 2 | J20: 50000 | K20: 60000 | M20: 60000 | N20: 60000 | O20: 0
O21: 0
O22: 0
O23: 0
O24: 0
M25: 0 | O25: 0
O26: 0
B27: Sheet 20

Sheet 20a
B2: CURRENT FUND - APPROPRIATIONS
B3: 8. GENERAL APPROPRIATIONS | J3: Appropriated | N3: ="Expended "&'Key Inputs'!E34-1 -> Expended 2019
H4: FCOA | L4: ="for "&'Key Inputs'!E34-1&" By" -> for 2019 By | M4: ="Total for "&'Key Inputs'!E34-1 -> Total for 2019
C5: (A) Operations - Excluded from "CAPS" | J5: ="for "&'Key Inputs'!E34 -> for 2020 | K5: ="for "&'Key Inputs'!E34-1 -> for 2019 | L5: Emergency | M5: As Modified By | N5: Paid or | O5: Reserved | Q5: Canceled
L6: Appropriation | M6: All Transfers | N6: Charged
O7: =IFERROR(IF(+M7-N7>=0,M7-N7,"*")-Q7,"*") -> 0
C8: NJDEP/STORM WATER MGT.:NJSA 40A:4-45.3cc | H8: 26-298 | I8: 2 | J8: 10000 | K8: 10000 | M8: =+K8 -> 10000 | N8: 3000 | O8: 7000
O9: 0
C10: LENGTH OF SERVICE AWARD PROGRAM - FIRE | H10: 25-286 | I10: 2 | J10: 50000 | K10: 50000 | M10: =+K10 -> 50000 | O10: 50000
C11: LENGTH OF SERVICE AWARD PROGRAM - FIRST AID | H11: 25-286 | I11: 2 | J11: 20000 | K11: 20000 | M11: 20000 | O11: 20000
O12: 0
O13: 0
O14: 0
O15: 0
O16: 0
O17: 0
O18: 0
O19: 0
O20: 0
O21: 0
O22: 0
O23: 0
O24: 0
M25: 0 | O25: 0
C26: Total Other Operations - Excluded from "CAPS" | H26: 34-300 | J26: =+SUM('20'!J7:J26)+SUM(J7:J25) -> 265750 | K26: =+SUM('20'!K7:K26)+SUM(K7:K25) -> 272067 | L26: =+SUM('20'!L7:L26)+SUM(L7:L25) -> 0 | M26: =+SUM('20'!M7:M26)+SUM(M7:M25) -> 272067 | N26: =+SUM('20'!N7:N26)+SUM(N7:N25) -> 148298.59 | O26: =+SUM('20'!O7:O26)+SUM(O7:O25) -> 123768.41
B27: Sheet 20a

Sheet 21
B2: CURRENT FUND - APPROPRIATIONS
B3: 8. GENERAL APPROPRIATIONS | J3: Appropriated | N3: ="Expended "&'Key Inputs'!E34-1 -> Expended 2019
H4: FCOA | L4: ="for "&'Key Inputs'!E34-1&" By" -> for 2019 By | M4: ="Total for "&'Key Inputs'!E34-1 -> Total for 2019
C5: (A) Operations - Excluded from "CAPS" | J5: ="for "&'Key Inputs'!E34 -> for 2020 | K5: ="for "&'Key Inputs'!E34-1 -> for 2019 | L5: Emergency | M5: As Modified By | N5: Paid or | O5: Reserved | Q5: Canceled
L6: Appropriation | M6: All Transfers | N6: Charged
C7: Uniform Construction Code | H7: XXXXXX | J7: XXXXXXXXXX | K7: XXXXXXXXXX | L7: XXXXXXXXXX | M7: XXXXXXXXXX | N7: XXXXXXXXXX | O7: XXXXXXXXXX
C8: Appropriations Offset by Increased Fee Revenues (N.J.A.C. 5:23-4.17) | H8: XXXXXX | J8: XXXXXXXXXX | K8: XXXXXXXXXX | L8: XXXXXXXXXX | M8: XXXXXXXXXX | N8: XXXXXXXXXX | O8: XXXXXXXXXX
O9: =IFERROR(IF(+M9-N9>=0,M9-N9,"*")-Q9,"*") -> 0
O10: 0
O11: 0
O12: 0
O13: 0
O14: 0
O15: 0
O16: 0
O17: 0
O18: 0
O19: 0
O20: 0
O21: 0
O22: 0
O23: 0
O24: 0
M25: =+K25 -> 0 | O25: 0
C26: Total Uniform Construction Code Appropriations | H26: 22-999 | J26: =SUM(J9:J25) -> 0 | K26: 0 | L26: 0 | M26: 0 | N26: 0 | O26: 0
B27: Sheet 21

Sheet 22
B2: CURRENT FUND - APPROPRIATIONS
B3: 8. GENERAL APPROPRIATIONS | J3: Appropriated | N3: ="Expended "&'Key Inputs'!E34-1 -> Expended 2019
H4: FCOA | L4: ="for "&'Key Inputs'!E34-1&" By" -> for 2019 By | M4: ="Total for "&'Key Inputs'!E34-1 -> Total for 2019
C5: (A) Operations - Excluded from "CAPS" | J5: ="for "&'Key Inputs'!E34 -> for 2020 | K5: ="for "&'Key Inputs'!E34-1 -> for 2019 | L5: Emergency | M5: As Modified By | N5: Paid or | O5: Reserved | Q5: Canceled
L6: Appropriation | M6: All Transfers | N6: Charged
C7: Shared Service Agreements | H7: XXXXXX | J7: XXXXXXXXXX | K7: XXXXXXXXXX | L7: XXXXXXXXXX | M7: XXXXXXXXXX | N7: XXXXXXXXXX | O7: XXXXXXXXXX
O8: =IFERROR(IF(+M8-N8>=0,M8-N8,"*")-Q8,"*") -> 0
C9: MECHANICAL GARAGE - EATONTOWN | O9: 0
C10: BOARD OF EDUCATION | O10: 0
C11: Salaries and Wages | H11: 42-119 | I11: 1 | J11: 4000 | K11: 4000 | M11: =+K11 -> 4000 | O11: 4000
O12: 0
C13: MUNICIPAL COURT - TINTON FALLS | O13: 0
C14: Salaries and Wages | H14: 42-108 | I14: 1 | J14: 280000 | K14: 275000 | M14: 275000 | N14: 274321 | O14: 679
O15: 0
C16: FIRE PREVENTION SERVICES - OCEANPORT | O16: 0
C17: Salaries and Wages | H17: 42-120 | I17: 1 | J17: 25000 | O17: 0
O18: 0
O19: 0
O20: 0
O21: 0
O22: 0
O23: 0
O24: 0
M25: 0 | O25: 0
O26: 0
B27: Sheet 22

Sheet 22a
B2: CURRENT FUND - APPROPRIATIONS
B3: 8. GENERAL APPROPRIATIONS | J3: Appropriated | N3: ="Expended "&'Key Inputs'!E34-1 -> Expended 2019
H4: FCOA | L4: ="for "&'Key Inputs'!E34-1&" By" -> for 2019 By | M4: ="Total for "&'Key Inputs'!E34-1 -> Total for 2019
C5: (A) Operations - Excluded from "CAPS" | J5: ="for "&'Key Inputs'!E34 -> for 2020 | K5: ="for "&'Key Inputs'!E34-1 -> for 2019 | L5: Emergency | M5: As Modified By | N5: Paid or | O5: Reserved | Q5: Canceled
L6: Appropriation | M6: All Transfers | N6: Charged
C7: Shared Service Agreements | H7: XXXXXX | J7: XXXXXXXXXX | K7: XXXXXXXXXX | L7: XXXXXXXXXX | M7: XXXXXXXXXX | N7: XXXXXXXXXX | O7: XXXXXXXXXX
O8: =IFERROR(IF(+M8-N8>=0,M8-N8,"*")-Q8,"*") -> 0
O9: 0
O10: 0
O11: 0
O12: 0
O13: 0
O14: 0
O15: 0
O16: 0
O17: 0
O18: 0
O19: 0
O20: 0
O21: 0
O22: 0
O23: 0
O24: 0
M25: =+K25 -> 0 | O25: 0
O26: 0
B27: Sheet 22a
J31: =735074-713665 -> 21409

Sheet 22b
B2: CURRENT FUND - APPROPRIATIONS
B3: 8. GENERAL APPROPRIATIONS | J3: Appropriated | N3: ="Expended "&'Key Inputs'!E34-1 -> Expended 2019
H4: FCOA | L4: ="for "&'Key Inputs'!E34-1&" By" -> for 2019 By | M4: ="Total for "&'Key Inputs'!E34-1 -> Total for 2019
C5: (A) Operations - Excluded from "CAPS" | J5: ="for "&'Key Inputs'!E34 -> for 2020 | K5: ="for "&'Key Inputs'!E34-1 -> for 2019 | L5: Emergency | M5: As Modified By | N5: Paid or | O5: Reserved | Q5: Canceled
L6: Appropriation | M6: All Transfers | N6: Charged
C7: Shared Service Agreements | H7: XXXXXX | J7: XXXXXXXXXX | K7: XXXXXXXXXX | L7: XXXXXXXXXX | M7: XXXXXXXXXX | N7: XXXXXXXXXX | O7: XXXXXXXXXX
O8: =IFERROR(IF(+M8-N8>=0,M8-N8,"*")-Q8,"*") -> 0
O9: 0
O10: 0
O11: 0
O12: 0
O13: 0
O14: 0
O15: 0
O16: 0
O17: 0
O18: 0
O19: 0
O20: 0
O21: 0
O22: 0
O23: 0
O24: 0
M25: =+K25 -> 0 | O25: 0
C26: Total Interlocal Municipal Service Agreements | H26: 42-999 | J26: =SUM(J8:J25)+SUM('22:22a'!J8:J26) -> 309000 | K26: =SUM(K8:K25)+SUM('22:22a'!K8:K26) -> 279000 | L26: =SUM(L8:L25)+SUM('22:22a'!L8:L26) -> 0 | M26: =SUM(M8:M25)+SUM('22:22a'!M8:M26) -> 279000 | N26: =SUM(N8:N25)+SUM('22:22a'!N8:N26) -> 274321 | O26: =SUM(O8:O25)+SUM('22:22a'!O8:O26) -> 4679
B27: Sheet 22b
J31: =735074-713665 -> 21409

Sheet 23
B2: CURRENT FUND - APPROPRIATIONS
B3: 8. GENERAL APPROPRIATIONS | J3: Appropriated | N3: ="Expended "&'Key Inputs'!E34-1 -> Expended 2019
H4: FCOA | L4: ="for "&'Key Inputs'!E34-1&" By" -> for 2019 By | M4: ="Total for "&'Key Inputs'!E34-1 -> Total for 2019
C5: (A) Operations - Excluded from "CAPS" | J5: ="for "&'Key Inputs'!E34 -> for 2020 | K5: ="for "&'Key Inputs'!E34-1 -> for 2019 | L5: Emergency | M5: As Modified By | N5: Paid or | O5: Reserved | Q5: Canceled
L6: Appropriation | M6: All Transfers | N6: Charged
C7: Additional Appropriations Offset by Revenues (N.J.S.A. 40A:4-45.3h) | H7: XXXXXX | J7: XXXXXXXXXX | K7: XXXXXXXXXX | L7: XXXXXXXXXX | M7: XXXXXXXXXX | N7: XXXXXXXXXX | O7: XXXXXXXXXX
O8: =IFERROR(IF(+M8-N8>=0,M8-N8,"*")-Q8,"*") -> 0
O9: 0
O10: 0
O11: 0
O12: 0
O13: 0
O14: 0
O15: 0
O16: 0
O17: 0
O18: 0
O19: 0
O20: 0
O21: 0
O22: 0
O23: 0
O24: 0
M25: =+K25 -> 0 | O25: 0
C26: Total Additional Appropriations Offset by Revenues (N.J.S.A. 40A:4-45.3h) | H26: 34-303 | J26: =SUM(J8:J25) -> 0 | K26: 0 | L26: 0 | M26: 0 | N26: 0 | O26: 0
B27: Sheet 23

Sheet 24
B2: CURRENT FUND - APPROPRIATIONS
B3: 8. GENERAL APPROPRIATIONS | J3: Appropriated | N3: ="Expended "&'Key Inputs'!E34-1 -> Expended 2019
H4: FCOA | L4: ="for "&'Key Inputs'!E34-1&" By" -> for 2019 By | M4: ="Total for "&'Key Inputs'!E34-1 -> Total for 2019
C5: (A) Operations - Excluded from "CAPS" | J5: ="for "&'Key Inputs'!E34 -> for 2020 | K5: ="for "&'Key Inputs'!E34-1 -> for 2019 | L5: Emergency | M5: As Modified By | N5: Paid or | O5: Reserved | Q5: Canceled
L6: Appropriation | M6: All Transfers | N6: Charged
C7: Public and Private Programs Offset by Revenues
C8: Matching Funds for Grants | H8: 41-899 | I8: 2 | J8: 30000 | K8: 50000 | M8: =+K8 -> 50000 | N8: 4000 | O8: =IFERROR(IF(+M8-N8>=0,M8-N8,"*")-Q8,"*") -> 0 | Q8: 46000
C9: COOPERATIVE HOUSING INSPECTION GRANT: | N9: =+M9 -> 0 | O9: 0
C10: INSPECTION OF BUILDINGS: | N10: =+M10 -> 0 | O10: 0
C11: Salaries and Wages | H11: 41-679 | I11: 1 | N11: 0 | O11: 0
N12: 0 | O12: 0
C13: CLEAN COMMUNITIES PROGRAM | H13: 41-602 | I13: 2 | K13: 28473.63 | M13: 28473.63 | N13: 28473.63 | O13: 0
C14: DRUNK DRIVING ENFORCEMENT | H14: 41-510 | I14: 2 | J14: 3555.4 | K14: 3840 | M14: 3840 | N14: 3840 | O14: 0
C15: DISTRACTED DRIVING CRACKDOWN | H15: 41-508 | I15: 2 | O15: 0
C16: BULLETPROOF VEST | H16: 41-693 | I16: 2 | K16: 2895 | M16: 2895 | N16: 2895 | O16: 0
C17: SAFE & SECURE COMMUNITIES PROGRAM | H17: 41-503 | I17: 2 | K17: 60000 | M17: 60000 | N17: 60000 | O17: 0
O18: 0
C19: MUNICIPAL ALLIANCE ON ALCOHOLISM & DRUG ABUSE | H19: 41-506 | I19: 2 | J19: 32732.5 | K19: 32732.5 | M19: 32732.5 | N19: 32732.5 | O19: 0
C20: DCA/REC INDIVIDUALS WITH DISABILITIES | H20: 41-669 | I20: 2 | J20: 24000 | K20: 20000 | M20: 20000 | N20: 20000 | O20: 0
O21: 0
C22: RECYCLING TONNAGE | H22: 41-569 | I22: 2 | J22: 42345.03 | K22: 31488.36 | M22: 31488.36 | N22: 31488.36 | O22: 0
C23: DRIVE SOBER OR GET PULLED OVER | H23: 41-509 | I23: 2 | K23: 7040 | M23: 7040 | N23: 7040 | O23: 0
C24: BODY ARMOR FUND | H24: 41-505 | I24: 2 | K24: 4048.95 | M24: 4048.95 | N24: 4048.95 | O24: 0
B25: Sheet 24

Sheet 24a
B2: CURRENT FUND - APPROPRIATIONS
B3: 8. GENERAL APPROPRIATIONS | J3: Appropriated | N3: ="Expended "&'Key Inputs'!E34-1 -> Expended 2019
H4: FCOA | L4: ="for "&'Key Inputs'!E34-1&" By" -> for 2019 By | M4: ="Total for "&'Key Inputs'!E34-1 -> Total for 2019
C5: (A) Operations - Excluded from "CAPS" | J5: ="for "&'Key Inputs'!E34 -> for 2020 | K5: ="for "&'Key Inputs'!E34-1 -> for 2019 | L5: Emergency | M5: As Modified By | N5: Paid or | O5: Reserved | Q5: Canceled
L6: Appropriation | M6: All Transfers | N6: Charged
C7: Public and Private Programs Offset by Revenues
O8: =IFERROR(IF(+M8-N8>=0,M8-N8,"*")-Q8,"*") -> 0
O9: 0
O10: 0
O11: 0
O12: 0
O13: 0
O14: 0
O15: 0
O16: 0
O17: 0
O18: 0
O19: 0
O20: 0
O21: 0
O22: 0
O23: 0
O24: 0
B25: Sheet 24a
J28: =SUM(J7:J24) -> 0

Sheet 24b (hidden)
B2: CURRENT FUND - APPROPRIATIONS
B3: 8. GENERAL APPROPRIATIONS | J3: Appropriated | N3: ="Expended "&'Key Inputs'!E34-1 -> Expended 2019
H4: FCOA | L4: ="for "&'Key Inputs'!E34-1&" By" -> for 2019 By | M4: ="Total for "&'Key Inputs'!E34-1 -> Total for 2019
C5: (A) Operations - Excluded from "CAPS" | J5: ="for "&'Key Inputs'!E34 -> for 2020 | K5: ="for "&'Key Inputs'!E34-1 -> for 2019 | L5: Emergency | M5: As Modified By | N5: Paid or | O5: Reserved | Q5: Canceled
L6: Appropriation | M6: All Transfers | N6: Charged
C7: Public and Private Programs Offset by Revenues
M8: =+K8 -> 0 | N8: =+M8 -> 0 | O8: =IFERROR(IF(+M8-N8>=0,M8-N8,"*")-Q8,"*") -> 0
M9: =+K9 -> 0 | N9: =+M9 -> 0 | O9: 0
M10: =+K10 -> 0 | N10: =+M10 -> 0 | O10: 0
M11: 0 | N11: 0 | O11: 0
M12: 0 | N12: 0 | O12: 0
M13: 0 | N13: 0 | O13: 0
M14: 0 | N14: 0 | O14: 0
M15: 0 | N15: 0 | O15: 0
M16: 0 | N16: 0 | O16: 0
M17: 0 | N17: =+M17 -> 0 | O17: 0
M18: 0 | N18: 0 | O18: 0
M19: 0 | N19: 0 | O19: 0
M20: 0 | N20: 0 | O20: 0
M21: 0 | N21: 0 | O21: 0
M22: 0 | N22: 0 | O22: 0
M23: 0 | N23: 0 | O23: 0
M24: 0 | N24: 0 | O24: 0
B25: Sheet 24b
J28: =SUM(J7:J24) -> 0

Sheet 24c (hidden)
B2: CURRENT FUND - APPROPRIATIONS
B3: 8. GENERAL APPROPRIATIONS | J3: Appropriated | N3: ="Expended "&'Key Inputs'!E34-1 -> Expended 2019
H4: FCOA | L4: ="for "&'Key Inputs'!E34-1&" By" -> for 2019 By | M4: ="Total for "&'Key Inputs'!E34-1 -> Total for 2019
C5: (A) Operations - Excluded from "CAPS" | J5: ="for "&'Key Inputs'!E34 -> for 2020 | K5: ="for "&'Key Inputs'!E34-1 -> for 2019 | L5: Emergency | M5: As Modified By | N5: Paid or | O5: Reserved | Q5: Canceled
L6: Appropriation | M6: All Transfers | N6: Charged
C7: Public and Private Programs Offset by Revenues
M8: =+K8 -> 0 | N8: =+M8 -> 0 | O8: =IFERROR(IF(+M8-N8>=0,M8-N8,"*")-Q8,"*") -> 0
M9: =+K9 -> 0 | N9: =+M9 -> 0 | O9: 0
M10: =+K10 -> 0 | N10: =+M10 -> 0 | O10: 0
M11: 0 | N11: 0 | O11: 0
M12: 0 | N12: 0 | O12: 0
M13: 0 | N13: 0 | O13: 0
M14: 0 | N14: 0 | O14: 0
M15: 0 | N15: 0 | O15: 0
M16: 0 | N16: 0 | O16: 0
M17: 0 | N17: =+M17 -> 0 | O17: 0
M18: 0 | N18: 0 | O18: 0
M19: 0 | N19: 0 | O19: 0
M20: 0 | N20: 0 | O20: 0
M21: 0 | N21: 0 | O21: 0
M22: 0 | N22: 0 | O22: 0
M23: 0 | N23: 0 | O23: 0
M24: 0 | N24: 0 | O24: 0
B25: Sheet 24c
J28: =SUM(J7:J24) -> 0

Sheet 24d (hidden)
B2: CURRENT FUND - APPROPRIATIONS
B3: 8. GENERAL APPROPRIATIONS | J3: Appropriated | N3: ="Expended "&'Key Inputs'!E34-1 -> Expended 2019
H4: FCOA | L4: ="for "&'Key Inputs'!E34-1&" By" -> for 2019 By | M4: ="Total for "&'Key Inputs'!E34-1 -> Total for 2019
C5: (A) Operations - Excluded from "CAPS" | J5: ="for "&'Key Inputs'!E34 -> for 2020 | K5: ="for "&'Key Inputs'!E34-1 -> for 2019 | L5: Emergency | M5: As Modified By | N5: Paid or | O5: Reserved | Q5: Canceled
L6: Appropriation | M6: All Transfers | N6: Charged
C7: Public and Private Programs Offset by Revenues
M8: =+K8 -> 0 | N8: =+M8 -> 0 | O8: =IFERROR(IF(+M8-N8>=0,M8-N8,"*")-Q8,"*") -> 0
M9: 0 | N9: =+M9 -> 0 | O9: 0
M10: 0 | N10: =+M10 -> 0 | O10: 0
M11: 0 | N11: 0 | O11: 0
M12: 0 | N12: 0 | O12: 0
M13: 0 | N13: 0 | O13: 0
M14: 0 | N14: 0 | O14: 0
M15: 0 | N15: 0 | O15: 0
M16: 0 | N16: 0 | O16: 0
M17: 0 | N17: 0 | O17: 0
M18: 0 | N18: 0 | O18: 0
M19: 0 | N19: 0 | O19: 0
M20: 0 | N20: 0 | O20: 0
M21: 0 | N21: 0 | O21: 0
M22: 0 | N22: 0 | O22: 0
M23: 0 | N23: 0 | O23: 0
M24: 0 | N24: 0 | O24: 0
B25: Sheet 24d
J28: =SUM(J7:J24) -> 0

Sheet 24e (hidden)
B2: CURRENT FUND - APPROPRIATIONS
B3: 8. GENERAL APPROPRIATIONS | J3: Appropriated | N3: ="Expended "&'Key Inputs'!E34-1 -> Expended 2019
H4: FCOA | L4: ="for "&'Key Inputs'!E34-1&" By" -> for 2019 By | M4: ="Total for "&'Key Inputs'!E34-1 -> Total for 2019
C5: (A) Operations - Excluded from "CAPS" | J5: ="for "&'Key Inputs'!E34 -> for 2020 | K5: ="for "&'Key Inputs'!E34-1 -> for 2019 | L5: Emergency | M5: As Modified By | N5: Paid or | O5: Reserved | Q5: Canceled
L6: Appropriation | M6: All Transfers | N6: Charged
C7: Public and Private Programs Offset by Revenues
M8: =+K8 -> 0 | N8: =+M8 -> 0 | O8: =IFERROR(IF(+M8-N8>=0,M8-N8,"*")-Q8,"*") -> 0
M9: =+K9 -> 0 | N9: =+M9 -> 0 | O9: 0
M10: =+K10 -> 0 | N10: =+M10 -> 0 | O10: 0
M11: 0 | N11: 0 | O11: 0
M12: 0 | N12: 0 | O12: 0
M13: 0 | N13: 0 | O13: 0
M14: 0 | N14: 0 | O14: 0
M15: 0 | N15: 0 | O15: 0
M16: 0 | N16: 0 | O16: 0
M17: 0 | N17: =+M17 -> 0 | O17: 0
M18: 0 | N18: 0 | O18: 0
M19: 0 | N19: 0 | O19: 0
M20: 0 | N20: 0 | O20: 0
M21: 0 | N21: 0 | O21: 0
M22: 0 | N22: 0 | O22: 0
M23: 0 | N23: 0 | O23: 0
M24: 0 | N24: 0 | O24: 0
B25: Sheet 24e
J28: =SUM(J7:J24) -> 0

Sheet 24f (hidden)
B2: CURRENT FUND - APPROPRIATIONS
B3: 8. GENERAL APPROPRIATIONS | J3: Appropriated | N3: ="Expended "&'Key Inputs'!E34-1 -> Expended 2019
H4: FCOA | L4: ="for "&'Key Inputs'!E34-1&" By" -> for 2019 By | M4: ="Total for "&'Key Inputs'!E34-1 -> Total for 2019
C5: (A) Operations - Excluded from "CAPS" | J5: ="for "&'Key Inputs'!E34 -> for 2020 | K5: ="for "&'Key Inputs'!E34-1 -> for 2019 | L5: Emergency | M5: As Modified By | N5: Paid or | O5: Reserved | Q5: Canceled
L6: Appropriation | M6: All Transfers | N6: Charged
C7: Public and Private Programs Offset by Revenues
M8: =+K8 -> 0 | N8: =+M8 -> 0 | O8: =IFERROR(IF(+M8-N8>=0,M8-N8,"*")-Q8,"*") -> 0
M9: =+K9 -> 0 | N9: =+M9 -> 0 | O9: 0
M10: =+K10 -> 0 | N10: =+M10 -> 0 | O10: 0
M11: 0 | N11: 0 | O11: 0
M12: 0 | N12: 0 | O12: 0
M13: 0 | N13: 0 | O13: 0
M14: 0 | N14: 0 | O14: 0
M15: 0 | N15: 0 | O15: 0
M16: 0 | N16: 0 | O16: 0
M17: 0 | N17: =+M17 -> 0 | O17: 0
M18: 0 | N18: 0 | O18: 0
M19: 0 | N19: 0 | O19: 0
M20: 0 | N20: 0 | O20: 0
M21: 0 | N21: 0 | O21: 0
M22: 0 | N22: 0 | O22: 0
M23: 0 | N23: 0 | O23: 0
M24: 0 | N24: 0 | O24: 0
B25: Sheet 24f
J28: =SUM(J7:J24) -> 0

Sheet 24g (hidden)
B2: CURRENT FUND - APPROPRIATIONS
B3: 8. GENERAL APPROPRIATIONS | J3: Appropriated | N3: ="Expended "&'Key Inputs'!E34-1 -> Expended 2019
H4: FCOA | L4: ="for "&'Key Inputs'!E34-1&" By" -> for 2019 By | M4: ="Total for "&'Key Inputs'!E34-1 -> Total for 2019
C5: (A) Operations - Excluded from "CAPS" | J5: ="for "&'Key Inputs'!E34 -> for 2020 | K5: ="for "&'Key Inputs'!E34-1 -> for 2019 | L5: Emergency | M5: As Modified By | N5: Paid or | O5: Reserved | Q5: Canceled
L6: Appropriation | M6: All Transfers | N6: Charged
C7: Public and Private Programs Offset by Revenues
M8: =+K8 -> 0 | N8: =+M8 -> 0 | O8: =IFERROR(IF(+M8-N8>=0,M8-N8,"*")-Q8,"*") -> 0
M9: =+K9 -> 0 | N9: =+M9 -> 0 | O9: 0
M10: =+K10 -> 0 | N10: =+M10 -> 0 | O10: 0
M11: 0 | N11: 0 | O11: 0
M12: 0 | N12: 0 | O12: 0
M13: 0 | N13: 0 | O13: 0
M14: 0 | N14: 0 | O14: 0
M15: 0 | N15: 0 | O15: 0
M16: 0 | N16: 0 | O16: 0
M17: 0 | N17: =+M17 -> 0 | O17: 0
M18: 0 | N18: 0 | O18: 0
M19: 0 | N19: 0 | O19: 0
M20: 0 | N20: 0 | O20: 0
M21: 0 | N21: 0 | O21: 0
M22: 0 | N22: 0 | O22: 0
M23: 0 | N23: 0 | O23: 0
M24: 0 | N24: 0 | O24: 0
B25: Sheet 24g
J28: =SUM(J7:J24) -> 0

Sheet 24h (hidden)
B2: CURRENT FUND - APPROPRIATIONS
B3: 8. GENERAL APPROPRIATIONS | J3: Appropriated | N3: ="Expended "&'Key Inputs'!E34-1 -> Expended 2019
H4: FCOA | L4: ="for "&'Key Inputs'!E34-1&" By" -> for 2019 By | M4: ="Total for "&'Key Inputs'!E34-1 -> Total for 2019
C5: (A) Operations - Excluded from "CAPS" | J5: ="for "&'Key Inputs'!E34 -> for 2020 | K5: ="for "&'Key Inputs'!E34-1 -> for 2019 | L5: Emergency | M5: As Modified By | N5: Paid or | O5: Reserved | Q5: Canceled
L6: Appropriation | M6: All Transfers | N6: Charged
C7: Public and Private Programs Offset by Revenues
M8: =+K8 -> 0 | N8: =+M8 -> 0 | O8: =IFERROR(IF(+M8-N8>=0,M8-N8,"*")-Q8,"*") -> 0
M9: =+K9 -> 0 | N9: =+M9 -> 0 | O9: 0
M10: =+K10 -> 0 | N10: =+M10 -> 0 | O10: 0
M11: 0 | N11: 0 | O11: 0
M12: 0 | N12: 0 | O12: 0
M13: 0 | N13: 0 | O13: 0
M14: 0 | N14: 0 | O14: 0
M15: 0 | N15: 0 | O15: 0
M16: 0 | N16: 0 | O16: 0
M17: 0 | N17: =+M17 -> 0 | O17: 0
M18: 0 | N18: 0 | O18: 0
M19: 0 | N19: 0 | O19: 0
M20: 0 | N20: 0 | O20: 0
M21: 0 | N21: 0 | O21: 0
M22: 0 | N22: 0 | O22: 0
M23: 0 | N23: 0 | O23: 0
M24: 0 | N24: 0 | O24: 0
B25: Sheet 24h
J28: =SUM(J7:J24) -> 0

Sheet 24i (hidden)
B2: CURRENT FUND - APPROPRIATIONS
B3: 8. GENERAL APPROPRIATIONS | J3: Appropriated | N3: ="Expended "&'Key Inputs'!E34-1 -> Expended 2019
H4: FCOA | L4: ="for "&'Key Inputs'!E34-1&" By" -> for 2019 By | M4: ="Total for "&'Key Inputs'!E34-1 -> Total for 2019
C5: (A) Operations - Excluded from "CAPS" | J5: ="for "&'Key Inputs'!E34 -> for 2020 | K5: ="for "&'Key Inputs'!E34-1 -> for 2019 | L5: Emergency | M5: As Modified By | N5: Paid or | O5: Reserved | Q5: Canceled
L6: Appropriation | M6: All Transfers | N6: Charged
C7: Public and Private Programs Offset by Revenues
M8: =+K8 -> 0 | N8: =+M8 -> 0 | O8: =IFERROR(IF(+M8-N8>=0,M8-N8,"*")-Q8,"*") -> 0
M9: =+K9 -> 0 | N9: =+M9 -> 0 | O9: 0
M10: =+K10 -> 0 | N10: =+M10 -> 0 | O10: 0
M11: 0 | N11: 0 | O11: 0
M12: 0 | N12: 0 | O12: 0
M13: 0 | N13: 0 | O13: 0
M14: 0 | N14: 0 | O14: 0
M15: 0 | N15: 0 | O15: 0
M16: 0 | N16: 0 | O16: 0
M17: 0 | N17: =+M17 -> 0 | O17: 0
M18: 0 | N18: 0 | O18: 0
M19: 0 | N19: 0 | O19: 0
M20: 0 | N20: 0 | O20: 0
M21: 0 | N21: 0 | O21: 0
M22: 0 | N22: 0 | O22: 0
M23: 0 | N23: 0 | O23: 0
M24: 0 | N24: 0 | O24: 0
B25: Sheet 24i
J28: =SUM(J7:J24) -> 0

Sheet 25
B2: CURRENT FUND - APPROPRIATIONS
B3: 8. GENERAL APPROPRIATIONS | J3: Appropriated | N3: ="Expended "&'Key Inputs'!E34-1 -> Expended 2019
H4: FCOA | L4: ="for "&'Key Inputs'!E34-1&" By" -> for 2019 By | M4: ="Total for "&'Key Inputs'!E34-1 -> Total for 2019
C5: (A) Operations - Excluded from "CAPS" (continued) | J5: ="for "&'Key Inputs'!E34 -> for 2020 | K5: ="for "&'Key Inputs'!E34-1 -> for 2019 | L5: Emergency | M5: As Modified By | N5: Paid or | O5: Reserved | Q5: Canceled
L6: Appropriation | M6: All Transfers | N6: Charged
C7: Public and Private Programs Offset by Revenues (cont) | H7: XXXXXX | J7: XXXXXXXXXX | K7: XXXXXXXXXX | L7: XXXXXXXXXX | M7: XXXXXXXXXX | N7: XXXXXXXXXX | O7: XXXXXXXXXX
O8: =IFERROR(IF(+M8-N8>=0,M8-N8,"*")-Q8,"*") -> 0
O9: 0
O10: 0
O11: 0
O12: 0
O13: 0
O14: 0
O15: 0
O16: 0
O17: 0
O18: 0
O19: 0
O20: 0
C21: Total Public and Private Programs Offset by Revenues | H21: 40-999 | J21: =+SUM(J8:J20)+SUM('24:24i'!J8:J24) -> 132632.93 | K21: =+SUM(K8:K20)+SUM('24:24i'!K8:K24) -> 240518.44 | L21: =+SUM(L8:L20)+SUM('24:24i'!L8:L24) -> 0 | M21: =+SUM(M8:M20)+SUM('24:24i'!M8:M24) -> 240518.44 | N21: =+SUM(N8:N20)+SUM('24:24i'!N8:N24) -> 194518.44 | O21: =+SUM(O8:O20)+SUM('24:24i'!O8:O24) -> 0
D23: Total Operations - Excluded from "CAPS" | H23: 34-305 | J23: =+J21+'23'!J26+'22b'!J26+'21'!J26+'20a'!J26 -> 707382.93 | K23: =+K21+'23'!K26+'22b'!K26+'21'!K26+'20a'!K26 -> 791585.44 | L23: =+L21+'23'!L26+'22b'!L26+'21'!L26+'20a'!L26 -> 0 | M23: =+M21+'23'!M26+'22b'!M26+'21'!M26+'20a'!M26 -> 791585.44 | N23: =+N21+'23'!N26+'22b'!N26+'21'!N26+'20a'!N26 -> 617138.03 | O23: =+O21+'23'!O26+'22b'!O26+'21'!O26+'20a'!O26 -> 128447.41 | R23: =+M23-N23-O23 -> 46000
D24: Detail:
D25: Salaries & Wages | H25: 34-305 | I25: 1 | J25: =SUMPRODUCT(SUMIF(INDIRECT("'"&Twenty_Five&"'!$i$7:$i$24"),1,INDIRECT("'"&Twenty_Five&"'!$j$7:$j$24")))+SUMIF($I$7:$I$20,1,$J$7:$J$20) -> 393000 | K25: =SUMPRODUCT(SUMIF(INDIRECT("'"&Twenty_Five&"'!$i$7:$i$24"),1,INDIRECT("'"&Twenty_Five&"'!$k$7:$k$24")))+SUMIF($I$7:$I$20,1,$K$7:$K$20) -> 359567 | L25: =SUMPRODUCT(SUMIF(INDIRECT("'"&Twenty_Five&"'!$i$7:$i$24"),1,INDIRECT("'"&Twenty_Five&"'!$l$7:$l$24")))+SUMIF($I$7:$I$20,1,$L$7:$L$20) -> 0 | M25: =SUMPRODUCT(SUMIF(INDIRECT("'"&Twenty_Five&"'!$i$7:$i$24"),1,INDIRECT("'"&Twenty_Five&"'!$m$7:$m$24")))+SUMIF($I$7:$I$20,1,$M$7:$M$20) -> 359567 | N25: =SUMPRODUCT(SUMIF(INDIRECT("'"&Twenty_Five&"'!$i$7:$i$24"),1,INDIRECT("'"&Twenty_Five&"'!$n$7:$n$24")))+SUMIF($I$7:$I$20,1,$N$7:$N$20) -> 350873.4 | O25: =SUMPRODUCT(SUMIF(INDIRECT("'"&Twenty_Five&"'!$i$7:$i$24"),1,INDIRECT("'"&Twenty_Five&"'!$o$7:$o$26")))+SUMIF($I$7:$I$20,1,$O$7:$O$20) -> 8693.6
D26: Other Expenses | H26: 34-305 | I26: 2 | J26: =SUMPRODUCT(SUMIF(INDIRECT("'"&Twenty_Five&"'!$i$7:$i$24"),2,INDIRECT("'"&Twenty_Five&"'!$j$7:$j$24")))+SUMIF($I$7:$I$20,2,$J$7:$J$20) -> 314382.93 | K26: =SUMPRODUCT(SUMIF(INDIRECT("'"&Twenty_Five&"'!$i$7:$i$24"),2,INDIRECT("'"&Twenty_Five&"'!$k$7:$k$24")))+SUMIF($I$7:$I$20,2,$K$7:$K$20) -> 432018.44 | L26: =SUMPRODUCT(SUMIF(INDIRECT("'"&Twenty_Five&"'!$i$7:$i$24"),2,INDIRECT("'"&Twenty_Five&"'!$l$7:$l$24")))+SUMIF($I$7:$I$20,2,$L$7:$L$20) -> 0 | M26: =SUMPRODUCT(SUMIF(INDIRECT("'"&Twenty_Five&"'!$i$7:$i$24"),2,INDIRECT("'"&Twenty_Five&"'!$m$7:$m$24")))+SUMIF($I$7:$I$20,2,$M$7:$M$20) -> 432018.44 | N26: =SUMPRODUCT(SUMIF(INDIRECT("'"&Twenty_Five&"'!$i$7:$i$24"),2,INDIRECT("'"&Twenty_Five&"'!$n$7:$n$24")))+SUMIF($I$7:$I$20,2,$N$7:$N$20) -> 266264.63 | O26: =SUMPRODUCT(SUMIF(INDIRECT("'"&Twenty_Five&"'!$i$7:$i$24"),2,INDIRECT("'"&Twenty_Five&"'!$o$7:$o$26")))+SUMIF($I$7:$I$20,2,$O$7:$O$20) -> 119753.81
B27: Sheet 25
D30: Salaries & Wages - Backup | H30: 34-305 | I30: 1 | J30: =SUMPRODUCT(SUMIF(INDIRECT("'"&Twenty_Five&"'!$i$7:$i$24"),1,INDIRECT("'"&Twenty_Five&"'!$j$7:$j$24")))+SUMIF($I$7:$I$20,1,$J$7:$J$20) -> 393000 | K30: =SUMPRODUCT(SUMIF(INDIRECT("'"&Twenty_Five&"'!$i$7:$i$24"),1,INDIRECT("'"&Twenty_Five&"'!$k$7:$k$24")))+SUMIF($I$7:$I$20,1,$K$7:$K$20) -> 359567 | L30: =SUMPRODUCT(SUMIF(INDIRECT("'"&Twenty_Five&"'!$i$7:$i$24"),1,INDIRECT("'"&Twenty_Five&"'!$l$7:$l$24")))+SUMIF($I$7:$I$20,1,$L$7:$L$20) -> 0 | M30: =SUMPRODUCT(SUMIF(INDIRECT("'"&Twenty_Five&"'!$i$7:$i$24"),1,INDIRECT("'"&Twenty_Five&"'!$m$7:$m$24")))+SUMIF($I$7:$I$20,1,$M$7:$M$20) -> 359567 | N30: =SUMPRODUCT(SUMIF(INDIRECT("'"&Twenty_Five&"'!$i$7:$i$24"),1,INDIRECT("'"&Twenty_Five&"'!$n$7:$n$24")))+SUMIF($I$7:$I$20,1,$N$7:$N$20) -> 350873.4 | O30: =SUMPRODUCT(SUMIF(INDIRECT("'"&Twenty_Five&"'!$i$7:$i$24"),1,INDIRECT("'"&Twenty_Five&"'!$o$7:$o$24")))+SUMIF($I$7:$I$20,1,$O$7:$O$20) -> 8693.6
D31: Other Expenses -Backup | H31: 34-305 | I31: 2 | J31: =SUMPRODUCT(SUMIF(INDIRECT("'"&Twenty_Five&"'!$i$7:$i$24"),2,INDIRECT("'"&Twenty_Five&"'!$j$7:$j$24")))+SUMIF($I$7:$I$20,2,$J$7:$J$20) -> 314382.93 | K31: =SUMPRODUCT(SUMIF(INDIRECT("'"&Twenty_Five&"'!$i$7:$i$24"),2,INDIRECT("'"&Twenty_Five&"'!$k$7:$k$24")))+SUMIF($I$7:$I$20,2,$K$7:$K$20) -> 432018.44 | L31: =SUMPRODUCT(SUMIF(INDIRECT("'"&Twenty_Five&"'!$i$7:$i$24"),2,INDIRECT("'"&Twenty_Five&"'!$l$7:$l$24")))+SUMIF($I$7:$I$20,2,$L$7:$L$20) -> 0 | M31: =SUMPRODUCT(SUMIF(INDIRECT("'"&Twenty_Five&"'!$i$7:$i$24"),2,INDIRECT("'"&Twenty_Five&"'!$m$7:$m$24")))+SUMIF($I$7:$I$20,2,$M$7:$M$20) -> 432018.44 | N31: =SUMPRODUCT(SUMIF(INDIRECT("'"&Twenty_Five&"'!$i$7:$i$24"),2,INDIRECT("'"&Twenty_Five&"'!$n$7:$n$24")))+SUMIF($I$7:$I$20,2,$N$7:$N$20) -> 266264.63 | O31: =SUMPRODUCT(SUMIF(INDIRECT("'"&Twenty_Five&"'!$i$7:$i$24"),2,INDIRECT("'"&Twenty_Five&"'!$o$7:$o$24")))+SUMIF($I$7:$I$20,2,$O$7:$O$20) -> 119753.81

Sheet 26
B2: CURRENT FUND - APPROPRIATIONS
B3: 8. GENERAL APPROPRIATIONS | J3: Appropriated | N3: ="Expended "&'Key Inputs'!E34-1 -> Expended 2019
H4: FCOA | L4: ="for "&'Key Inputs'!E34-1&" By" -> for 2019 By | M4: ="Total for "&'Key Inputs'!E34-1 -> Total for 2019
C5: (C) Capital Improvements - Excluded from "CAPS" | J5: ="for "&'Key Inputs'!E34 -> for 2020 | K5: ="for "&'Key Inputs'!E34-1 -> for 2019 | L5: Emergency | M5: As Modified By | N5: Paid or | O5: Reserved | Q5: Canceled
L6: Appropriation | M6: All Transfers | N6: Charged
C7: Down Payments on Improvements | H7: 44-902 | O7: =IFERROR(IF(+M7-N7>=0,M7-N7,"*")-Q7,"*") -> 0
C8: Capital Improvement Fund | H8: 44-901 | J8: 97000 | K8: 140000 | L8: XXXXXXXXXX | M8: =+K8 -> 140000 | N8: 140000 | O8: 0
O9: 0
O10: 0
O11: 0
O12: 0
O13: 0
O14: 0
O15: 0
O16: 0
O17: 0
O18: 0
O19: 0
O20: 0
O21: 0
O22: 0
O23: 0
O24: 0
O25: 0
O26: 0
B27: Sheet 26

Sheet 26a
B2: CURRENT FUND - APPROPRIATIONS
B3: 8. GENERAL APPROPRIATIONS | J3: Appropriated | N3: ="Expended "&'Key Inputs'!E34-1 -> Expended 2019
H4: FCOA | L4: ="for "&'Key Inputs'!E34-1&" By" -> for 2019 By | M4: ="Total for "&'Key Inputs'!E34-1 -> Total for 2019
C5: (C) Capital Improvements - Excluded from "CAPS" | J5: ="for "&'Key Inputs'!E34 -> for 2020 | K5: ="for "&'Key Inputs'!E34-1 -> for 2019 | L5: Emergency | M5: As Modified By | N5: Paid or | O5: Reserved | Q5: Canceled
L6: Appropriation | M6: All Transfers | N6: Charged
O7: =IFERROR(IF(+M7-N7>=0,M7-N7,"*")-Q7,"*") -> 0
O8: 0
O9: 0
O10: 0
O11: 0
O12: 0
C13: Public and Private Programs Offset by Revenues: | H13: XXXXXX | J13: XXXXXXXXXX | K13: XXXXXXXXXX | L13: XXXXXXXXXX | M13: XXXXXXXXXX | N13: XXXXXXXXXX | O13: XXXXXXXXXX
C14: New Jersey Transportation Trust Fund Authority Act | H14: 41-865 | O14: =IFERROR(IF(+M14-N14>=0,M14-N14,"*")-Q14,"*") -> 0
O15: 0
O16: 0
O17: 0
O18: 0
O19: 0
O20: 0
O21: 0
O22: 0
O23: 0
O24: 0
O25: 0
C26: Total Capital Improvements Excluded from "CAPS" | H26: 44-999 | J26: =+SUM(J7:J25)+SUM('26'!J7:J26) -> 97000 | K26: =+SUM(K7:K25)+SUM('26'!K7:K26) -> 140000 | L26: =+SUM(L7:L25)+SUM('26'!L7:L26) -> 0 | M26: =+SUM(M7:M25)+SUM('26'!M7:M26) -> 140000 | N26: =+SUM(N7:N25)+SUM('26'!N7:N26) -> 140000 | O26: =+SUM(O7:O25)+SUM('26'!O7:O26) -> 0
B27: Sheet 26a

Sheet 27
B2: CURRENT FUND - APPROPRIATIONS
B3: 8. GENERAL APPROPRIATIONS | J3: Appropriated | N3: ="Expended "&'Key Inputs'!E34-1 -> Expended 2019
H4: FCOA | L4: ="for "&'Key Inputs'!E34-1&" By" -> for 2019 By | M4: ="Total for "&'Key Inputs'!E34-1 -> Total for 2019
C5: (D) Municipal Debt Service - Excluded from "CAPS" | J5: ="for "&'Key Inputs'!E34 -> for 2020 | K5: ="for "&'Key Inputs'!E34-1 -> for 2019 | L5: Emergency | M5: As Modified By | N5: Paid or | O5: Reserved | R5: Canceled
L6: Appropriation | M6: All Transfers | N6: Charged
C7: Payment of Bond Principal | H7: 45-920 | J7: 1820000 | K7: 1486000 | M7: =+K7 -> 1486000 | N7: 1486000 | O7: XXXXXXXXXX | R7: =+M7-N7 -> 0
C8: Payment of Bond Anticipation Notes and Capital Notes | H8: 45-925 | O8: XXXXXXXXXX | R8: =+M8-N8 -> 0
C9: Interest on Bonds | H9: 45-930 | J9: 702000 | K9: 474250 | M9: =+K9 -> 474250 | N9: 469226.69 | O9: XXXXXXXXXX | R9: 5023.31
C10: Interest on Notes | H10: 45-935 | K10: 154000 | M10: 181000 | N10: 180686.61 | O10: XXXXXXXXXX | R10: 313.39
C11: Green Trust Loan Program: | H11: XXXXXX | J11: XXXXXXXXXX | K11: XXXXXXXXXX | L11: XXXXXXXXXX | M11: XXXXXXXXXX | N11: XXXXXXXXXX | O11: XXXXXXXXXX
O12: XXXXXXXXXX | R12: 0
O13: XXXXXXXXXX | R13: 0
O14: XXXXXXXXXX | R14: 0
C15: CAPITAL LEASE OBLIGATIONS | O15: XXXXXXXXXX | R15: 0
C16: Principal | H16: 45-941 | J16: 65000 | K16: 31000 | M16: =+K16 -> 31000 | N16: 31000 | O16: XXXXXXXXXX | R16: 0
C17: Interest | H17: 45-941 | J17: 10500 | K17: 3150 | M17: 3150 | N17: 3138.75 | O17: XXXXXXXXXX | R17: 11.25
O18: XXXXXXXXXX | R18: 0
O19: XXXXXXXXXX | R19: 0
O20: XXXXXXXXXX | R20: 0
O21: XXXXXXXXXX | R21: 0
O22: XXXXXXXXXX | R22: 0
O23: XXXXXXXXXX | R23: 0
O24: XXXXXXXXXX | R24: 0
O25: XXXXXXXXXX | R25: 0
O26: XXXXXXXXXX | R26: 0
B27: Sheet 27
N29: =+M26-N26 -> 0 | R29: =SUM(R7:R26) -> 5347.95

Sheet 27a
B2: CURRENT FUND - APPROPRIATIONS
B3: 8. GENERAL APPROPRIATIONS | J3: Appropriated | N3: ="Expended "&'Key Inputs'!E34-1 -> Expended 2019
H4: FCOA | L4: ="for "&'Key Inputs'!E34-1&" By" -> for 2019 By | M4: ="Total for "&'Key Inputs'!E34-1 -> Total for 2019
C5: (D) Municipal Debt Service - Excluded from "CAPS" (cont.) | J5: ="for "&'Key Inputs'!E34 -> for 2020 | K5: ="for "&'Key Inputs'!E34-1 -> for 2019 | L5: Emergency | M5: As Modified By | N5: Paid or | O5: Reserved | R5: Canceled
L6: Appropriation | M6: All Transfers | N6: Charged
O7: XXXXXXXXXX | R7: =+M7-N7 -> 0
O8: XXXXXXXXXX | R8: =+M8-N8 -> 0
O9: XXXXXXXXXX | R9: 0
O10: XXXXXXXXXX | R10: 0
O11: XXXXXXXXXX | R11: 0
O12: XXXXXXXXXX | R12: 0
O13: XXXXXXXXXX | R13: 0
O14: XXXXXXXXXX | R14: 0
O15: XXXXXXXXXX | R15: 0
O16: XXXXXXXXXX | R16: 0
O17: XXXXXXXXXX | R17: 0
O18: XXXXXXXXXX | R18: 0
O19: XXXXXXXXXX | R19: 0
O20: XXXXXXXXXX | R20: 0
O21: XXXXXXXXXX | R21: 0
O22: XXXXXXXXXX | R22: 0
O23: XXXXXXXXXX | R23: 0
O24: XXXXXXXXXX | R24: 0
O25: XXXXXXXXXX | R25: 0
C26: Total Municipal Debt Service Excluded from "CAPS" | H26: 45-999 | J26: =SUM(J7:J25)+SUM('27'!J7:J26) -> 2597500 | K26: =SUM(K7:K25)+SUM('27'!K7:K26) -> 2148400 | L26: =SUM(L7:L25)+SUM('27'!L7:L26) -> 0 | M26: =SUM(M7:M25)+SUM('27'!M7:M26) -> 2175400 | N26: =SUM(N7:N25)+SUM('27'!N7:N26) -> 2170052.05 | O26: XXXXXXXXXX
B27: Sheet 27a
N29: =+M26-N26 -> 5347.95 | O29: Do not remove formula | R29: =SUM(R7:R26) -> 0

Sheet 28
B2: CURRENT FUND - APPROPRIATIONS
B3: 8. GENERAL APPROPRIATIONS | J3: Appropriated | N3: ="Expended "&'Key Inputs'!E34-1 -> Expended 2019
H4: FCOA | L4: ="for "&'Key Inputs'!E34-1&" By" -> for 2019 By | M4: ="Total for "&'Key Inputs'!E34-1 -> Total for 2019
C5: (E) Deferred Charges - Municipal - Excluded from "CAPS" | J5: ="for "&'Key Inputs'!E34 -> for 2020 | K5: ="for "&'Key Inputs'!E34-1 -> for 2019 | L5: Emergency | M5: As Modified By | N5: Paid or | O5: Reserved | R5: Canceled
L6: Appropriation | M6: All Transfers | N6: Charged
C7: (1) DEFERRED CHARGES: | H7: XXXXXX | J7: XXXXXXXXXX | K7: XXXXXXXXXX | L7: XXXXXXXXXX | M7: XXXXXXXXXX | N7: XXXXXXXXXX | O7: XXXXXXXXXX
E8: Emergency Authorizations | H8: 46-870 | K8: 15600 | L8: XXXXXXXXXX | M8: =+K8 -> 15600 | N8: 15600 | O8: XXXXXXXXXX | R8: =M8-N8 -> 0
E9: Special Emergency Authorization - 5 Years (N.J.S.A. 40A:4-55) | H9: 46-875 | K9: 44000 | L9: XXXXXXXXXX | M9: =+K9 -> 44000 | N9: 44000 | O9: XXXXXXXXXX | R9: =M9-N9 -> 0
E10: Special Emergency Authorization - 3 Years (N.J.S.A. 40A:4-55.1 & 40A:4-55.13) | H10: 46-871 | L10: XXXXXXXXXX | O10: XXXXXXXXXX | R10: 0
L11: XXXXXXXXXX | O11: XXXXXXXXXX | R11: 0
L12: XXXXXXXXXX | O12: XXXXXXXXXX | R12: 0
L13: XXXXXXXXXX | O13: XXXXXXXXXX | R13: 0
L14: XXXXXXXXXX | O14: XXXXXXXXXX | R14: 0
L15: XXXXXXXXXX | O15: XXXXXXXXXX | R15: 0
L16: XXXXXXXXXX | O16: XXXXXXXXXX | R16: 0
L17: XXXXXXXXXX | O17: XXXXXXXXXX | R17: 0
L18: XXXXXXXXXX | O18: XXXXXXXXXX | R18: 0
D19: Total Deferred Charges - Municipal - Excluded from "CAPS" | H19: 46-999 | J19: =SUM(J8:J18) -> 0 | K19: =SUM(K8:K18) -> 59600 | L19: XXXXXXXXXX | M19: =SUM(M8:M18) -> 59600 | N19: =SUM(N8:N18) -> 59600 | O19: XXXXXXXXXX
C20: (F) | D20: Judgments (N.J.S.A. 40A:4-45.3cc) | H20: 37-480 | J20: 15000 | O20: XXXXXXXXXX | R20: 0
C21: (N) | D21: Transferred to Board of Education for Use of Local Schools (N.J.S.A. 40:48-17.1 & 17.3) | H21: 29-405 | L21: XXXXXXXXXX | O21: XXXXXXXXXX | R21: 0
L22: XXXXXXXXXX | O22: XXXXXXXXXX
C23: (G) | D23: With Prior Consent of Local Finance Board: Cash Deficit of Preceding Year | H23: 46-885 | L23: XXXXXXXXXX | O23: XXXXXXXXXX | R23: 0
L24: XXXXXXXXXX | O24: XXXXXXXXXX
C25: (H-2) | E25: Total General Appropriations for Municipal Purposes Excluded from "CAPS" | H25: 34-309 | J25: =+J19+'27a'!J26+'26a'!J26+'25'!J23+SUM('28'!J20:J24) -> 3416882.93 | K25: =+K19+'27a'!K26+'26a'!K26+'25'!K23+SUM('28'!K20:K24) -> 3139585.44 | L25: =+'26a'!L26+'25'!L23 -> 0 | M25: =+M19+'27a'!M26+'26a'!M26+'25'!M23+SUM('28'!M20:M24) -> 3166585.44 | N25: =+N19+'27a'!N26+'26a'!N26+'25'!N23+SUM('28'!N20:N24) -> 2986790.08 | O25: =+'26a'!O26+'25'!O23 -> 128447.41
B26: Sheet 28

Sheet 29
B2: CURRENT FUND - APPROPRIATIONS
B3: 8. GENERAL APPROPRIATIONS | J3: Appropriated | N3: ="Expended "&'Key Inputs'!E34-1 -> Expended 2019
H4: FCOA | L4: ="for "&'Key Inputs'!E34-1&" By" -> for 2019 By | M4: ="Total for "&'Key Inputs'!E34-1 -> Total for 2019
J5: ="for "&'Key Inputs'!E34 -> for 2020 | K5: ="for "&'Key Inputs'!E34-1 -> for 2019 | L5: Emergency | M5: As Modified By | N5: Paid or | O5: Reserved | Q5: Canceled
L6: Appropriation | M6: All Transfers | N6: Charged
C7: For Local District School Purposes - Excluded from "CAPS" | H7: XXXXXX | J7: XXXXXXXXXX | K7: XXXXXXXXXX | L7: XXXXXXXXXX | M7: XXXXXXXXXX | N7: XXXXXXXXXX | O7: XXXXXXXXXX
C8: ( I ) | D8: Type 1 District School Debt Service | H8: XXXXXX | J8: XXXXXXXXXX | K8: XXXXXXXXXX | L8: XXXXXXXXXX | M8: XXXXXXXXXX | N8: XXXXXXXXXX | O8: XXXXXXXXXX
E9: Payment of Bond Principal | H9: 48-920 | O9: XXXXXXXXXX | Q9: =M9-N9 -> 0
E10: Payment of Bond Anticipation Notes | H10: 48-925 | O10: XXXXXXXXXX | Q10: =M10-N10 -> 0
E11: Interest on Bonds | H11: 48-930 | O11: XXXXXXXXXX | Q11: 0
E12: Interest on Notes | H12: 48-935 | O12: XXXXXXXXXX | Q12: 0
O13: XXXXXXXXXX | Q13: 0
O14: XXXXXXXXXX | Q14: 0
E15: Total of Type 1 District School Debt Service - Excluded from "CAPS" | H15: 48-999 | J15: =SUM(J9:J14) -> 0 | K15: =SUM(K9:K14) -> 0 | L15: =SUM(L9:L14) -> 0 | M15: =SUM(M9:M14) -> 0 | N15: =SUM(N9:N14) -> 0 | O15: XXXXXXXXXX
C16: (J) | D16: Deferred Charges and Statutory Expenditures - Local School - Excluded from "CAPS" | H16: XXXXXX | J16: XXXXXXXXXX | K16: XXXXXXXXXX | L16: XXXXXXXXXX | M16: XXXXXXXXXX | N16: XXXXXXXXXX | O16: XXXXXXXXXX
E17: Emergency Authorizations - Schools | H17: 29-406 | L17: XXXXXXXXXX | O17: XXXXXXXXXX | Q17: 0
E18: Capital Project for Land, Building or Equipment N.J.S.A. 18A:22-20 | H18: 29-407 | O18: XXXXXXXXXX | Q18: 0
E19: Total Deferred Charges and Statutory Expenditures - Local School - Excluded from "CAPS" | H19: 29-409 | J19: =+J18+J17 -> 0 | K19: =+K18+K17 -> 0 | L19: =+L18 -> 0 | M19: =+M18+M17 -> 0 | N19: =+N18+N17 -> 0 | O19: XXXXXXXXXX | Q19: 0
C20: (K) | D20: Total Municipal Appropriations for Local District School Purposes {Items (I) and (J) - Excluded from "CAPS" | H20: 29-410 | J20: =+J19+J15 -> 0 | K20: =+K19+K15 -> 0 | L20: =+L19+L15 -> 0 | M20: =+M19+M15 -> 0 | N20: =+N19+N15 -> 0 | O20: XXXXXXXXXX | Q20: 0
C21: (O) | D21: Total General Appropriations - Excluded from "CAPS" | H21: 34-399 | J21: =+J20+'28'!J25 -> 3416882.93 | K21: =+K20+'28'!K25 -> 3139585.44 | L21: =+L20+'28'!L25 -> 0 | M21: =+M20+'28'!M25 -> 3166585.44 | N21: =+N20+'28'!N25 -> 2986790.08 | O21: =+'28'!O25 -> 128447.41
C23: (L) | D23: Subtotal General Appropriations {Items (H-1) and (O)} | H23: 34-400 | J23: =+J21+'19'!J25 -> 25665054.93 | K23: =+K21+'19'!K25 -> 24679560.44 | L23: =+L21+'19'!L25 -> 0 | M23: =+M21+'19'!M25 -> 24679560.44 | N23: =+N21+'19'!N25 -> 21765607.23 | O23: =+O21+'19'!O25 -> 2816605.26
C24: (M) | D24: Reserve for Uncollected Taxes | H24: 50-899 | J24: =+'Reserve & Tax Calculation'!F38 -> 1670000 | K24: 1605000 | L24: XXXXXXXXXX | M24: =+K24 -> 1605000 | N24: =+M24 -> 1605000 | O24: XXXXXXXXXX | R24: Total Cancelled
C25: 9. | D25: Total General Appropriations | H25: 34-499 | J25: =+J24+J23 -> 27335054.93 | K25: =+K24+K23 -> 26284560.44 | L25: =+L23 -> 0 | M25: =+M24+M23 -> 26284560.44 | N25: =+N24+N23 -> 23370607.23 | O25: =+O23 -> 2816605.26 | R25: =+M25-N25-O25 -> 97347.95
B26: Sheet 29

Sheet 30
B2: CURRENT FUND - APPROPRIATIONS
B3: 8. GENERAL APPROPRIATIONS | J3: Appropriated | N3: ="Expended "&'Key Inputs'!E34-1 -> Expended 2019 | T3: Working Area
H4: FCOA | L4: ="for "&'Key Inputs'!E34-1&" By" -> for 2019 By | M4: ="Total for "&'Key Inputs'!E34-1 -> Total for 2019
C5: Summary of Appropriations | J5: ="for "&'Key Inputs'!E34 -> for 2020 | K5: ="for "&'Key Inputs'!E34-1 -> for 2019 | L5: Emergency | M5: As Modified By | N5: Paid or | O5: Reserved
L6: Appropriation | M6: All Transfers | N6: Charged
C7: (H-1) | D7: Total General Appropriations for | H7: 34-299 | J7: =+'19'!J25 -> 22248172 | K7: =+'19'!K25 -> 21539975 | L7: =+'19'!L25 -> 0 | M7: =+'19'!M25 -> 21512975 | N7: =+'19'!N25 -> 18778817.15 | O7: =+'19'!O25 -> 2688157.85
D8: Municipal Purposes within "CAPS" | H8: XXXXXX
C9: (A) | E9: Operations - Excluded from "CAPS" | H9: XXXXXX | J9: XXXXXXXXXX | K9: XXXXXXXXXX | L9: XXXXXXXXXX | M9: XXXXXXXXXX | N9: XXXXXXXXXX | O9: XXXXXXXXXX
E10: Other Operations | H10: 34-300 | J10: =+'20a'!J26 -> 265750 | K10: =+'20a'!K26 -> 272067 | L10: =+'20a'!L26 -> 0 | M10: =+'20a'!M26 -> 272067 | N10: =+'20a'!N26 -> 148298.59 | O10: =+'20a'!O26 -> 123768.41
E11: Uniform Construction Code | H11: 22-999 | J11: =+'21'!J26 -> 0 | K11: =+'21'!K26 -> 0 | L11: =+'21'!L26 -> 0 | M11: =+'21'!M26 -> 0 | N11: =+'21'!N26 -> 0 | O11: =+'21'!O26 -> 0
E12: Shared Service Agreements | H12: 42-999 | J12: =+'22b'!J26 -> 309000 | K12: =+'22b'!K26 -> 279000 | L12: =+'22b'!L26 -> 0 | M12: =+'22b'!M26 -> 279000 | N12: =+'22b'!N26 -> 274321 | O12: =+'22b'!O26 -> 4679
E13: Additional Appropriations Offset by Revenues | H13: 34-303 | J13: =+'23'!J26 -> 0 | K13: =+'23'!K26 -> 0 | L13: =+'23'!L26 -> 0 | M13: =+'23'!M26 -> 0 | N13: =+'23'!N26 -> 0 | O13: =+'23'!O26 -> 0
E14: Public & Private Programs Offset by Revenues | H14: 40-999 | J14: =+'25'!J21 -> 132632.93 | K14: =+'25'!K21 -> 240518.44 | L14: =+'25'!L21 -> 0 | M14: =+'25'!M21 -> 240518.44 | N14: =+'25'!N21 -> 194518.44 | O14: =+'25'!O21 -> 0
F15: Total Operations Excluded from "CAPS" | H15: 34-305 | J15: =SUM(J10:J14) -> 707382.93 | K15: 791585.44 | L15: 0 | M15: 791585.44 | N15: 617138.03 | O15: 128447.41
C16: (C) | D16: Capital Improvements | H16: 44-999 | J16: =+'26a'!J26 -> 97000 | K16: =+'26a'!K26 -> 140000 | L16: =+'26a'!L26 -> 0 | M16: =+'26a'!M26 -> 140000 | N16: =+'26a'!N26 -> 140000 | O16: =+'26a'!O26 -> 0
C17: (D) | D17: Municipal Debt Service | H17: 45-999 | J17: =+'27a'!J26 -> 2597500 | K17: =+'27a'!K26 -> 2148400 | L17: =+'27a'!L26 -> 0 | M17: =+'27a'!M26 -> 2175400 | N17: =+'27a'!N26 -> 2170052.05 | O17: XXXXXXXXXX
C18: (E) | D18: Total Deferred Charges (Sheet 28) | H18: 46-999 | J18: =+'28'!J19 -> 0 | K18: =+'28'!K19 -> 59600 | L18: XXXXXXXXXX | M18: =+'28'!M19 -> 59600 | N18: =+'28'!N19 -> 59600 | O18: XXXXXXXXXX
C19: (F) | D19: Judgments (Sheet 28) | H19: 37-480 | J19: =+'28'!J20 -> 15000 | K19: =+'28'!K20 -> 0 | L19: =+'28'!L20 -> 0 | M19: =+'28'!M20 -> 0 | N19: =+'28'!N20 -> 0 | O19: XXXXXXXXXX
C20: (G) | D20: Cash Deficit - With Prior Consent of LFB | H20: 46-885 | J20: =+'28'!J23 -> 0 | K20: =+'28'!K23 -> 0 | L20: XXXXXXXXXX | M20: =+'28'!M23 -> 0 | N20: =+'28'!N23 -> 0 | O20: XXXXXXXXXX
C21: (K) | D21: Local District School Purposes | H21: 29-410 | J21: =+'29'!J20 -> 0 | K21: =+'29'!K20 -> 0 | L21: =+'29'!L20 -> 0 | M21: =+'29'!M20 -> 0 | N21: =+'29'!N20 -> 0 | O21: XXXXXXXXXX
C22: (N) | D22: Transferred to Board of Education | H22: 29-405 | J22: =+'28'!J21 -> 0 | K22: =+'28'!K21 -> 0 | L22: XXXXXXXXXX | M22: =+'28'!M21 -> 0 | N22: =+'28'!N21 -> 0 | O22: XXXXXXXXXX
C23: (M) | D23: Reserve for Uncollected Taxes | H23: 50-899 | J23: =+'29'!J24 -> 1670000 | K23: =+'29'!K24 -> 1605000 | L23: =+'29'!L24 -> XXXXXXXXXX | M23: =+'29'!M24 -> 1605000 | N23: =+'29'!N24 -> 1605000 | O23: =+'29'!O24 -> XXXXXXXXXX
C24: Total General Appropriations | H24: 34-499 | J24: =SUM(J15:J23)+J7+J8 -> 27335054.93 | K24: 26284560.44 | L24: 0 | M24: 26284560.44 | N24: 23370607.23 | O24: =SUM(O15:O23)+O7+O8 -> 2816605.26
B25: Sheet 30

Sheet 31-Utility1
C2: ="DEDICATED "&UPPER('Key Inputs'!E39)&" UTILITY BUDGET" -> DEDICATED UTILITY BUDGET
J3: Anticipated | L3: Realized in
C4: ="10. DEDICATED REVENUES FROM "&UPPER('Key Inputs'!E39)&" UTILITY" -> 10. DEDICATED REVENUES FROM UTILITY | I4: FCOA | J4: ='Key Inputs'!E34 -> 2020 | K4: =J4-1 -> 2019 | L4: ="Cash in "&K4 -> Cash in 2019
E5: Operating Surplus Anticipated | I5: 08-501
E6: Operating Surplus Anticipated with Prior Written Consent of Director of Local Government Services | I6: 08-502
G7: Total Operating Surplus Anticipated | I7: 08-500 | J7: =+J5+J6 -> 0 | K7: =+K5+K6 -> 0 | L7: =+L5+L6 -> 0
E8: Rents | I8: 08-503
E10: Miscellaneous | I10: 08-505
E19: Special Items of General Revenues Anticipated with Prior Written Consent of Director of Local Governement Services | I19: XXXXXX | J19: XXXXXXXXXX | K19: XXXXXXXXXX | L19: XXXXXXXXXX
E25: Deficit (General Budget) | I25: 08-549
F26: ="Total "&'Key Inputs'!E39&" Utility Revenues" -> Total Utility Revenues | I26: 08-599 | J26: =SUM(J7:J25) -> 0 | K26: =SUM(K7:K25) -> 0 | L26: =SUM(L7:L25) -> 0
C27: Sheet 31

Sheet 32-Utility1
B2: ="DEDICATED "&UPPER('Key Inputs'!E39)&" UTILITY BUDGET - (continued)" -> DEDICATED UTILITY BUDGET - (continued)
H3: Appropriated | L3: ="Expended "&'Key Inputs'!E34-1 -> Expended 2019
F4: ="11. APPROPRIATIONS FOR "&UPPER('Key Inputs'!E39)&" UTILITY" -> 11. APPROPRIATIONS FOR UTILITY | G4: FCOA | J4: ="for "&'Key Inputs'!E34-1&" By" -> for 2019 By | K4: ="Total for "&'Key Inputs'!E34-1 -> Total for 2019
H5: ="for "&'Key Inputs'!E34 -> for 2020 | I5: ="for "&'Key Inputs'!E34-1 -> for 2019 | J5: Emergency | K5: As Modified By | L5: Paid or | M5: Reserved | O5: Canceled
J6: Appropriation | K6: All Transfers | L6: Charged
C7: Operating: | G7: XXXXXX | H7: XXXXXXXXXX | I7: XXXXXXXXXX | J7: XXXXXXXXXX | K7: XXXXXXXXXX | L7: XXXXXXXXXX | M7: XXXXXXXXXX
E8: Salaries & Wages | G8: 55-501 | K8: =+I8 -> 0 | M8: =IFERROR(IF(+K8-L8>=0,K8-L8,"*")-O8,"*") -> 0
E9: Other Expenses | G9: 55-502 | K9: 0 | M9: =IFERROR(IF(+K9-L9>=0,K9-L9,"*")-O9,"*") -> 0
K10: 0 | M10: 0
K11: 0 | M11: 0
K12: 0 | M12: 0
K13: 0 | M13: 0
K14: 0 | M14: 0
K15: 0 | M15: 0
K16: 0 | M16: 0
K17: 0 | M17: 0
K18: 0 | M18: 0
K19: 0 | M19: 0
K20: 0 | M20: 0
K21: 0 | M21: 0
K22: 0 | M22: 0
K23: 0 | M23: 0
K24: 0 | M24: 0
K25: 0 | M25: 0
K26: 0 | M26: 0
B27: Sheet 32

Sheet 32a-Utility1
B2: ="DEDICATED "&UPPER('Key Inputs'!E39)&" UTILITY BUDGET - (continued)" -> DEDICATED UTILITY BUDGET - (continued)
H3: Appropriated | L3: ="Expended "&'Key Inputs'!E34-1 -> Expended 2019
F4: ="11. APPROPRIATIONS FOR "&UPPER('Key Inputs'!E39)&" UTILITY" -> 11. APPROPRIATIONS FOR UTILITY | G4: FCOA | J4: ="for "&'Key Inputs'!E34-1&" By" -> for 2019 By | K4: ="Total for "&'Key Inputs'!E34-1 -> Total for 2019
H5: ="for "&'Key Inputs'!E34 -> for 2020 | I5: ="for "&'Key Inputs'!E34-1 -> for 2019 | J5: Emergency | K5: As Modified By | L5: Paid or | M5: Reserved | O5: Canceled
J6: Appropriation | K6: All Transfers | L6: Charged
C7: Operating: | G7: XXXXXX | H7: XXXXXXXXXX | I7: XXXXXXXXXX | J7: XXXXXXXXXX | K7: XXXXXXXXXX | L7: XXXXXXXXXX | M7: XXXXXXXXXX
K8: =+I8 -> 0 | M8: =IFERROR(IF(+K8-L8>=0,K8-L8,"*")-O8,"*") -> 0
K9: =+I9 -> 0 | M9: =IFERROR(IF(+K9-L9>=0,K9-L9,"*")-O9,"*") -> 0
K10: 0 | M10: 0
K11: 0 | M11: 0
K12: 0 | M12: 0
K13: 0 | M13: 0
K14: 0 | M14: 0
K15: 0 | M15: 0
K16: 0 | M16: 0
K17: 0 | M17: 0
K18: 0 | M18: 0
K19: 0 | M19: 0
K20: 0 | M20: 0
K21: 0 | M21: 0
K22: 0 | M22: 0
K23: 0 | M23: 0
K24: 0 | M24: 0
K25: 0 | M25: 0
K26: 0 | M26: 0
B27: Sheet 32a

Sheet 32b-Utility1
B2: ="DEDICATED "&UPPER('Key Inputs'!E39)&" UTILITY BUDGET - (continued)" -> DEDICATED UTILITY BUDGET - (continued)
H3: Appropriated | L3: ="Expended "&'Key Inputs'!E34-1 -> Expended 2019
F4: ="11. APPROPRIATIONS FOR "&UPPER('Key Inputs'!E39)&" UTILITY" -> 11. APPROPRIATIONS FOR UTILITY | G4: FCOA | J4: ="for "&'Key Inputs'!E34-1&" By" -> for 2019 By | K4: ="Total for "&'Key Inputs'!E34-1 -> Total for 2019
H5: ="for "&'Key Inputs'!E34 -> for 2020 | I5: ="for "&'Key Inputs'!E34-1 -> for 2019 | J5: Emergency | K5: As Modified By | L5: Paid or | M5: Reserved | O5: Canceled
J6: Appropriation | K6: All Transfers | L6: Charged
C7: Operating: | G7: XXXXXX | H7: XXXXXXXXXX | I7: XXXXXXXXXX | J7: XXXXXXXXXX | K7: XXXXXXXXXX | L7: XXXXXXXXXX | M7: XXXXXXXXXX
K8: =+I8 -> 0 | M8: =IFERROR(IF(+K8-L8>=0,K8-L8,"*")-O8,"*") -> 0
K9: =+I9 -> 0 | M9: =IFERROR(IF(+K9-L9>=0,K9-L9,"*")-O9,"*") -> 0
K10: 0 | M10: 0
K11: 0 | M11: 0
K12: 0 | M12: 0
C13: Capital Improvements: | G13: XXXXXX | H13: XXXXXXXXXX | I13: XXXXXXXXXX | J13: XXXXXXXXXX | K13: XXXXXXXXXX | L13: XXXXXXXXXX | M13: XXXXXXXXXX
E14: Down Payments on Improvements | G14: 55-510 | K14: 0 | M14: =IFERROR(IF(+K14-L14>=0,K14-L14,"*")-O14,"*") -> 0
E15: Capital Improvement Fund | G15: 55-511 | J15: XXXXXXXXXX | K15: 0 | M15: 0
E16: Capital Outlay | G16: 55-512 | K16: 0 | M16: 0
K17: 0 | M17: 0
K18: 0 | M18: 0
C19: Debt Service: | G19: XXXXXX | H19: XXXXXXXXXX | I19: XXXXXXXXXX | J19: XXXXXXXXXX | K19: XXXXXXXXXX | L19: XXXXXXXXXX | M19: XXXXXXXXXX
E20: Payment on Bond Principal | G20: 55-520 | K20: 0 | M20: XXXXXXXXXX | O20: =K20-L20 -> 0
E21: Payment on Bond Anticipation Notes & Capital Notes | G21: 55-521 | K21: 0 | M21: XXXXXXXXXX | O21: =K21-L21 -> 0
E22: Interest on Bonds | G22: 55-522 | K22: 0 | M22: XXXXXXXXXX | O22: 0
E23: Interest on Notes | G23: 55-523 | K23: 0 | M23: XXXXXXXXXX | O23: 0
K24: 0 | M24: XXXXXXXXXX | O24: 0
K25: 0 | M25: XXXXXXXXXX | O25: 0
K26: 0 | M26: XXXXXXXXXX | O26: 0
B27: Sheet 32b

Sheet 33-Utility1
B2: ="DEDICATED "&UPPER('Key Inputs'!E39)&" UTILITY BUDGET - (continued)" -> DEDICATED UTILITY BUDGET - (continued)
H3: Appropriated | L3: ="Expended "&'Key Inputs'!E34-1 -> Expended 2019
C4: ="11. APPROPRIATIONS FOR "&UPPER('Key Inputs'!E39)&" UTILITY" -> 11. APPROPRIATIONS FOR UTILITY | G4: FCOA | J4: ="for "&'Key Inputs'!E34-1&" By" -> for 2019 By | K4: ="Total for "&'Key Inputs'!E34-1 -> Total for 2019
H5: ="for "&'Key Inputs'!E34 -> for 2020 | I5: ="for "&'Key Inputs'!E34-1 -> for 2019 | J5: Emergency | K5: As Modified By | L5: Paid or | M5: Reserved | O5: Canceled
J6: Appropriation | K6: All Transfers | L6: Charged
C7: Deferred Charges and Statutory Expenditures: | G7: XXXXXX | H7: XXXXXXXXXX | I7: XXXXXXXXXX | J7: XXXXXXXXXX | K7: XXXXXXXXXX | L7: XXXXXXXXXX | M7: XXXXXXXXXX
D8: DEFERRED CHARGES: | G8: XXXXXX | H8: XXXXXXXXXX | I8: XXXXXXXXXX | J8: XXXXXXXXXX | K8: XXXXXXXXXX | L8: XXXXXXXXXX | M8: XXXXXXXXXX
E9: Emergency Authorizations | G9: 55-530 | J9: XXXXXXXXXX | K9: =+I9 -> 0 | M9: XXXXXXXXXX | O9: =K9-L9 -> 0
J10: XXXXXXXXXX | K10: =+I10 -> 0 | M10: XXXXXXXXXX | O10: =K10-L10 -> 0
J11: XXXXXXXXXX | K11: =+I11 -> 0 | M11: XXXXXXXXXX | O11: =K11-L11 -> 0
J12: XXXXXXXXXX | K12: =+I12 -> 0 | M12: XXXXXXXXXX | O12: =K12-L12 -> 0
J13: XXXXXXXXXX | K13: =+I13 -> 0 | M13: XXXXXXXXXX | O13: =K13-L13 -> 0
D14: STATUTORY EXPENDITURES: | G14: XXXXXX | H14: XXXXXXXXXX | I14: XXXXXXXXXX | J14: XXXXXXXXXX | K14: XXXXXXXXXX | L14: XXXXXXXXXX | M14: XXXXXXXXXX
E15: Contribution To: | K15: =+I15 -> 0 | M15: =IFERROR(IF(+K15-L15>=0,K15-L15,"*")-O16,"*") -> 0
F16: Public Employee's Retirement System | G16: 55-540
F17: Social Security System (O.A.S.I.) | G17: 55-541 | K17: =+I17 -> 0 | M17: =IFERROR(IF(+K17-L17>=0,K17-L17,"*")-O17,"*") -> 0
E18: Unemployment Compensation Insurance (N.J.S.A. 43:21-3 et. Seq.) | G18: 55-542 | K18: =+I18 -> 0 | M18: =IFERROR(IF(+K18-L18>=0,K18-L18,"*")-O18,"*") -> 0
K19: 0 | M19: 0
K20: 0 | M20: 0
K21: 0 | M21: 0
C22: Judgements | G22: 55-531 | K22: 0 | M22: XXXXXXXXXX | O22: =K22-L22 -> 0
C23: Deficit in Operations in Prior Years | G23: 55-532 | J23: XXXXXXXXXX | K23: 0 | M23: XXXXXXXXXX | O23: =K23-L23 -> 0
C24: Surplus (General Budget ) | G24: 55-545 | J24: XXXXXXXXXX | K24: 0 | M24: XXXXXXXXXX | O24: =K24-L24 -> 0
D25: ="TOTAL "&UPPER('Key Inputs'!E39)&" UTILITY APPROPRIATIONS" -> TOTAL UTILITY APPROPRIATIONS | G25: 55-599 | H25: =+SUM(H9:H24)+SUM('32b-Utility1'!H8:H26)+SUM('32-Utility1:32a-Utility1'!H8:H26) -> 0 | I25: =+SUM(I9:I24)+SUM('32b-Utility1'!I8:I26)+SUM('32-Utility1:32a-Utility1'!I8:I26) -> 0 | J25: =+SUM(J9:J24)+SUM('32b-Utility1'!J8:J26)+SUM('32-Utility1:32a-Utility1'!J8:J26) -> 0 | K25: =+SUM(K9:K24)+SUM('32b-Utility1'!K8:K26)+SUM('32-Utility1:32a-Utility1'!K8:K26) -> 0 | L25: =+SUM(L9:L24)+SUM('32b-Utility1'!L8:L26)+SUM('32-Utility1:32a-Utility1'!L8:L26) -> 0 | M25: =+SUM(M9:M24)+SUM('32b-Utility1'!M8:M26)+SUM('32-Utility1:32a-Utility1'!M8:M26) -> 0 | O25: =K25-L25-M25 -> 0
B26: Sheet 33

Sheet 31-Utility2
C2: ="DEDICATED "&UPPER('Key Inputs'!E40)&" UTILITY BUDGET" -> DEDICATED UTILITY BUDGET
J3: Anticipated | L3: Realized in
C4: ="10. DEDICATED REVENUES FROM "&UPPER('Key Inputs'!E40)&" UTILITY" -> 10. DEDICATED REVENUES FROM UTILITY | I4: FCOA | J4: ='Key Inputs'!E34 -> 2020 | K4: =J4-1 -> 2019 | L4: ="Cash in "&K4 -> Cash in 2019
E5: Operating Surplus Anticipated | I5: 08-501
E6: Operating Surplus Anticipated with Prior Written Consent of Director of Local Government Services | I6: 08-502
G7: Total Operating Surplus Anticipated | I7: 08-500 | J7: =+J5+J6 -> 0 | K7: =+K5+K6 -> 0 | L7: =+L5+L6 -> 0
E8: Rents | I8: 08-503
E10: Miscellaneous | I10: 08-505
E19: Special Items of General Revenues Anticipated with Prior Written Consent of Director of Local Governement Services | I19: XXXXXX | J19: XXXXXXXXXX | K19: XXXXXXXXXX | L19: XXXXXXXXXX
E25: Deficit (General Budget) | I25: 08-549
F26: ="Total "&'Key Inputs'!E40&" Utility Revenues" -> Total Utility Revenues | I26: 08-599 | J26: =SUM(J7:J25) -> 0 | K26: =SUM(K7:K25) -> 0 | L26: =SUM(L7:L25) -> 0
C27: Sheet 31

Sheet 32-Utility2
B2: ="DEDICATED "&UPPER('Key Inputs'!E40)&" UTILITY BUDGET - (continued)" -> DEDICATED UTILITY BUDGET - (continued)
H3: Appropriated | L3: ="Expended "&'Key Inputs'!E34-1 -> Expended 2019
F4: ="11. APPROPRIATIONS FOR "&UPPER('Key Inputs'!E40)&" UTILITY" -> 11. APPROPRIATIONS FOR UTILITY | G4: FCOA | J4: ="for "&'Key Inputs'!E34-1&" By" -> for 2019 By | K4: ="Total for "&'Key Inputs'!E34-1 -> Total for 2019
H5: ="for "&'Key Inputs'!E34 -> for 2020 | I5: ="for "&'Key Inputs'!E34-1 -> for 2019 | J5: Emergency | K5: As Modified By | L5: Paid or | M5: Reserved | O5: Canceled
J6: Appropriation | K6: All Transfers | L6: Charged
C7: Operating: | G7: XXXXXX | H7: XXXXXXXXXX | I7: XXXXXXXXXX | J7: XXXXXXXXXX | K7: XXXXXXXXXX | L7: XXXXXXXXXX | M7: XXXXXXXXXX
E8: Salaries & Wages | G8: 55-501 | K8: =+I8 -> 0 | M8: =IFERROR(IF(+K8-L8>=0,K8-L8,"*")-O8,"*") -> 0
E9: Other Expenses | G9: 55-502 | K9: =+I9 -> 0 | M9: =IFERROR(IF(+K9-L9>=0,K9-L9,"*")-O9,"*") -> 0
K10: 0 | M10: 0
K11: 0 | M11: 0
K12: 0 | M12: 0
K13: =+I13 -> 0 | M13: 0
K14: 0 | M14: 0
K15: 0 | M15: 0
K16: 0 | M16: 0
K17: 0 | M17: 0
K18: 0 | M18: 0
K19: 0 | M19: 0
K20: 0 | M20: 0
K21: 0 | M21: 0
K22: 0 | M22: 0
K23: 0 | M23: 0
K24: 0 | M24: 0
K25: 0 | M25: 0
K26: 0 | M26: 0
B27: Sheet 32

Sheet 32a-Utility2
B2: ="DEDICATED "&UPPER('Key Inputs'!E40)&" UTILITY BUDGET - (continued)" -> DEDICATED UTILITY BUDGET - (continued)
H3: Appropriated | L3: ="Expended "&'Key Inputs'!E34-1 -> Expended 2019
F4: ="11. APPROPRIATIONS FOR "&UPPER('Key Inputs'!E40)&" UTILITY" -> 11. APPROPRIATIONS FOR UTILITY | G4: FCOA | J4: ="for "&'Key Inputs'!E34-1&" By" -> for 2019 By | K4: ="Total for "&'Key Inputs'!E34-1 -> Total for 2019
H5: ="for "&'Key Inputs'!E34 -> for 2020 | I5: ="for "&'Key Inputs'!E34-1 -> for 2019 | J5: Emergency | K5: As Modified By | L5: Paid or | M5: Reserved | O5: Canceled
J6: Appropriation | K6: All Transfers | L6: Charged
C7: Operating: | G7: XXXXXX | H7: XXXXXXXXXX | I7: XXXXXXXXXX | J7: XXXXXXXXXX | K7: XXXXXXXXXX | L7: XXXXXXXXXX | M7: XXXXXXXXXX
K8: =+I8 -> 0 | M8: =IFERROR(IF(+K8-L8>=0,K8-L8,"*")-O8,"*") -> 0
K9: =+I9 -> 0 | M9: =IFERROR(IF(+K9-L9>=0,K9-L9,"*")-O9,"*") -> 0
K10: 0 | M10: 0
K11: 0 | M11: 0
K12: 0 | M12: 0
K13: 0 | M13: 0
K14: 0 | M14: 0
K15: 0 | M15: 0
K16: 0 | M16: 0
K17: 0 | M17: 0
K18: 0 | M18: 0
K19: 0 | M19: 0
K20: 0 | M20: 0
K21: 0 | M21: 0
K22: 0 | M22: 0
K23: 0 | M23: 0
K24: 0 | M24: 0
K25: 0 | M25: 0
K26: 0 | M26: 0
B27: Sheet 32a

Sheet 32b-Utility2
B2: ="DEDICATED "&UPPER('Key Inputs'!E40)&" UTILITY BUDGET - (continued)" -> DEDICATED UTILITY BUDGET - (continued)
H3: Appropriated | L3: ="Expended "&'Key Inputs'!E34-1 -> Expended 2019
F4: ="11. APPROPRIATIONS FOR "&UPPER('Key Inputs'!E40)&" UTILITY" -> 11. APPROPRIATIONS FOR UTILITY | G4: FCOA | J4: ="for "&'Key Inputs'!E34-1&" By" -> for 2019 By | K4: ="Total for "&'Key Inputs'!E34-1 -> Total for 2019
H5: ="for "&'Key Inputs'!E34 -> for 2020 | I5: ="for "&'Key Inputs'!E34-1 -> for 2019 | J5: Emergency | K5: As Modified By | L5: Paid or | M5: Reserved | O5: Canceled
J6: Appropriation | K6: All Transfers | L6: Charged
C7: Operating: | G7: XXXXXX | H7: XXXXXXXXXX | I7: XXXXXXXXXX | J7: XXXXXXXXXX | K7: XXXXXXXXXX | L7: XXXXXXXXXX | M7: XXXXXXXXXX
E8: Salaries & Wages | G8: 55-501 | K8: =+I8 -> 0 | M8: =IFERROR(IF(+K8-L8>=0,K8-L8,"*")-O8,"*") -> 0
E9: Other Expenses | G9: 55-502 | K9: =+I9 -> 0 | M9: =IFERROR(IF(+K9-L9>=0,K9-L9,"*")-O9,"*") -> 0
K10: 0 | M10: 0
K11: 0 | M11: 0
K12: 0 | M12: 0
C13: Capital Improvements: | G13: XXXXXX | H13: XXXXXXXXXX | I13: XXXXXXXXXX | J13: XXXXXXXXXX | K13: XXXXXXXXXX | L13: XXXXXXXXXX | M13: XXXXXXXXXX
E14: Down Payments on Improvements | G14: 55-510 | K14: 0 | M14: =IFERROR(IF(+K14-L14>=0,K14-L14,"*")-O14,"*") -> 0
E15: Capital Improvement Fund | G15: 55-511 | J15: XXXXXXXXXX | K15: 0 | M15: 0
E16: Capital Outlay | G16: 55-512 | K16: 0 | M16: 0
K17: 0 | M17: 0
K18: 0 | M18: 0
C19: Debt Service: | G19: XXXXXX | H19: XXXXXXXXXX | I19: XXXXXXXXXX | J19: XXXXXXXXXX | K19: XXXXXXXXXX | L19: XXXXXXXXXX | M19: XXXXXXXXXX
E20: Payment on Bond Principal | G20: 55-520 | K20: 0 | M20: XXXXXXXXXX | O20: =K20-L20 -> 0
E21: Payment on Bond Anticipation Notes & Capital Notes | G21: 55-521 | K21: 0 | M21: XXXXXXXXXX | O21: =K21-L21 -> 0
E22: Interest on Bonds | G22: 55-522 | K22: 0 | M22: XXXXXXXXXX | O22: 0
E23: Interest on Notes | G23: 55-523 | K23: 0 | M23: XXXXXXXXXX | O23: 0
K24: 0 | M24: XXXXXXXXXX | O24: 0
K25: 0 | M25: XXXXXXXXXX | O25: 0
K26: 0 | M26: XXXXXXXXXX | O26: 0
B27: Sheet 32b

Sheet 33-Utility2
B2: ="DEDICATED "&UPPER('Key Inputs'!E40)&" UTILITY BUDGET - (continued)" -> DEDICATED UTILITY BUDGET - (continued)
H3: Appropriated | L3: ="Expended "&'Key Inputs'!E34-1 -> Expended 2019
C4: ="11. APPROPRIATIONS FOR "&UPPER('Key Inputs'!E40)&" UTILITY" -> 11. APPROPRIATIONS FOR UTILITY | G4: FCOA | J4: ="for "&'Key Inputs'!E34-1&" By" -> for 2019 By | K4: ="Total for "&'Key Inputs'!E34-1 -> Total for 2019
H5: ="for "&'Key Inputs'!E34 -> for 2020 | I5: ="for "&'Key Inputs'!E34-1 -> for 2019 | J5: Emergency | K5: As Modified By | L5: Paid or | M5: Reserved | O5: Canceled
J6: Appropriation | K6: All Transfers | L6: Charged
C7: Deferred Charges and Statutory Expenditures: | G7: XXXXXX | H7: XXXXXXXXXX | I7: XXXXXXXXXX | J7: XXXXXXXXXX | K7: XXXXXXXXXX | L7: XXXXXXXXXX | M7: XXXXXXXXXX
D8: DEFERRED CHARGES: | G8: XXXXXX | H8: XXXXXXXXXX | I8: XXXXXXXXXX | J8: XXXXXXXXXX | K8: XXXXXXXXXX | L8: XXXXXXXXXX | M8: XXXXXXXXXX
E9: Emergency Authorizations | G9: 55-530 | J9: XXXXXXXXXX | K9: =+I9 -> 0 | M9: XXXXXXXXXX | O9: =K9-L9 -> 0
J10: XXXXXXXXXX | K10: =+I10 -> 0 | M10: XXXXXXXXXX | O10: =K10-L10 -> 0
J11: XXXXXXXXXX | K11: =+I11 -> 0 | M11: XXXXXXXXXX | O11: =K11-L11 -> 0
J12: XXXXXXXXXX | K12: =+I12 -> 0 | M12: XXXXXXXXXX | O12: =K12-L12 -> 0
J13: XXXXXXXXXX | K13: =+I13 -> 0 | M13: XXXXXXXXXX | O13: =K13-L13 -> 0
D14: STATUTORY EXPENDITURES: | G14: XXXXXX | H14: XXXXXXXXXX | I14: XXXXXXXXXX | J14: XXXXXXXXXX | K14: XXXXXXXXXX | L14: XXXXXXXXXX | M14: XXXXXXXXXX
E15: Contribution To: | K15: =+I15 -> 0 | M15: =IFERROR(IF(+K15-L15>=0,K15-L15,"*")-O16,"*") -> 0
F16: Public Employee's Retirement System | G16: 55-540
F17: Social Security System (O.A.S.I.) | G17: 55-541 | K17: =+I17 -> 0 | M17: =IFERROR(IF(+K17-L17>=0,K17-L17,"*")-O17,"*") -> 0
E18: Unemployment Compensation Insurance (N.J.S.A. 43:21-3 et. Seq.) | G18: 55-542 | K18: 0 | M18: =IFERROR(IF(+K18-L18>=0,K18-L18,"*")-O18,"*") -> 0
K19: 0 | M19: 0
K20: 0 | M20: 0
K21: 0 | M21: 0
C22: Judgements | G22: 55-531 | K22: 0 | M22: XXXXXXXXXX | O22: =K22-L22 -> 0
C23: Deficit in Operations in Prior Years | G23: 55-532 | J23: XXXXXXXXXX | K23: 0 | M23: XXXXXXXXXX | O23: =K23-L23 -> 0
C24: Surplus (General Budget ) | G24: 55-545 | J24: XXXXXXXXXX | K24: 0 | M24: XXXXXXXXXX | O24: =K24-L24 -> 0
D25: ="TOTAL "&UPPER('Key Inputs'!E40)&" UTILITY APPROPRIATIONS" -> TOTAL UTILITY APPROPRIATIONS | G25: 55-599 | H25: =+SUM(H9:H24)+SUM('32b-Utility2'!H8:H26)+SUM('32-Utility2:32a-Utility2'!H8:H26) -> 0 | I25: =+SUM(I9:I24)+SUM('32b-Utility2'!I8:I26)+SUM('32-Utility2:32a-Utility2'!I8:I26) -> 0 | J25: =+SUM(J9:J24)+SUM('32b-Utility2'!J8:J26)+SUM('32-Utility2:32a-Utility2'!J8:J26) -> 0 | K25: =+SUM(K9:K24)+SUM('32b-Utility2'!K8:K26)+SUM('32-Utility2:32a-Utility2'!K8:K26) -> 0 | L25: =+SUM(L9:L24)+SUM('32b-Utility2'!L8:L26)+SUM('32-Utility2:32a-Utility2'!L8:L26) -> 0 | M25: =+SUM(M9:M24)+SUM('32b-Utility2'!M8:M26)+SUM('32-Utility2:32a-Utility2'!M8:M26) -> 0 | O25: =K25-L25-M25 -> 0
B26: Sheet 33

Sheet 31-Utility3 (hidden)
C2: ="DEDICATED "&UPPER('Key Inputs'!E41)&" UTILITY BUDGET" -> DEDICATED UTILITY BUDGET
J3: Anticipated | L3: Realized in
C4: ="10. DEDICATED REVENUES FROM "&UPPER('Key Inputs'!E41)&" UTILITY" -> 10. DEDICATED REVENUES FROM UTILITY | I4: FCOA | J4: ='Key Inputs'!E34 -> 2020 | K4: =J4-1 -> 2019 | L4: ="Cash in "&K4 -> Cash in 2019
E5: Operating Surplus Anticipated | I5: 08-501
E6: Operating Surplus Anticipated with Prior Written Consent of Director of Local Government Services | I6: 08-502
G7: Total Operating Surplus Anticipated | I7: 08-500 | J7: =+J5+J6 -> 0 | K7: =+K5+K6 -> 0 | L7: =+L5+L6 -> 0
E8: Rents | I8: 08-503
E10: Miscellaneous | I10: 08-505
E19: Special Items of General Revenues Anticipated with Prior Written Consent of Director of Local Governement Services | I19: XXXXXX | J19: XXXXXXXXXX | K19: XXXXXXXXXX | L19: XXXXXXXXXX
E25: Deficit (General Budget) | I25: 08-549
F26: ="Total "&'Key Inputs'!E41&" Utility Revenues" -> Total Utility Revenues | I26: 08-599 | J26: =SUM(J7:J25) -> 0 | K26: =SUM(K7:K25) -> 0 | L26: =SUM(L7:L25) -> 0
C27: Sheet 31

Sheet 32-Utility3 (hidden)
B2: ="DEDICATED "&UPPER('Key Inputs'!E41)&" UTILITY BUDGET - (continued)" -> DEDICATED UTILITY BUDGET - (continued)
H3: Appropriated | L3: ="Expended "&'Key Inputs'!E34-1 -> Expended 2019
F4: ="11. APPROPRIATIONS FOR "&UPPER('Key Inputs'!E41)&" UTILITY" -> 11. APPROPRIATIONS FOR UTILITY | G4: FCOA | J4: ="for "&'Key Inputs'!E34-1&" By" -> for 2019 By | K4: ="Total for "&'Key Inputs'!E34-1 -> Total for 2019
H5: ="for "&'Key Inputs'!E34 -> for 2020 | I5: ="for "&'Key Inputs'!E34-1 -> for 2019 | J5: Emergency | K5: As Modified By | L5: Paid or | M5: Reserved | O5: Canceled
J6: Appropriation | K6: All Transfers | L6: Charged
C7: Operating: | G7: XXXXXX | H7: XXXXXXXXXX | I7: XXXXXXXXXX | J7: XXXXXXXXXX | K7: XXXXXXXXXX | L7: XXXXXXXXXX | M7: XXXXXXXXXX
E8: Salaries & Wages | G8: 55-501 | K8: =+I8 -> 0 | M8: =IFERROR(IF(+K8-L8>=0,K8-L8,"*")-O8,"*") -> 0
E9: Other Expenses | G9: 55-502 | K9: =+I9 -> 0 | M9: =IFERROR(IF(+K9-L9>=0,K9-L9,"*")-O9,"*") -> 0
K10: 0 | M10: 0
K11: 0 | M11: 0
K12: 0 | M12: 0
K13: 0 | M13: 0
K14: 0 | M14: 0
K15: 0 | M15: 0
K16: 0 | M16: 0
K17: 0 | M17: 0
K18: 0 | M18: 0
K19: 0 | M19: 0
K20: 0 | M20: 0
K21: 0 | M21: 0
K22: 0 | M22: 0
K23: 0 | M23: 0
K24: 0 | M24: 0
K25: 0 | M25: 0
K26: 0 | M26: 0
B27: Sheet 32

Sheet 32a-Utility3 (hidden)
B2: ="DEDICATED "&UPPER('Key Inputs'!E41)&" UTILITY BUDGET - (continued)" -> DEDICATED UTILITY BUDGET - (continued)
H3: Appropriated | L3: ="Expended "&'Key Inputs'!E34-1 -> Expended 2019
F4: ="11. APPROPRIATIONS FOR "&UPPER('Key Inputs'!E41)&" UTILITY" -> 11. APPROPRIATIONS FOR UTILITY | G4: FCOA | J4: ="for "&'Key Inputs'!E34-1&" By" -> for 2019 By | K4: ="Total for "&'Key Inputs'!E34-1 -> Total for 2019
H5: ="for "&'Key Inputs'!E34 -> for 2020 | I5: ="for "&'Key Inputs'!E34-1 -> for 2019 | J5: Emergency | K5: As Modified By | L5: Paid or | M5: Reserved | O5: Canceled
J6: Appropriation | K6: All Transfers | L6: Charged
C7: Operating: | G7: XXXXXX | H7: XXXXXXXXXX | I7: XXXXXXXXXX | J7: XXXXXXXXXX | K7: XXXXXXXXXX | L7: XXXXXXXXXX | M7: XXXXXXXXXX
K8: =+I8 -> 0 | M8: =IFERROR(IF(+K8-L8>=0,K8-L8,"*")-O8,"*") -> 0
K9: =+I9 -> 0 | M9: 0
K10: 0 | M10: 0
K11: 0 | M11: 0
K12: 0 | M12: 0
K13: 0 | M13: 0
K14: 0 | M14: 0
K15: 0 | M15: 0
K16: 0 | M16: 0
K17: 0 | M17: 0
K18: 0 | M18: 0
K19: 0 | M19: 0
K20: 0 | M20: 0
K21: 0 | M21: 0
K22: 0 | M22: 0
K23: 0 | M23: 0
K24: 0 | M24: 0
K25: 0 | M25: 0
K26: 0 | M26: 0
B27: Sheet 32a

Sheet 32b-Utility3 (hidden)
B2: ="DEDICATED "&UPPER('Key Inputs'!E41)&" UTILITY BUDGET - (continued)" -> DEDICATED UTILITY BUDGET - (continued)
H3: Appropriated | L3: ="Expended "&'Key Inputs'!E34-1 -> Expended 2019
F4: ="11. APPROPRIATIONS FOR "&UPPER('Key Inputs'!E41)&" UTILITY" -> 11. APPROPRIATIONS FOR UTILITY | G4: FCOA | J4: ="for "&'Key Inputs'!E34-1&" By" -> for 2019 By | K4: ="Total for "&'Key Inputs'!E34-1 -> Total for 2019
H5: ="for "&'Key Inputs'!E34 -> for 2020 | I5: ="for "&'Key Inputs'!E34-1 -> for 2019 | J5: Emergency | K5: As Modified By | L5: Paid or | M5: Reserved | O5: Canceled
J6: Appropriation | K6: All Transfers | L6: Charged
C7: Operating: | G7: XXXXXX | H7: XXXXXXXXXX | I7: XXXXXXXXXX | J7: XXXXXXXXXX | K7: XXXXXXXXXX | L7: XXXXXXXXXX | M7: XXXXXXXXXX
E8: Salaries & Wages | G8: 55-501 | K8: =+I8 -> 0 | M8: =IFERROR(IF(+K8-L8>=0,K8-L8,"*")-O8,"*") -> 0
E9: Other Expenses | G9: 55-502 | K9: =+I9 -> 0 | M9: =IFERROR(IF(+K9-L9>=0,K9-L9,"*")-O9,"*") -> 0
K10: 0 | M10: =IFERROR(IF(+K10-L10>=0,K10-L10,"*")-O10,"*") -> 0
K11: 0 | M11: =IFERROR(IF(+K11-L11>=0,K11-L11,"*")-O11,"*") -> 0
K12: 0 | M12: =IFERROR(IF(+K12-L12>=0,K12-L12,"*")-O12,"*") -> 0
C13: Capital Improvements: | G13: XXXXXX | H13: XXXXXXXXXX | I13: XXXXXXXXXX | J13: XXXXXXXXXX | K13: XXXXXXXXXX | L13: XXXXXXXXXX | M13: XXXXXXXXXX
E14: Down Payments on Improvements | G14: 55-510 | K14: 0 | M14: =IFERROR(IF(+K14-L14>=0,K14-L14,"*")-O14,"*") -> 0
E15: Capital Improvement Fund | G15: 55-511 | J15: XXXXXXXXXX | K15: 0 | M15: =IFERROR(IF(+K15-L15>=0,K15-L15,"*")-O15,"*") -> 0
E16: Capital Outlay | G16: 55-512 | K16: 0 | M16: =IFERROR(IF(+K16-L16>=0,K16-L16,"*")-O16,"*") -> 0
K17: 0 | M17: =IFERROR(IF(+K17-L17>=0,K17-L17,"*")-O17,"*") -> 0
K18: 0 | M18: =IFERROR(IF(+K18-L18>=0,K18-L18,"*")-O18,"*") -> 0
C19: Debt Service: | G19: XXXXXX | H19: XXXXXXXXXX | I19: XXXXXXXXXX | J19: XXXXXXXXXX | K19: XXXXXXXXXX | L19: XXXXXXXXXX | M19: XXXXXXXXXX
E20: Payment on Bond Principal | G20: 55-520 | K20: 0 | M20: XXXXXXXXXX | O20: =K20-L20 -> 0
E21: Payment on Bond Anticipation Notes & Capital Notes | G21: 55-521 | K21: 0 | M21: XXXXXXXXXX | O21: =K21-L21 -> 0
E22: Interest on Bonds | G22: 55-522 | K22: 0 | M22: XXXXXXXXXX | O22: 0
E23: Interest on Notes | G23: 55-523 | K23: 0 | M23: XXXXXXXXXX | O23: 0
K24: 0 | M24: XXXXXXXXXX | O24: 0
K25: 0 | M25: XXXXXXXXXX | O25: 0
K26: 0 | M26: XXXXXXXXXX | O26: 0
B27: Sheet 32b

Sheet 33-Utility3 (hidden)
B2: ="DEDICATED "&UPPER('Key Inputs'!E41)&" UTILITY BUDGET - (continued)" -> DEDICATED UTILITY BUDGET - (continued)
H3: Appropriated | L3: ="Expended "&'Key Inputs'!E34-1 -> Expended 2019
C4: ="11. APPROPRIATIONS FOR "&UPPER('Key Inputs'!E41)&" UTILITY" -> 11. APPROPRIATIONS FOR UTILITY | G4: FCOA | J4: ="for "&'Key Inputs'!E34-1&" By" -> for 2019 By | K4: ="Total for "&'Key Inputs'!E34-1 -> Total for 2019
H5: ="for "&'Key Inputs'!E34 -> for 2020 | I5: ="for "&'Key Inputs'!E34-1 -> for 2019 | J5: Emergency | K5: As Modified By | L5: Paid or | M5: Reserved | O5: Canceled
J6: Appropriation | K6: All Transfers | L6: Charged
C7: Deferred Charges and Statutory Expenditures: | G7: XXXXXX | H7: XXXXXXXXXX | I7: XXXXXXXXXX | J7: XXXXXXXXXX | K7: XXXXXXXXXX | L7: XXXXXXXXXX | M7: XXXXXXXXXX
D8: DEFERRED CHARGES: | G8: XXXXXX | H8: XXXXXXXXXX | I8: XXXXXXXXXX | J8: XXXXXXXXXX | K8: XXXXXXXXXX | L8: XXXXXXXXXX | M8: XXXXXXXXXX
E9: Emergency Authorizations | G9: 55-530 | J9: XXXXXXXXXX | K9: =+I9 -> 0 | M9: XXXXXXXXXX | O9: =K9-L9 -> 0
J10: XXXXXXXXXX | K10: =+I10 -> 0 | M10: XXXXXXXXXX | O10: =K10-L10 -> 0
J11: XXXXXXXXXX | K11: =+I11 -> 0 | M11: XXXXXXXXXX | O11: =K11-L11 -> 0
J12: XXXXXXXXXX | K12: =+I12 -> 0 | M12: XXXXXXXXXX | O12: =K12-L12 -> 0
J13: XXXXXXXXXX | K13: =+I13 -> 0 | M13: XXXXXXXXXX | O13: =K13-L13 -> 0
D14: STATUTORY EXPENDITURES: | G14: XXXXXX | H14: XXXXXXXXXX | I14: XXXXXXXXXX | J14: XXXXXXXXXX | K14: XXXXXXXXXX | L14: XXXXXXXXXX | M14: XXXXXXXXXX
E15: Contribution To: | K15: =+I15 -> 0 | M15: =IFERROR(IF(+K15-L15>=0,K15-L15,"*")-O16,"*") -> 0
F16: Public Employee's Retirement System | G16: 55-540
F17: Social Security System (O.A.S.I.) | G17: 55-541 | K17: =+I17 -> 0 | M17: =IFERROR(IF(+K17-L17>=0,K17-L17,"*")-O17,"*") -> 0
E18: Unemployment Compensation Insurance (N.J.S.A. 43:21-3 et. Seq.) | G18: 55-542 | K18: 0 | M18: =IFERROR(IF(+K18-L18>=0,K18-L18,"*")-O18,"*") -> 0
K19: 0 | M19: 0
K20: 0 | M20: 0
K21: 0 | M21: 0
C22: Judgements | G22: 55-531 | K22: 0 | M22: XXXXXXXXXX | O22: =K22-L22 -> 0
C23: Deficit in Operations in Prior Years | G23: 55-532 | J23: XXXXXXXXXX | K23: 0 | M23: XXXXXXXXXX | O23: =K23-L23 -> 0
C24: Surplus (General Budget ) | G24: 55-545 | J24: XXXXXXXXXX | K24: 0 | M24: XXXXXXXXXX | O24: =K24-L24 -> 0
D25: ="TOTAL "&UPPER('Key Inputs'!E41)&" UTILITY APPROPRIATIONS" -> TOTAL UTILITY APPROPRIATIONS | G25: 55-599 | H25: =+SUM(H9:H24)+SUM('32b-Utility3'!H8:H26)+SUM('32-Utility3:32a-Utility3'!H8:H26) -> 0 | I25: =+SUM(I9:I24)+SUM('32b-Utility3'!I8:I26)+SUM('32-Utility3:32a-Utility3'!I8:I26) -> 0 | J25: =+SUM(J9:J24)+SUM('32b-Utility3'!J8:J26)+SUM('32-Utility3:32a-Utility3'!J8:J26) -> 0 | K25: =+SUM(K9:K24)+SUM('32b-Utility3'!K8:K26)+SUM('32-Utility3:32a-Utility3'!K8:K26) -> 0 | L25: =+SUM(L9:L24)+SUM('32b-Utility3'!L8:L26)+SUM('32-Utility3:32a-Utility3'!L8:L26) -> 0 | M25: =+SUM(M9:M24)+SUM('32b-Utility3'!M8:M26)+SUM('32-Utility3:32a-Utility3'!M8:M26) -> 0 | O25: =K25-L25-M25 -> 0
B26: Sheet 33

Sheet 31-Utility4 (hidden)
C2: ="DEDICATED "&UPPER('Key Inputs'!E42)&" UTILITY BUDGET" -> DEDICATED UTILITY BUDGET
J3: Anticipated | L3: Realized in
C4: ="10. DEDICATED REVENUES FROM "&UPPER('Key Inputs'!E42)&" UTILITY" -> 10. DEDICATED REVENUES FROM UTILITY | I4: FCOA | J4: ='Key Inputs'!E34 -> 2020 | K4: =J4-1 -> 2019 | L4: ="Cash in "&K4 -> Cash in 2019
E5: Operating Surplus Anticipated | I5: 08-501
E6: Operating Surplus Anticipated with Prior Written Consent of Director of Local Government Services | I6: 08-502
G7: Total Operating Surplus Anticipated | I7: 08-500 | J7: =+J5+J6 -> 0 | K7: =+K5+K6 -> 0 | L7: =+L5+L6 -> 0
E8: Rents | I8: 08-503
E10: Miscellaneous | I10: 08-505
E19: Special Items of General Revenues Anticipated with Prior Written Consent of Director of Local Governement Services | I19: XXXXXX | J19: XXXXXXXXXX | K19: XXXXXXXXXX | L19: XXXXXXXXXX
E25: Deficit (General Budget) | I25: 08-549
F26: ="Total "&'Key Inputs'!E42&" Utility Revenues" -> Total Utility Revenues | I26: 08-599 | J26: =SUM(J7:J25) -> 0 | K26: =SUM(K7:K25) -> 0 | L26: =SUM(L7:L25) -> 0
C27: Sheet 31

Sheet 32-Utility4 (hidden)
B2: ="DEDICATED "&UPPER('Key Inputs'!E42)&" UTILITY BUDGET - (continued)" -> DEDICATED UTILITY BUDGET - (continued)
H3: Appropriated | L3: ="Expended "&'Key Inputs'!E34-1 -> Expended 2019
F4: ="11. APPROPRIATIONS FOR "&UPPER('Key Inputs'!E42)&" UTILITY" -> 11. APPROPRIATIONS FOR UTILITY | G4: FCOA | J4: ="for "&'Key Inputs'!E34-1&" By" -> for 2019 By | K4: ="Total for "&'Key Inputs'!E34-1 -> Total for 2019
H5: ="for "&'Key Inputs'!E34 -> for 2020 | I5: ="for "&'Key Inputs'!E34-1 -> for 2019 | J5: Emergency | K5: As Modified By | L5: Paid or | M5: Reserved | O5: Canceled
J6: Appropriation | K6: All Transfers | L6: Charged
C7: Operating: | G7: XXXXXX | H7: XXXXXXXXXX | I7: XXXXXXXXXX | J7: XXXXXXXXXX | K7: XXXXXXXXXX | L7: XXXXXXXXXX | M7: XXXXXXXXXX
E8: Salaries & Wages | G8: 55-501 | K8: =+I8 -> 0 | M8: =IFERROR(IF(+K8-L8>=0,K8-L8,"*")-O8,"*") -> 0
E9: Other Expenses | G9: 55-502 | K9: =+I9 -> 0 | M9: 0
K10: 0 | M10: 0
K11: 0 | M11: 0
K12: 0 | M12: 0
K13: 0 | M13: 0
K14: 0 | M14: 0
K15: 0 | M15: 0
K16: 0 | M16: 0
K17: 0 | M17: 0
K18: 0 | M18: 0
K19: 0 | M19: 0
K20: 0 | M20: 0
K21: 0 | M21: 0
K22: 0 | M22: 0
K23: 0 | M23: 0
K24: 0 | M24: 0
K25: 0 | M25: 0
K26: 0 | M26: 0
B27: Sheet 32

Sheet 32a-Utility4 (hidden)
B2: ="DEDICATED "&UPPER('Key Inputs'!E42)&" UTILITY BUDGET - (continued)" -> DEDICATED UTILITY BUDGET - (continued)
H3: Appropriated | L3: ="Expended "&'Key Inputs'!E34-1 -> Expended 2019
F4: ="11. APPROPRIATIONS FOR "&UPPER('Key Inputs'!E42)&" UTILITY" -> 11. APPROPRIATIONS FOR UTILITY | G4: FCOA | J4: ="for "&'Key Inputs'!E34-1&" By" -> for 2019 By | K4: ="Total for "&'Key Inputs'!E34-1 -> Total for 2019
H5: ="for "&'Key Inputs'!E34 -> for 2020 | I5: ="for "&'Key Inputs'!E34-1 -> for 2019 | J5: Emergency | K5: As Modified By | L5: Paid or | M5: Reserved | O5: Canceled
J6: Appropriation | K6: All Transfers | L6: Charged
C7: Operating: | G7: XXXXXX | H7: XXXXXXXXXX | I7: XXXXXXXXXX | J7: XXXXXXXXXX | K7: XXXXXXXXXX | L7: XXXXXXXXXX | M7: XXXXXXXXXX
K8: =+I8 -> 0 | M8: =IFERROR(IF(+K8-L8>=0,K8-L8,"*")-O8,"*") -> 0
K9: =+I9 -> 0 | M9: 0
K10: 0 | M10: 0
K11: 0 | M11: 0
K12: 0 | M12: 0
K13: 0 | M13: 0
K14: 0 | M14: 0
K15: 0 | M15: 0
K16: 0 | M16: 0
K17: 0 | M17: 0
K18: 0 | M18: 0
K19: 0 | M19: 0
K20: 0 | M20: 0
K21: 0 | M21: 0
K22: 0 | M22: 0
K23: 0 | M23: 0
K24: 0 | M24: 0
K25: 0 | M25: 0
K26: 0 | M26: 0
B27: Sheet 32a

Sheet 32b-Utility4 (hidden)
B2: ="DEDICATED "&UPPER('Key Inputs'!E42)&" UTILITY BUDGET - (continued)" -> DEDICATED UTILITY BUDGET - (continued)
H3: Appropriated | L3: ="Expended "&'Key Inputs'!E34-1 -> Expended 2019
F4: ="11. APPROPRIATIONS FOR "&UPPER('Key Inputs'!E42)&" UTILITY" -> 11. APPROPRIATIONS FOR UTILITY | G4: FCOA | J4: ="for "&'Key Inputs'!E34-1&" By" -> for 2019 By | K4: ="Total for "&'Key Inputs'!E34-1 -> Total for 2019
H5: ="for "&'Key Inputs'!E34 -> for 2020 | I5: ="for "&'Key Inputs'!E34-1 -> for 2019 | J5: Emergency | K5: As Modified By | L5: Paid or | M5: Reserved | O5: Canceled
J6: Appropriation | K6: All Transfers | L6: Charged
C7: Operating: | G7: XXXXXX | H7: XXXXXXXXXX | I7: XXXXXXXXXX | J7: XXXXXXXXXX | K7: XXXXXXXXXX | L7: XXXXXXXXXX | M7: XXXXXXXXXX
E8: Salaries & Wages | G8: 55-501 | K8: =+I8 -> 0 | M8: =IFERROR(IF(+K8-L8>=0,K8-L8,"*")-O8,"*") -> 0
E9: Other Expenses | G9: 55-502 | K9: =+I9 -> 0 | M9: =IFERROR(IF(+K9-L9>=0,K9-L9,"*")-O9,"*") -> 0
K10: 0 | M10: =IFERROR(IF(+K10-L10>=0,K10-L10,"*")-O10,"*") -> 0
K11: 0 | M11: =IFERROR(IF(+K11-L11>=0,K11-L11,"*")-O11,"*") -> 0
K12: 0 | M12: =IFERROR(IF(+K12-L12>=0,K12-L12,"*")-O12,"*") -> 0
C13: Capital Improvements: | G13: XXXXXX | H13: XXXXXXXXXX | I13: XXXXXXXXXX | J13: XXXXXXXXXX | K13: XXXXXXXXXX | L13: XXXXXXXXXX | M13: XXXXXXXXXX
E14: Down Payments on Improvements | G14: 55-510 | K14: 0 | M14: =IFERROR(IF(+K14-L14>=0,K14-L14,"*")-O14,"*") -> 0
E15: Capital Improvement Fund | G15: 55-511 | J15: XXXXXXXXXX | K15: 0 | M15: =IFERROR(IF(+K15-L15>=0,K15-L15,"*")-O15,"*") -> 0
E16: Capital Outlay | G16: 55-512 | K16: 0 | M16: =IFERROR(IF(+K16-L16>=0,K16-L16,"*")-O16,"*") -> 0
K17: 0 | M17: =IFERROR(IF(+K17-L17>=0,K17-L17,"*")-O17,"*") -> 0
K18: 0 | M18: =IFERROR(IF(+K18-L18>=0,K18-L18,"*")-O18,"*") -> 0
C19: Debt Service: | G19: XXXXXX | H19: XXXXXXXXXX | I19: XXXXXXXXXX | J19: XXXXXXXXXX | K19: XXXXXXXXXX | L19: XXXXXXXXXX | M19: XXXXXXXXXX
E20: Payment on Bond Principal | G20: 55-520 | K20: 0 | M20: XXXXXXXXXX | O20: =K20-L20 -> 0
E21: Payment on Bond Anticipation Notes & Capital Notes | G21: 55-521 | K21: 0 | M21: XXXXXXXXXX | O21: =K21-L21 -> 0
E22: Interest on Bonds | G22: 55-522 | K22: 0 | M22: XXXXXXXXXX | O22: 0
E23: Interest on Notes | G23: 55-523 | K23: 0 | M23: XXXXXXXXXX | O23: 0
K24: 0 | M24: XXXXXXXXXX | O24: 0
K25: 0 | M25: XXXXXXXXXX | O25: 0
K26: 0 | M26: XXXXXXXXXX | O26: 0
B27: Sheet 32b

Sheet 33-Utility4 (hidden)
B2: ="DEDICATED "&UPPER('Key Inputs'!E42)&" UTILITY BUDGET - (continued)" -> DEDICATED UTILITY BUDGET - (continued)
H3: Appropriated | L3: ="Expended "&'Key Inputs'!E34-1 -> Expended 2019
C4: ="11. APPROPRIATIONS FOR "&UPPER('Key Inputs'!E42)&" UTILITY" -> 11. APPROPRIATIONS FOR UTILITY | G4: FCOA | J4: ="for "&'Key Inputs'!E34-1&" By" -> for 2019 By | K4: ="Total for "&'Key Inputs'!E34-1 -> Total for 2019
H5: ="for "&'Key Inputs'!E34 -> for 2020 | I5: ="for "&'Key Inputs'!E34-1 -> for 2019 | J5: Emergency | K5: As Modified By | L5: Paid or | M5: Reserved | O5: Canceled
J6: Appropriation | K6: All Transfers | L6: Charged
C7: Deferred Charges and Statutory Expenditures: | G7: XXXXXX | H7: XXXXXXXXXX | I7: XXXXXXXXXX | J7: XXXXXXXXXX | K7: XXXXXXXXXX | L7: XXXXXXXXXX | M7: XXXXXXXXXX
D8: DEFERRED CHARGES: | G8: XXXXXX | H8: XXXXXXXXXX | I8: XXXXXXXXXX | J8: XXXXXXXXXX | K8: XXXXXXXXXX | L8: XXXXXXXXXX | M8: XXXXXXXXXX
E9: Emergency Authorizations | G9: 55-530 | J9: XXXXXXXXXX | K9: =+I9 -> 0 | M9: XXXXXXXXXX | O9: =K9-L9 -> 0
J10: XXXXXXXXXX | K10: =+I10 -> 0 | M10: XXXXXXXXXX | O10: =K10-L10 -> 0
J11: XXXXXXXXXX | K11: =+I11 -> 0 | M11: XXXXXXXXXX | O11: =K11-L11 -> 0
J12: XXXXXXXXXX | K12: =+I12 -> 0 | M12: XXXXXXXXXX | O12: =K12-L12 -> 0
J13: XXXXXXXXXX | K13: =+I13 -> 0 | M13: XXXXXXXXXX | O13: =K13-L13 -> 0
D14: STATUTORY EXPENDITURES: | G14: XXXXXX | H14: XXXXXXXXXX | I14: XXXXXXXXXX | J14: XXXXXXXXXX | K14: XXXXXXXXXX | L14: XXXXXXXXXX | M14: XXXXXXXXXX
E15: Contribution To: | K15: =+I15 -> 0 | M15: =IFERROR(IF(+K15-L15>=0,K15-L15,"*")-O16,"*") -> 0
F16: Public Employee's Retirement System | G16: 55-540
F17: Social Security System (O.A.S.I.) | G17: 55-541 | K17: =+I17 -> 0 | M17: =IFERROR(IF(+K17-L17>=0,K17-L17,"*")-O17,"*") -> 0
E18: Unemployment Compensation Insurance (N.J.S.A. 43:21-3 et. Seq.) | G18: 55-542 | K18: 0 | M18: =IFERROR(IF(+K18-L18>=0,K18-L18,"*")-O18,"*") -> 0
K19: 0 | M19: 0
K20: 0 | M20: 0
K21: 0 | M21: 0
C22: Judgements | G22: 55-531 | K22: 0 | M22: XXXXXXXXXX | O22: =K22-L22 -> 0
C23: Deficit in Operations in Prior Years | G23: 55-532 | J23: XXXXXXXXXX | K23: 0 | M23: XXXXXXXXXX | O23: =K23-L23 -> 0
C24: Surplus (General Budget ) | G24: 55-545 | J24: XXXXXXXXXX | K24: 0 | M24: XXXXXXXXXX | O24: =K24-L24 -> 0
D25: ="TOTAL "&UPPER('Key Inputs'!E42)&" UTILITY APPROPRIATIONS" -> TOTAL UTILITY APPROPRIATIONS | G25: 55-599 | H25: =+SUM(H9:H24)+SUM('32b-Utility4'!H8:H26)+SUM('32-Utility4:32a-Utility4'!H8:H26) -> 0 | I25: =+SUM(I9:I24)+SUM('32b-Utility4'!I8:I26)+SUM('32-Utility4:32a-Utility4'!I8:I26) -> 0 | J25: =+SUM(J9:J24)+SUM('32b-Utility4'!J8:J26)+SUM('32-Utility4:32a-Utility4'!J8:J26) -> 0 | K25: =+SUM(K9:K24)+SUM('32b-Utility4'!K8:K26)+SUM('32-Utility4:32a-Utility4'!K8:K26) -> 0 | L25: =+SUM(L9:L24)+SUM('32b-Utility4'!L8:L26)+SUM('32-Utility4:32a-Utility4'!L8:L26) -> 0 | M25: =+SUM(M9:M24)+SUM('32b-Utility4'!M8:M26)+SUM('32-Utility4:32a-Utility4'!M8:M26) -> 0 | O25: =K25-L25-M25 -> 0
B26: Sheet 33

Sheet 31-Utility5 (hidden)
C2: ="DEDICATED "&UPPER('Key Inputs'!E43)&" UTILITY BUDGET" -> DEDICATED UTILITY BUDGET
J3: Anticipated | L3: Realized in
C4: ="10. DEDICATED REVENUES FROM "&UPPER('Key Inputs'!E43)&" UTILITY" -> 10. DEDICATED REVENUES FROM UTILITY | I4: FCOA | J4: ='Key Inputs'!E34 -> 2020 | K4: =J4-1 -> 2019 | L4: ="Cash in "&K4 -> Cash in 2019
E5: Operating Surplus Anticipated | I5: 08-501
E6: Operating Surplus Anticipated with Prior Written Consent of Director of Local Government Services | I6: 08-502
G7: Total Operating Surplus Anticipated | I7: 08-500 | J7: =+J5+J6 -> 0 | K7: =+K5+K6 -> 0 | L7: =+L5+L6 -> 0
E8: Rents | I8: 08-503
E10: Miscellaneous | I10: 08-505
E19: Special Items of General Revenues Anticipated with Prior Written Consent of Director of Local Governement Services | I19: XXXXXX | J19: XXXXXXXXXX | K19: XXXXXXXXXX | L19: XXXXXXXXXX
E25: Deficit (General Budget) | I25: 08-549
F26: ="Total "&'Key Inputs'!E43&" Utility Revenues" -> Total Utility Revenues | I26: 08-599 | J26: =SUM(J7:J25) -> 0 | K26: =SUM(K7:K25) -> 0 | L26: =SUM(L7:L25) -> 0
C27: Sheet 31

Sheet 32-Utility5 (hidden)
B2: ="DEDICATED "&UPPER('Key Inputs'!E43)&" UTILITY BUDGET - (continued)" -> DEDICATED UTILITY BUDGET - (continued)
H3: Appropriated | L3: ="Expended "&'Key Inputs'!E34-1 -> Expended 2019
F4: ="11. APPROPRIATIONS FOR "&UPPER('Key Inputs'!E43)&" UTILITY" -> 11. APPROPRIATIONS FOR UTILITY | G4: FCOA | J4: ="for "&'Key Inputs'!E34-1&" By" -> for 2019 By | K4: ="Total for "&'Key Inputs'!E34-1 -> Total for 2019
H5: ="for "&'Key Inputs'!E34 -> for 2020 | I5: ="for "&'Key Inputs'!E34-1 -> for 2019 | J5: Emergency | K5: As Modified By | L5: Paid or | M5: Reserved | O5: Canceled
J6: Appropriation | K6: All Transfers | L6: Charged
C7: Operating: | G7: XXXXXX | H7: XXXXXXXXXX | I7: XXXXXXXXXX | J7: XXXXXXXXXX | K7: XXXXXXXXXX | L7: XXXXXXXXXX | M7: XXXXXXXXXX
E8: Salaries & Wages | G8: 55-501 | K8: =+I8 -> 0 | M8: =IFERROR(IF(+K8-L8>=0,K8-L8,"*")-O8,"*") -> 0
E9: Other Expenses | G9: 55-502 | K9: =+I9 -> 0 | M9: 0
K10: 0 | M10: 0
K11: 0 | M11: 0
K12: 0 | M12: 0
K13: 0 | M13: 0
K14: 0 | M14: 0
K15: 0 | M15: 0
K16: 0 | M16: 0
K17: 0 | M17: 0
K18: 0 | M18: 0
K19: 0 | M19: 0
K20: 0 | M20: 0
K21: 0 | M21: 0
K22: 0 | M22: 0
K23: 0 | M23: 0
K24: 0 | M24: 0
K25: 0 | M25: 0
K26: 0 | M26: 0
B27: Sheet 32

Sheet 32a-Utility5 (hidden)
B2: ="DEDICATED "&UPPER('Key Inputs'!E43)&" UTILITY BUDGET - (continued)" -> DEDICATED UTILITY BUDGET - (continued)
H3: Appropriated | L3: ="Expended "&'Key Inputs'!E34-1 -> Expended 2019
F4: ="11. APPROPRIATIONS FOR "&UPPER('Key Inputs'!E43)&" UTILITY" -> 11. APPROPRIATIONS FOR UTILITY | G4: FCOA | J4: ="for "&'Key Inputs'!E34-1&" By" -> for 2019 By | K4: ="Total for "&'Key Inputs'!E34-1 -> Total for 2019
H5: ="for "&'Key Inputs'!E34 -> for 2020 | I5: ="for "&'Key Inputs'!E34-1 -> for 2019 | J5: Emergency | K5: As Modified By | L5: Paid or | M5: Reserved | O5: Canceled
J6: Appropriation | K6: All Transfers | L6: Charged
C7: Operating: | G7: XXXXXX | H7: XXXXXXXXXX | I7: XXXXXXXXXX | J7: XXXXXXXXXX | K7: XXXXXXXXXX | L7: XXXXXXXXXX | M7: XXXXXXXXXX
K8: =+I8 -> 0 | M8: =IFERROR(IF(+K8-L8>=0,K8-L8,"*")-O8,"*") -> 0
K9: =+I9 -> 0 | M9: 0
K10: 0 | M10: 0
K11: 0 | M11: 0
K12: 0 | M12: 0
K13: 0 | M13: 0
K14: 0 | M14: 0
K15: 0 | M15: 0
K16: 0 | M16: 0
K17: 0 | M17: 0
K18: 0 | M18: 0
K19: 0 | M19: 0
K20: 0 | M20: 0
K21: 0 | M21: 0
K22: 0 | M22: 0
K23: 0 | M23: 0
K24: 0 | M24: 0
K25: 0 | M25: 0
K26: 0 | M26: 0
B27: Sheet 32a

Sheet 32b-Utility5 (hidden)
B2: ="DEDICATED "&UPPER('Key Inputs'!E43)&" UTILITY BUDGET - (continued)" -> DEDICATED UTILITY BUDGET - (continued)
H3: Appropriated | L3: ="Expended "&'Key Inputs'!E34-1 -> Expended 2019
F4: ="11. APPROPRIATIONS FOR "&UPPER('Key Inputs'!E43)&" UTILITY" -> 11. APPROPRIATIONS FOR UTILITY | G4: FCOA | J4: ="for "&'Key Inputs'!E34-1&" By" -> for 2019 By | K4: ="Total for "&'Key Inputs'!E34-1 -> Total for 2019
H5: ="for "&'Key Inputs'!E34 -> for 2020 | I5: ="for "&'Key Inputs'!E34-1 -> for 2019 | J5: Emergency | K5: As Modified By | L5: Paid or | M5: Reserved | O5: Canceled
J6: Appropriation | K6: All Transfers | L6: Charged
C7: Operating: | G7: XXXXXX | H7: XXXXXXXXXX | I7: XXXXXXXXXX | J7: XXXXXXXXXX | K7: XXXXXXXXXX | L7: XXXXXXXXXX | M7: XXXXXXXXXX
E8: Salaries & Wages | G8: 55-501 | K8: =+I8 -> 0 | M8: =IFERROR(IF(+K8-L8>=0,K8-L8,"*")-O8,"*") -> 0
E9: Other Expenses | G9: 55-502 | K9: =+I9 -> 0 | M9: =IFERROR(IF(+K9-L9>=0,K9-L9,"*")-O9,"*") -> 0
K10: 0 | M10: =IFERROR(IF(+K10-L10>=0,K10-L10,"*")-O10,"*") -> 0
K11: =+I11 -> 0 | M11: =IFERROR(IF(+K11-L11>=0,K11-L11,"*")-O11,"*") -> 0
K12: 0 | M12: =IFERROR(IF(+K12-L12>=0,K12-L12,"*")-O12,"*") -> 0
C13: Capital Improvements: | G13: XXXXXX | H13: XXXXXXXXXX | I13: XXXXXXXXXX | J13: XXXXXXXXXX | K13: XXXXXXXXXX | L13: XXXXXXXXXX | M13: XXXXXXXXXX
E14: Down Payments on Improvements | G14: 55-510 | K14: 0 | M14: =IFERROR(IF(+K14-L14>=0,K14-L14,"*")-O14,"*") -> 0
E15: Capital Improvement Fund | G15: 55-511 | J15: XXXXXXXXXX | K15: 0 | M15: =IFERROR(IF(+K15-L15>=0,K15-L15,"*")-O15,"*") -> 0
E16: Capital Outlay | G16: 55-512 | K16: 0 | M16: =IFERROR(IF(+K16-L16>=0,K16-L16,"*")-O16,"*") -> 0
K17: 0 | M17: =IFERROR(IF(+K17-L17>=0,K17-L17,"*")-O17,"*") -> 0
K18: 0 | M18: =IFERROR(IF(+K18-L18>=0,K18-L18,"*")-O18,"*") -> 0
C19: Debt Service: | G19: XXXXXX | H19: XXXXXXXXXX | I19: XXXXXXXXXX | J19: XXXXXXXXXX | K19: XXXXXXXXXX | L19: XXXXXXXXXX | M19: XXXXXXXXXX
E20: Payment on Bond Principal | G20: 55-520 | K20: 0 | M20: XXXXXXXXXX | O20: =K20-L20 -> 0
E21: Payment on Bond Anticipation Notes & Capital Notes | G21: 55-521 | K21: 0 | M21: XXXXXXXXXX | O21: =K21-L21 -> 0
E22: Interest on Bonds | G22: 55-522 | K22: 0 | M22: XXXXXXXXXX | O22: 0
E23: Interest on Notes | G23: 55-523 | K23: 0 | M23: XXXXXXXXXX | O23: 0
K24: 0 | M24: XXXXXXXXXX | O24: 0
K25: 0 | M25: XXXXXXXXXX | O25: 0
K26: 0 | M26: XXXXXXXXXX | O26: 0
B27: Sheet 32b

Sheet 33-Utility5 (hidden)
B2: ="DEDICATED "&UPPER('Key Inputs'!E43)&" UTILITY BUDGET - (continued)" -> DEDICATED UTILITY BUDGET - (continued)
H3: Appropriated | L3: ="Expended "&'Key Inputs'!E34-1 -> Expended 2019
C4: ="11. APPROPRIATIONS FOR "&UPPER('Key Inputs'!E43)&" UTILITY" -> 11. APPROPRIATIONS FOR UTILITY | G4: FCOA | J4: ="for "&'Key Inputs'!E34-1&" By" -> for 2019 By | K4: ="Total for "&'Key Inputs'!E34-1 -> Total for 2019
H5: ="for "&'Key Inputs'!E34 -> for 2020 | I5: ="for "&'Key Inputs'!E34-1 -> for 2019 | J5: Emergency | K5: As Modified By | L5: Paid or | M5: Reserved
J6: Appropriation | K6: All Transfers | L6: Charged
C7: Deferred Charges and Statutory Expenditures: | G7: XXXXXX | H7: XXXXXXXXXX | I7: XXXXXXXXXX | J7: XXXXXXXXXX | K7: XXXXXXXXXX | L7: XXXXXXXXXX | M7: XXXXXXXXXX
D8: DEFERRED CHARGES: | G8: XXXXXX | H8: XXXXXXXXXX | I8: XXXXXXXXXX | J8: XXXXXXXXXX | K8: XXXXXXXXXX | L8: XXXXXXXXXX | M8: XXXXXXXXXX
E9: Emergency Authorizations | G9: 55-530 | J9: XXXXXXXXXX | K9: =+I9 -> 0 | M9: XXXXXXXXXX | O9: =K9-L9 -> 0
J10: XXXXXXXXXX | K10: =+I10 -> 0 | M10: XXXXXXXXXX | O10: =K10-L10 -> 0
J11: XXXXXXXXXX | K11: =+I11 -> 0 | M11: XXXXXXXXXX | O11: =K11-L11 -> 0
J12: XXXXXXXXXX | K12: =+I12 -> 0 | M12: XXXXXXXXXX | O12: =K12-L12 -> 0
J13: XXXXXXXXXX | K13: =+I13 -> 0 | M13: XXXXXXXXXX | O13: =K13-L13 -> 0
D14: STATUTORY EXPENDITURES: | G14: XXXXXX | H14: XXXXXXXXXX | I14: XXXXXXXXXX | J14: XXXXXXXXXX | K14: XXXXXXXXXX | L14: XXXXXXXXXX | M14: XXXXXXXXXX
E15: Contribution To: | K15: =+I15 -> 0 | M15: =IFERROR(IF(+K15-L15>=0,K15-L15,"*")-O16,"*") -> 0
F16: Public Employee's Retirement System | G16: 55-540
F17: Social Security System (O.A.S.I.) | G17: 55-541 | K17: =+I17 -> 0 | M17: =IFERROR(IF(+K17-L17>=0,K17-L17,"*")-O17,"*") -> 0
E18: Unemployment Compensation Insurance (N.J.S.A. 43:21-3 et. Seq.) | G18: 55-542 | K18: 0 | M18: =IFERROR(IF(+K18-L18>=0,K18-L18,"*")-O18,"*") -> 0
K19: 0 | M19: 0
K20: 0 | M20: 0
K21: 0 | M21: 0
C22: Judgements | G22: 55-531 | K22: 0 | M22: XXXXXXXXXX | O22: =K22-L22 -> 0
C23: Deficit in Operations in Prior Years | G23: 55-532 | J23: XXXXXXXXXX | K23: 0 | M23: XXXXXXXXXX | O23: =K23-L23 -> 0
C24: Surplus (General Budget ) | G24: 55-545 | J24: XXXXXXXXXX | K24: 0 | M24: XXXXXXXXXX | O24: =K24-L24 -> 0
D25: ="TOTAL "&UPPER('Key Inputs'!E43)&" UTILITY APPROPRIATIONS" -> TOTAL UTILITY APPROPRIATIONS | G25: 55-599 | H25: =+SUM(H9:H24)+SUM('32b-Utility5'!H8:H26)+SUM('32-Utility5:32a-Utility5'!H8:H26) -> 0 | I25: =+SUM(I9:I24)+SUM('32b-Utility5'!I8:I26)+SUM('32-Utility5:32a-Utility5'!I8:I26) -> 0 | J25: =+SUM(J9:J24)+SUM('32b-Utility5'!J8:J26)+SUM('32-Utility5:32a-Utility5'!J8:J26) -> 0 | K25: =+SUM(K9:K24)+SUM('32b-Utility5'!K8:K26)+SUM('32-Utility5:32a-Utility5'!K8:K26) -> 0 | L25: =+SUM(L9:L24)+SUM('32b-Utility5'!L8:L26)+SUM('32-Utility5:32a-Utility5'!L8:L26) -> 0 | M25: =+SUM(M9:M24)+SUM('32b-Utility5'!M8:M26)+SUM('32-Utility5:32a-Utility5'!M8:M26) -> 0 | O25: =K25-L25-M25 -> 0
B26: Sheet 33

Sheet 31-Utility6 (hidden)
C2: ="DEDICATED "&UPPER('Key Inputs'!E44)&" UTILITY BUDGET" -> DEDICATED UTILITY BUDGET
J3: Anticipated | L3: Realized in
C4: ="10. DEDICATED REVENUES FROM "&UPPER('Key Inputs'!E44)&" UTILITY" -> 10. DEDICATED REVENUES FROM UTILITY | I4: FCOA | J4: ='Key Inputs'!E34 -> 2020 | K4: =J4-1 -> 2019 | L4: ="Cash in "&K4 -> Cash in 2019
E5: Operating Surplus Anticipated | I5: 08-501
E6: Operating Surplus Anticipated with Prior Written Consent of Director of Local Government Services | I6: 08-502
G7: Total Operating Surplus Anticipated | I7: 08-500 | J7: =+J5+J6 -> 0 | K7: =+K5+K6 -> 0 | L7: =+L5+L6 -> 0
E8: Rents | I8: 08-503
E10: Miscellaneous | I10: 08-505
E19: Special Items of General Revenues Anticipated with Prior Written Consent of Director of Local Governement Services | I19: XXXXXX | J19: XXXXXXXXXX | K19: XXXXXXXXXX | L19: XXXXXXXXXX
E25: Deficit (General Budget) | I25: 08-549
F26: ="Total "&'Key Inputs'!E44&" Utility Revenues" -> Total Utility Revenues | I26: 08-599 | J26: =SUM(J7:J25) -> 0 | K26: =SUM(K7:K25) -> 0 | L26: =SUM(L7:L25) -> 0
C27: Sheet 31

Sheet 32-Utility6 (hidden)
B2: ="DEDICATED "&UPPER('Key Inputs'!E44)&" UTILITY BUDGET - (continued)" -> DEDICATED UTILITY BUDGET - (continued)
H3: Appropriated | L3: ="Expended "&'Key Inputs'!E34-1 -> Expended 2019
F4: ="11. APPROPRIATIONS FOR "&UPPER('Key Inputs'!E44)&" UTILITY" -> 11. APPROPRIATIONS FOR UTILITY | G4: FCOA | J4: ="for "&'Key Inputs'!E34-1&" By" -> for 2019 By | K4: ="Total for "&'Key Inputs'!E34-1 -> Total for 2019
H5: ="for "&'Key Inputs'!E34 -> for 2020 | I5: ="for "&'Key Inputs'!E34-1 -> for 2019 | J5: Emergency | K5: As Modified By | L5: Paid or | M5: Reserved | O5: Canceled
J6: Appropriation | K6: All Transfers | L6: Charged
C7: Operating: | G7: XXXXXX | H7: XXXXXXXXXX | I7: XXXXXXXXXX | J7: XXXXXXXXXX | K7: XXXXXXXXXX | L7: XXXXXXXXXX | M7: XXXXXXXXXX
E8: Salaries & Wages | G8: 55-501 | K8: =+I8 -> 0 | M8: =IFERROR(IF(+K8-L8>=0,K8-L8,"*")-O8,"*") -> 0
E9: Other Expenses | G9: 55-502 | K9: =+I9 -> 0 | M9: 0
K10: 0 | M10: 0
K11: =+I11 -> 0 | M11: 0
K12: 0 | M12: 0
K13: 0 | M13: 0
K14: 0 | M14: 0
K15: 0 | M15: 0
K16: 0 | M16: 0
K17: 0 | M17: 0
K18: 0 | M18: 0
K19: 0 | M19: 0
K20: 0 | M20: 0
K21: 0 | M21: 0
K22: 0 | M22: 0
K23: 0 | M23: 0
K24: 0 | M24: 0
K25: 0 | M25: 0
K26: 0 | M26: 0
B27: Sheet 32

Sheet 32a-Utility6 (hidden)
B2: ="DEDICATED "&UPPER('Key Inputs'!E44)&" UTILITY BUDGET - (continued)" -> DEDICATED UTILITY BUDGET - (continued)
H3: Appropriated | L3: ="Expended "&'Key Inputs'!E34-1 -> Expended 2019
F4: ="11. APPROPRIATIONS FOR "&UPPER('Key Inputs'!E44)&" UTILITY" -> 11. APPROPRIATIONS FOR UTILITY | G4: FCOA | J4: ="for "&'Key Inputs'!E34-1&" By" -> for 2019 By | K4: ="Total for "&'Key Inputs'!E34-1 -> Total for 2019
H5: ="for "&'Key Inputs'!E34 -> for 2020 | I5: ="for "&'Key Inputs'!E34-1 -> for 2019 | J5: Emergency | K5: As Modified By | L5: Paid or | M5: Reserved | O5: Canceled
J6: Appropriation | K6: All Transfers | L6: Charged
C7: Operating: | G7: XXXXXX | H7: XXXXXXXXXX | I7: XXXXXXXXXX | J7: XXXXXXXXXX | K7: XXXXXXXXXX | L7: XXXXXXXXXX | M7: XXXXXXXXXX
K8: =+I8 -> 0 | M8: =IFERROR(IF(+K8-L8>=0,K8-L8,"*")-O8,"*") -> 0
K9: =+I9 -> 0 | M9: 0
K10: 0 | M10: 0
K11: 0 | M11: 0
K12: 0 | M12: 0
K13: 0 | M13: 0
K14: 0 | M14: 0
K15: 0 | M15: 0
K16: 0 | M16: 0
K17: 0 | M17: 0
K18: 0 | M18: 0
K19: 0 | M19: 0
K20: 0 | M20: 0
K21: 0 | M21: 0
K22: 0 | M22: 0
K23: 0 | M23: 0
K24: 0 | M24: 0
K25: 0 | M25: 0
K26: 0 | M26: 0
B27: Sheet 32a

Sheet 32b-Utility6 (hidden)
B2: ="DEDICATED "&UPPER('Key Inputs'!E44)&" UTILITY BUDGET - (continued)" -> DEDICATED UTILITY BUDGET - (continued)
H3: Appropriated | L3: ="Expended "&'Key Inputs'!E34-1 -> Expended 2019
F4: ="11. APPROPRIATIONS FOR "&UPPER('Key Inputs'!E44)&" UTILITY" -> 11. APPROPRIATIONS FOR UTILITY | G4: FCOA | J4: ="for "&'Key Inputs'!E34-1&" By" -> for 2019 By | K4: ="Total for "&'Key Inputs'!E34-1 -> Total for 2019
H5: ="for "&'Key Inputs'!E34 -> for 2020 | I5: ="for "&'Key Inputs'!E34-1 -> for 2019 | J5: Emergency | K5: As Modified By | L5: Paid or | M5: Reserved | O5: Canceled
J6: Appropriation | K6: All Transfers | L6: Charged
C7: Operating: | G7: XXXXXX | H7: XXXXXXXXXX | I7: XXXXXXXXXX | J7: XXXXXXXXXX | K7: XXXXXXXXXX | L7: XXXXXXXXXX | M7: XXXXXXXXXX
E8: Salaries & Wages | G8: 55-501 | K8: =+I8 -> 0 | M8: =IFERROR(IF(+K8-L8>=0,K8-L8,"*")-O8,"*") -> 0
E9: Other Expenses | G9: 55-502 | K9: =+I9 -> 0 | M9: =IFERROR(IF(+K9-L9>=0,K9-L9,"*")-O9,"*") -> 0
K10: 0 | M10: =IFERROR(IF(+K10-L10>=0,K10-L10,"*")-O10,"*") -> 0
K11: 0 | M11: =IFERROR(IF(+K11-L11>=0,K11-L11,"*")-O11,"*") -> 0
K12: 0 | M12: =IFERROR(IF(+K12-L12>=0,K12-L12,"*")-O12,"*") -> 0
C13: Capital Improvements: | G13: XXXXXX | H13: XXXXXXXXXX | I13: XXXXXXXXXX | J13: XXXXXXXXXX | K13: XXXXXXXXXX | L13: XXXXXXXXXX | M13: XXXXXXXXXX
E14: Down Payments on Improvements | G14: 55-510 | K14: 0 | M14: =IFERROR(IF(+K14-L14>=0,K14-L14,"*")-O14,"*") -> 0
E15: Capital Improvement Fund | G15: 55-511 | J15: XXXXXXXXXX | K15: 0 | M15: =IFERROR(IF(+K15-L15>=0,K15-L15,"*")-O15,"*") -> 0
E16: Capital Outlay | G16: 55-512 | K16: 0 | M16: =IFERROR(IF(+K16-L16>=0,K16-L16,"*")-O16,"*") -> 0
K17: 0 | M17: =IFERROR(IF(+K17-L17>=0,K17-L17,"*")-O17,"*") -> 0
K18: 0 | M18: =IFERROR(IF(+K18-L18>=0,K18-L18,"*")-O18,"*") -> 0
C19: Debt Service: | G19: XXXXXX | H19: XXXXXXXXXX | I19: XXXXXXXXXX | J19: XXXXXXXXXX | K19: XXXXXXXXXX | L19: XXXXXXXXXX | M19: XXXXXXXXXX
E20: Payment on Bond Principal | G20: 55-520 | K20: 0 | M20: XXXXXXXXXX | O20: =K20-L20 -> 0
E21: Payment on Bond Anticipation Notes & Capital Notes | G21: 55-521 | K21: 0 | M21: XXXXXXXXXX | O21: =K21-L21 -> 0
E22: Interest on Bonds | G22: 55-522 | K22: 0 | M22: XXXXXXXXXX | O22: 0
E23: Interest on Notes | G23: 55-523 | K23: 0 | M23: XXXXXXXXXX | O23: 0
K24: 0 | M24: XXXXXXXXXX | O24: 0
K25: 0 | M25: XXXXXXXXXX | O25: 0
K26: 0 | M26: XXXXXXXXXX | O26: 0
B27: Sheet 32b

Sheet 33-Utility6 (hidden)
B2: ="DEDICATED "&UPPER('Key Inputs'!E44)&" UTILITY BUDGET - (continued)" -> DEDICATED UTILITY BUDGET - (continued)
H3: Appropriated | L3: ="Expended "&'Key Inputs'!E34-1 -> Expended 2019
C4: ="11. APPROPRIATIONS FOR "&UPPER('Key Inputs'!E44)&" UTILITY" -> 11. APPROPRIATIONS FOR UTILITY | G4: FCOA | J4: ="for "&'Key Inputs'!E34-1&" By" -> for 2019 By | K4: ="Total for "&'Key Inputs'!E34-1 -> Total for 2019
H5: ="for "&'Key Inputs'!E34 -> for 2020 | I5: ="for "&'Key Inputs'!E34-1 -> for 2019 | J5: Emergency | K5: As Modified By | L5: Paid or | M5: Reserved | O5: Canceled
J6: Appropriation | K6: All Transfers | L6: Charged
C7: Deferred Charges and Statutory Expenditures: | G7: XXXXXX | H7: XXXXXXXXXX | I7: XXXXXXXXXX | J7: XXXXXXXXXX | K7: XXXXXXXXXX | L7: XXXXXXXXXX | M7: XXXXXXXXXX
D8: DEFERRED CHARGES: | G8: XXXXXX | H8: XXXXXXXXXX | I8: XXXXXXXXXX | J8: XXXXXXXXXX | K8: XXXXXXXXXX | L8: XXXXXXXXXX | M8: XXXXXXXXXX
E9: Emergency Authorizations | G9: 55-530 | J9: XXXXXXXXXX | K9: =+I9 -> 0 | M9: XXXXXXXXXX | O9: =K9-L9 -> 0
J10: XXXXXXXXXX | K10: =+I10 -> 0 | M10: XXXXXXXXXX | O10: =K10-L10 -> 0
J11: XXXXXXXXXX | K11: =+I11 -> 0 | M11: XXXXXXXXXX | O11: =K11-L11 -> 0
J12: XXXXXXXXXX | K12: =+I12 -> 0 | M12: XXXXXXXXXX | O12: =K12-L12 -> 0
J13: XXXXXXXXXX | K13: =+I13 -> 0 | M13: XXXXXXXXXX | O13: =K13-L13 -> 0
D14: STATUTORY EXPENDITURES: | G14: XXXXXX | H14: XXXXXXXXXX | I14: XXXXXXXXXX | J14: XXXXXXXXXX | K14: XXXXXXXXXX | L14: XXXXXXXXXX | M14: XXXXXXXXXX
E15: Contribution To: | K15: =+I15 -> 0 | M15: =IFERROR(IF(+K15-L15>=0,K15-L15,"*")-O16,"*") -> 0
F16: Public Employee's Retirement System | G16: 55-540
F17: Social Security System (O.A.S.I.) | G17: 55-541 | K17: =+I17 -> 0 | M17: =IFERROR(IF(+K17-L17>=0,K17-L17,"*")-O17,"*") -> 0
E18: Unemployment Compensation Insurance (N.J.S.A. 43:21-3 et. Seq.) | G18: 55-542 | K18: 0 | M18: =IFERROR(IF(+K18-L18>=0,K18-L18,"*")-O18,"*") -> 0
K19: 0 | M19: 0
K20: 0 | M20: 0
K21: 0 | M21: 0
C22: Judgements | G22: 55-531 | K22: 0 | M22: XXXXXXXXXX | O22: =K22-L22 -> 0
C23: Deficit in Operations in Prior Years | G23: 55-532 | J23: XXXXXXXXXX | K23: 0 | M23: XXXXXXXXXX | O23: =K23-L23 -> 0
C24: Surplus (General Budget ) | G24: 55-545 | J24: XXXXXXXXXX | K24: 0 | M24: XXXXXXXXXX | O24: =K24-L24 -> 0
D25: ="TOTAL "&UPPER('Key Inputs'!E44)&" UTILITY APPROPRIATIONS" -> TOTAL UTILITY APPROPRIATIONS | G25: 55-599 | H25: =+SUM(H9:H24)+SUM('32b-Utility6'!H8:H26)+SUM('32-Utility6:32a-Utility6'!H8:H26) -> 0 | I25: =+SUM(I9:I24)+SUM('32b-Utility6'!I8:I26)+SUM('32-Utility6:32a-Utility6'!I8:I26) -> 0 | J25: =+SUM(J9:J24)+SUM('32b-Utility6'!J8:J26)+SUM('32-Utility6:32a-Utility6'!J8:J26) -> 0 | K25: =+SUM(K9:K24)+SUM('32b-Utility6'!K8:K26)+SUM('32-Utility6:32a-Utility6'!K8:K26) -> 0 | L25: =+SUM(L9:L24)+SUM('32b-Utility6'!L8:L26)+SUM('32-Utility6:32a-Utility6'!L8:L26) -> 0 | M25: =+SUM(M9:M24)+SUM('32b-Utility6'!M8:M26)+SUM('32-Utility6:32a-Utility6'!M8:M26) -> 0 | O25: =K25-L25-M25 -> 0
B26: Sheet 33

Sheet 37
E2: DEDICATED ASSESSMENT BUDGET
I4: Anticipated | K4: Realized in
E5: 14. DEDICATED REVENUES FROM | H5: FCOA | I5: ='Key Inputs'!E$34 -> 2020 | J5: =I5-1 -> 2019 | K5: ="Cash in "&J5 -> Cash in 2019
E6: Assessment Cash | H6: 51-101
E8: Deficit (General Budget) | H8: 51-885
G9: Total Assessment Revenues | H9: 51-899 | I9: =SUM(I6:I8) -> 0 | J9: =SUM(J6:J8) -> 0 | K9: =SUM(K6:K8) -> 0
I10: Appropriated | K10: ="Expended "&J$5 -> Expended 2019
E11: 15. APPROPRIATIONS FOR ASSESSMENT DEBT | I11: =I5 -> 2020 | J11: =I11-1 -> 2019 | K11: Paid or Charged
E12: Payment of Bond Principal | H12: 51-920
E13: Payment of Bond Anticipation Notes | H13: 51-925
G15: Total Assessment Appropriations | H15: 51-999 | I15: =SUM(I12:I14) -> 0 | J15: =SUM(J12:J14) -> 0 | K15: =SUM(K12:K14) -> 0
E17: ="DEDICATED ASSESSMENT BUDGET "&UPPER('Key Inputs'!E46)&" UTILITY" -> DEDICATED ASSESSMENT BUDGET UTILITY
I19: Anticipated | K19: Realized in
E20: 14. DEDICATED REVENUES FROM | H20: FCOA | I20: ='Key Inputs'!E$34 -> 2020 | J20: =I20-1 -> 2019 | K20: ="Cash in "&J20 -> Cash in 2019
E21: Assessment Cash | H21: 52-101
E23: ="Deficit ("&'Key Inputs'!E46&" Utility Budget)" -> Deficit ( Utility Budget) | H23: 52-885
E24: ="Total "&'Key Inputs'!E46&" Utility Assessment Revenues" -> Total Utility Assessment Revenues | H24: 52-899 | I24: =SUM(I20:I23) -> 0 | J24: =SUM(J21:J23) -> 0 | K24: =SUM(K20:K23) -> 0
I25: Appropriated | K25: ="Expended "&J$5 -> Expended 2019
E26: 15. APPROPRIATIONS FOR ASSESSMENT DEBT | I26: =I5 -> 2020 | J26: =I26-1 -> 2019 | K26: Paid or Charged
E27: Payment of Bond Principal | H27: 52-920
E28: Payment of Bond Anticipation Notes | H28: 52-925
E30: ="Total "&'Key Inputs'!E46&" Utility Assessment Appropriations" -> Total Utility Assessment Appropriations | H30: 52-999 | I30: =SUM(I27:I29) -> 0 | J30: =SUM(J27:J29) -> 0 | K30: =SUM(K27:K29) -> 0
A31: Sheet 37

Sheet 38
C2: ="DEDICATED ASSESSMENT BUDGET "&UPPER('Key Inputs'!E47)&" UTILITY" -> DEDICATED ASSESSMENT BUDGET UTILITY
G4: Anticipated | I4: Realized in
C5: 14. DEDICATED REVENUES FROM | F5: FCOA | G5: ='Key Inputs'!E$34 -> 2020 | H5: =G5-1 -> 2019 | I5: ="Cash in "&H5 -> Cash in 2019
C6: Assessment Cash | F6: 53-101
C8: ="Deficit ("&'Key Inputs'!E47&" Utility Budget)" -> Deficit ( Utility Budget) | F8: 53-885
C9: ="Total "&'Key Inputs'!E47&" Utility Assessment Revenues" -> Total Utility Assessment Revenues | F9: 53-899 | G9: =SUM(G6:G8) -> 0 | H9: =SUM(H6:H8) -> 0 | I9: =SUM(I6:I8) -> 0
G10: Appropriated | I10: ="Expended "&H$5 -> Expended 2019
C11: 15. APPROPRIATIONS FOR ASSESSMENT DEBT | G11: ='Key Inputs'!E$34 -> 2020 | H11: =G11-1 -> 2019 | I11: Paid or Charged
C12: Payment of Bond Principal | F12: 53-920
C13: Payment of Bond Anticipation Notes | F13: 53-925
C15: ="Total "&'Key Inputs'!E47&" Utility Assessment Appropriations" -> Total Utility Assessment Appropriations | F15: 53-999 | G15: =SUM(G12:G14) -> 0 | H15: =SUM(H12:H14) -> 0 | I15: =SUM(I12:I14) -> 0
C19: Dedication by Rider - (N.J.S.A. 40A: 4-39) dedicated revenues anticipated during the year 2020 from Animal Control State or Federal Aid for Maintenance of Libraries
C21: Bequest, Escheat; Construction Code Fees Due Hackensak Meadowlands Development Commission; Outside Employment of Off-Duty Municipal Police
C23: Officers; Unemployment Compensation Insurance; Reimbursement of Sale of Gasoline to State Automobiles; State Training Fees - Uniform Construction Code Act;
C25: Older Americans Act - Program Contributions; Municipal Alliance on Alcoholism and Drug Abuse - Program Income:
C26: Developers Escrow Fund; Special Law Enforcement Fund; Affordable Housing Trust; Municipal Public Defender; Donations - Edward H. Emmons Estate; Fire Equipment; Donations for Recreation
C27: Equipment and Activities; POAA; Housing and Comm. Dev. Act of 1974; Accumulated Absences; Unemployment Compensation Insurance; Uniform Fire Safety Act Penalty Monies; Municipal
C28: Improvements Donations; Eatontown Historical Museum Donations; Eatontown Economic Development Advisory Committee Donations; Recycling Program; Storm Recovery Trust Fund; Disposal
C29: of Forfeited Property:
C34: are hereby anticipated as revenue and are hereby appropriated for the purpose to which said revenue is dedicated by statute or other legal requirement."
A36: Sheet 38

Sheet 39
B2: APPENDIX TO BUDGET STATEMENT
H4: COMPARATIVE STATEMENT OF CURRENT FUND OPERATIONS AND
B5: ="CURRENT FUND BALANCE SHEET - DECEMBER 31, "&'Key Inputs'!E34-1 -> CURRENT FUND BALANCE SHEET - DECEMBER 31, 2019 | H5: CHANGE IN CURRENT SURPLUS
B6: ASSETS | L6: ="YEAR "&'Key Inputs'!E34-1 -> YEAR 2019 | M6: ="YEAR "&'Key Inputs'!E34-2 -> YEAR 2018
B7: Cash and Investments | E7: 1110100 | F7: 11306456 | H7: Surplus Balance, January 1st | K7: 2310100 | L7: =+M22 -> 5610470 | M7: 4755310
B8: Due from State of N.J.(c. 20, P.L. 1961) | E8: 1111000 | H8: CURRENT REVENUE ON A CASH BASIS: | K8: XXXXXX | L8: XXXXXXXX | M8: XXXXXXXX
B9: Federal and State Grants Receivable | E9: 1110200 | H9: ="Current Taxes: *(Percentage Collected "&'Key Inputs'!E34-1&" 99.07%, "&'Key Inputs'!E34-2&" 99.00%)" -> Current Taxes: *(Percentage Collected 2019 99.07%, 2018 99.00%) | K9: 2310200 | L9: 50995467 | M9: 50625673
B10: Receivables with Offsetting Reserves: | E10: XXXXXX | F10: XXXXXXXX | H10: Delinquent Taxes | K10: 2310300 | L10: 200559 | M10: 232382
C11: Taxes Receivable | E11: 1110300 | F11: 404166 | H11: Other Revenues and Additions to Income | K11: 2310400 | L11: 7677980 | M11: 7120676
C12: Tax Title Lien Receivable | E12: 1110400 | F12: 151426 | I12: Total Funds | K12: 2310500 | L12: =SUM(L7:L11) -> 64484476 | M12: =SUM(M7:M11) -> 62734041
C13: Property Acquired by Tax Title Lien Liquidation | E13: 1110500 | F13: 201300 | H13: EXPENDITURES AND TAX REQUIREMENTS: | K13: XXXXXX | L13: XXXXXXXX | M13: XXXXXXXX
C14: Other Receivables | E14: 1110600 | F14: 19520 | I14: Municipal Appropriations | K14: 2310600 | L14: 24582212.49 | M14: 24219907
B15: ="Deferred Charges Required to be in "&'Key Inputs'!E34&" Budget" -> Deferred Charges Required to be in 2020 Budget | E15: 1110700 | F15: 0 | I15: School Taxes (Including Local and Regional) | K15: 2310700 | L15: 26577153 | M15: 25836968
B16: ="Deferred Charges Required to be in Budgets Subsequent to "&'Key Inputs'!E34 -> Deferred Charges Required to be in Budgets Subsequent to 2020 | E16: 1110800 | F16: 0 | I16: County Taxes (Including Added Tax Amounts) | K16: 2310800 | L16: 6653405 | M16: 6936713
C17: Total Assets | E17: 1110900 | F17: =SUM(F7:F16) -> 12082868 | I17: Special District Taxes | K17: 2310900
I18: Other Expenditures and Deductions from Income | K18: 2311000 | L18: 855.51 | M18: 145583
B19: LIABILITIES, RESERVES AND SURPLUS | I19: Total Expenditures and Tax Requirements | K19: 2311100 | L19: =SUM(L13:L18) -> 57813626 | M19: =SUM(M13:M18) -> 57139171
B20: *Cash Liabilities | E20: 2110100 | F20: 4635606 | H20: Less: Expenditures to be Raised by Future Taxes | K20: 2311200 | L20: 0 | M20: 15600
B21: Reserves for Receivables | E21: 2110200 | F21: 776412 | H21: Total Adjusted Expenditures and Tax Requirements | K21: 2311300 | L21: =+L19-L20 -> 57813626 | M21: =+M19-M20 -> 57123571
B22: Surplus | E22: 2110300 | F22: =+L22 -> 6670850 | H22: Surplus Balance - December 31st | K22: 2311400 | L22: =+L12-L21 -> 6670850 | M22: =+M12-M21 -> 5610470
C23: Total Liabilities, Reserves and Surplus | E23: XXXXXX | F23: =SUM(F20:F22) -> 12082868 | H23: *Nearest even percentage may be used
J24: ="Proposed Use of Current Fund Surplus in "&'Key Inputs'!E34&" Budget" -> Proposed Use of Current Fund Surplus in 2020 Budget
D25: School Tax Levy Unpaid | E25: 2220170 | F25: 12580783 | J25: ="Surplus Balance December 31, "&'Key Inputs'!E34-1 -> Surplus Balance December 31, 2019 | K25: 2311500 | L25: =+L22 -> 6670850
D26: Less: School Tax Deferred | E26: 2220200 | F26: 12580782 | J26: ="Current Surplus Anticipated in "&'Key Inputs'!E34&" Budget" -> Current Surplus Anticipated in 2020 Budget | K26: 2311600 | L26: =+'4'!I7 -> 4000000
D27: *Balance Included in Above "Cash Liabilities" | E27: 2220300 | F27: =+F25-F26 -> 1 | J27: Surplus Balance Remaining | K27: 2311700 | L27: =+L25-L26 -> 2670850
C29: (Important: This appendix must be Included in advertisement of Budget.)
A31: Sheet 39
L37: =+L25-3000704.33 -> 3670145.67

Sheet 40
B3: ='Key Inputs'!E34 -> 2020
B4: CAPITAL BUDGET AND CAPITAL IMPROVEMENT PROGRAM
F7: This section is included with the Annual Budget pursuant to N.J.A.C. 5:30-4. It does not in itself confer any authorization to raise or expend
E8: funds. Rather it is a document used as part of the local unit's planning and management program. Specific authorization to expend funds for purposes
E9: described in this section must be granted elsewhere, by a separate bond ordinance, by inclusion of a line item in the Capital Improvement Section of this
E10: budget, by an ordinance taking the money from the Capital Improvement Fund, or other lawful means.
E12: CAPITAL BUDGET | G12: - A plan for all capital expenditures for the current fiscal year.
G13: If no Capital Budget is included, check the reason why:
I15: Total capital expenditures this year do not exceed $25,000, including appropriations for Capital Improvement Fund,
I16: Capital Line items and Down Payments on Improvements.
I18: No bond ordinances are planned this year.
E20: CAPITAL IMPROVEMENT PROGRAM | G20: - A multi-year list of planned capital projects, including the current year.
G21: Check appropriate box for number of years covered, including current year:
I23: 3 years. (Population under 10,000) | S23: Years Exceeding Max:
H25: X | I25: 6 years. (Over 10,000 and all county governments)
I27: =" "&S24&" years exceeding minimum time period." -> years exceeding minimum time period.
H29: Check if municipality is under 10,000, has not expended more than $25,000 annually for capital purposes in immediately
H30: previous three years, and is not adopting CIP.
M38: C - 1
B39: Sheet 40

Sheet 40a
B3: =+'Key Inputs'!E5 -> BOROUGH OF EATONTOWN
B4: NARRATIVE FOR CAPITAL IMPROVEMENT PROGRAM
B7: The Capital Budget as presented provides for the future of our community. The projects set forth in this proposed program are part of the improvements for the Borough. These projects are subject to
B8: revision as changes take place in the future and will be modified to reflect new priorities that are not included in the current program.
M41: C - 2
B42: Sheet 40a

Sheet 40b
B2: CAPITAL BUDGET (Current Year Action)
B3: ='Key Inputs'!E34 -> 2020
H4: Local Unit | J4: =+'Key Inputs'!E5 -> BOROUGH OF EATONTOWN
E6: 4 | K6: 6
B7: 1 | C7: 2 | D7: 3 | E7: AMOUNTS | F7: ="PLANNED FUNDING SERVICES FOR CURRENT YEAR - "&'Key Inputs'!E34 -> PLANNED FUNDING SERVICES FOR CURRENT YEAR - 2020 | K7: TO BE
B8: PROJECT TITLE | C8: PROJECT | D8: ESTIMATED | E8: RESERVED | F8: 5a | G8: 5b | H8: 5c | I8: 5d | J8: 5e | K8: FUNDED IN
C9: NUMBER | D9: TOTAL | E9: IN PRIOR | F9: ='Key Inputs'!E34&" Budget" -> 2020 Budget | G9: Capital | H9: Capital | I9: Grants in Aid and | J9: Debt | K9: FUTURE
D10: COST | E10: YEARS | F10: Appropriations | G10: Improvement Fund | H10: Surplus | I10: Other Funds | J10: Authorized | K10: YEARS
B11: Road Program | C11: 1 | D11: =SUM(E11:K11) -> 2857794 | G11: 6875 | I11: 370294 | J11: 130625 | K11: =400000+500000+550000+600000+300000 -> 2350000
B12: Acquisition of Machinery and Equip. | C12: 2 | D12: =SUM(E12:K12) -> 954175 | G12: 17543.75 | J12: 333331.25 | K12: =155000+137800+81000+122500+107000 -> 603300
B13: Improvements to Public Buildings | C13: 3 | D13: 2726548 | G13: 16646.15 | J13: 316276.85 | K13: =511065+149500+681000+547060+505000 -> 2393625
B14: Acquisition of Vehicles and Equip. | C14: 4 | D14: 5711100 | G14: 32415 | J14: 615885 | K14: =1805000+782200+768000+987600+720000 -> 5062800
B15: Property Purchase | C15: 5 | D15: 249510 | G15: 9475.5 | I15: 60000 | J15: 180034.5
D16: 0
D17: 0
D18: 0
D19: 0
D20: 0
D21: 0
D22: 0
D23: 0
D24: 0
D25: 0
D26: 0
D27: 0
D28: 0
B29: TOTAL - THIS PAGE | C29: XXXXX | D29: =SUM(E29:K29) -> 12499127 | E29: =+SUM(E11:E28) -> 0 | F29: =+SUM(F11:F28) -> 0 | G29: 82955.4 | H29: 0 | I29: 430294 | J29: 1576152.6 | K29: 10409725
K30: C - 3
B31: Sheet 40b

Sheet 40b1
B2: CAPITAL BUDGET (Current Year Action)
B3: ='Key Inputs'!E34 -> 2020
H4: Local Unit | J4: =+'Key Inputs'!E5 -> BOROUGH OF EATONTOWN
E6: 4 | K6: 6
B7: 1 | C7: 2 | D7: 3 | E7: AMOUNTS | F7: ="PLANNED FUNDING SERVICES FOR CURRENT YEAR - "&'Key Inputs'!E34 -> PLANNED FUNDING SERVICES FOR CURRENT YEAR - 2020 | K7: TO BE
B8: PROJECT TITLE | C8: PROJECT | D8: ESTIMATED | E8: RESERVED | F8: 5a | G8: 5b | H8: 5c | I8: 5d | J8: 5e | K8: FUNDED IN
C9: NUMBER | D9: TOTAL | E9: IN PRIOR | F9: ='Key Inputs'!E34&" Budget" -> 2020 Budget | G9: Capital | H9: Capital | I9: Grants in Aid and | J9: Debt | K9: FUTURE
D10: COST | E10: YEARS | F10: Appropriations | G10: Improvement Fund | H10: Surplus | I10: Other Funds | J10: Authorized | K10: YEARS
D11: =SUM(E11:K11) -> 0
D12: =SUM(E12:K12) -> 0
D13: 0
D14: 0
D15: 0
D16: 0
D17: 0
D18: 0
D19: 0
D20: 0
D21: 0
D22: 0
D23: 0
D24: 0
D25: 0
D26: 0
D27: 0
D28: 0
B29: TOTAL - THIS PAGE | C29: XXXXX | D29: 0 | E29: =SUM(E11:E28) -> 0 | F29: 0 | G29: 0 | H29: 0 | I29: 0 | J29: 0 | K29: 0
K30: C - 3
B31: Sheet 40b1

Sheet 40b2 (hidden)
B2: CAPITAL BUDGET (Current Year Action)
B3: ='Key Inputs'!E34 -> 2020
H4: Local Unit | J4: =+'Key Inputs'!E5 -> BOROUGH OF EATONTOWN
E6: 4 | K6: 6
B7: 1 | C7: 2 | D7: 3 | E7: AMOUNTS | F7: ="PLANNED FUNDING SERVICES FOR CURRENT YEAR - "&'Key Inputs'!E34 -> PLANNED FUNDING SERVICES FOR CURRENT YEAR - 2020 | K7: TO BE
B8: PROJECT TITLE | C8: PROJECT | D8: ESTIMATED | E8: RESERVED | F8: 5a | G8: 5b | H8: 5c | I8: 5d | J8: 5e | K8: FUNDED IN
C9: NUMBER | D9: TOTAL | E9: IN PRIOR | F9: ='Key Inputs'!E34&" Budget" -> 2020 Budget | G9: Capital | H9: Capital | I9: Grants in Aid and | J9: Debt | K9: FUTURE
D10: COST | E10: YEARS | F10: Appropriations | G10: Improvement Fund | H10: Surplus | I10: Other Funds | J10: Authorized | K10: YEARS
D11: =SUM(E11:K11) -> 0
D12: =SUM(E12:K12) -> 0
D13: 0
D14: 0
D15: 0
D16: 0
D17: 0
D18: 0
D19: 0
D20: 0
D21: 0
D22: 0
D23: 0
D24: 0
D25: 0
D26: 0
D27: 0
D28: 0
B29: TOTAL - THIS PAGE | C29: XXXXX | D29: 0 | E29: =SUM(E11:E28) -> 0 | F29: =SUM(F11:F28) -> 0 | G29: 0 | H29: 0 | I29: 0 | J29: 0 | K29: 0
K30: C - 3
B31: Sheet 40b2

Sheet 40b3 (hidden)
B2: CAPITAL BUDGET (Current Year Action)
B3: ='Key Inputs'!E34 -> 2020
H4: Local Unit | J4: =+'Key Inputs'!E5 -> BOROUGH OF EATONTOWN
E6: 4 | K6: 6
B7: 1 | C7: 2 | D7: 3 | E7: AMOUNTS | F7: ="PLANNED FUNDING SERVICES FOR CURRENT YEAR - "&'Key Inputs'!E34 -> PLANNED FUNDING SERVICES FOR CURRENT YEAR - 2020 | K7: TO BE
B8: PROJECT TITLE | C8: PROJECT | D8: ESTIMATED | E8: RESERVED | F8: 5a | G8: 5b | H8: 5c | I8: 5d | J8: 5e | K8: FUNDED IN
C9: NUMBER | D9: TOTAL | E9: IN PRIOR | F9: ='Key Inputs'!E34&" Budget" -> 2020 Budget | G9: Capital | H9: Capital | I9: Grants in Aid and | J9: Debt | K9: FUTURE
D10: COST | E10: YEARS | F10: Appropriations | G10: Improvement Fund | H10: Surplus | I10: Other Funds | J10: Authorized | K10: YEARS
D11: =SUM(E11:K11) -> 0
D12: =SUM(E12:K12) -> 0
D13: 0
D14: 0
D15: 0
D16: 0
D17: 0
D18: 0
D19: 0
D20: 0
D21: 0
D22: 0
D23: 0
D24: 0
D25: 0
D26: 0
D27: 0
D28: 0
B29: TOTAL - THIS PAGE | C29: XXXXX | D29: 0 | E29: =SUM(E11:E28) -> 0 | F29: =SUM(F11:F28) -> 0 | G29: 0 | H29: 0 | I29: 0 | J29: 0 | K29: 0
K30: C - 3
B31: Sheet 40b3

Sheet 40b4 (hidden)
B2: CAPITAL BUDGET (Current Year Action)
B3: ='Key Inputs'!E34 -> 2020
H4: Local Unit | J4: =+'Key Inputs'!E5 -> BOROUGH OF EATONTOWN
E6: 4 | K6: 6
B7: 1 | C7: 2 | D7: 3 | E7: AMOUNTS | F7: ="PLANNED FUNDING SERVICES FOR CURRENT YEAR - "&'Key Inputs'!E34 -> PLANNED FUNDING SERVICES FOR CURRENT YEAR - 2020 | K7: TO BE
B8: PROJECT TITLE | C8: PROJECT | D8: ESTIMATED | E8: RESERVED | F8: 5a | G8: 5b | H8: 5c | I8: 5d | J8: 5e | K8: FUNDED IN
C9: NUMBER | D9: TOTAL | E9: IN PRIOR | F9: ='Key Inputs'!E34&" Budget" -> 2020 Budget | G9: Capital | H9: Capital | I9: Grants in Aid and | J9: Debt | K9: FUTURE
D10: COST | E10: YEARS | F10: Appropriations | G10: Improvement Fund | H10: Surplus | I10: Other Funds | J10: Authorized | K10: YEARS
D11: =SUM(E11:K11) -> 0
D12: =SUM(E12:K12) -> 0
D13: 0
D14: 0
D15: 0
D16: 0
D17: 0
D18: 0
D19: 0
D20: 0
D21: 0
D22: 0
D23: 0
D24: 0
D25: 0
D26: 0
D27: 0
D28: 0
B29: TOTAL - THIS PAGE | C29: XXXXX | D29: 0 | E29: =SUM(E11:E28) -> 0 | F29: =SUM(F11:F28) -> 0 | G29: 0 | H29: 0 | I29: 0 | J29: 0 | K29: 0
K30: C - 3
B31: Sheet 40b4

Sheet 40b5 (hidden)
B2: CAPITAL BUDGET (Current Year Action)
B3: ='Key Inputs'!E34 -> 2020
H4: Local Unit | J4: =+'Key Inputs'!E5 -> BOROUGH OF EATONTOWN
E6: 4 | K6: 6
B7: 1 | C7: 2 | D7: 3 | E7: AMOUNTS | F7: ="PLANNED FUNDING SERVICES FOR CURRENT YEAR - "&'Key Inputs'!E34 -> PLANNED FUNDING SERVICES FOR CURRENT YEAR - 2020 | K7: TO BE
B8: PROJECT TITLE | C8: PROJECT | D8: ESTIMATED | E8: RESERVED | F8: 5a | G8: 5b | H8: 5c | I8: 5d | J8: 5e | K8: FUNDED IN
C9: NUMBER | D9: TOTAL | E9: IN PRIOR | F9: ='Key Inputs'!E34&" Budget" -> 2020 Budget | G9: Capital | H9: Capital | I9: Grants in Aid and | J9: Debt | K9: FUTURE
D10: COST | E10: YEARS | F10: Appropriations | G10: Improvement Fund | H10: Surplus | I10: Other Funds | J10: Authorized | K10: YEARS
D11: =SUM(E11:K11) -> 0
D12: =SUM(E12:K12) -> 0
D13: 0
D14: 0
D15: 0
D16: 0
D17: 0
D18: 0
D19: 0
D20: 0
D21: 0
D22: 0
D23: 0
D24: 0
D25: 0
D26: 0
D27: 0
D28: 0
B29: TOTAL - THIS PAGE | C29: XXXXX | D29: 0 | E29: =SUM(E11:E28) -> 0 | F29: =SUM(F11:F28) -> 0 | G29: 0 | H29: 0 | I29: 0 | J29: 0 | K29: 0
K30: C - 3
B31: Sheet 40b5
K35: =SUM(F29:K29) -> 0

Sheet 40b6 (hidden)
B2: CAPITAL BUDGET (Current Year Action)
B3: ='Key Inputs'!E34 -> 2020
H4: Local Unit | J4: =+'Key Inputs'!E5 -> BOROUGH OF EATONTOWN
E6: 4 | K6: 6
B7: 1 | C7: 2 | D7: 3 | E7: AMOUNTS | F7: ="PLANNED FUNDING SERVICES FOR CURRENT YEAR - "&'Key Inputs'!E34 -> PLANNED FUNDING SERVICES FOR CURRENT YEAR - 2020 | K7: TO BE
B8: PROJECT TITLE | C8: PROJECT | D8: ESTIMATED | E8: RESERVED | F8: 5a | G8: 5b | H8: 5c | I8: 5d | J8: 5e | K8: FUNDED IN
C9: NUMBER | D9: TOTAL | E9: IN PRIOR | F9: ='Key Inputs'!E34&" Budget" -> 2020 Budget | G9: Capital | H9: Capital | I9: Grants in Aid and | J9: Debt | K9: FUTURE
D10: COST | E10: YEARS | F10: Appropriations | G10: Improvement Fund | H10: Surplus | I10: Other Funds | J10: Authorized | K10: YEARS
D11: =SUM(E11:K11) -> 0
D12: =SUM(E12:K12) -> 0
D13: 0
D14: 0
D15: 0
D16: 0
D17: 0
D18: 0
D19: 0
D20: 0
D21: 0
D22: 0
D23: 0
D24: 0
D25: 0
D26: 0
D27: 0
D28: 0
B29: TOTAL - THIS PAGE | C29: XXXXX | D29: 0 | E29: =SUM(E11:E28) -> 0 | F29: =SUM(F11:F28) -> 0 | G29: 0 | H29: 0 | I29: 0 | J29: 0 | K29: 0
K30: C - 3
B31: Sheet 40b6

Sheet 40b7 (hidden)
B2: CAPITAL BUDGET (Current Year Action)
B3: ='Key Inputs'!E34 -> 2020
H4: Local Unit | J4: =+'Key Inputs'!E5 -> BOROUGH OF EATONTOWN
E6: 4 | K6: 6
B7: 1 | C7: 2 | D7: 3 | E7: AMOUNTS | F7: ="PLANNED FUNDING SERVICES FOR CURRENT YEAR - "&'Key Inputs'!E34 -> PLANNED FUNDING SERVICES FOR CURRENT YEAR - 2020 | K7: TO BE
B8: PROJECT TITLE | C8: PROJECT | D8: ESTIMATED | E8: RESERVED | F8: 5a | G8: 5b | H8: 5c | I8: 5d | J8: 5e | K8: FUNDED IN
C9: NUMBER | D9: TOTAL | E9: IN PRIOR | F9: ='Key Inputs'!E34&" Budget" -> 2020 Budget | G9: Capital | H9: Capital | I9: Grants in Aid and | J9: Debt | K9: FUTURE
D10: COST | E10: YEARS | F10: Appropriations | G10: Improvement Fund | H10: Surplus | I10: Other Funds | J10: Authorized | K10: YEARS
D11: =SUM(E11:K11) -> 0
D12: =SUM(E12:K12) -> 0
D13: 0
D14: 0
D15: 0
D16: 0
D17: 0
D18: 0
D19: 0
D20: 0
D21: 0
D22: 0
D23: 0
D24: 0
D25: 0
D26: 0
D27: 0
D28: 0
B29: TOTAL - THIS PAGE | C29: XXXXX | D29: 0 | E29: =SUM(E11:E28) -> 0 | F29: =SUM(F11:F28) -> 0 | G29: 0 | H29: 0 | I29: 0 | J29: 0 | K29: 0
K30: C - 3
B31: Sheet 40b7

Sheet 40b Totals
B2: CAPITAL BUDGET (Current Year Action)
B3: ='Key Inputs'!E34 -> 2020
H4: Local Unit | J4: =+'Key Inputs'!E5 -> BOROUGH OF EATONTOWN
E6: 4 | K6: 6
B7: 1 | C7: 2 | D7: 3 | E7: AMOUNTS | F7: ="PLANNED FUNDING SERVICES FOR CURRENT YEAR - "&'Key Inputs'!E34 -> PLANNED FUNDING SERVICES FOR CURRENT YEAR - 2020 | K7: TO BE
B8: PROJECT TITLE | C8: PROJECT | D8: ESTIMATED | E8: RESERVED | F8: 5a | G8: 5b | H8: 5c | I8: 5d | J8: 5e | K8: FUNDED IN
C9: NUMBER | D9: TOTAL | E9: IN PRIOR | F9: ='Key Inputs'!E34&" Budget" -> 2020 Budget | G9: Capital | H9: Capital | I9: Grants in Aid and | J9: Debt | K9: FUTURE
D10: COST | E10: YEARS | F10: Appropriations | G10: Improvement Fund | H10: Surplus | I10: Other Funds | J10: Authorized | K10: YEARS
D11: =SUM(E11:K11) -> 0
D12: =SUM(E12:K12) -> 0
D13: 0
D14: 0
D15: 0
D16: 0
D17: 0
D18: 0
D19: 0
D20: 0
D21: 0
D22: 0
D23: 0
D24: 0
D25: 0
D26: 0
D27: 0
D28: 0
B29: TOTAL - ALL PROJECTS | C29: XXXXX | D29: 12499127 | E29: =SUM(E11:E28)+SUM('40b:40b7'!E29) -> 0 | F29: =SUM(F11:F28)+SUM('40b:40b7'!F29) -> 0 | G29: =SUM(G11:G28)+SUM('40b:40b7'!G29) -> 82955.4 | H29: =SUM(H11:H28)+SUM('40b:40b7'!H29) -> 0 | I29: =SUM(I11:I28)+SUM('40b:40b7'!I29) -> 430294 | J29: =SUM(J11:J28)+SUM('40b:40b7'!J29) -> 1576152.6 | K29: =SUM(K11:K28)+SUM('40b:40b7'!K29) -> 10409725
K30: C - 3
B31: Sheet 40b - Totals
K35: =SUM(F29:K29) -> 12499127

Sheet 40c
B2: =""&'Key Inputs'!H39&" YEAR CAPITAL PROGRAM - "&'Key Inputs'!H40&" to "&'Key Inputs'!H41&"" -> 6 YEAR CAPITAL PROGRAM - 2020 to 2025
B3: ANTICIPATED PROJECT SCHEDULE AND FUNDING REQUIREMENTS
